Workbook

Sheet 表紙

Sheet 簡易説明書
C4: ＜拡散度法による床衝撃音計算プログラム・簡易説明書＞
D6: 床衝撃音の性能を推定するためには、基本となる床構造の性能を把握することが最も重要です。このソフトの＜床衝撃音計算シート＞により、各種条件下の床構造の重量床衝撃音性能を計算できます。設計時の条件検討ツールとしてご利用下さい。ただし、これは性能を保証するものではありませんので、この点は予めご承知おき下さい。なお、純ラーメン構造に関しては、純ラーメン構造説明書の欄を参照して下さい。
D8: 1.入力データに関して
D9: ■入力データは、各項目欄の単位に合わせて、以下の図の要領で入力して下さい。
D26: ■加振点位置の入力では、x，y の２方向に関して、各々の加振点から一番距離の近い端部または小梁までの距離を入力してください。
D27: ■加振点位置の入力で小梁がある場合は、梁せいの欄の小さなカラムに１を入れて下さい。小梁が無い場合は０を入れて下さい。X方向端部に小梁がある場合はｘ方向欄に、ｙ方向端部に梁がある場合はｙ方向欄に１を入れて下さい。
D28: ■小梁の条件は、梁せいのみ入力し、梁幅は無視して下さい。
D29: ■加振点が５点未満の時は、不要なセルにｘ方向、ｙ方向とも0.0000001のような十分に小さい値を入れておいて下さい。ただし、０は不適です。
D31: ２．参考値
D32: ■参考値はそれぞれ自動的に計算されて結果が表示されます。
D33: ■固有振動数の計算値は、小梁のない平板の時の値です。
D35: ３．計算結果
D36: ■入力データの欄に条件を入力し、 のボタンを押す（マウス左をクリック）と最終的な計算結果が表示されます。
D37: ■最下欄の決定周波数は、低い周波数を優先的に１つだけ表示しています。
D39: ４．その他
D40: ■ボイドスラブの計算の場合には、＜ボイド換算＞シートを用いて、均質板に換算したときの板厚と単位体積重量を求めて、＜床衝撃音計算シート＞にデータ入力して下さい。
D41: ■加振力と室内平均吸音率は＜加振力・吸音率設定シート＞で変更可能です。必要に応じて値を入力して下さい。
D42: ■このソフトは、裸床スラブの重量床衝撃音計算用ですから、実際の床衝撃音性能を推定するには、計算結果に床仕上げ材の床衝撃音改善量を考慮することが必要です。ただし、床仕上げがカーペットなどの場合には、裸床の場合と結果は殆ど変わりません。
D44: 八戸工業大学 橋本研究室

Sheet 床衝撃音計算シート
G1: ＜新・拡散度法 （純ラーメン構造対応版）＞
C3: 物件名
C5: ＜入力データ：純ラーメン=1、他＝0 | F5: 純ラーメン構造指定 | G5: 0 | H5: ＞
C7: 動的ヤング率(N/m2) | D7: 29000000000 | F7: 単位体積重量(kg/m3) | G7: 1684 | J7: ポアソン比 | L7: 0.16
D8: （ｘ方向） | F8: （ｙ方向）
C9: スラブ寸法(m) | D9: 8 | E9: × | F9: 6.5 | J9: 板 厚(mm) | L9: 244
C10: ＊ 純ラーメン構造の場合は大梁芯々寸法、それ以外は壁芯寸法を入力
C11: 拘束条件 | D11: 0.8 | E11: （単純支持0、周辺固定1） | J11: 減衰定数 | L11: 0.03
C12: ＊ 純ラーメン構造の場合は0.3、それ以外は0.8を推奨
C13: 室寸法(m) | D13: 4.8 | E13: × | F13: 3 | J13: 天井高さ(m) | L13: 2.4
C15: 大梁・梁巾(m) | F15: 大梁・梁せい(mm) | J15: 端部フリー条件
C16: ＊ 純ラーメン構造以外の場合はこの行の大梁関連データーは入力不要 | J16: ＊片側のみフリーは 1、両側フリーは 2
C17: 加振点数 | D17: 5
D18: （ｘ方向） | F18: （ｙ方向） | J18: （ｘ方向） | L18: （ｙ方向）
C19: 加振点位置１(m) | D19: 1.2 | F19: 0.75 | G19: 小梁・梁せい(m) | I19: 0 | J19: 0 | K19: 0 | L19: 0
C21: 加振点位置２(m) | D21: 2.4 | F21: 1.5 | G21: 小梁・梁せい(m) | I21: 0 | J21: 0 | K21: 0 | L21: 0
C23: 加振点位置３(m) | D23: 3.6 | F23: 0.75 | G23: 小梁・梁せい(m) | I23: 0 | J23: 0 | K23: 0 | L23: 0
C25: 加振点位置４(m) | D25: 1.2 | F25: 0.75 | G25: 小梁・梁せい(m) | I25: 0 | J25: 0 | K25: 0 | L25: 0
C27: 加振点位置5(m) | D27: 3.6 | F27: 0.75 | G27: 小梁・梁せい(m) | I27: 0 | J27: 0 | K27: 0 | L27: 0
C29: ＜参考値：固有振動数、等価寸法倍率は純ラーメン構造の時のみ表示。固有振動数(s),(c)は参考表示＞
C31: 固有振動数(Hz) | D31: =IF(G5=1,'計算表（参考）'!BM34,"＊") -> ＊ | F31: 固有振動数(s)(Hz) | G31: =IF(G5=0,'計算表（参考）'!R37,"＊") -> 18.26755505 | J31: 固有振動数(c)(Hz) | L31: =IF(G5=0,'計算表（参考）'!R38,"＊") -> 34.80461824
F32: ＊ 固有振動数の(s)は単純支持、(c)は周辺固定
C33: 等価寸法倍率 | D33: =IF(G5=1,'計算表（参考）'!BM80,"＊") -> ＊ | F33: 曲げ波波長(m/s) | G33: ='計算表（参考）'!Z47 -> 5.43299004 | J33: ｺｲﾝｼﾃﾞﾝｽ周波数(Hz) | L33: ='計算表（参考）'!R39 -> 62.16410271
F34: ＊ 周波数63Hzの場合
C36: ＜計算結果＞
C38: 中心周波数 | D38: 床衝撃音レベル
C39: (Hz) | D39: (dB)
C40: 31.5 | D40: ='計算表（参考）'!C20 -> 50.74749409
C41: 63 | D41: ='計算表（参考）'!E20 -> 72.21811018
C42: 125 | D42: ='計算表（参考）'!F20 -> 57.06742361
C43: 250 | D43: ='計算表（参考）'!G20 -> 46.03717062
C44: 500 | D44: ='計算表（参考）'!H20 -> 37.03814853
C45: 1K | D45: ='計算表（参考）'!I20 -> 30.17180494
C46: 2K | D46: ='計算表（参考）'!J20 -> 22.01584567
C47: 4K | D47: ='計算表（参考）'!K20 -> 15.11810486
C49: 騒音レベル (dB) | D49: ='計算表（参考）'!M20 -> 48.02998219
D50: ='計算表（参考）'!K23 -> 17
C53: Ｌ数 | D53: ='計算表（参考）'!M22 -> 49.21811018 | F53: Ｌ等級 | G53: ='計算表（参考）'!M24 -> 50 | J53: 決定周波数(Hz) | L53: ='計算表（参考）'!M26 -> 63
G55: 作成：八戸工業大学・橋本研究室（騒音問題総合研究所改訂）

Sheet ボイド換算シート
B1: ＜新・拡散度法 （純ラーメン構造対応版）＞
C4: ＜ボイドスラブ換算用シート＞
D8: １） 丸形１方向中空スラブの場合
G9: ｂ
H11: ｄ
I12: ｈ
G13: ｒ
G15: ｒ
E16: 入力条件
E17: b (mm) | F17: 250 | H17: d (mm) | I17: 125
E19: h (mm) | F19: 250 | H19: r (mm) | I19: 62.5
E22: 換算前の
E23: 板厚(mm) | F23: =F19 -> 250 | H23: 単位体積重量(kg/m3) | J23: 2300
E25: 換算後の
E26: 板厚(mm) | F26: =((F17*F19^3/12-(3.14*I19^4/4+(F19/2-I17)^2*3.14*I19^2))*12/F17)^(1/3) -> 246.8951941 | H26: 単位体積重量(kg/m3) | J26: =((F17*F19-3.14*I19^2)*J23)/F17/F26 -> 1871.872199
D29: ２） ２方向中空スラブの場合（ボイドスラブ、ハーフPCなど）
E31: <ｘ方向> | I31: <ｙ方向>
L32: ｄ１
N33: ｈ
L34: ｄ２
F37: ｂｘ | J37: ｂｙ
F38: ｔｘ | J38: ｔｙ
E41: 入力条件
E42: tx (mm) | F42: 1350 | H42: ty (mm) | I42: 580 | K42: h (mm) | M42: 250
E44: bx (mm) | F44: 1200 | H44: by (mm) | I44: 430 | K44: d1 (mm) | M44: 60
K46: d2 (mm) | M46: 120
E47: 換算前の
E48: 板厚(mm) | F48: =M42 -> 250 | H48: 単位体積重量(kg/m3) | J48: 2400
E50: 換算後の
E51: 板厚(mm) | F51: =(12*((F42*I42-F44*I44)*M42^3/12+F44*I44*(M42^3/12-(M46^3/12+(M42/2-M44-M46/2)^2*M46)))/(F42*I42))^(1/3) -> 243.6396479 | H51: 単位体積重量(kg/m3) | J51: =((F42*I42*M42-F44*I44*M46)*J48)/F42/I42/F51 -> 1683.662327
K62: 作成：八戸工業大学・橋本研究室

Sheet 加振力・吸音率設定シート
F1: ＜新・拡散度法 （純ラーメン構造対応版）＞
B3: ＜加振力および室内平均吸音率の設定シート＞
C4: 条件によっては、加振力や室内平均吸音力を変更すべき場合があると思います。その設定、変更を行うため、床衝撃音計算シートとは別枠で設定シートを設けました。ここでの設定値は、床衝撃音計算シートでの計算に直接反映されます。必要に応じて、色つきの下表の青色欄に数値を入力してください。
C5: ■加振力、室内平均吸音率のデフォルト値は、以下の値になっています。これは、ＪＩＳの衝撃力特性とは若干異なっています。必要なら随時、修正してください。 また、室内平均吸音率も平均的な値を入れてありますが、現場等の状況に合わせて変更すれば、予測精度の向上が期待できます。
C6: ＜データー入力表＞
C7: 周波数(Hz) | F7: 31.5 | G7: 63 | H7: 125 | I7: 250 | J7: 500 | K7: 1000 | L7: 2000 | M7: 4000
C8: 加振力(dB) | F8: 47 | G8: 38 | H8: 23 | I8: 13 | J8: 5 | K8: 0 | L8: -5 | M8: -10
C9: 室内平均吸音率 | F9: 0.1 | G9: 0.1 | H9: 0.1 | I9: 0.1 | J9: 0.15 | K9: 0.15 | L9: 0.2 | M9: 0.2
C10: ＜参考＞ ■加振力のＪＩＳの衝撃力特性については、バングマシーンに相当する衝撃特性(1)、インパクトボールに相当する衝撃力特性(2)が、それぞれ下記の表の通りとなります。ご参考下さい。

Sheet 純ラーメン構造用説明書
I1: ＜新・拡散度法（純ラーメン構造対応版）＞
B3: ＜純ラーメン構造用説明書＞
C5: 純ラーメン構造の床衝撃音性能には、通常の小梁付きスラブや大型スラブなどとは異なる下記の２つの特徴があります。 ① 大梁の下にRC造の界壁がないために生じる大梁と床スラブの連成振動の影響。 ② 床スラブの１次の固有振動数が高くなりやすいため生じる46Hz共振現象の影響。 これまでの拡散度法計算ソフトでは、これらの影響は組み込まれていませんでしたが、今回の＜純ラーメン構造対応版＞では、新たな研究の成果を基に純ラーメン構造の床衝撃音性能評価が可能となりました。概要を以下に示しますが、詳細は最後に挙げた技術資料をご参照ください。
C7: ■ 大梁と床スラブの連成振動の評価方法 純ラーメン構造の場合、重量床衝撃を受けると下図のように床スラブだけでなく大梁も振動します。これを「大梁と床スラブの連成振動」と呼びます。このため床衝撃音の計算ではスラブ面積を大梁で囲まれた部分よりも広くとる必要があります。床スラブを大梁内々寸法の何倍にとるかの数値を「等価寸法倍率」と呼び、これは研究により求められています（技術資料J-01）。当ソフトでは、これらに関する計算を自動的に行います。また、連成対象の大梁は変位があるため計算上は小梁として入力します。連成対象大梁は長辺側大梁となります。 下図の床スラブの場合は、片側がフリーで反対側が固定された状態ですが、両側ともフリーの条件の場合もあります。これらも入力条件（端部フリー条件）として考慮できます。
C13: ■ 46Hz共振現象の評価方法 重量床衝撃音性能では、床スラブの１次の固有振動数が46Hz前後の場合に、性能が大幅に悪化する傾向があります。これを「46Hz共振現象」と呼びます。従来の小梁付スラブや大型スラブでは、１次固有振動数は20～30Hz前後であったために、この現象の影響はあまり見られませんでしたが、純ラーメン構造では小スラブ面積の場合も多いため、この現象による性能低下が際立ってきます。下図は重量床衝撃音63Hz帯域に関する拡散度法の計算値と実測値の差を比較したものですが（70ｄB以下は影響が無いため省略）、誤差の大きいものの殆どが1次固有振動数が46Hz近辺である事が分かっています。 拡散度法ソフトでは、純ラーメン構造の1次の固有振動数の計算方法を独自に開発し、新たにソフトに組み込んでいます。この計算結果が46Hz共振現象の対象となる場合（44.5～50.0Hz）には、下図の共振による増幅の影響を自動的に考慮します。純ラーメン構造の1次固有振動数の算定方法に関しては拡散度法マニュアルをご参照下さい。
C16: ■ 拘束条件について 床衝撃音計算シートでは、純ラーメン構造の拘束条件として0.3を推奨していますが、加振点が拘束端からかなり離れていてもともと拘束の弱い場合などは、0.3では拘束が弱くなりすぎる場合などもありますので、そのような場合には、適宜、拘束条件の数値を大きくするなどの対応を行って検討して下さい。
C17: ■ 純ラーメン構造以外の場合の計算について 当ソフトの床衝撃音計算シートでは、最初に純ラーメン構造かどうかの条件入力欄があります。ここに純ラーメン構造以外の指定（数値0）を入れた場合には、これまでの拡散度法のソフトと全く同じ計算となります。この場合には、大梁の条件等の入力は必要ありません。
C18: ＜参考資料＞ 純ラーメン構造の床衝撃音性能評価に関する詳細は、拡散度法のマニュアル「拡散度法による床衝撃音予測計算法」がAmazonから発売されていますので、そちらをご参照ください。

Sheet 計算表（参考） (hidden)
B2: <L等級算出＞ | Q2: <入力データ＞ | V2: ＜計算経過表＞ | AX2: ＜小梁拘束計算＞ | BK2: ＜純ラーメン構造関係計算＞
BK3: （固有振動数計算）
E4: 63 | F4: 125 | G4: 250 | H4: 500 | I4: 1000 | J4: 2000 | K4: 4000 | R4: =床衝撃音計算シート!D7 -> 29000000000 | V4: 周波数(Hz) | Y4: 31.5 | Z4: 63 | AA4: 125 | AB4: 250 | AC4: 500 | AD4: 1000 | AE4: 2000 | AF4: 4000 | AI4: 周波数(Hz) | AL4: 31.5 | AM4: 63 | AN4: 125 | AO4: 250 | AP4: 500 | AQ4: 1000 | AR4: 2000 | AS4: 4000 | AX4: 周波数(Hz) | BA4: 31.5 | BB4: 63 | BC4: 125 | BD4: 250 | BE4: 500 | BF4: 1000 | BG4: 2000 | BH4: 4000
C5: L-85 | E5: 108 | F5: 98 | G5: 91 | H5: 85 | I5: 82 | J5: 81 | K5: 81 | R5: =床衝撃音計算シート!G7 -> 1684 | V5: 加振力(dB) | Y5: =加振力・吸音率設定シート!F8 -> 47 | Z5: =加振力・吸音率設定シート!G8 -> 38 | AA5: =加振力・吸音率設定シート!H8 -> 23 | AB5: =加振力・吸音率設定シート!I8 -> 13 | AC5: =加振力・吸音率設定シート!J8 -> 5 | AD5: =加振力・吸音率設定シート!K8 -> 0 | AE5: =加振力・吸音率設定シート!L8 -> -5 | AF5: =加振力・吸音率設定シート!M8 -> -10 | AG5: (可変） | AI5: 駆動点インピーダンス(dB) | AJ5: ｓ | AK5: 1 | AL5: =20*LOG10($R$41)+Y$49+BA$15 -> 123.499935 | AM5: =20*LOG10($R$41)+Z$49+BB$15 -> 108.2616501 | AN5: 116.1213928 | AO5: 119.7656084 | AP5: 119.7656084 | AQ5: 119.7656084 | AR5: 119.7656084 | AS5: 119.7656084 | AX5: 小梁による端部拘束 加振点１(dB) | AY5: s | AZ5: x | BA5: =-3*$BI5*LOG10($R$16/Y$47)-1.2*$BI5 -> -1.219117982 | BB5: -0.7675729886 | BC5: -0.3212187932 | BD5: 0.1303262003 | BE5: 0.5818711937 | BF5: 1.033416187 | BG5: 1.484961181 | BH5: 1.936506174 | BI5: =(R18-$R$7/1000)/($R$7/1000) -> -1 | BK5: E | BM5: =R4 -> 29000000000
C6: L-80 | E6: 103 | F6: 93 | G6: 86 | H6: 80 | I6: 77 | J6: 76 | K6: 76 | R6: =床衝撃音計算シート!L7 -> 0.16 | V6: 室内平均吸音率 | Y6: =加振力・吸音率設定シート!F9 -> 0.1 | Z6: =加振力・吸音率設定シート!G9 -> 0.1 | AA6: =加振力・吸音率設定シート!H9 -> 0.1 | AB6: =加振力・吸音率設定シート!I9 -> 0.1 | AC6: =加振力・吸音率設定シート!J9 -> 0.15 | AD6: =加振力・吸音率設定シート!K9 -> 0.15 | AE6: =加振力・吸音率設定シート!L9 -> 0.2 | AF6: =加振力・吸音率設定シート!M9 -> 0.2 | AG6: (可変） | AJ6: ｃ | AL6: =20*LOG10($R$41)+Y$51+BA$26 -> 138.7037329 | AM6: =20*LOG10($R$41)+Z$51+BB$26 -> 121.1691282 | AN6: 119.3329133 | AO6: 119.5117965 | AP6: 119.7656084 | AQ6: 119.7656084 | AR6: 119.7656084 | AS6: 119.7656084 | BA6: =MAX(BA5,0) -> 0 | BB6: =MAX(BB5,0) -> 0 | BC6: 0 | BD6: 0.1303262003 | BE6: 0.5818711937 | BF6: 1.033416187 | BG6: 1.484961181 | BH6: 1.936506174 | BK6: γ | BM6: =R5 -> 1684
C7: L-75 | E7: 98 | F7: 88 | G7: 81 | H7: 75 | I7: 72 | J7: 71 | K7: 71 | R7: =床衝撃音計算シート!L9 -> 244 | V7: モード数 | W7: s | X7: 1 | Y7: ='計算表s-1'!C6 -> 0.3006677306 | Z7: ='計算表s-1'!D6 -> 1.162402294 | AA7: ='計算表s-1'!E6 -> 3.656901792 | AB7: ='計算表s-1'!F6 -> 8.25499149 | AC7: ='計算表s-1'!G6 -> 13.21727761 | AD7: ='計算表s-1'!H6 -> 23.86153324 | AE7: ='計算表s-1'!I6 -> 40.34896359 | AF7: ='計算表s-1'!J6 -> 81.73750149 | AJ7: ｓ | AK7: 2 | AL7: =20*LOG10($R$41)+Y$53+BA$37 -> 107.8536929 | AM7: =20*LOG10($R$41)+Z$53+BB$37 -> 110.8761085 | AN7: 114.8744268 | AO7: 118.586025 | AP7: 119.7656084 | AQ7: 119.7656084 | AR7: 119.7656084 | AS7: 119.7656084 | BA7: =IF($Q$18=1,BA6) -> FALSE | BB7: =IF($Q$18=1,BB6) -> FALSE | BC7: FALSE | BD7: FALSE | BE7: FALSE | BF7: FALSE | BG7: FALSE | BH7: FALSE | BK7: σ | BM7: =R6 -> 0.16
C8: L-70 | E8: 93 | F8: 83 | G8: 76 | H8: 70 | I8: 67 | J8: 66 | K8: 66 | P8: 入力値 | Q8: 大梁内々 | R8: =床衝撃音計算シート!L11 -> 0.03 | S8: 採用値 | W8: c | Y8: ='計算表c-1'!C6 -> 0.1380094913 | Z8: ='計算表c-1'!D6 -> 0.5948590345 | AA8: ='計算表c-1'!E6 -> 2.750532823 | AB8: ='計算表c-1'!F6 -> 7.50873105 | AC8: ='計算表c-1'!G6 -> 13.09662782 | AD8: ='計算表c-1'!H6 -> 23.2047087 | AE8: ='計算表c-1'!I6 -> 39.23829776 | AF8: ='計算表c-1'!J6 -> 79.48755399 | AJ8: ｃ | AL8: =20*LOG10($R$41)+Y$55+BA$48 -> 117.4174407 | AM8: =20*LOG10($R$41)+Z$55+BB$48 -> 107.0189871 | AN8: 114.8706936 | AO8: 118.4313053 | AP8: 119.7656084 | AQ8: 119.7656084 | AR8: 119.7656084 | AS8: 119.7656084 | BA8: =IF($Q$18=0,Y69) -> 1.575003417 | BB8: =IF($Q$18=0,Z69) -> 0 | BC8: 0 | BD8: 0 | BE8: 0 | BF8: 0 | BG8: 0 | BH8: 0 | BK8: ｔ | BM8: =R7 -> 244
C9: L-65 | E9: 88 | F9: 78 | G9: 71 | H9: 65 | I9: 62 | J9: 61 | K9: 61 | P9: =床衝撃音計算シート!D9 -> 8 | Q9: =P9-床衝撃音計算シート!D15 -> 8 | R9: =MAX(S9,S10) -> 8 | S9: =IF(床衝撃音計算シート!G5=1,Q9,P9) -> 8 | W9: s | X9: 2 | Y9: ='計算表s-2'!C6 -> 0.6968423233 | Z9: ='計算表s-2'!D6 -> 1.882941226 | AA9: ='計算表s-2'!E6 -> 3.023336823 | AB9: ='計算表s-2'!F6 -> 5.919100426 | AC9: ='計算表s-2'!G6 -> 13.91822294 | AD9: ='計算表s-2'!H6 -> 25.55421421 | AE9: ='計算表s-2'!I6 -> 43.21122403 | AF9: ='計算表s-2'!J6 -> 87.53576733 | AJ9: ｓ | AK9: 3 | AL9: =20*LOG10($R$41)+Y$57+BA$59 -> 125.0760225 | AM9: =20*LOG10($R$41)+Z$57+BB$59 -> 108.0733148 | AN9: 115.6746206 | AO9: 119.7656084 | AP9: 119.7656084 | AQ9: 119.7656084 | AR9: 119.7656084 | AS9: 119.7656084 | BA9: =MAX(BA7,BA8) -> 1.575003417 | BB9: =MAX(BB7,BB8) -> 0 | BC9: 0 | BD9: 0 | BE9: 0 | BF9: 0 | BG9: 0 | BH9: 0 | BK9: ｌｘ（大梁内々） | BM9: =Q9 -> 8
C10: L-60 | E10: 83 | F10: 73 | G10: 66 | H10: 60 | I10: 57 | J10: 56 | K10: 56 | P10: =床衝撃音計算シート!F9 -> 6.5 | Q10: =P10-床衝撃音計算シート!D15 -> 6.5 | R10: =MIN(S9,S10)*BM83 -> 6.5 | S10: =IF(床衝撃音計算シート!G5=1,Q10,P10) -> 6.5 | W10: c | Y10: ='計算表c-2'!C6 -> 0.4550883007 | Z10: ='計算表c-2'!D6 -> 1.343121368 | AA10: ='計算表c-2'!E6 -> 3.021732711 | AB10: ='計算表c-2'!F6 -> 5.710241792 | AC10: ='計算表c-2'!G6 -> 12.99732274 | AD10: ='計算表c-2'!H6 -> 24.20823015 | AE10: ='計算表c-2'!I6 -> 40.93521514 | AF10: ='計算表c-2'!J6 -> 82.92510912 | AJ10: ｃ | AL10: =20*LOG10($R$41)+Y$59+BA$70 -> 132.8074849 | AM10: =20*LOG10($R$41)+Z$59+BB$70 -> 118.6829415 | AN10: 118.047727 | AO10: 119.2269028 | AP10: 119.7656084 | AQ10: 119.7656084 | AR10: 119.7656084 | AS10: 119.7656084 | AZ10: y | BA10: =-3*$BI10*LOG10($R$17/Y$47)-1.2*$BI10 -> -1.83147793 | BB10: -1.379932937 | BC10: -0.9335787412 | BD10: -0.4820337477 | BE10: -0.03048875422 | BF10: 0.4210562393 | BG10: 0.8726012328 | BH10: 1.324146226 | BI10: =(R19-$R$7/1000)/($R$7/1000) -> -1 | BK10: ｌｙ（大梁内々） | BM10: =Q10 -> 6.5
C11: L-55 | E11: 78 | F11: 68 | G11: 61 | H11: 55 | I11: 52 | J11: 51 | K11: 51 | R11: =床衝撃音計算シート!D13 -> 4.8 | W11: s | X11: 3 | Y11: ='計算表s-3'!C6 -> 0.2238405089 | Z11: ='計算表s-3'!D6 -> 1.147375631 | AA11: ='計算表s-3'!E6 -> 3.40515139 | AB11: ='計算表s-3'!F6 -> 8.29095174 | AC11: ='計算表s-3'!G6 -> 14.57525192 | AD11: ='計算表s-3'!H6 -> 22.53421021 | AE11: ='計算表s-3'!I6 -> 38.1045098 | AF11: ='計算表s-3'!J6 -> 77.1907665 | AJ11: ｓ | AK11: 4 | AL11: =20*LOG10($R$41)+Y$61+BA$81 -> 123.499935 | AM11: =20*LOG10($R$41)+Z$61+BB$81 -> 108.2616501 | AN11: 116.1213928 | AO11: 119.7656084 | AP11: 119.7656084 | AQ11: 119.7656084 | AR11: 119.7656084 | AS11: 119.7656084 | BA11: =MAX(BA10,0) -> 0 | BB11: =MAX(BB10,0) -> 0 | BC11: 0 | BD11: 0 | BE11: 0 | BF11: 0.4210562393 | BG11: 0.8726012328 | BH11: 1.324146226 | BK11: sqrt(b/m) | BM11: =SQRT(BM5*(BM8/1000)^3/12/(1-BM7^2)/(BM6*BM8/1000)) -> 296.1137137
C12: L-50 | E12: 73 | F12: 63 | G12: 56 | H12: 50 | I12: 47 | J12: 46 | K12: 46 | R12: =床衝撃音計算シート!F13 -> 3 | W12: c | Y12: ='計算表c-3'!C6 -> 0.2930721262 | Z12: ='計算表c-3'!D6 -> 0.7121744745 | AA12: ='計算表c-3'!E6 -> 2.343368503 | AB12: ='計算表c-3'!F6 -> 6.946521557 | AC12: ='計算表c-3'!G6 -> 14.39008782 | AD12: ='計算表c-3'!H6 -> 21.33680229 | AE12: ='計算表c-3'!I6 -> 36.07973763 | AF12: ='計算表c-3'!J6 -> 73.08905474 | AJ12: ｃ | AL12: =20*LOG10($R$41)+Y$63+BA$92 -> 138.7037329 | AM12: =20*LOG10($R$41)+Z$63+BB$92 -> 121.1691282 | AN12: 119.3329133 | AO12: 119.5117965 | AP12: 119.7656084 | AQ12: 119.7656084 | AR12: 119.7656084 | AS12: 119.7656084 | BA12: =IF($Q$19=1,BA11) -> FALSE | BB12: =IF($Q$19=1,BB11) -> FALSE | BC12: FALSE | BD12: FALSE | BE12: FALSE | BF12: FALSE | BG12: FALSE | BH12: FALSE | BK12: s | BM12: =3.14/2*BM11*(1/BM9^2+1/BM10^2) -> 18.26755505
C13: L-45 | E13: 68 | F13: 58 | G13: 51 | H13: 45 | I13: 42 | J13: 41 | K13: 41 | R13: =床衝撃音計算シート!L13 -> 2.4 | W13: s | X13: 4 | Y13: ='計算表s-4'!C6 -> 0.3006677306 | Z13: ='計算表s-4'!D6 -> 1.162402294 | AA13: ='計算表s-4'!E6 -> 3.656901792 | AB13: ='計算表s-4'!F6 -> 8.25499149 | AC13: ='計算表s-4'!G6 -> 13.21727761 | AD13: ='計算表s-4'!H6 -> 23.86153324 | AE13: ='計算表s-4'!I6 -> 40.34896359 | AF13: ='計算表s-4'!J6 -> 81.73750149 | AJ13: ｓ | AK13: 5 | AL13: =20*LOG10($R$41)+Y$65+BA$103 -> 125.0760225 | AM13: =20*LOG10($R$41)+Z$65+BB$103 -> 108.0733148 | AN13: 115.6746206 | AO13: 119.7656084 | AP13: 119.7656084 | AQ13: 119.7656084 | AR13: 119.7656084 | AS13: 119.7656084 | BA13: =IF($Q$19=0,Y71) -> 7.821074886 | BB13: =IF($Q$19=0,Z71) -> 3.215315953 | BC13: 0 | BD13: 0 | BE13: 0 | BF13: 0 | BG13: 0 | BH13: 0 | BK13: c | BM13: =2*3.14/3*BM11*SQRT((1/BM9^2+1/BM10^2)^2+2*(1/BM9^4+1/BM10^4)) -> 34.80461824
C14: L-40 | E14: 63 | F14: 53 | G14: 46 | H14: 40 | I14: 37 | J14: 36 | K14: 36 | R14: =床衝撃音計算シート!D11 -> 0.8 | W14: c | Y14: ='計算表c-4'!C6 -> 0.1380094913 | Z14: ='計算表c-4'!D6 -> 0.5948590345 | AA14: ='計算表c-4'!E6 -> 2.750532823 | AB14: ='計算表c-4'!F6 -> 7.50873105 | AC14: ='計算表c-4'!G6 -> 13.09662782 | AD14: ='計算表c-4'!H6 -> 23.2047087 | AE14: ='計算表c-4'!I6 -> 39.23829776 | AF14: ='計算表c-4'!J6 -> 79.48755399 | AJ14: ｃ | AL14: =20*LOG10($R$41)+Y$67+BA$114 -> 132.8074849 | AM14: =20*LOG10($R$41)+Z$67+BB$114 -> 118.6829415 | AN14: 118.047727 | AO14: 119.2269028 | AP14: 119.7656084 | AQ14: 119.7656084 | AR14: 119.7656084 | AS14: 119.7656084 | BA14: =MAX(BA12,BA13) -> 7.821074886 | BB14: =MAX(BB12,BB13) -> 3.215315953 | BC14: 0 | BD14: 0 | BE14: 0 | BF14: 0 | BG14: 0 | BH14: 0
C15: L-35 | E15: 58 | F15: 48 | G15: 41 | H15: 35 | I15: 32 | J15: 31 | K15: 31 | R15: =床衝撃音計算シート!D17 -> 5 | W15: s | X15: 5 | Y15: ='計算表s-5'!C6 -> 0.2238405089 | Z15: ='計算表s-5'!D6 -> 1.147375631 | AA15: ='計算表s-5'!E6 -> 3.40515139 | AB15: ='計算表s-5'!F6 -> 8.29095174 | AC15: ='計算表s-5'!G6 -> 14.57525192 | AD15: ='計算表s-5'!H6 -> 22.53421021 | AE15: ='計算表s-5'!I6 -> 38.1045098 | AF15: ='計算表s-5'!J6 -> 77.1907665 | AI15: cbの値 | AL15: =SQRT(3.14*$R$36*$R$7/1000*AL4/1.7320508) -> 242.0273024 | AM15: 342.2782935 | AN15: 482.1299268 | AO15: 681.8346813 | AP15: 964.2598535 | AQ15: 1363.669363 | AR15: 1928.519707 | AS15: 2727.338725 | BA15: =SQRT(BA9^2+BA14^2) -> 7.978085494 | BB15: =SQRT(BB9^2+BB14^2) -> 3.215315953 | BC15: 0 | BD15: 0 | BE15: 0 | BF15: 0 | BG15: 0 | BH15: 0 | BK15: width | BM15: =床衝撃音計算シート!D15 -> 0
C16: L-30 | E16: 53 | F16: 43 | G16: 36 | H16: 30 | I16: 27 | J16: 26 | K16: 26 | R16: =床衝撃音計算シート!D19 -> 1.2 | W16: c | Y16: ='計算表c-5'!C6 -> 0.2930721262 | Z16: ='計算表c-5'!D6 -> 0.7121744745 | AA16: ='計算表c-5'!E6 -> 2.343368503 | AB16: ='計算表c-5'!F6 -> 6.946521557 | AC16: ='計算表c-5'!G6 -> 14.39008782 | AD16: ='計算表c-5'!H6 -> 21.33680229 | AE16: ='計算表c-5'!I6 -> 36.07973763 | AF16: ='計算表c-5'!J6 -> 73.08905474 | AI16: ｋｒの値 | AL16: =2*3.14*AL4/AL15*$R$40 -> 1.750339362 | AM16: =2*3.14*AM4/AM15*$R$40 -> 2.475353664 | AN16: 3.486759468 | AO16: 4.931022529 | AP16: 6.973518937 | AQ16: 9.862045058 | AR16: 13.94703787 | AS16: 19.72409012 | AY16: c | AZ16: x | BA16: =-3*$BI16*LOG10($R$16/Y$47)-1.2*$BI16 -> -1.219117982 | BB16: -0.7675729886 | BC16: -0.3212187932 | BD16: 0.1303262003 | BE16: 0.5818711937 | BF16: 1.033416187 | BG16: 1.484961181 | BH16: 1.936506174 | BI16: =(R18-$R$7/1000)/($R$7/1000) -> -1 | BK16: ｌｘ（大梁外々） | BM16: =BM9+2*BM15 -> 8
C17: 計算値 | E17: =E20 -> 72.21811018 | F17: =F20 -> 57.06742361 | G17: 46.03717062 | H17: 37.03814853 | I17: 30.17180494 | J17: 22.01584567 | K17: 15.11810486 | R17: =床衝撃音計算シート!F19 -> 0.75 | W17: s | X17: 1 | Y17: =1-Y7^(-0.75) -> -1.462832553 | Z17: =1-Z7^(-0.75) -> 0.1067301903 | AA17: 0.621849197 | AB17: 0.7946652151 | AC17: 0.8557408094 | AD17: 0.9073754224 | AE17: 0.9375365867 | AF17: 0.9632138802 | AI17: αの値 | AL17: =1-EXP(-12.5*3.14*$R$9*$R$10*$R$8*AL4/(2*($R$9+$R$10))/AL15) -> 0.2402738929 | AM17: =1-EXP(-12.5*3.14*$R$9*$R$10*$R$8*AM4/(2*($R$9+$R$10))/AM15) -> 0.3220095407 | AN17: 0.4215535576 | AO17: 0.5389061511 | AP17: 0.6653997133 | AQ17: 0.7873924625 | AR17: 0.8880426481 | AS17: 0.954798035 | BA17: =MAX(BA16,0) -> 0 | BB17: =MAX(BB16,0) -> 0 | BC17: 0 | BD17: 0.1303262003 | BE17: 0.5818711937 | BF17: 1.033416187 | BG17: 1.484961181 | BH17: 1.936506174 | BK17: ｌｙ（大梁外々） | BM17: =BM10+2*BM15 -> 6.5
Q18: =床衝撃音計算シート!I19 -> 0 | R18: =床衝撃音計算シート!J19 -> 0 | Y18: =1-(1/Y7)^(-0.75) -> 0.5939634634 | Z18: =1-(1/Z7)^(-0.75) -> -0.1194825898 | AA18: -1.644447644 | AB18: -3.870095442 | AC18: -5.931967355 | AD18: -9.796270558 | AE18: -15.00937169 | AF18: -26.18416632 | AI18: ｒ／ｐの値 | AL18: =$R$40/(2*($R$9+$R$10)*AL17/(1-AL17)) -> 0.2334903251 | AM18: 0.1554795472 | AN18: 0.1013278481 | AO18: 0.06318218082 | AP18: 0.03713317835 | AQ18: 0.01993911271 | AR18: 0.009309732844 | AS18: 0.003495942028 | BA18: =IF($Q$18=1,BA17) -> FALSE | BB18: =IF($Q$18=1,BB17) -> FALSE | BC18: FALSE | BD18: FALSE | BE18: FALSE | BF18: FALSE | BG18: FALSE | BH18: FALSE | BK18: s | BM18: =3.14/2*BM11*(1/BM16^2+1/BM17^2) -> 18.26755505
C19: 31.5 | E19: 63 | F19: 125 | G19: 250 | H19: 500 | I19: 1000 | J19: 2000 | K19: 4000 | Q19: =床衝撃音計算シート!K19 -> 0 | R19: =床衝撃音計算シート!L19 -> 0 | V19: 拡散度指数 | Y19: =MAX(Y17,Y18) -> 0.5939634634 | Z19: =MAX(Z17,Z18) -> 0.1067301903 | AA19: 0.621849197 | AB19: 0.7946652151 | AC19: 0.8557408094 | AD19: 0.9073754224 | AE19: 0.9375365867 | AF19: 0.9632138802 | AI19: 拡散板面平均レベル差(dB) | AL19: =(-10.3*LOG10(AL16)+1.3)*10^(-1.753*AL18+0.001753) -> -0.4711165855 | AM19: =(-10.3*LOG10(AM16)+1.3)*10^(-1.753*AM18+0.001753) -> -1.476503276 | AN19: -2.859389674 | AO19: -4.541538525 | AP19: -6.384976328 | AQ19: -8.280056098 | AR19: -10.14220827 | AS19: -11.91779382 | BA19: =IF($Q$18=0,Y74) -> 8.954906428 | BB19: =IF($Q$18=0,Z74) -> 2.934306514 | BC19: 0 | BD19: 0 | BE19: 0 | BF19: 0 | BG19: 0 | BH19: 0 | BK19: c | BM19: =2*3.14/3*BM11*SQRT((1/BM16^2+1/BM17^2)^2+2*(1/BM16^4+1/BM17^4)) -> 34.80461824
C20: =AL82 -> 50.74749409 | E20: =BM48 -> 72.21811018 | F20: =AN82 -> 57.06742361 | G20: =AO82 -> 46.03717062 | H20: 37.03814853 | I20: 30.17180494 | J20: 22.01584567 | K20: 15.11810486 | M20: =10*LOG10(10^((C20-39)/10)+10^((E20-26)/10)+10^((F20-16)/10)+10^((G20-9)/10)+10^((H20-3)/10)+10^(I20/10)+10^((J20+1)/10)+10^((K20+1)/10)) -> 48.02998219 | R20: =床衝撃音計算シート!D21 -> 2.4 | W20: c | Y20: =1-Y8^(-0.75) -> -3.416398804 | Z20: =1-Z8^(-0.75) -> -0.4763504256 | AA20: 0.5317935675 | AB20: 0.7795423933 | AC20: 0.8547452359 | AD20: 0.9054159493 | AE20: 0.9362151731 | AF20: 0.9624356697 | AI20: 板面平均レベル差(dB) | AJ20: s | AK20: 1 | AL20: =(AL19+3)*Y19-3 -> -1.497935649 | AM20: =(AM19+3)*Z19-3 -> -2.837396905 | AN20: -2.912561582 | AO20: -4.225007043 | AP20: -5.896662383 | AQ20: -7.790993133 | AR20: -9.69608156 | AS20: -11.58974279 | BA20: =MAX(BA18,BA19) -> 8.954906428 | BB20: =MAX(BB18,BB19) -> 2.934306514 | BC20: 0 | BD20: 0 | BE20: 0 | BF20: 0 | BG20: 0 | BH20: 0
E21: ＊ | F21: * | R21: =床衝撃音計算シート!F21 -> 1.5 | Y21: =1-(1/Y8)^(-0.75) -> 0.7735711732 | Z21: =1-(1/Z8)^(-0.75) -> 0.3226540375 | AA21: -1.135810041 | AB21: -3.536019488 | AC21: -5.884455777 | AD21: -9.572607036 | AE21: -14.67770971 | AF21: -25.62099904 | AL21: =AL20 -> -1.497935649 | AM21: =AM20 -> -2.837396905 | AN21: -2.912561582 | AO21: -4.225007043 | AP21: -5.896662383 | AQ21: -7.790993133 | AR21: -9.69608156 | AS21: -11.58974279 | AZ21: y | BA21: =-3*$BI21*LOG10($R$17/Y$47)-1.2*$BI21 -> -1.83147793 | BB21: -1.379932937 | BC21: -0.9335787412 | BD21: -0.4820337477 | BE21: -0.03048875422 | BF21: 0.4210562393 | BG21: 0.8726012328 | BH21: 1.324146226 | BI21: =(R19-$R$7/1000)/($R$7/1000) -> -1 | BK21: 梁せい | BM21: =床衝撃音計算シート!G15 -> 0
C22: L値 | E22: =30+E20-E16 -> 49.21811018 | F22: =30+F20-F16 -> 44.06742361 | G22: 40.03717062 | H22: 37.03814853 | I22: 33.17180494 | J22: 26.01584567 | K22: 19.11810486 | M22: =MAX(E22,F22,G22,H22,I22,J22,K22) -> 49.21811018 | Q22: =床衝撃音計算シート!I21 -> 0 | R22: =床衝撃音計算シート!J21 -> 0 | Y22: =MAX(Y20,Y21) -> 0.7735711732 | Z22: =MAX(Z20,Z21) -> 0.3226540375 | AA22: 0.5317935675 | AB22: 0.7795423933 | AC22: 0.8547452359 | AD22: 0.9054159493 | AE22: 0.9362151731 | AF22: 0.9624356697 | AJ22: c | AL22: =(AL19+3)*Y22-3 -> -1.04372869 | AM22: =(AM19+3)*Z22-3 -> -2.508437631 | AN22: -2.925224333 | AO22: -4.201694631 | AP22: -5.89329239 | AQ22: -7.780647005 | AR22: -9.686643749 | AS22: -11.58280287 | BA22: =MAX(BA21,0) -> 0 | BB22: =MAX(BB21,0) -> 0 | BC22: 0 | BD22: 0 | BE22: 0 | BF22: 0.4210562393 | BG22: 0.8726012328 | BH22: 1.324146226 | BK22: 倍率 | BM22: =(BM21-BM8)/BM8 -> -1
E23: =ROUND(E22,0.1)-2 -> 47 | F23: 42 | G23: 38 | H23: 35 | I23: 31 | J23: 24 | K23: 17 | Q23: =床衝撃音計算シート!K21 -> 0 | R23: =床衝撃音計算シート!L21 -> 0 | W23: s | X23: 2 | Y23: =1-Y9^(-0.75) -> -0.3111401298 | Z23: =1-Z9^(-0.75) -> 0.3778824875 | AA23: 0.5638507803 | AB23: 0.7364832542 | AC23: 0.8612247052 | AD23: 0.9120161217 | AE23: 0.940666144 | AF23: 0.9650569473 | AL23: =AL22 -> -1.04372869 | AM23: =AM22 -> -2.508437631 | AN23: -2.925224333 | AO23: -4.201694631 | AP23: -5.89329239 | AQ23: -7.780647005 | AR23: -9.686643749 | AS23: -11.58280287 | BA23: =IF($Q$19=1,BA22) -> FALSE | BB23: =IF($Q$19=1,BB22) -> FALSE | BC23: FALSE | BD23: FALSE | BE23: FALSE | BF23: FALSE | BG23: FALSE | BH23: FALSE | BK23: 拘束度 | BM23: =0.874*LOG10(BM22)+0.265 -> 
C24: L等級 | E24: =(ROUNDUP(E23/5,0.1))*5 -> 50 | F24: 45 | G24: 40 | H24: 35 | I24: 35 | J24: 25 | K24: 20 | M24: =MAX(E24,F24,G24,H24,I24,J24,K24) -> 50 | R24: =床衝撃音計算シート!D23 -> 3.6 | Y24: =1-(1/Y9)^(-0.75) -> 0.2373050163 | Z24: =1-(1/Z9)^(-0.75) -> -0.6074133584 | AA24: -1.29279328 | AB24: -2.794825248 | AC24: -6.205893538 | AD24: -10.36571857 | AE24: -15.85378411 | AF24: -27.61799196 | AJ24: s | AK24: 2 | AL24: =(AL19+3)*Y25-3 -> -2.39988328 | AM24: =(AM19+3)*Z25-3 -> -2.424297268 | AN24: -2.920716758 | AO24: -4.135317309 | AP24: -5.91522524 | AQ24: -7.815496285 | AR24: -9.71843351 | AS24: -11.60617888 | BA24: =IF($Q$19=0,Y76) -> 17.11970573 | BB24: =IF($Q$19=0,Z76) -> 11.09910582 | BC24: 5.147716549 | BD24: 0 | BE24: 0 | BF24: 0 | BG24: 0 | BH24: 0 | BK24: f | BM24: =(BM13-BM18)*BM23+BM18 -> 
R25: =床衝撃音計算シート!F23 -> 0.75 | Y25: =MAX(Y23,Y24) -> 0.2373050163 | Z25: 0.3778824875 | AA25: 0.5638507803 | AB25: 0.7364832542 | AC25: 0.8612247052 | AD25: 0.9120161217 | AE25: 0.940666144 | AF25: 0.9650569473 | AL25: =AL24 -> -2.39988328 | AM25: =AM24 -> -2.424297268 | AN25: -2.920716758 | AO25: -4.135317309 | AP25: -5.91522524 | AQ25: -7.815496285 | AR25: -9.71843351 | AS25: -11.60617888 | BA25: =MAX(BA23,BA24) -> 17.11970573 | BB25: =MAX(BB23,BB24) -> 11.09910582 | BC25: 5.147716549 | BD25: 0 | BE25: 0 | BF25: 0 | BG25: 0 | BH25: 0
C26: 決定ｆ | E26: =IF(E22=$M$22,63) -> 63 | F26: =IF(F22=$M$22,125) -> FALSE | G26: =IF(G22=$M$22,250) -> FALSE | H26: =IF(H22=$M$22,500) -> FALSE | I26: =IF(I22=$M$22,1000) -> FALSE | J26: =IF(J22=$M$22,2000) -> FALSE | K26: =IF(K22=$M$22,4000) -> FALSE | M26: =MIN(E26,F26,G26,H26,I26,J26,K26) -> 63 | Q26: =床衝撃音計算シート!I23 -> 0 | R26: =床衝撃音計算シート!J23 -> 0 | W26: c | Y26: =1-Y10^(-0.75) -> -0.8047965279 | Z26: =1-Z10^(-0.75) -> 0.1984814902 | AA26: 0.5636771418 | AB26: 0.7292869909 | AC26: 0.8539136721 | AD26: 0.9083721027 | AE26: 0.9382087199 | AF26: 0.9636097146 | AJ26: c | AL26: =(AL19+3)*Y28-3 -> -1.872317982 | AM26: =(AM19+3)*Z28-3 -> -2.6976141 | AN26: -2.920741173 | AO26: -4.124223992 | AP26: -5.890477566 | AQ26: -7.79625566 | AR26: -9.700882076 | AS26: -11.59327276 | BA26: =SQRT(BA20^2+BA25^2) -> 19.32031764 | BB26: =SQRT(BB20^2+BB25^2) -> 11.48043138 | BC26: 5.147716549 | BD26: 0 | BE26: 0 | BF26: 0 | BG26: 0 | BH26: 0 | BK26: （連成振動時固有振動数）
Q27: =床衝撃音計算シート!K23 -> 0 | R27: =床衝撃音計算シート!L23 -> 0 | Y27: =1-(1/Y10)^(-0.75) -> 0.4459209199 | Z27: =1-(1/Z10)^(-0.75) -> -0.2476318235 | AA27: -1.291880843 | AB27: -2.693948818 | AC27: -5.84526755 | AD27: -9.913706737 | AE27: -15.18351326 | AF27: -26.47986145 | AL27: =AL26 -> -1.872317982 | AM27: =AM26 -> -2.6976141 | AN27: -2.920741173 | AO27: -4.124223992 | AP27: -5.890477566 | AQ27: -7.79625566 | AR27: -9.700882076 | AS27: -11.59327276 | AX27: 小梁による端部拘束 加振点2(dB) | AY27: s | AZ27: x | BA27: =-3*$BI27*LOG10($R$20/Y$47)-1.2*$BI27 -> -0.3160279951 | BB27: 0.1355169984 | BC27: 0.5818711937 | BD27: 1.033416187 | BE27: 1.484961181 | BF27: 1.936506174 | BG27: 2.388051168 | BH27: 2.839596161 | BI27: =(R22-$R$7/1000)/($R$7/1000) -> -1
R28: =床衝撃音計算シート!D25 -> 1.2 | Y28: =MAX(Y26,Y27) -> 0.4459209199 | Z28: 0.1984814902 | AA28: 0.5636771418 | AB28: 0.7292869909 | AC28: 0.8539136721 | AD28: 0.9083721027 | AE28: 0.9382087199 | AF28: 0.9636097146 | AJ28: s | AK28: 3 | AL28: =(AL19+3)*Y31-3 -> -1.294084345 | AM28: =(AM19+3)*Z31-3 -> -2.850742399 | AN28: -2.915483478 | AO28: -4.226037269 | AP28: -5.931198175 | AQ28: -7.769543128 | AR28: -9.676514714 | AS28: -11.57535467 | BA28: =MAX(BA27,0) -> 0 | BB28: =MAX(BB27,0) -> 0.1355169984 | BC28: 0.5818711937 | BD28: 1.033416187 | BE28: 1.484961181 | BF28: 1.936506174 | BG28: 2.388051168 | BH28: 2.839596161 | BK28: 比率（両側） | BM28: =(0.0792*BM55-0.0959)*BM22+(-0.485*BM55+1.55) -> 0.9515
R29: =床衝撃音計算シート!F25 -> 0.75 | W29: s | X29: 3 | Y29: =1-Y11^(-0.75) -> -2.07288273 | Z29: =1-Z11^(-0.75) -> 0.09797041146 | AA29: 0.6010690959 | AB29: 0.7953335251 | AC29: 0.8659434781 | AD29: 0.9033129646 | AE29: 0.9347969793 | AF29: 0.9616004633 | AL29: =AL28 -> -1.294084345 | AM29: =AM28 -> -2.850742399 | AN29: -2.915483478 | AO29: -4.226037269 | AP29: -5.931198175 | AQ29: -7.769543128 | AR29: -9.676514714 | AS29: -11.57535467 | BA29: =IF($Q$22=1,BA28) -> FALSE | BB29: =IF($Q$22=1,BB28) -> FALSE | BC29: FALSE | BD29: FALSE | BE29: FALSE | BF29: FALSE | BG29: FALSE | BH29: FALSE | BK29: 連成振動数 | BM29: =BM24*BM28 -> 
Q30: =床衝撃音計算シート!I25 -> 0 | R30: =床衝撃音計算シート!J25 -> 0 | Y30: =1-(1/Y11)^(-0.75) -> 0.6745726773 | Z30: =1-(1/Z11)^(-0.75) -> -0.1086110841 | AA30: -1.506699756 | AB30: -3.885998062 | AC30: -6.459540093 | AD30: -9.34264828 | AE30: -14.33671278 | AF30: -25.04198084 | AJ30: c | AL30: =(AL19+3)*Y34-3 -> -1.478418581 | AM30: =(AM19+3)*Z34-3 -> -2.657588748 | AN30: -2.933629471 | AO30: -4.181267909 | AP30: -5.926825947 | AQ30: -7.748203192 | AR30: -9.657048273 | AS30: -11.56104038 | BA30: =IF($Q$22=0,Y79) -> 0 | BB30: =IF($Q$22=0,Z79) -> 0 | BC30: 0 | BD30: 0 | BE30: 0 | BF30: 0 | BG30: 0 | BH30: 0
Q31: =床衝撃音計算シート!K25 -> 0 | R31: =床衝撃音計算シート!L25 -> 0 | Y31: =MAX(Y29,Y30) -> 0.6745726773 | Z31: 0.09797041146 | AA31: 0.6010690959 | AB31: 0.7953335251 | AC31: 0.8659434781 | AD31: 0.9033129646 | AE31: 0.9347969793 | AF31: 0.9616004633 | AL31: =AL30 -> -1.478418581 | AM31: =AM30 -> -2.657588748 | AN31: -2.933629471 | AO31: -4.181267909 | AP31: -5.926825947 | AQ31: -7.748203192 | AR31: -9.657048273 | AS31: -11.56104038 | BA31: =MAX(BA29,BA30) -> 0 | BB31: 0 | BC31: 0 | BD31: 0 | BE31: 0 | BF31: 0 | BG31: 0 | BH31: 0 | BK31: 比率（片側） | BM31: =(0.1183*(LOG10(BM55))^0.65-0.0167)*BM22+(-0.39*BM55+1.44) -> 0.9519374226
R32: =床衝撃音計算シート!D27 -> 3.6 | W32: c | Y32: =1-Y12^(-0.75) -> -1.510551378 | Z32: =1-Z12^(-0.75) -> -0.2899123391 | AA32: 0.4720174626 | AB32: 0.7662915263 | AC32: 0.8646518211 | AD32: 0.8992713531 | AE32: 0.93207143 | AF32: 0.9599953255 | AJ32: s | AK32: 4 | AL32: =(AL19+3)*Y37-3 -> -1.497935649 | AM32: =(AM19+3)*Z37-3 -> -2.837396905 | AN32: -2.912561582 | AO32: -4.225007043 | AP32: -5.896662383 | AQ32: -7.790993133 | AR32: -9.69608156 | AS32: -11.58974279 | AZ32: y | BA32: =-3*$BI32*LOG10($R$21/Y$47)-1.2*$BI32 -> -0.928387943 | BB32: -0.4768429496 | BC32: -0.03048875422 | BD32: 0.4210562393 | BE32: 0.8726012328 | BF32: 1.324146226 | BG32: 1.77569122 | BH32: 2.227236213 | BI32: =(R23-$R$7/1000)/($R$7/1000) -> -1 | BK32: 連成振動数 | BM32: =BM24*BM31 -> 
R33: =床衝撃音計算シート!F27 -> 0.75 | Y33: =1-(1/Y12)^(-0.75) -> 0.6016811253 | Z33: =1-(1/Z12)^(-0.75) -> 0.2247535203 | AA33: -0.8940020346 | AB33: -3.278835012 | AC33: -6.388352088 | AD33: -8.927662392 | AE33: -13.72134627 | AF33: -23.99707878 | AL33: =AL32 -> -1.497935649 | AM33: =AM32 -> -2.837396905 | AN33: -2.912561582 | AO33: -4.225007043 | AP33: -5.896662383 | AQ33: -7.790993133 | AR33: -9.69608156 | AS33: -11.58974279 | BA33: =MAX(BA32,0) -> 0 | BB33: =MAX(BB32,0) -> 0 | BC33: 0 | BD33: 0.4210562393 | BE33: 0.8726012328 | BF33: 1.324146226 | BG33: 1.77569122 | BH33: 2.227236213
N34: =SQRT(R4*(R7/1000)^3/12/(1-R6^2)/(R5*R7/1000)) -> 296.1137137 | Q34: =床衝撃音計算シート!I27 -> 0 | R34: =床衝撃音計算シート!J27 -> 0 | Y34: =MAX(Y32,Y33) -> 0.6016811253 | Z34: 0.2247535203 | AA34: 0.4720174626 | AB34: 0.7662915263 | AC34: 0.8646518211 | AD34: 0.8992713531 | AE34: 0.93207143 | AF34: 0.9599953255 | AJ34: c | AL34: =(AL19+3)*Y40-3 -> -1.04372869 | AM34: =(AM19+3)*Z40-3 -> -2.508437631 | AN34: -2.925224333 | AO34: -4.201694631 | AP34: -5.89329239 | AQ34: -7.780647005 | AR34: -9.686643749 | AS34: -11.58280287 | BA34: =IF($Q$23=1,BA33) -> FALSE | BB34: =IF($Q$23=1,BB33) -> FALSE | BC34: FALSE | BD34: FALSE | BE34: FALSE | BF34: FALSE | BG34: FALSE | BH34: FALSE | BK34: 採用振動数 | BM34: =IF(床衝撃音計算シート!L15=1,BM32,BM29) -> 
Q35: =床衝撃音計算シート!K27 -> 0 | R35: =床衝撃音計算シート!L27 -> 0 | W35: s | X35: 4 | Y35: =1-Y13^(-0.75) -> -1.462832553 | Z35: =1-Z13^(-0.75) -> 0.1067301903 | AA35: 0.621849197 | AB35: 0.7946652151 | AC35: 0.8557408094 | AD35: 0.9073754224 | AE35: 0.9375365867 | AF35: 0.9632138802 | AL35: =AL34 -> -1.04372869 | AM35: =AM34 -> -2.508437631 | AN35: -2.925224333 | AO35: -4.201694631 | AP35: -5.89329239 | AQ35: -7.780647005 | AR35: -9.686643749 | AS35: -11.58280287 | BA35: =IF($Q$23=0,Y81) -> 0 | BB35: =IF($Q$23=0,Z81) -> 0 | BC35: 0 | BD35: 0 | BE35: 0 | BF35: 0 | BG35: 0 | BH35: 0
N36: 340 | R36: =SQRT(R4/R5/(1-R6^2)) -> 4203.967188 | Y36: =1-(1/Y13)^(-0.75) -> 0.5939634634 | Z36: =1-(1/Z13)^(-0.75) -> -0.1194825898 | AA36: -1.644447644 | AB36: -3.870095442 | AC36: -5.931967355 | AD36: -9.796270558 | AE36: -15.00937169 | AF36: -26.18416632 | AJ36: s | AK36: 5 | AL36: =(AL19+3)*Y43-3 -> -1.294084345 | AM36: =(AM19+3)*Z43-3 -> -2.850742399 | AN36: -2.915483478 | AO36: -4.226037269 | AP36: -5.931198175 | AQ36: -7.769543128 | AR36: -9.676514714 | AS36: -11.57535467 | BA36: =MAX(BA34,BA35) -> 0 | BB36: 0 | BC36: 0 | BD36: 0 | BE36: 0 | BF36: 0 | BG36: 0 | BH36: 0 | BK36: （46Hz共振増減量）
R37: =3.14/2*N34*(1/P9^2+1/P10^2) -> 18.26755505 | Y37: =MAX(Y35,Y36) -> 0.5939634634 | Z37: 0.1067301903 | AA37: 0.621849197 | AB37: 0.7946652151 | AC37: 0.8557408094 | AD37: 0.9073754224 | AE37: 0.9375365867 | AF37: 0.9632138802 | AL37: =AL36 -> -1.294084345 | AM37: =AM36 -> -2.850742399 | AN37: -2.915483478 | AO37: -4.226037269 | AP37: -5.931198175 | AQ37: -7.769543128 | AR37: -9.676514714 | AS37: -11.57535467 | BA37: =SQRT(BA31^2+BA36^2) -> 0 | BB37: 0 | BC37: 0 | BD37: 0 | BE37: 0 | BF37: 0 | BG37: 0 | BH37: 0
R38: =2*3.14/3*N34*SQRT((1/P9^2+1/P10^2)^2+2*(1/P9^4+1/P10^4)) -> 34.80461824 | W38: c | Y38: =1-Y14^(-0.75) -> -3.416398804 | Z38: =1-Z14^(-0.75) -> -0.4763504256 | AA38: 0.5317935675 | AB38: 0.7795423933 | AC38: 0.8547452359 | AD38: 0.9054159493 | AE38: 0.9362151731 | AF38: 0.9624356697 | AJ38: c | AL38: =(AL19+3)*Y46-3 -> -1.478418581 | AM38: =(AM19+3)*Z46-3 -> -2.657588748 | AN38: -2.933629471 | AO38: -4.181267909 | AP38: -5.926825947 | AQ38: -7.748203192 | AR38: -9.657048273 | AS38: -11.56104038 | AY38: c | AZ38: x | BA38: =-3*$BI38*LOG10($R$20/Y$47)-1.2*$BI38 -> -0.3160279951 | BB38: 0.1355169984 | BC38: 0.5818711937 | BD38: 1.033416187 | BE38: 1.484961181 | BF38: 1.936506174 | BG38: 2.388051168 | BH38: 2.839596161 | BI38: =(R22-$R$7/1000)/($R$7/1000) -> -1 | BK38: <63Hz> | BM38: =AM82 -> 72.21811018
R39: =N36^2/2/3.14/N34 -> 62.16410271 | Y39: =1-(1/Y14)^(-0.75) -> 0.7735711732 | Z39: =1-(1/Z14)^(-0.75) -> 0.3226540375 | AA39: -1.135810041 | AB39: -3.536019488 | AC39: -5.884455777 | AD39: -9.572607036 | AE39: -14.67770971 | AF39: -25.62099904 | AL39: =AL38 -> -1.478418581 | AM39: =AM38 -> -2.657588748 | AN39: -2.933629471 | AO39: -4.181267909 | AP39: -5.926825947 | AQ39: -7.748203192 | AR39: -9.657048273 | AS39: -11.56104038 | BA39: =MAX(BA38,0) -> 0 | BB39: =MAX(BB38,0) -> 0.1355169984 | BC39: 0.5818711937 | BD39: 1.033416187 | BE39: 1.484961181 | BF39: 1.936506174 | BG39: 2.388051168 | BH39: 2.839596161 | BL39: 反共振 | BM39: =BM38-0 -> 72.21811018
R40: =SQRT(R11*R12/3.14) -> 2.141491831 | Y40: =MAX(Y38,Y39) -> 0.7735711732 | Z40: 0.3226540375 | AA40: 0.5317935675 | AB40: 0.7795423933 | AC40: 0.8547452359 | AD40: 0.9054159493 | AE40: 0.9362151731 | AF40: 0.9624356697 | AI40: 音響放射率 | AL40: =$R$43+20*LOG10(AL4/$R$37) -> -3.245054419 | AM40: 2.775545494 | AN40: 8.726934765 | AO40: 14.74753468 | AP40: 20.76813459 | AQ40: 26.7887345 | AR40: 32.80933442 | AS40: 38.82993433 | BA40: =IF($Q$22=1,BA39) -> FALSE | BB40: =IF($Q$22=1,BB39) -> FALSE | BC40: FALSE | BD40: FALSE | BE40: FALSE | BF40: FALSE | BG40: FALSE | BH40: FALSE | BK40: 増幅１ | BM40: =1.757*BM38-53.16 -> 73.72721959
R41: =8*SQRT(R4*(R7/1000)^3/(12*(1-R6^2))*R5*R7/1000) -> 973375.5241 | W41: s | X41: 1 | Y41: =1-Y15^(-0.75) -> -2.07288273 | Z41: =1-Z15^(-0.75) -> 0.09797041146 | AA41: 0.6010690959 | AB41: 0.7953335251 | AC41: 0.8659434781 | AD41: 0.9033129646 | AE41: 0.9347969793 | AF41: 0.9616004633 | AL41: =MIN(AL40,0) -> -3.245054419 | AM41: =MIN(AM40,0) -> 0 | AN41: 0 | AO41: 0 | AP41: 0 | AQ41: 0 | AR41: 0 | AS41: 0 | AT41: =R11*R12 -> 14.4 | BA41: =IF($Q$22=0,Y84) -> 0 | BB41: =IF($Q$22=0,Z84) -> 0 | BC41: 0 | BD41: 0 | BE41: 0 | BF41: 0 | BG41: 0 | BH41: 0 | BK41: (Max85設定) | BM41: =IF(BM40>85,85,BM40) -> 73.72721959
N42: ramd | R42: =N36/R39 -> 5.469394477 | Y42: =1-(1/Y15)^(-0.75) -> 0.6745726773 | Z42: =1-(1/Z15)^(-0.75) -> -0.1086110841 | AA42: -1.506699756 | AB42: -3.885998062 | AC42: -6.459540093 | AD42: -9.34264828 | AE42: -14.33671278 | AF42: -25.04198084 | AL42: =$R$43*LOG10($R$39/AL4)/(LOG10($R$39/$R$37)) -> -4.428308136 | AM42: 0.0870106754 | AN42: 4.550423012 | AO42: 9.065741824 | AP42: 13.58106063 | AQ42: 18.09637945 | AR42: 22.61169826 | AS42: 27.12701707 | BA42: =MAX(BA40,BA41) -> 0 | BB42: =MAX(BB40,BB41) -> 0 | BC42: 0 | BD42: 0 | BE42: 0 | BF42: 0 | BG42: 0 | BH42: 0 | BK42: 増幅1/2 | BM42: =(BM40-BM38)/2+BM38 -> 72.97266488
N43: sig0 | Q43: =10*LOG10(R42^2*R11*R12/(R9*R10)^2) -> -7.977656997 | R43: =MIN($Q$43,0) -> -7.977656997 | Y43: =MAX(Y41,Y42) -> 0.6745726773 | Z43: 0.09797041146 | AA43: 0.6010690959 | AB43: 0.7953335251 | AC43: 0.8659434781 | AD43: 0.9033129646 | AE43: 0.9347969793 | AF43: 0.9616004633 | AL43: =IF($R$39>$R$37,MIN(AL42,0),0) -> -4.428308136 | AM43: 0 | AN43: 0 | AO43: =IF($R$39>$R$37,MIN(AO42,0),0) -> 0 | AP43: =IF($R$39>$R$37,MIN(AP42,0),0) -> 0 | AQ43: 0 | AR43: 0 | AS43: 0 | AZ43: y | BA43: =-3*$BI43*LOG10($R$21/Y$47)-1.2*$BI43 -> -0.928387943 | BB43: -0.4768429496 | BC43: -0.03048875422 | BD43: 0.4210562393 | BE43: 0.8726012328 | BF43: 1.324146226 | BG43: 1.77569122 | BH43: 2.227236213 | BI43: =(R23-$R$7/1000)/($R$7/1000) -> -1 | BK43: (Max85設定) | BM43: =IF(BM42>85,85,BM42) -> 72.97266488
N44: lx/ly | Q44: =R9/R10 -> 1.230769231 | R44: =MIN(Q44,3) -> 1.230769231 | W44: c | Y44: =1-Y16^(-0.75) -> -1.510551378 | Z44: =1-Z16^(-0.75) -> -0.2899123391 | AA44: 0.4720174626 | AB44: 0.7662915263 | AC44: 0.8646518211 | AD44: 0.8992713531 | AE44: 0.93207143 | AF44: 0.9599953255 | AL44: =MIN(AL41,AL43) -> -4.428308136 | AM44: =MIN(AM41,AM43) -> 0 | AN44: 0 | AO44: 0 | AP44: 0 | AQ44: 0 | AR44: 0 | AS44: 0 | BA44: =MAX(BA43,0) -> 0 | BB44: =MAX(BB43,0) -> 0 | BC44: 0 | BD44: 0.4210562393 | BE44: 0.8726012328 | BF44: 1.324146226 | BG44: 1.77569122 | BH44: 2.227236213 | BK44: 増幅1/2判定 | BM44: =IF(AND(BM34>42,BM34<54.5),BM43,BM38) -> 
N45: λｂ/2 | R45: =Z47/2 -> 2.71649502 | Y45: =1-(1/Y16)^(-0.75) -> 0.6016811253 | Z45: =1-(1/Z16)^(-0.75) -> 0.2247535203 | AA45: -0.8940020346 | AB45: -3.278835012 | AC45: -6.388352088 | AD45: -8.927662392 | AE45: -13.72134627 | AF45: -23.99707878 | AI45: 10log(F/A) | AL45: =10*LOG10($R$11*$R$12/(Y6*($R$11*$R$12+$R$12*$R$13+$R$11*$R$13)*2)) -> 3.372421683 | AM45: =10*LOG10($R$11*$R$12/(Z6*($R$11*$R$12+$R$12*$R$13+$R$11*$R$13)*2)) -> 3.372421683 | AN45: 3.372421683 | AO45: 3.372421683 | AP45: 1.611509093 | AQ45: 1.611509093 | AR45: 0.3621217265 | AS45: 0.3621217265 | BA45: =IF($Q$23=1,BA44) -> FALSE | BB45: =IF($Q$23=1,BB44) -> FALSE | BC45: FALSE | BD45: FALSE | BE45: FALSE | BF45: FALSE | BG45: FALSE | BH45: FALSE | BK45: 増幅1/1判定 | BM45: =IF(AND(BM34>44.5,BM34<50),BM41,BM44) -> 
N46: λｂ/4 | R46: =R45/2 -> 1.35824751 | Y46: =MAX(Y44,Y45) -> 0.6016811253 | Z46: 0.2247535203 | AA46: 0.4720174626 | AB46: 0.7662915263 | AC46: 0.8646518211 | AD46: 0.8992713531 | AE46: 0.93207143 | AF46: 0.9599953255 | AI46: 床衝撃音レベル(dB) 補正前 | AJ46: s | AK46: 1 | AL46: =AL$44+Y$5-AL5+AL$21+AL$45+152.1 -> 73.04624293 | AM46: =AM$44+Z$5-AM5+AM$21+AM$45+152.1 -> 82.37337472 | AN46: 59.43846735 | AO46: 44.48180621 | AP46: 33.04923828 | AQ46: 26.15490753 | AR46: 18.00043174 | AS46: 11.10677051 | BA46: =IF($Q$23=0,Y86) -> 5.078505907 | BB46: =IF($Q$23=0,Z86) -> 0 | BC46: 0 | BD46: 0 | BE46: 0 | BF46: 0 | BG46: 0 | BH46: 0 | BK46: 反共振判定 | BM46: =IF(AND(BM34>30,BM34<40),BM39,BM45) -> 
V47: 曲げ波の波長(m) | Y47: =SQRT(3.14*$R$36*$R$7/1000/Y4/1.73205) -> 7.6834082 | Z47: 5.43299004 | AA47: 3.857040305 | AB47: 2.727339355 | AC47: 1.928520152 | AD47: 1.363669677 | AE47: 0.9642600762 | AF47: 0.6818348387 | AJ47: c | AL47: =AL$44+Y$5-AL6+AL$23+AL$45+152.1 -> 58.29665198 | AM47: =AM$44+Z$5-AM6+AM$23+AM$45+152.1 -> 69.79485585 | AN47: 56.21428408 | AO47: 44.75893058 | AP47: 33.05260827 | AQ47: 26.16525366 | AR47: 18.00986955 | AS47: 11.11371043 | BA47: =MAX(BA45,BA46) -> 5.078505907 | BB47: =MAX(BB45,BB46) -> 0 | BC47: 0 | BD47: 0 | BE47: 0 | BF47: 0 | BG47: 0 | BH47: 0 | BK47: 70dB判定 | BM47: =IF(BM42>70,BM46,BM38) -> 
V48: 共振による低下量(dB) | W48: s | X48: 1 | Y48: =21.5*Y19-20*LOG10(2.2925*($R$44/(1+$R$44^2))*LN(1/2/$R$8^2)) -> -4.243758953 | Z48: =21.5*Z19-20*LOG10(2.2925*($R$44/(1+$R$44^2))*LN(1/2/$R$8^2)) -> -14.71927432 | AA48: -3.644215681 | AB48: 0.0713287095 | AC48: 1.384453986 | AD48: 2.494598166 | AE48: 3.1430632 | AF48: 3.695125008 | AJ48: s | AK48: 2 | AL48: =AL$44+Y$5-AL7+AL$25+AL$45+152.1 -> 87.7905374 | AM48: =AM$44+Z$5-AM7+AM$25+AM$45+152.1 -> 80.17201592 | AN48: 60.67727813 | AO48: 45.75107939 | AP48: 33.03067542 | AQ48: 26.13040438 | AR48: 17.97807979 | AS48: 11.09033441 | BA48: =SQRT(BA42^2+BA47^2) -> 5.078505907 | BB48: =SQRT(BB42^2+BB47^2) -> 0 | BC48: 0 | BD48: 0 | BE48: 0 | BF48: 0 | BG48: 0 | BH48: 0 | BK48: 純ﾗｰﾒﾝ判定 | BM48: =IF(床衝撃音計算シート!G5=1,BM47,BM38) -> 72.21811018
Y49: =MIN(Y48,0) -> -4.243758953 | Z49: -14.71927432 | AA49: -3.644215681 | AB49: 0 | AC49: 0 | AD49: 0 | AE49: 0 | AF49: 0 | AJ49: c | AL49: =AL$44+Y$5-AL8+AL$27+AL$45+152.1 -> 78.75435487 | AM49: =AM$44+Z$5-AM8+AM$27+AM$45+152.1 -> 83.75582053 | AN49: 60.68098695 | AO49: 45.91689237 | AP49: 33.0554231 | AQ49: 26.149645 | AR49: 17.99563122 | AS49: 11.10324054 | AX49: 小梁による端部拘束 加振点3(dB) | AY49: s | AZ49: x | BA49: =-3*$BI49*LOG10($R$24/Y$47)-1.2*$BI49 -> 0.2122457821 | BB49: 0.6637907756 | BC49: 1.110144971 | BD49: 1.561689964 | BE49: 2.013234958 | BF49: 2.464779951 | BG49: 2.916324945 | BH49: 3.367869938 | BI49: =(R26-$R$7/1000)/($R$7/1000) -> -1
W50: c | Y50: =21.5*Y22-20*LOG10(2.2925*($R$44/(1+$R$44^2))*LN(1/2/$R$8^2)) -> -0.3821931919 | Z50: =21.5*Z22-20*LOG10(2.2925*($R$44/(1+$R$44^2))*LN(1/2/$R$8^2)) -> -10.07691161 | AA50: -5.580411715 | AB50: -0.2538119586 | AC50: 1.363049156 | AD50: 2.452469494 | AE50: 3.114652807 | AF50: 3.678393484 | AJ50: s | AK50: 3 | AL50: =AL$44+Y$5-AL9+AL$29+AL$45+152.1 -> 71.67400674 | AM50: =AM$44+Z$5-AM9+AM$29+AM$45+152.1 -> 82.54836447 | AN50: 59.88231763 | AO50: 44.48077598 | AP50: 33.01470249 | AQ50: 26.17635753 | AR50: 18.01999858 | AS50: 11.12115863 | BA50: =MAX(BA49,0) -> 0.2122457821 | BB50: =MAX(BB49,0) -> 0.6637907756 | BC50: 1.110144971 | BD50: 1.561689964 | BE50: 2.013234958 | BF50: 2.464779951 | BG50: 2.916324945 | BH50: 3.367869938
Y51: =MIN(Y50,0) -> -0.3821931919 | Z51: -10.07691161 | AA51: -5.580411715 | AB51: -0.2538119586 | AC51: 0 | AD51: 0 | AE51: 0 | AF51: 0 | AJ51: c | AL51: =AL$44+Y$5-AL10+AL$31+AL$45+152.1 -> 63.75821002 | AM51: =AM$44+Z$5-AM10+AM$31+AM$45+152.1 -> 72.13189141 | AN51: 57.4910652 | AO51: 45.06425094 | AP51: 33.01907472 | AQ51: 26.19769747 | AR51: 18.03946502 | AS51: 11.13547291 | BA51: =IF($Q$26=1,BA50) -> FALSE | BB51: =IF($Q$26=1,BB50) -> FALSE | BC51: FALSE | BD51: FALSE | BE51: FALSE | BF51: FALSE | BG51: FALSE | BH51: FALSE | BK51: （等価寸法倍率（両側））
W52: s | X52: 2 | Y52: =21.5*Y25-20*LOG10(2.2925*($R$44/(1+$R$44^2))*LN(1/2/$R$8^2)) -> -11.91191557 | Z52: =21.5*Z25-20*LOG10(2.2925*($R$44/(1+$R$44^2))*LN(1/2/$R$8^2)) -> -8.889499933 | AA52: -4.891181638 | AB52: -1.179583449 | AC52: 1.502357746 | AD52: 2.5943732 | AE52: 3.21034868 | AF52: 3.734750952 | AJ52: s | AK52: 4 | AL52: =AL$44+Y$5-AL11+AL$33+AL$45+152.1 -> 73.04624293 | AM52: =AM$44+Z$5-AM11+AM$33+AM$45+152.1 -> 82.37337472 | AN52: 59.43846735 | AO52: 44.48180621 | AP52: 33.04923828 | AQ52: 26.15490753 | AR52: 18.00043174 | AS52: 11.10677051 | BA52: =IF($Q$26=0,Y89) -> 0 | BB52: =IF($Q$26=0,Z89) -> 0 | BC52: 0 | BD52: 0 | BE52: 0 | BF52: 0 | BG52: 0 | BH52: 0
Y53: =MIN(Y52,0) -> -11.91191557 | Z53: -8.889499933 | AA53: -4.891181638 | AB53: -1.179583449 | AC53: 0 | AD53: 0 | AE53: 0 | AF53: 0 | AJ53: c | AL53: =AL$44+Y$5-AL12+AL$35+AL$45+152.1 -> 58.29665198 | AM53: =AM$44+Z$5-AM12+AM$35+AM$45+152.1 -> 69.79485585 | AN53: 56.21428408 | AO53: 44.75893058 | AP53: 33.05260827 | AQ53: 26.16525366 | AR53: 18.00986955 | AS53: 11.11371043 | BA53: =MAX(BA51,BA52) -> 0 | BB53: =MAX(BB51,BB52) -> 0 | BC53: 0 | BD53: 0 | BE53: 0 | BF53: 0 | BG53: 0 | BH53: 0 | BM53: =BM9/BM10 -> 1.230769231
W54: c | Y54: =21.5*Y28-20*LOG10(2.2925*($R$44/(1+$R$44^2))*LN(1/2/$R$8^2)) -> -7.426673638 | Z54: =21.5*Z28-20*LOG10(2.2925*($R$44/(1+$R$44^2))*LN(1/2/$R$8^2)) -> -12.74662138 | AA54: -4.894914867 | AB54: -1.334303112 | AC54: 1.345170535 | AD54: 2.516026793 | AE54: 3.157514063 | AF54: 3.703635449 | AJ54: s | AK54: 5 | AL54: =AL$44+Y$5-AL13+AL$37+AL$45+152.1 -> 71.67400674 | AM54: =AM$44+Z$5-AM13+AM$37+AM$45+152.1 -> 82.54836447 | AN54: 59.88231763 | AO54: 44.48077598 | AP54: 33.01470249 | AQ54: 26.17635753 | AR54: 18.01999858 | AS54: 11.12115863 | AZ54: y | BA54: =-3*$BI54*LOG10($R$25/Y$47)-1.2*$BI54 -> -1.83147793 | BB54: -1.379932937 | BC54: -0.9335787412 | BD54: -0.4820337477 | BE54: -0.03048875422 | BF54: 0.4210562393 | BG54: 0.8726012328 | BH54: 1.324146226 | BI54: =(R27-$R$7/1000)/($R$7/1000) -> -1 | BM54: =BM10/BM9 -> 0.8125
Y55: =MIN(Y54,0) -> -7.426673638 | Z55: -12.74662138 | AA55: -4.894914867 | AB55: -1.334303112 | AC55: 0 | AD55: 0 | AE55: 0 | AF55: 0 | AJ55: c | AL55: =AL$44+Y$5-AL14+AL$39+AL$45+152.1 -> 63.75821002 | AM55: =AM$44+Z$5-AM14+AM$39+AM$45+152.1 -> 72.13189141 | AN55: 57.4910652 | AO55: 45.06425094 | AP55: 33.01907472 | AQ55: 26.19769747 | AR55: 18.03946502 | AS55: 11.13547291 | BA55: =MAX(BA54,0) -> 0 | BB55: =MAX(BB54,0) -> 0 | BC55: 0 | BD55: 0 | BE55: 0 | BF55: 0.4210562393 | BG55: 0.8726012328 | BH55: 1.324146226 | BK55: スパン比(x) | BM55: =MAX(BM53,BM54) -> 1.230769231
W56: s | X56: 3 | Y56: =21.5*Y31-20*LOG10(2.2925*($R$44/(1+$R$44^2))*LN(1/2/$R$8^2)) -> -2.510660854 | Z56: =21.5*Z31-20*LOG10(2.2925*($R$44/(1+$R$44^2))*LN(1/2/$R$8^2)) -> -14.90760957 | AA56: -4.090987853 | AB56: 0.08569737319 | AC56: 1.603811363 | AD56: 2.407255324 | AE56: 3.08416164 | AF56: 3.660436545 | AI56: Fast-Peak補正(dB) | AL56: 4 | AM56: 4 | AN56: 4 | AO56: 4 | AP56: 4 | AQ56: 4 | AR56: 4 | AS56: 4 | BA56: =IF($Q$27=1,BA55) -> FALSE | BB56: =IF($Q$27=1,BB55) -> FALSE | BC56: FALSE | BD56: FALSE | BE56: FALSE | BF56: FALSE | BG56: FALSE | BH56: FALSE | BK56: 梁板厚比(z) | BM56: =(床衝撃音計算シート!G15)/R7 -> 0
Y57: =MIN(Y56,0) -> -2.510660854 | Z57: -14.90760957 | AA57: -4.090987853 | AB57: 0 | AC57: 0 | AD57: 0 | AE57: 0 | AF57: 0 | AI57: 音場補正(dB) | AL57: -7 | AM57: -7 | AN57: -5 | AO57: -3 | AP57: -1 | AQ57: 0 | AR57: 0 | AS57: 0 | AT57: =R11*R12 -> 14.4 | BA57: =IF($Q$27=0,Y91) -> 7.821074886 | BB57: =IF($Q$27=0,Z91) -> 3.215315953 | BC57: 0 | BD57: 0 | BE57: 0 | BF57: 0 | BG57: 0 | BH57: 0 | BK57: 1.0値(y) | BM57: =4.983*LOG10(BM55)+3 -> 3.449350149
W58: c | Y58: =21.5*Y34-20*LOG10(2.2925*($R$44/(1+$R$44^2))*LN(1/2/$R$8^2)) -> -4.077829222 | Z58: =21.5*Z34-20*LOG10(2.2925*($R$44/(1+$R$44^2))*LN(1/2/$R$8^2)) -> -12.18177273 | AA58: -6.865597969 | AB58: -0.5387056 | AC58: 1.576040739 | AD58: 2.320360675 | AE58: 3.02556233 | AF58: 3.625926083 | AL58: =IF(AT57<15,-20) -> -20 | AM58: -7 | AN58: -5 | AO58: -3 | AP58: -1 | AQ58: 0 | AR58: 0 | AS58: 0 | BA58: =MAX(BA56,BA57) -> 7.821074886 | BB58: =MAX(BB56,BB57) -> 3.215315953 | BC58: 0 | BD58: 0 | BE58: 0 | BF58: 0 | BG58: 0 | BH58: 0 | BK58: 係数(v’) | BM58: =(11.8473*(BM57-3)-5.10865)+4.3887*ABS(BM57-3.877) -> 2.091762922
Y59: =MIN(Y58,0) -> -4.077829222 | Z59: -12.18177273 | AA59: -6.865597969 | AB59: -0.5387056 | AC59: 0 | AD59: 0 | AE59: 0 | AF59: 0 | AL59: =MIN(AL57,AL58) -> -20 | AM59: -7 | AN59: -5 | AO59: -3 | AP59: 0 | AQ59: 0 | AR59: 0 | AS59: 0 | BA59: =SQRT(BA53^2+BA58^2) -> 7.821074886 | BB59: =SQRT(BB53^2+BB58^2) -> 3.215315953 | BC59: 0 | BD59: 0 | BE59: 0 | BF59: 0 | BG59: 0 | BH59: 0 | BK59: 係数(v) | BM59: =10^(BM58/10) -> 1.618736994
W60: s | X60: 4 | Y60: =21.5*Y37-20*LOG10(2.2925*($R$44/(1+$R$44^2))*LN(1/2/$R$8^2)) -> -4.243758953 | Z60: =21.5*Z37-20*LOG10(2.2925*($R$44/(1+$R$44^2))*LN(1/2/$R$8^2)) -> -14.71927432 | AA60: -3.644215681 | AB60: 0.0713287095 | AC60: 1.384453986 | AD60: 2.494598166 | AE60: 3.1430632 | AF60: 3.695125008 | AI60: 床衝撃音レベル(dB) 補正後 | AJ60: s | AK60: 1 | AL60: =AL46+AL$56+AL$59 -> 57.04624293 | AM60: 79.37337472 | AN60: 58.43846735 | AO60: 45.48180621 | AP60: 37.04923828 | AQ60: 30.15490753 | AR60: 22.00043174 | AS60: 15.10677051 | AY60: c | AZ60: x | BA60: =-3*$BI60*LOG10($R$24/Y$47)-1.2*$BI60 -> 0.2122457821 | BB60: 0.6637907756 | BC60: 1.110144971 | BD60: 1.561689964 | BE60: 2.013234958 | BF60: 2.464779951 | BG60: 2.916324945 | BH60: 3.367869938 | BI60: =(R26-$R$7/1000)/($R$7/1000) -> -1 | BK60: - | BM60: =IF(BM56>BM57,0,BM59) -> 1.618736994
Y61: =MIN(Y60,0) -> -4.243758953 | Z61: -14.71927432 | AA61: -3.644215681 | AB61: 0 | AC61: 0 | AD61: 0 | AE61: 0 | AF61: 0 | AK61: 2 | AL61: =AL48+AL$56+AL$59 -> 71.7905374 | AM61: 77.17201592 | AN61: 59.67727813 | AO61: 46.75107939 | AP61: 37.03067542 | AQ61: 30.13040438 | AR61: 21.97807979 | AS61: 15.09033441 | BA61: =MAX(BA60,0) -> 0.2122457821 | BB61: =MAX(BB60,0) -> 0.6637907756 | BC61: 1.110144971 | BD61: 1.561689964 | BE61: 2.013234958 | BF61: 2.464779951 | BG61: 2.916324945 | BH61: 3.367869938 | BK61: 乗数(w) | BM61: =0.0985*(EXP(BM57/3))^2.5-1.125*(BM57-3) -> 1.239490106
W62: c | Y62: =21.5*Y40-20*LOG10(2.2925*($R$44/(1+$R$44^2))*LN(1/2/$R$8^2)) -> -0.3821931919 | Z62: =21.5*Z40-20*LOG10(2.2925*($R$44/(1+$R$44^2))*LN(1/2/$R$8^2)) -> -10.07691161 | AA62: -5.580411715 | AB62: -0.2538119586 | AC62: 1.363049156 | AD62: 2.452469494 | AE62: 3.114652807 | AF62: 3.678393484 | AK62: 3 | AL62: =AL50+AL$56+AL$59 -> 55.67400674 | AM62: 79.54836447 | AN62: 58.88231763 | AO62: 45.48077598 | AP62: 37.01470249 | AQ62: 30.17635753 | AR62: 22.01999858 | AS62: 15.12115863 | BA62: =IF($Q$26=1,BA61) -> FALSE | BB62: =IF($Q$26=1,BB61) -> FALSE | BC62: FALSE | BD62: FALSE | BE62: FALSE | BF62: FALSE | BG62: FALSE | BH62: FALSE | BK62: - | BM62: =IF(BM56>BM57,0,BM61) -> 1.239490106
Y63: =MIN(Y62,0) -> -0.3821931919 | Z63: -10.07691161 | AA63: -5.580411715 | AB63: -0.2538119586 | AC63: 0 | AD63: 0 | AE63: 0 | AF63: 0 | AK63: 4 | AL63: =AL52+AL$56+AL$59 -> 57.04624293 | AM63: 79.37337472 | AN63: 58.43846735 | AO63: 45.48180621 | AP63: 37.04923828 | AQ63: 30.15490753 | AR63: 22.00043174 | AS63: 15.10677051 | BA63: =IF($Q$26=0,Y94) -> 0 | BB63: =IF($Q$26=0,Z94) -> 0 | BC63: 0 | BD63: 0 | BE63: 0 | BF63: 0 | BG63: 0 | BH63: 0 | BK63: 倍率 | BM63: =MIN(BN63,2) ->  | BN63: =BM60*(LOG10(BM57/BM56))^BM62+1 -> 
W64: s | X64: 5 | Y64: =21.5*Y43-20*LOG10(2.2925*($R$44/(1+$R$44^2))*LN(1/2/$R$8^2)) -> -2.510660854 | Z64: =21.5*Z43-20*LOG10(2.2925*($R$44/(1+$R$44^2))*LN(1/2/$R$8^2)) -> -14.90760957 | AA64: -4.090987853 | AB64: 0.08569737319 | AC64: 1.603811363 | AD64: 2.407255324 | AE64: 3.08416164 | AF64: 3.660436545 | AK64: 5 | AL64: =AL54+AL$56+AL$59 -> 55.67400674 | AM64: 79.54836447 | AN64: 58.88231763 | AO64: 45.48077598 | AP64: 37.01470249 | AQ64: 30.17635753 | AR64: 22.01999858 | AS64: 15.12115863 | BA64: =MAX(BA62,BA63) -> 0 | BB64: =MAX(BB62,BB63) -> 0 | BC64: 0 | BD64: 0 | BE64: 0 | BF64: 0 | BG64: 0 | BH64: 0 | BK64: （２倍値） | BM64: =(BM63-1)*2+1 -> 
Y65: =MIN(Y64,0) -> -2.510660854 | Z65: =MIN(Z64,0) -> -14.90760957 | AA65: -4.090987853 | AB65: 0 | AC65: 0 | AD65: 0 | AE65: 0 | AF65: 0 | AJ65: c | AK65: 1 | AL65: =AL47+AL$56+AL$59 -> 42.29665198 | AM65: 66.79485585 | AN65: 55.21428408 | AO65: 45.75893058 | AP65: 37.05260827 | AQ65: 30.16525366 | AR65: 22.00986955 | AS65: 15.11371043 | AZ65: y | BA65: =-3*$BI65*LOG10($R$25/Y$47)-1.2*$BI65 -> -1.83147793 | BB65: -1.379932937 | BC65: -0.9335787412 | BD65: -0.4820337477 | BE65: -0.03048875422 | BF65: 0.4210562393 | BG65: 0.8726012328 | BH65: 1.324146226 | BI65: =(R27-$R$7/1000)/($R$7/1000) -> -1
W66: c | Y66: =21.5*Y46-20*LOG10(2.2925*($R$44/(1+$R$44^2))*LN(1/2/$R$8^2)) -> -4.077829222 | Z66: =21.5*Z46-20*LOG10(2.2925*($R$44/(1+$R$44^2))*LN(1/2/$R$8^2)) -> -12.18177273 | AA66: -6.865597969 | AB66: -0.5387056 | AC66: 1.576040739 | AD66: 2.320360675 | AE66: 3.02556233 | AF66: 3.625926083 | AK66: 2 | AL66: =AL49+AL$56+AL$59 -> 62.75435487 | AM66: 80.75582053 | AN66: 59.68098695 | AO66: 46.91689237 | AP66: 37.0554231 | AQ66: 30.149645 | AR66: 21.99563122 | AS66: 15.10324054 | BA66: =MAX(BA65,0) -> 0 | BB66: =MAX(BB65,0) -> 0 | BC66: 0 | BD66: 0 | BE66: 0 | BF66: 0.4210562393 | BG66: 0.8726012328 | BH66: 1.324146226 | BK66: （等価寸法倍率（片側））
Y67: =MIN(Y66,0) -> -4.077829222 | Z67: =MIN(Z66,0) -> -12.18177273 | AA67: -6.865597969 | AB67: -0.5387056 | AC67: 0 | AD67: 0 | AE67: 0 | AF67: 0 | AK67: 3 | AL67: =AL51+AL$56+AL$59 -> 47.75821002 | AM67: 69.13189141 | AN67: 56.4910652 | AO67: 46.06425094 | AP67: 37.01907472 | AQ67: 30.19769747 | AR67: 22.03946502 | AS67: 15.13547291 | BA67: =IF($Q$27=1,BA66) -> FALSE | BB67: =IF($Q$27=1,BB66) -> FALSE | BC67: FALSE | BD67: FALSE | BE67: FALSE | BF67: FALSE | BG67: FALSE | BH67: FALSE
V68: 拘束による増加量(dB) | W68: s | X68: 1 | Y68: =-30.6*LOG10($R$16/Y$47)-23.1 -> 1.575003417 | Z68: -3.030755517 | AA68: -7.583568309 | AB68: -12.18932724 | AC68: -16.79508618 | AD68: -21.40084511 | AE68: -26.00660404 | AF68: -30.61236298 | AK68: 4 | AL68: =AL53+AL$56+AL$59 -> 42.29665198 | AM68: 66.79485585 | AN68: 55.21428408 | AO68: 45.75893058 | AP68: 37.05260827 | AQ68: 30.16525366 | AR68: 22.00986955 | AS68: 15.11371043 | BA68: =IF($Q$27=0,Y96) -> 17.11970573 | BB68: =IF($Q$27=0,Z96) -> 11.09910582 | BC68: 5.147716549 | BD68: 0 | BE68: 0 | BF68: 0 | BG68: 0 | BH68: 0 | BK68: スパン比(x) | BM68: =BM55 -> 1.230769231
Y69: =MAX(Y68,0) -> 1.575003417 | Z69: =MAX(Z68,0) -> 0 | AA69: 0 | AB69: 0 | AC69: 0 | AD69: 0 | AE69: 0 | AF69: 0 | AK69: 5 | AL69: =AL55+AL$56+AL$59 -> 47.75821002 | AM69: 69.13189141 | AN69: 56.4910652 | AO69: 46.06425094 | AP69: 37.01907472 | AQ69: 30.19769747 | AR69: 22.03946502 | AS69: 15.13547291 | BA69: =MAX(BA67,BA68) -> 17.11970573 | BB69: =MAX(BB67,BB68) -> 11.09910582 | BC69: 5.147716549 | BD69: 0 | BE69: 0 | BF69: 0 | BG69: 0 | BH69: 0 | BK69: 梁板厚比(z) | BM69: =BM56 -> 0
Y70: =-30.6*LOG10($R$17/Y$47)-23.1 -> 7.821074886 | Z70: 3.215315953 | AA70: -1.33749684 | AB70: -5.943255773 | AC70: -10.54901471 | AD70: -15.15477364 | AE70: -19.76053257 | AF70: -24.36629151 | AI70: 床衝撃音レベル(dB) 補正後 | AJ70: s | AK70: 1 | AL70: =MAX(AL60,0) -> 57.04624293 | AM70: =MAX(AM60,0) -> 79.37337472 | AN70: 58.43846735 | AO70: 45.48180621 | AP70: 37.04923828 | AQ70: 30.15490753 | AR70: 22.00043174 | AS70: 15.10677051 | BA70: =SQRT(BA64^2+BA69^2) -> 17.11970573 | BB70: =SQRT(BB64^2+BB69^2) -> 11.09910582 | BC70: 5.147716549 | BD70: 0 | BE70: 0 | BF70: 0 | BG70: 0 | BH70: 0 | BK70: 1.0値(y) | BM70: =4.983*LOG10(BM68)+3 -> 3.449350149
Y71: =MAX(Y70,0) -> 7.821074886 | Z71: =MAX(Z70,0) -> 3.215315953 | AA71: 0 | AB71: 0 | AC71: 0 | AD71: 0 | AE71: 0 | AF71: 0 | AK71: 2 | AL71: =MAX(AL61,0) -> 71.7905374 | AM71: 77.17201592 | AN71: 59.67727813 | AO71: 46.75107939 | AP71: 37.03067542 | AQ71: 30.13040438 | AR71: 21.97807979 | AS71: 15.09033441 | AX71: 小梁による端部拘束 加振点4(dB) | AY71: s | AZ71: x | BA71: =-3*$BI71*LOG10($R$28/Y$47)-1.2*$BI71 -> -1.219117982 | BB71: -0.7675729886 | BC71: -0.3212187932 | BD71: 0.1303262003 | BE71: 0.5818711937 | BF71: 1.033416187 | BG71: 1.484961181 | BH71: 1.936506174 | BI71: =(R30-$R$7/1000)/($R$7/1000) -> -1 | BK71: 係数(v’) | BM71: =7.253*BM70-23.8307 -> 1.187436631
Y72: =SQRT(Y69^2+Y71^2) -> 7.978085494 | Z72: =SQRT(Z69^2+Z71^2) -> 3.215315953 | AA72: 0 | AB72: 0 | AC72: 0 | AD72: 0 | AE72: 0 | AF72: 0 | AK72: 3 | AL72: 55.67400674 | AM72: 79.54836447 | AN72: 58.88231763 | AO72: 45.48077598 | AP72: 37.01470249 | AQ72: 30.17635753 | AR72: 22.01999858 | AS72: 15.12115863 | BA72: =MAX(BA71,0) -> 0 | BB72: =MAX(BB71,0) -> 0 | BC72: 0 | BD72: 0.1303262003 | BE72: 0.5818711937 | BF72: 1.033416187 | BG72: 1.484961181 | BH72: 1.936506174 | BK72: 係数(v) | BM72: =10^(BM71/10) -> 1.314448766
W73: c | Y73: =-40*LOG10($R$16/Y$47)-23.3 -> 8.954906428 | Z73: 2.934306514 | AA73: -3.017082757 | AB73: -9.03768267 | AC73: -15.05828258 | AD73: -21.0788825 | AE73: -27.09948241 | AF73: -33.12008232 | AK73: 4 | AL73: 57.04624293 | AM73: 79.37337472 | AN73: 58.43846735 | AO73: 45.48180621 | AP73: 37.04923828 | AQ73: 30.15490753 | AR73: 22.00043174 | AS73: 15.10677051 | BA73: =IF($Q$30=1,BA72) -> FALSE | BB73: =IF($Q$30=1,BB72) -> FALSE | BC73: FALSE | BD73: FALSE | BE73: FALSE | BF73: FALSE | BG73: FALSE | BH73: FALSE | BK73: - | BM73: =IF(BM69>BM70,0,BM72) -> 1.314448766
Y74: =MAX(Y73,0) -> 8.954906428 | Z74: =MAX(Z73,0) -> 2.934306514 | AA74: 0 | AB74: 0 | AC74: 0 | AD74: 0 | AE74: 0 | AF74: 0 | AK74: 5 | AL74: =MAX(AL64,0) -> 55.67400674 | AM74: =MAX(AM64,0) -> 79.54836447 | AN74: 58.88231763 | AO74: 45.48077598 | AP74: 37.01470249 | AQ74: 30.17635753 | AR74: 22.01999858 | AS74: 15.12115863 | BA74: =IF($Q$30=0,Y99) -> 1.575003417 | BB74: =IF($Q$30=0,Z99) -> 0 | BC74: 0 | BD74: 0 | BE74: 0 | BF74: 0 | BG74: 0 | BH74: 0 | BK74: 乗数(w) | BM74: =0.02564*(EXP(BM70/4.5))^4-0.4735*(BM70-4.5) -> 1.04766114
Y75: =-40*LOG10($R$17/Y$47)-23.3 -> 17.11970573 | Z75: 11.09910582 | AA75: 5.147716549 | AB75: -0.8728833638 | AC75: -6.893483277 | AD75: -12.91408319 | AE75: -18.9346831 | AF75: -24.95528302 | AJ75: c | AK75: 1 | AL75: =MAX(AL65,0) -> 42.29665198 | AM75: =MAX(AM65,0) -> 66.79485585 | AN75: 55.21428408 | AO75: 45.75893058 | AP75: 37.05260827 | AQ75: 30.16525366 | AR75: 22.00986955 | AS75: 15.11371043 | BA75: =MAX(BA73,BA74) -> 1.575003417 | BB75: =MAX(BB73,BB74) -> 0 | BC75: 0 | BD75: 0 | BE75: 0 | BF75: 0 | BG75: 0 | BH75: 0 | BK75: - | BM75: =IF(BM69>BM70,0,BM74) -> 1.04766114
Y76: =MAX(Y75,0) -> 17.11970573 | Z76: =MAX(Z75,0) -> 11.09910582 | AA76: 5.147716549 | AB76: 0 | AC76: 0 | AD76: 0 | AE76: 0 | AF76: 0 | AK76: 2 | AL76: =MAX(AL66,0) -> 62.75435487 | AM76: 80.75582053 | AN76: 59.68098695 | AO76: 46.91689237 | AP76: 37.0554231 | AQ76: 30.149645 | AR76: 21.99563122 | AS76: 15.10324054 | AZ76: y | BA76: =-3*$BI76*LOG10($R$29/Y$47)-1.2*$BI76 -> -1.83147793 | BB76: -1.379932937 | BC76: -0.9335787412 | BD76: -0.4820337477 | BE76: -0.03048875422 | BF76: 0.4210562393 | BG76: 0.8726012328 | BH76: 1.324146226 | BI76: =(R31-$R$7/1000)/($R$7/1000) -> -1 | BK76: 倍率 | BM76: =MIN(BN76,2) ->  | BN76: =BM73*(LOG10(BM70/BM69))^BM75+1 -> 
Y77: =SQRT(Y74^2+Y76^2) -> 19.32031764 | Z77: =SQRT(Z74^2+Z76^2) -> 11.48043138 | AA77: 5.147716549 | AB77: 0 | AC77: 0 | AD77: 0 | AE77: 0 | AF77: 0 | AK77: 3 | AL77: 47.75821002 | AM77: 69.13189141 | AN77: 56.4910652 | AO77: 46.06425094 | AP77: 37.01907472 | AQ77: 30.19769747 | AR77: 22.03946502 | AS77: 15.13547291 | BA77: =MAX(BA76,0) -> 0 | BB77: =MAX(BB76,0) -> 0 | BC77: 0 | BD77: 0 | BE77: 0 | BF77: 0.4210562393 | BG77: 0.8726012328 | BH77: 1.324146226
W78: s | X78: 2 | Y78: =-30.6*LOG10($R$20/Y$47)-23.1 -> -7.63651445 | Z78: -12.24227338 | AA78: -16.79508618 | AB78: -21.40084511 | AC78: -26.00660404 | AD78: -30.61236298 | AE78: -35.21812191 | AF78: -39.82388084 | AK78: 4 | AL78: 42.29665198 | AM78: 66.79485585 | AN78: 55.21428408 | AO78: 45.75893058 | AP78: 37.05260827 | AQ78: 30.16525366 | AR78: 22.00986955 | AS78: 15.11371043 | BA78: =IF($Q$31=1,BA77) -> FALSE | BB78: =IF($Q$31=1,BB77) -> FALSE | BC78: FALSE | BD78: FALSE | BE78: FALSE | BF78: FALSE | BG78: FALSE | BH78: FALSE | BK78: （等価寸法倍率（採用値））
Y79: =MAX(Y78,0) -> 0 | Z79: 0 | AA79: 0 | AB79: 0 | AC79: 0 | AD79: 0 | AE79: 0 | AF79: 0 | AK79: 5 | AL79: 47.75821002 | AM79: 69.13189141 | AN79: 56.4910652 | AO79: 46.06425094 | AP79: 37.01907472 | AQ79: 30.19769747 | AR79: 22.03946502 | AS79: 15.13547291 | BA79: =IF($Q$31=0,Y101) -> 7.821074886 | BB79: =IF($Q$31=0,Z101) -> 3.215315953 | BC79: 0 | BD79: 0 | BE79: 0 | BF79: 0 | BG79: 0 | BH79: 0
Y80: =-30.6*LOG10($R$21/Y$47)-23.1 -> -1.390442981 | Z80: -5.996201915 | AA80: -10.54901471 | AB80: -15.15477364 | AC80: -19.76053257 | AD80: -24.36629151 | AE80: -28.97205044 | AF80: -33.57780938 | AI80: 平均床衝撃音レベル(dB) | AK80: ｓ | AL80: =SUM(AL70:AL74)/$R$15 -> 59.44620735 | AM80: =SUM(AM70:AM74)/$R$15 -> 79.00309886 | AN80: 58.86376962 | AO80: 45.73524876 | AP80: 37.03171139 | AQ80: 30.1585869 | AR80: 22.00378808 | AS80: 15.10923854 | BA80: =MAX(BA78,BA79) -> 7.821074886 | BB80: =MAX(BB78,BB79) -> 3.215315953 | BC80: 0 | BD80: 0 | BE80: 0 | BF80: 0 | BG80: 0 | BH80: 0 | BK80: 片側両側別 | BM80: =IF(床衝撃音計算シート!L15=1,BM76,BM64) -> 
Y81: =MAX(Y80,0) -> 0 | Z81: 0 | AA81: 0 | AB81: 0 | AC81: 0 | AD81: 0 | AE81: 0 | AF81: 0 | AK81: ｃ | AL81: =SUM(AL75:AL79)/$R$15 -> 48.57281578 | AM81: =SUM(AM75:AM79)/$R$15 -> 70.52186301 | AN81: 56.6183371 | AO81: 46.11265108 | AP81: 37.03975781 | AQ81: 30.17510945 | AR81: 22.01886007 | AS81: 15.12032144 | BA81: =SQRT(BA75^2+BA80^2) -> 7.978085494 | BB81: =SQRT(BB75^2+BB80^2) -> 3.215315953 | BC81: 0 | BD81: 0 | BE81: 0 | BF81: 0 | BG81: 0 | BH81: 0 | BK81: 採用値 | BM81: =IF(床衝撃音計算シート!G5=1,BM80,1) -> 1
Y82: =SQRT(Y79^2+Y81^2) -> 0 | Z82: 0 | AA82: 0 | AB82: 0 | AC82: 0 | AD82: 0 | AE82: 0 | AF82: 0 | AI82: 拘束条件考慮 | AL82: =AL80+$R$14*(AL81-AL80) -> 50.74749409 | AM82: =AM80+$R$14*(AM81-AM80) -> 72.21811018 | AN82: 57.06742361 | AO82: 46.03717062 | AP82: 37.03814853 | AQ82: 30.17180494 | AR82: 22.01584567 | AS82: 15.11810486 | AY82: c | AZ82: x | BA82: =-3*$BI82*LOG10($R$28/Y$47)-1.2*$BI82 -> -1.219117982 | BB82: -0.7675729886 | BC82: -0.3212187932 | BD82: 0.1303262003 | BE82: 0.5818711937 | BF82: 1.033416187 | BG82: 1.484961181 | BH82: 1.936506174 | BI82: =(R30-$R$7/1000)/($R$7/1000) -> -1 | BK82: 短辺 | BM82: =MIN(Q9,Q10) -> 6.5
W83: c | Y83: =-40*LOG10($R$20/Y$47)-23.3 -> -3.086293399 | Z83: -9.106893312 | AA83: -15.05828258 | AB83: -21.0788825 | AC83: -27.09948241 | AD83: -33.12008232 | AE83: -39.14068224 | AF83: -45.16128215 | BA83: =MAX(BA82,0) -> 0 | BB83: =MAX(BB82,0) -> 0 | BC83: 0 | BD83: 0.1303262003 | BE83: 0.5818711937 | BF83: 1.033416187 | BG83: 1.484961181 | BH83: 1.936506174 | BK83: 短辺8mﾁｪｯｸ | BM83: =IF(BM82>8,1,BM81) -> 1
Y84: =MAX(Y83,0) -> 0 | Z84: 0 | AA84: 0 | AB84: 0 | AC84: 0 | AD84: 0 | AE84: 0 | AF84: 0 | BA84: =IF($Q$30=1,BA83) -> FALSE | BB84: =IF($Q$30=1,BB83) -> FALSE | BC84: FALSE | BD84: FALSE | BE84: FALSE | BF84: FALSE | BG84: FALSE | BH84: FALSE
Y85: =-40*LOG10($R$21/Y$47)-23.3 -> 5.078505907 | Z85: -0.942094006 | AA85: -6.893483277 | AB85: -12.91408319 | AC85: -18.9346831 | AD85: -24.95528302 | AE85: -30.97588293 | AF85: -36.99648284 | BA85: =IF($Q$30=0,Y104) -> 8.954906428 | BB85: =IF($Q$30=0,Z104) -> 2.934306514 | BC85: 0 | BD85: 0 | BE85: 0 | BF85: 0 | BG85: 0 | BH85: 0
Y86: =MAX(Y85,0) -> 5.078505907 | Z86: 0 | AA86: 0 | AB86: 0 | AC86: 0 | AD86: 0 | AE86: 0 | AF86: 0 | BA86: =MAX(BA84,BA85) -> 8.954906428 | BB86: =MAX(BB84,BB85) -> 2.934306514 | BC86: 0 | BD86: 0 | BE86: 0 | BF86: 0 | BG86: 0 | BH86: 0
Y87: =SQRT(Y84^2+Y86^2) -> 5.078505907 | Z87: 0 | AA87: 0 | AB87: 0 | AC87: 0 | AD87: 0 | AE87: 0 | AF87: 0 | AZ87: y | BA87: =-3*$BI87*LOG10($R$29/Y$47)-1.2*$BI87 -> -1.83147793 | BB87: -1.379932937 | BC87: -0.9335787412 | BD87: -0.4820337477 | BE87: -0.03048875422 | BF87: 0.4210562393 | BG87: 0.8726012328 | BH87: 1.324146226 | BI87: =(R31-$R$7/1000)/($R$7/1000) -> -1
W88: s | X88: 3 | Y88: =-30.6*LOG10($R$24/Y$47)-23.1 -> -13.02490698 | Z88: -17.63066591 | AA88: -22.1834787 | AB88: -26.78923764 | AC88: -31.39499657 | AD88: -36.0007555 | AE88: -40.60651444 | AF88: -45.21227337 | BA88: =MAX(BA87,0) -> 0 | BB88: =MAX(BB87,0) -> 0 | BC88: 0 | BD88: 0 | BE88: 0 | BF88: 0.4210562393 | BG88: 0.8726012328 | BH88: 1.324146226
Y89: =MAX(Y88,0) -> 0 | Z89: 0 | AA89: 0 | AB89: 0 | AC89: 0 | AD89: 0 | AE89: 0 | AF89: 0 | BA89: =IF($Q$31=1,BA88) -> FALSE | BB89: =IF($Q$31=1,BB88) -> FALSE | BC89: FALSE | BD89: FALSE | BE89: FALSE | BF89: FALSE | BG89: FALSE | BH89: FALSE
Y90: =-30.6*LOG10($R$25/Y$47)-23.1 -> 7.821074886 | Z90: 3.215315953 | AA90: -1.33749684 | AB90: -5.943255773 | AC90: -10.54901471 | AD90: -15.15477364 | AE90: -19.76053257 | AF90: -24.36629151 | BA90: =IF($Q$31=0,Y106) -> 17.11970573 | BB90: =IF($Q$31=0,Z106) -> 11.09910582 | BC90: 5.147716549 | BD90: 0 | BE90: 0 | BF90: 0 | BG90: 0 | BH90: 0
Y91: =MAX(Y90,0) -> 7.821074886 | Z91: 3.215315953 | AA91: 0 | AB91: 0 | AC91: 0 | AD91: 0 | AE91: 0 | AF91: 0 | BA91: =MAX(BA89,BA90) -> 17.11970573 | BB91: =MAX(BB89,BB90) -> 11.09910582 | BC91: 5.147716549 | BD91: 0 | BE91: 0 | BF91: 0 | BG91: 0 | BH91: 0
Y92: =SQRT(Y89^2+Y91^2) -> 7.821074886 | Z92: 3.215315953 | AA92: 0 | AB92: 0 | AC92: 0 | AD92: 0 | AE92: 0 | AF92: 0 | BA92: =SQRT(BA86^2+BA91^2) -> 19.32031764 | BB92: =SQRT(BB86^2+BB91^2) -> 11.48043138 | BC92: 5.147716549 | BD92: 0 | BE92: 0 | BF92: 0 | BG92: 0 | BH92: 0
W93: c | Y93: =-40*LOG10($R$24/Y$47)-23.3 -> -10.12994376 | Z93: -16.15054367 | AA93: -22.10193295 | AB93: -28.12253286 | AC93: -34.14313277 | AD93: -40.16373269 | AE93: -46.1843326 | AF93: -52.20493251 | AX93: 小梁による端部拘束 加振点5(dB) | AY93: s | AZ93: x | BA93: =-3*$BI93*LOG10($R$32/Y$47)-1.2*$BI93 -> 0.2122457821 | BB93: 0.6637907756 | BC93: 1.110144971 | BD93: 1.561689964 | BE93: 2.013234958 | BF93: 2.464779951 | BG93: 2.916324945 | BH93: 3.367869938 | BI93: =(R34-$R$7/1000)/($R$7/1000) -> -1
Y94: =MAX(Y93,0) -> 0 | Z94: 0 | AA94: 0 | AB94: 0 | AC94: 0 | AD94: 0 | AE94: 0 | AF94: 0 | BA94: =MAX(BA93,0) -> 0.2122457821 | BB94: =MAX(BB93,0) -> 0.6637907756 | BC94: 1.110144971 | BD94: 1.561689964 | BE94: 2.013234958 | BF94: 2.464779951 | BG94: 2.916324945 | BH94: 3.367869938
Y95: =-40*LOG10($R$25/Y$47)-23.3 -> 17.11970573 | Z95: 11.09910582 | AA95: 5.147716549 | AB95: -0.8728833638 | AC95: -6.893483277 | AD95: -12.91408319 | AE95: -18.9346831 | AF95: -24.95528302 | BA95: =IF($Q$34=1,BA94) -> FALSE | BB95: =IF($Q$34=1,BB94) -> FALSE | BC95: FALSE | BD95: FALSE | BE95: FALSE | BF95: FALSE | BG95: FALSE | BH95: FALSE
Y96: =MAX(Y95,0) -> 17.11970573 | Z96: 11.09910582 | AA96: 5.147716549 | AB96: 0 | AC96: 0 | AD96: 0 | AE96: 0 | AF96: 0 | BA96: =IF($Q$34=0,Y109) -> 0 | BB96: =IF($Q$34=0,Z109) -> 0 | BC96: 0 | BD96: 0 | BE96: 0 | BF96: 0 | BG96: 0 | BH96: 0
Y97: =SQRT(Y94^2+Y96^2) -> 17.11970573 | Z97: 11.09910582 | AA97: 5.147716549 | AB97: 0 | AC97: 0 | AD97: 0 | AE97: 0 | AF97: 0 | BA97: =MAX(BA95,BA96) -> 0 | BB97: =MAX(BB95,BB96) -> 0 | BC97: 0 | BD97: 0 | BE97: 0 | BF97: 0 | BG97: 0 | BH97: 0
W98: s | X98: 4 | Y98: =-30.6*LOG10($R$28/Y$47)-23.1 -> 1.575003417 | Z98: -3.030755517 | AA98: -7.583568309 | AB98: -12.18932724 | AC98: -16.79508618 | AD98: -21.40084511 | AE98: -26.00660404 | AF98: -30.61236298 | AZ98: y | BA98: =-3*$BI98*LOG10($R$33/Y$47)-1.2*$BI98 -> -1.83147793 | BB98: -1.379932937 | BC98: -0.9335787412 | BD98: -0.4820337477 | BE98: -0.03048875422 | BF98: 0.4210562393 | BG98: 0.8726012328 | BH98: 1.324146226 | BI98: =(R35-$R$7/1000)/($R$7/1000) -> -1
Y99: =MAX(Y98,0) -> 1.575003417 | Z99: 0 | AA99: 0 | AB99: 0 | AC99: 0 | AD99: 0 | AE99: 0 | AF99: 0 | BA99: =MAX(BA98,0) -> 0 | BB99: =MAX(BB98,0) -> 0 | BC99: 0 | BD99: 0 | BE99: 0 | BF99: 0.4210562393 | BG99: 0.8726012328 | BH99: 1.324146226
Y100: =-30.6*LOG10($R$29/Y$47)-23.1 -> 7.821074886 | Z100: 3.215315953 | AA100: -1.33749684 | AB100: -5.943255773 | AC100: -10.54901471 | AD100: -15.15477364 | AE100: -19.76053257 | AF100: -24.36629151 | BA100: =IF($Q$35=1,BA99) -> FALSE | BB100: =IF($Q$35=1,BB99) -> FALSE | BC100: FALSE | BD100: FALSE | BE100: FALSE | BF100: FALSE | BG100: FALSE | BH100: FALSE
Y101: =MAX(Y100,0) -> 7.821074886 | Z101: 3.215315953 | AA101: 0 | AB101: 0 | AC101: 0 | AD101: 0 | AE101: 0 | AF101: 0 | BA101: =IF($Q$35=0,Y111) -> 7.821074886 | BB101: =IF($Q$35=0,Z111) -> 3.215315953 | BC101: 0 | BD101: 0 | BE101: 0 | BF101: 0 | BG101: 0 | BH101: 0
Y102: =SQRT(Y99^2+Y101^2) -> 7.978085494 | Z102: 3.215315953 | AA102: 0 | AB102: 0 | AC102: 0 | AD102: 0 | AE102: 0 | AF102: 0 | BA102: =MAX(BA100,BA101) -> 7.821074886 | BB102: =MAX(BB100,BB101) -> 3.215315953 | BC102: 0 | BD102: 0 | BE102: 0 | BF102: 0 | BG102: 0 | BH102: 0
W103: c | Y103: =-40*LOG10($R$28/Y$47)-23.3 -> 8.954906428 | Z103: 2.934306514 | AA103: -3.017082757 | AB103: -9.03768267 | AC103: -15.05828258 | AD103: -21.0788825 | AE103: -27.09948241 | AF103: -33.12008232 | BA103: =SQRT(BA97^2+BA102^2) -> 7.821074886 | BB103: =SQRT(BB97^2+BB102^2) -> 3.215315953 | BC103: 0 | BD103: 0 | BE103: 0 | BF103: 0 | BG103: 0 | BH103: 0
Y104: =MAX(Y103,0) -> 8.954906428 | Z104: 2.934306514 | AA104: 0 | AB104: 0 | AC104: 0 | AD104: 0 | AE104: 0 | AF104: 0 | AY104: c | AZ104: x | BA104: =-3*$BI104*LOG10($R$32/Y$47)-1.2*$BI104 -> 0.2122457821 | BB104: 0.6637907756 | BC104: 1.110144971 | BD104: 1.561689964 | BE104: 2.013234958 | BF104: 2.464779951 | BG104: 2.916324945 | BH104: 3.367869938 | BI104: =(R34-$R$7/1000)/($R$7/1000) -> -1
Y105: =-40*LOG10($R$29/Y$47)-23.3 -> 17.11970573 | Z105: 11.09910582 | AA105: 5.147716549 | AB105: -0.8728833638 | AC105: -6.893483277 | AD105: -12.91408319 | AE105: -18.9346831 | AF105: -24.95528302 | BA105: =MAX(BA104,0) -> 0.2122457821 | BB105: =MAX(BB104,0) -> 0.6637907756 | BC105: 1.110144971 | BD105: 1.561689964 | BE105: 2.013234958 | BF105: 2.464779951 | BG105: 2.916324945 | BH105: 3.367869938
Y106: =MAX(Y105,0) -> 17.11970573 | Z106: 11.09910582 | AA106: 5.147716549 | AB106: 0 | AC106: 0 | AD106: 0 | AE106: 0 | AF106: 0 | BA106: =IF($Q$34=1,BA105) -> FALSE | BB106: =IF($Q$34=1,BB105) -> FALSE | BC106: FALSE | BD106: FALSE | BE106: FALSE | BF106: FALSE | BG106: FALSE | BH106: FALSE
Y107: =SQRT(Y104^2+Y106^2) -> 19.32031764 | Z107: 11.48043138 | AA107: 5.147716549 | AB107: 0 | AC107: 0 | AD107: 0 | AE107: 0 | AF107: 0 | BA107: =IF($Q$34=0,Y114) -> 0 | BB107: =IF($Q$34=0,Z114) -> 0 | BC107: 0 | BD107: 0 | BE107: 0 | BF107: 0 | BG107: 0 | BH107: 0
W108: s | X108: 5 | Y108: =-30.6*LOG10($R$32/Y$47)-23.1 -> -13.02490698 | Z108: -17.63066591 | AA108: -22.1834787 | AB108: -26.78923764 | AC108: -31.39499657 | AD108: -36.0007555 | AE108: -40.60651444 | AF108: -45.21227337 | BA108: =MAX(BA106,BA107) -> 0 | BB108: =MAX(BB106,BB107) -> 0 | BC108: 0 | BD108: 0 | BE108: 0 | BF108: 0 | BG108: 0 | BH108: 0
Y109: =MAX(Y108,0) -> 0 | Z109: 0 | AA109: 0 | AB109: 0 | AC109: 0 | AD109: 0 | AE109: 0 | AF109: 0 | AZ109: y | BA109: =-3*$BI109*LOG10($R$33/Y$47)-1.2*$BI109 -> -1.83147793 | BB109: -1.379932937 | BC109: -0.9335787412 | BD109: -0.4820337477 | BE109: -0.03048875422 | BF109: 0.4210562393 | BG109: 0.8726012328 | BH109: 1.324146226 | BI109: =(R35-$R$7/1000)/($R$7/1000) -> -1
Y110: =-30.6*LOG10($R$33/Y$47)-23.1 -> 7.821074886 | Z110: 3.215315953 | AA110: -1.33749684 | AB110: -5.943255773 | AC110: -10.54901471 | AD110: -15.15477364 | AE110: -19.76053257 | AF110: -24.36629151 | BA110: =MAX(BA109,0) -> 0 | BB110: =MAX(BB109,0) -> 0 | BC110: 0 | BD110: 0 | BE110: 0 | BF110: 0.4210562393 | BG110: 0.8726012328 | BH110: 1.324146226
Y111: =MAX(Y110,0) -> 7.821074886 | Z111: 3.215315953 | AA111: 0 | AB111: 0 | AC111: 0 | AD111: 0 | AE111: 0 | AF111: 0 | BA111: =IF($Q$35=1,BA110) -> FALSE | BB111: =IF($Q$35=1,BB110) -> FALSE | BC111: FALSE | BD111: FALSE | BE111: FALSE | BF111: FALSE | BG111: FALSE | BH111: FALSE
Y112: =SQRT(Y109^2+Y111^2) -> 7.821074886 | Z112: 3.215315953 | AA112: 0 | AB112: 0 | AC112: 0 | AD112: 0 | AE112: 0 | AF112: 0 | BA112: =IF($Q$35=0,Y116) -> 17.11970573 | BB112: =IF($Q$35=0,Z116) -> 11.09910582 | BC112: 5.147716549 | BD112: 0 | BE112: 0 | BF112: 0 | BG112: 0 | BH112: 0
W113: c | Y113: =-40*LOG10($R$32/Y$47)-23.3 -> -10.12994376 | Z113: -16.15054367 | AA113: -22.10193295 | AB113: -28.12253286 | AC113: -34.14313277 | AD113: -40.16373269 | AE113: -46.1843326 | AF113: -52.20493251 | BA113: =MAX(BA111,BA112) -> 17.11970573 | BB113: =MAX(BB111,BB112) -> 11.09910582 | BC113: 5.147716549 | BD113: 0 | BE113: 0 | BF113: 0 | BG113: 0 | BH113: 0
Y114: =MAX(Y113,0) -> 0 | Z114: 0 | AA114: 0 | AB114: 0 | AC114: 0 | AD114: 0 | AE114: 0 | AF114: 0 | BA114: =SQRT(BA108^2+BA113^2) -> 17.11970573 | BB114: =SQRT(BB108^2+BB113^2) -> 11.09910582 | BC114: 5.147716549 | BD114: 0 | BE114: 0 | BF114: 0 | BG114: 0 | BH114: 0
Y115: =-40*LOG10($R$33/Y$47)-23.3 -> 17.11970573 | Z115: 11.09910582 | AA115: 5.147716549 | AB115: -0.8728833638 | AC115: -6.893483277 | AD115: -12.91408319 | AE115: -18.9346831 | AF115: -24.95528302
Y116: =MAX(Y115,0) -> 17.11970573 | Z116: 11.09910582 | AA116: 5.147716549 | AB116: 0 | AC116: 0 | AD116: 0 | AE116: 0 | AF116: 0
Y117: =SQRT(Y114^2+Y116^2) -> 17.11970573 | Z117: 11.09910582 | AA117: 5.147716549 | AB117: 0 | AC117: 0 | AD117: 0 | AE117: 0 | AF117: 0

Sheet 計算表s-1 (hidden)
B1: ヤング率 | C1: 辺長ｘ | D1: 辺長ｙ | E1: 板厚 | F1: ポアソン比 | G1: 密度 | H1: 曲げ剛性 | I1: 面密度 | J1: 加振点ｘ | K1: 加振点ｙ | L1: 縮退重み | M1: 周波数重み
B2: =床衝撃音計算シート!D7 -> 29000000000 | C2: =床衝撃音計算シート!D9 -> 8 | D2: =床衝撃音計算シート!F9 -> 6.5 | E2: =(床衝撃音計算シート!L9)/1000 -> 0.244 | F2: =床衝撃音計算シート!L7 -> 0.16 | G2: =床衝撃音計算シート!G7 -> 1684 | H2: =B2*E2^3/12/(1-F2^2) -> 36028730.16 | I2: =G2*E2 -> 410.896 | J2: =床衝撃音計算シート!D19 -> 1.2 | K2: =床衝撃音計算シート!F19 -> 0.75 | L2: 1 | M2: 0
B4: 周波数 | C4: 31.5Hz | D4: 63Hz | E4: 125Hz | F4: 250Hz | G4: 500Hz | H4: 1000Hz | I4: (2000Hz) | J4: (4000Hz)
B5: モード数１ | C5: =M8 -> 0.3622161837 | D5: =S8 -> 1.400352881 | E5: =Y8 -> 4.405491101 | F5: =AE8 -> 9.944836807 | G5: =AK8 -> 15.92293208 | H5: =AQ8 -> 28.74612945 | I5: =H6*I7/H7 -> 48.60863378 | J5: =H6*J7/H7 -> 98.46964885
B6: モード数２ | C6: =C5*($D$7^2+$C$7^2)/2/$D$7^2 -> 0.3006677306 | D6: =D5*($D$7^2+$C$7^2)/2/$D$7^2 -> 1.162402294 | E6: 3.656901792 | F6: 8.25499149 | G6: 13.21727761 | H6: 23.86153324 | I6: 40.34896359 | J6: 81.73750149
C7: =MIN(C2,D2) -> 6.5 | D7: =MAX(C2,D2) -> 8 | H7: =0.354*SQRT(I2/H2)*C2*D2*1000-0.139*SQRT(SQRT(I2/H2*1000^2))*(C2+D2) -> 58.46145598 | I7: =0.354*SQRT(I2/H2)*C2*D2*2000-0.139*SQRT(SQRT(I2/H2*2000^2))*(C2+D2) -> 119.0925778 | J7: =0.354*SQRT(I2/H2)*C2*D2*4000-0.139*SQRT(SQRT(I2/H2*4000^2))*(C2+D2) -> 241.2535265
M8: =M9+O9+Q9 -> 0.3622161837 | S8: =S9+U9+W9 -> 1.400352881 | Y8: =Y9+AA9+AC9 -> 4.405491101 | AE8: =AE9+AG9+AI9 -> 9.944836807 | AK8: =AK9+AM9+AO9 -> 15.92293208 | AQ8: =AQ9+AS9+AU9 -> 28.74612945
B9: m | C9: n | D9: fi | F9: No. | G9: m | H9: n | I9: fi | J9: 縮退ﾁｪｯｸ | K9: 周波数重み | L9: 重み | M9: =SUM(N10:N409) -> 0.01618090044 | O9: =SUM(P10:P409) -> 0.2868824805 | Q9: =SUM(R10:R409) -> 0.05915280279 | S9: =SUM(T10:T409) -> 0.08395909841 | U9: =SUM(V10:V409) -> 1.187772078 | W9: =SUM(X10:X409) -> 0.1286217047 | Y9: =SUM(Z10:Z409) -> 0.1132121132 | AA9: =SUM(AB10:AB409) -> 3.615774425 | AC9: =SUM(AD10:AD409) -> 0.6765045621 | AE9: =SUM(AF10:AF409) -> 0.6089243917 | AG9: =SUM(AH10:AH409) -> 7.866062709 | AI9: =SUM(AJ10:AJ409) -> 1.469849706 | AK9: =SUM(AL10:AL409) -> 1.000871011 | AM9: =SUM(AN10:AN409) -> 12.48522011 | AO9: =SUM(AP10:AP409) -> 2.436840959 | AQ9: =SUM(AR10:AR409) -> 1.640869172 | AS9: =SUM(AT10:AT409) -> 22.97828199 | AU9: =SUM(AV10:AV409) -> 4.12697829
B10: 1 | C10: 1 | D10: =3.1416/2*SQRT($H$2/$I$2)*(B10^2/$C$2^2+C10^2/$D$2^2) -> 18.27686336 | F10: 1 | G10: 1 | H10: 1 | I10: 18.27686336 | J10: =1 -> 1 | K10: =ABS(SIN(G10*3.1416*$J$2/$C$2)*SIN(H10*3.1416*$K$2/$D$2))*(1/F10^$M$2)+(1-1/F10^$M$2) -> 0.1609879579 | L10: =$J10*$K10 -> 0.1609879579 | M10: =10^(LOG10($I10/22.27)/LOG10(2)*70/20)*$L10 -> 0.01618090044 | N10: =IF($I10<22.27,M10,0) -> 0.01618090044 | O10: =AND($I10>22.27,$I10<44.45) -> FALSE | P10: =IF($O10=TRUE,$L10,0) -> 0 | Q10: =10^(LOG10(44.45/$I10)/LOG10(2)*70/20)*$L10 -> 4947.326929 | R10: =IF($I10>44.45,Q10,0) -> 0 | S10: =10^(LOG10($I10/44.548)/LOG10(2)*70/20)*$L10 -> 5.106176461e-06 | T10: =IF($I10<44.528,S10,0) -> 5.106176461e-06 | U10: =AND($I10>44.548,$I10<89.095) -> FALSE | V10: =IF($U10=TRUE,$L10,0) -> 0 | W10: =10^(LOG10(89.095/$I10)/LOG10(2)*70/20)*$L10 -> 16048494.18 | X10: =IF($I10>89.095,W10,0) -> 0 | Y10: =10^(LOG10($I10/89.09)/LOG10(2)*70/20)*$L10 -> 1.615979604e-09 | Z10: =IF($I10<89.09,Y10,0) -> 1.615979604e-09 | AA10: =AND($I10>89.09,$I10<176.78) -> FALSE | AB10: =IF($AA10=TRUE,$L10,0) -> 0 | AC10: =10^(LOG10(176.78/$I10)/LOG10(2)*70/20)*$L10 -> 4.627215246e+10 | AD10: =IF($I10>176.78,AC10,0) -> 0 | AE10: =10^(LOG10($I10/176.78)/LOG10(2)*70/20)*$L10 -> 5.601019447e-13 | AF10: =IF($I10<176.78,AE10,0) -> 5.601019447e-13 | AG10: =AND($I10>176.78,$I10<353.55) -> FALSE | AH10: =IF($AG10=TRUE,$L10,0) -> 0 | AI10: =10^(LOG10(353.55/$I10)/LOG10(2)*70/20)*$L10 -> 1.462772824e+14 | AJ10: =IF($I10>353.55,AI10,0) -> 0 | AK10: =10^(LOG10($I10/353.55)/LOG10(2)*70/20)*$L10 -> 1.771780426e-16 | AL10: =IF($I10<353.55,AK10,0) -> 1.771780426e-16 | AM10: =AND($I10>353.55,$I10<707.1) -> FALSE | AN10: =IF($AM10=TRUE,$L10,0) -> 0 | AO10: =10^(LOG10(707.1/$I10)/LOG10(2)*70/20)*$L10 -> 4.625693824e+17 | AP10: =IF($I10>707.1,AO10,0) -> 0 | AQ10: =10^(LOG10($I10/707.1)/LOG10(2)*70/20)*$L10 -> 5.60286166e-20 | AR10: =IF($I10<707.1,AQ10,0) -> 5.60286166e-20 | AS10: =AND($I10>707.1,$I10<1414.2) -> FALSE | AT10: =IF($AS10=TRUE,$L10,0) -> 0 | AU10: =10^(LOG10(1414.2/$I10)/LOG10(2)*70/20)*$L10 -> 1.462772824e+21 | AV10: =IF($I10>1414.2,AU10,0) -> 0
B11: 1 | C11: 2 | D11: 51.30423057 | F11: 2 | G11: 2 | H11: 1 | I11: 40.08008625 | J11: =IF(ABS(I11-I10)>0.0001,1,$L$2) -> 1 | K11: 0.2868824805 | L11: =$J11*$K11 -> 0.2868824805 | M11: =10^(LOG10($I11/22.27)/LOG10(2)*70/20)*$L11 -> 266.0407842 | N11: =IF($I11<22.27,M11,0) -> 0 | O11: =AND($I11>22.27,$I11<44.45) -> TRUE | P11: =IF($O11=TRUE,$L11,0) -> 0.2868824805 | Q11: =10^(LOG10(44.45/$I11)/LOG10(2)*70/20)*$L11 -> 0.9555344482 | R11: =IF($I11>44.45,Q11,0) -> 0 | S11: =10^(LOG10($I11/44.548)/LOG10(2)*70/20)*$L11 -> 0.08395399223 | T11: =IF($I11<44.528,S11,0) -> 0.08395399223 | U11: FALSE | V11: =IF($U11=TRUE,$L11,0) -> 0 | W11: =10^(LOG10(89.095/$I11)/LOG10(2)*70/20)*$L11 -> 3099.631226 | X11: 0 | Y11: =10^(LOG10($I11/89.09)/LOG10(2)*70/20)*$L11 -> 2.656937929e-05 | Z11: =IF($I11<89.09,Y11,0) -> 2.656937929e-05 | AA11: =AND($I11>89.09,$I11<176.78) -> FALSE | AB11: =IF($AA11=TRUE,$L11,0) -> 0 | AC11: =10^(LOG10(176.78/$I11)/LOG10(2)*70/20)*$L11 -> 8937075.779 | AD11: =IF($I11>176.78,AC11,0) -> 0 | AE11: =10^(LOG10($I11/176.78)/LOG10(2)*70/20)*$L11 -> 9.209002994e-09 | AF11: =IF($I11<176.78,AE11,0) -> 9.209002994e-09 | AG11: =AND($I11>176.78,$I11<353.55) -> FALSE | AH11: =IF($AG11=TRUE,$L11,0) -> 0 | AI11: =10^(LOG10(353.55/$I11)/LOG10(2)*70/20)*$L11 -> 2.825222274e+10 | AJ11: =IF($I11>353.55,AI11,0) -> 0 | AK11: =10^(LOG10($I11/353.55)/LOG10(2)*70/20)*$L11 -> 2.913100267e-12 | AL11: =IF($I11<353.55,AK11,0) -> 2.913100267e-12 | AM11: =AND($I11>353.55,$I11<707.1) -> FALSE | AN11: =IF($AM11=TRUE,$L11,0) -> 0 | AO11: =10^(LOG10(707.1/$I11)/LOG10(2)*70/20)*$L11 -> 8.934137281e+13 | AP11: =IF($I11>707.1,AO11,0) -> 0 | AQ11: =10^(LOG10($I11/707.1)/LOG10(2)*70/20)*$L11 -> 9.212031897e-16 | AR11: =IF($I11<707.1,AQ11,0) -> 9.212031897e-16 | AS11: =AND($I11>707.1,$I11<1414.2) -> FALSE | AT11: =IF($AS11=TRUE,$L11,0) -> 0 | AU11: =10^(LOG10(1414.2/$I11)/LOG10(2)*70/20)*$L11 -> 2.825222274e+17 | AV11: =IF($I11>1414.2,AU11,0) -> 0
B12: 1 | C12: 3 | D12: 106.3498426 | F12: 3 | G12: 1 | H12: 2 | I12: 51.30423057 | J12: 1 | K12: 0.3010526142 | L12: 0.3010526142 | M12: 4926.735368 | N12: 0 | O12: FALSE | P12: 0 | Q12: 0.05682142007 | R12: 0.05682142007 | S12: 1.554720657 | T12: 0 | U12: TRUE | V12: 0.3010526142 | W12: 184.3214008 | X12: 0 | Y12: 0.0004920309533 | Z12: 0.0004920309533 | AA12: FALSE | AB12: 0 | AC12: 531448.4873 | AD12: 0 | AE12: 1.705389679e-07 | AF12: 1.705389679e-07 | AG12: FALSE | AH12: 0 | AI12: 1680035104 | AJ12: 0 | AK12: 5.39468945e-11 | AL12: 5.39468945e-11 | AM12: FALSE | AN12: 0 | AO12: 5.312737478e+12 | AP12: 0 | AQ12: 1.705950593e-14 | AR12: 1.705950593e-14 | AS12: FALSE | AT12: 0 | AU12: 1.680035104e+16 | AV12: 0
B13: 1 | C13: 4 | D13: 183.4136994 | F13: 4 | G13: 2 | H13: 2 | I13: 73.10745345 | J13: 1 | K13: 0.5364793855 | L13: 0.5364793855 | M13: 539215.4569 | N13: 0 | O13: FALSE | P13: 0 | Q13: 0.001648656798 | R13: 0.001648656798 | S13: 170.1592123 | T13: 0 | U13: TRUE | V13: 0.5364793855 | W13: 5.348031252 | X13: 0 | Y13: 0.05385121698 | Z13: 0.05385121698 | AA13: FALSE | AB13: 0 | AC13: 15419.82161 | AD13: 0 | AE13: 1.866494557e-05 | AF13: 1.866494557e-05 | AG13: FALSE | AH13: 0 | AI13: 48745724.61 | AJ13: 0 | AK13: 5.904315371e-09 | AL13: 5.904315371e-09 | AM13: FALSE | AN13: 0 | AO13: 1.54147516e+11 | AP13: 0 | AQ13: 1.86710846e-12 | AR13: 1.86710846e-12 | AS13: FALSE | AT13: 0 | AU13: 4.874572461e+14 | AV13: 0
B14: 1 | C14: 5 | D14: 282.495801 | F14: 5 | G14: 3 | H14: 1 | I14: 76.41879105 | J14: 1 | K14: 0.3502400787 | L14: 0.3502400787 | M14: 589191.4128 | N14: 0 | O14: FALSE | P14: 0 | Q14: 0.0006430752396 | R14: 0.0006430752396 | S14: 185.9300312 | T14: 0 | U14: TRUE | V14: 0.3502400787 | W14: 2.086053618 | X14: 0 | Y14: 0.05884229432 | Z14: 0.05884229432 | AA14: FALSE | AB14: 0 | AC14: 6014.657199 | AD14: 0 | AE14: 2.039486352e-05 | AF14: 2.039486352e-05 | AG14: FALSE | AH14: 0 | AI14: 19013762.34 | AJ14: 0 | AK14: 6.451543388e-09 | AL14: 6.451543388e-09 | AM14: FALSE | AN14: 0 | AO14: 6.012679588e+10 | AP14: 0 | AQ14: 2.040157153e-12 | AR14: 2.040157153e-12 | AS14: FALSE | AT14: 0 | AU14: 1.901376234e+14 | AV14: 0
B15: 1 | C15: 6 | D15: 403.5961474 | F15: 6 | G15: 1 | H15: 3 | I15: 106.3498426 | J15: 1 | K15: 0.4019900295 | L15: 0.4019900295 | M15: 31547925.21 | N15: 0 | O15: FALSE | P15: 0 | Q15: 1.582144966e-05 | R15: 1.582144966e-05 | S15: 9955.5197 | T15: 0 | U15: FALSE | V15: 0 | W15: 0.05132275397 | X15: 0.05132275397 | Y15: 3.150677793 | Z15: 0 | AA15: TRUE | AB15: 0.4019900295 | AC15: 147.9773908 | AD15: 0 | AE15: 0.001092031579 | AF15: 0.001092031579 | AG15: FALSE | AH15: 0 | AI15: 467791.7374 | AJ15: 0 | AK15: 3.454442883e-07 | AL15: 3.454442883e-07 | AM15: FALSE | AN15: 0 | AO15: 1479287361 | AP15: 0 | AQ15: 1.092390756e-10 | AR15: 1.092390756e-10 | AS15: FALSE | AT15: 0 | AU15: 4.677917374e+12 | AV15: 0
B16: 1 | C16: 7 | D16: 546.7147387 | F16: 7 | G16: 3 | H16: 2 | I16: 109.4461583 | J16: 1 | K16: 0.6549601142 | L16: 0.6549601142 | M16: 71759983.84 | N16: 0 | O16: FALSE | P16: 0 | Q16: 1.84643442e-05 | R16: 1.84643442e-05 | S16: 22645.16376 | T16: 0 | U16: FALSE | V16: 0 | W16: 0.05989596497 | X16: 0.05989596497 | Y16: 7.166638884 | Z16: 0 | AA16: TRUE | AB16: 0.6549601142 | AC16: 172.6962786 | AD16: 0 | AE16: 0.002483972178 | AF16: 0.002483972178 | AG16: FALSE | AH16: 0 | AI16: 545934.0225 | AJ16: 0 | AK16: 7.857593291e-07 | AL16: 7.857593291e-07 | AM16: FALSE | AN16: 0 | AO16: 1726394963 | AP16: 0 | AQ16: 2.484789173e-10 | AR16: 2.484789173e-10 | AS16: FALSE | AT16: 0 | AU16: 5.459340225e+12 | AV16: 0
B17: 1 | C17: 8 | D17: 711.8515747 | F17: 8 | G17: 4 | H17: 1 | I17: 127.2929778 | J17: 1 | K17: 0.3372495593 | L17: 0.3372495593 | M17: 213982958.8 | N17: 0 | O17: FALSE | P17: 0 | Q17: 1.641761649e-06 | R17: 1.641761649e-06 | S17: 67526.20173 | T17: 0 | U17: FALSE | V17: 0 | W17: 0.005325664275 | X17: 0.005325664275 | Y17: 21.37038655 | Z17: 0 | AA17: TRUE | AB17: 0.3372495593 | AC17: 15.35533156 | AD17: 0 | AE17: 0.007407021125 | AF17: 0.007407021125 | AG17: FALSE | AH17: 0 | AI17: 48541.85622 | AJ17: 0 | AK17: 2.343076143e-06 | AL17: 2.343076143e-06 | AM17: FALSE | AN17: 0 | AO17: 153502827.5 | AP17: 0 | AQ17: 7.409457343e-10 | AR17: 7.409457343e-10 | AS17: FALSE | AT17: 0 | AU17: 4.854185622e+11 | AV17: 0
B18: 1 | C18: 9 | D18: 899.0066555 | F18: 9 | G18: 2 | H18: 3 | I18: 128.1530655 | J18: 1 | K18: 0.7163510757 | L18: 0.7163510757 | M18: 491537613.8 | N18: 0 | O18: FALSE | P18: 0 | Q18: 3.224642631e-06 | R18: 3.224642631e-06 | S18: 155113.6046 | T18: 0 | U18: FALSE | V18: 0 | W18: 0.01046032721 | X18: 0.01046032721 | Y18: 49.08965118 | Z18: 0 | AA18: TRUE | AB18: 0.7163510757 | AC18: 30.15995457 | AD18: 0 | AE18: 0.01701457681 | AF18: 0.01701457681 | AG18: FALSE | AH18: 0 | AI18: 95342.79169 | AJ18: 0 | AK18: 5.38225129e-06 | AL18: 5.38225129e-06 | AM18: FALSE | AN18: 0 | AO18: 301500380.2 | AP18: 0 | AQ18: 1.702017302e-09 | AR18: 1.702017302e-09 | AS18: FALSE | AT18: 0 | AU18: 9.534279169e+11 | AV18: 0
B19: 1 | C19: 10 | D19: 1108.179981 | F19: 10 | G19: 4 | H19: 2 | I19: 160.320345 | J19: 1 | K19: 0.6306674288 | L19: 0.6306674288 | M19: 5848501346 | N19: 0 | O19: FALSE | P19: 0 | Q19: 2.100596916e-07 | R19: 2.100596916e-07 | S19: 1845600.621 | T19: 0 | U19: FALSE | V19: 0 | W19: 0.0006814067044 | X19: 0.0006814067044 | Y19: 584.0873272 | Z19: 0 | AA19: TRUE | AB19: 0.6306674288 | AC19: 1.96467996 | AD19: 0 | AE19: 0.2024459016 | AF19: 0.2024459016 | AG19: FALSE | AH19: 0 | AI19: 6210.820766 | AJ19: 0 | AK19: 6.404007148e-05 | AL19: 6.404007148e-05 | AM19: FALSE | AN19: 0 | AO19: 19640339.76 | AP19: 0 | AQ19: 2.025124874e-08 | AR19: 2.025124874e-08 | AS19: FALSE | AT19: 0 | AU19: 6.210820766e+10 | AV19: 0
B20: 1 | C20: 11 | D20: 1339.371552 | F20: 11 | G20: 3 | H20: 3 | I20: 164.4917703 | J20: 1 | K20: 0.8745562178 | L20: 0.8745562178 | M20: 1.093287874e+10 | N20: 0 | O20: FALSE | P20: 0 | Q20: 2.160864057e-07 | R20: 2.160864057e-07 | S20: 3450068.077 | T20: 0 | U20: FALSE | V20: 0 | W20: 0.0007009565924 | X20: 0.0007009565924 | Y20: 1091.861922 | Z20: 0 | AA20: TRUE | AB20: 0.8745562178 | AC20: 2.021047578 | AD20: 0 | AE20: 0.3784416489 | AF20: 0.3784416489 | AG20: FALSE | AH20: 0 | AI20: 6389.012219 | AJ20: 0 | AK20: 0.0001197131187 | AL20: 0.0001197131187 | AM20: FALSE | AN20: 0 | AO20: 20203830.61 | AP20: 0 | AQ20: 3.785661209e-08 | AR20: 3.785661209e-08 | AS20: FALSE | AT20: 0 | AU20: 6.389012219e+10 | AV20: 0
B21: 1 | C21: 12 | D21: 1592.581367 | F21: 12 | G21: 1 | H21: 4 | I21: 183.4136994 | J21: 1 | K21: 0.4506815581 | L21: 0.4506815581 | M21: 1.998101586e+10 | N21: 0 | O21: FALSE | P21: 0 | Q21: 3.139847266e-08 | R21: 3.139847266e-08 | S21: 6305371.77 | T21: 0 | U21: FALSE | V21: 0 | W21: 0.0001018526192 | X21: 0.0001018526192 | Y21: 1995.495505 | Z21: 0 | AA21: FALSE | AB21: 0 | AC21: 0.2936686689 | AD21: 0.2936686689 | AE21: 0.6916429578 | AF21: 0 | AG21: TRUE | AH21: 0.4506815581 | AI21: 928.3565286 | AJ21: 0 | AK21: 0.0002187886448 | AL21: 0.0002187886448 | AM21: FALSE | AN21: 0 | AO21: 2935721.111 | AP21: 0 | AQ21: 6.918704438e-08 | AR21: 6.918704438e-08 | AS21: FALSE | AT21: 0 | AU21: 9283565286 | AV21: 0
B22: 1 | C22: 13 | D22: 1867.809427 | F22: 13 | G22: 5 | H22: 1 | I22: 192.7026464 | J22: 1 | K22: 0.2507426992 | L22: 0.2507426992 | M22: 1.974415362e+10 | N22: 0 | O22: FALSE | P22: 0 | Q22: 9.835684402e-09 | R22: 9.835684402e-09 | S22: 6230625.595 | T22: 0 | U22: FALSE | V22: 0 | W22: 3.190569901e-05 | X22: 3.190569901e-05 | Y22: 1971.840174 | Z22: 0 | AA22: FALSE | AB22: 0 | AC22: 0.09199276594 | AD22: 0.09199276594 | AE22: 0.6834439702 | AF22: 0 | AG22: TRUE | AH22: 0.2507426992 | AI22: 290.8110189 | AJ22: 0 | AK22: 0.0002161950445 | AL22: 0.0002161950445 | AM22: FALSE | AN22: 0 | AO22: 919625.1885 | AP22: 0 | AQ22: 6.836687595e-08 | AR22: 6.836687595e-08 | AS22: FALSE | AT22: 0 | AU22: 2908110189 | AV22: 0
B23: 1 | C23: 14 | D23: 2165.055732 | F23: 14 | G23: 2 | H23: 4 | I23: 205.2169223 | J23: 1 | K23: 0.8031199662 | L23: 0.8031199662 | M23: 1.314308315e+11 | N23: 0 | O23: FALSE | P23: 0 | Q23: 1.515828623e-08 | R23: 1.515828623e-08 | S23: 41475381.47 | T23: 0 | U23: FALSE | V23: 0 | W23: 4.917153686e-05 | X23: 4.917153686e-05 | Y23: 13125.94091 | Z23: 0 | AA23: FALSE | AB23: 0 | AC23: 0.1417748497 | AD23: 0.1417748497 | AE23: 4.549478851 | AF23: 0 | AG23: TRUE | AH23: 0.8031199662 | AI23: 448.1840291 | AJ23: 0 | AK23: 0.001439144722 | AL23: 0.001439144722 | AM23: FALSE | AN23: 0 | AO23: 1417282.343 | AP23: 0 | AQ23: 4.550975205e-07 | AR23: 4.550975205e-07 | AS23: FALSE | AT23: 0 | AU23: 4481840291 | AV23: 0
B24: 1 | C24: 15 | D24: 2484.320281 | F24: 15 | G24: 4 | H24: 3 | I24: 215.365957 | J24: 1 | K24: 0.8421186409 | L24: 0.8421186409 | M24: 2.415638434e+11 | N24: 0 | O24: FALSE | P24: 0 | Q24: 9.067783535e-09 | R24: 9.067783535e-09 | S24: 76229849.86 | T24: 0 | U24: FALSE | V24: 0 | W24: 2.941472707e-05 | X24: 2.941472707e-05 | Y24: 24124.87769 | Z24: 0 | AA24: FALSE | AB24: 0 | AC24: 0.0848106196 | AD24: 0.0848106196 | AE24: 8.361733575 | AF24: 0 | AG24: TRUE | AH24: 0.8421186409 | AI24: 268.1065457 | AJ24: 0 | AK24: 0.002645082028 | AL24: 0.002645082028 | AM24: FALSE | AN24: 0 | AO24: 847827.3399 | AP24: 0 | AQ24: 8.364483805e-07 | AR24: 8.364483805e-07 | AS24: FALSE | AT24: 0 | AU24: 2681065457 | AV24: 0
B25: 1 | C25: 16 | D25: 2825.603076 | F25: 16 | G25: 5 | H25: 2 | I25: 225.7300136 | J25: 1 | K25: 0.4688968421 | L25: 0.4688968421 | M25: 2.323079548e+11 | N25: 0 | O25: FALSE | P25: 0 | Q25: 2.923324644e-09 | R25: 2.923324644e-09 | S25: 73308986.41 | T25: 0 | U25: FALSE | V25: 0 | W25: 9.4828903e-06 | X25: 9.4828903e-06 | Y25: 23200.49606 | Z25: 0 | AA25: FALSE | AB25: 0 | AC25: 0.0273417394 | AD25: 0.0273417394 | AE25: 8.041340947 | AF25: 0 | AG25: TRUE | AH25: 0.4688968421 | AI25: 86.43374305 | AJ25: 0 | AK25: 0.002543731659 | AL25: 0.002543731659 | AM25: FALSE | AN25: 0 | AO25: 273327.4947 | AP25: 0 | AQ25: 8.043985798e-07 | AR25: 8.043985798e-07 | AS25: FALSE | AT25: 0 | AU25: 864337430.5 | AV25: 0
B26: 1 | C26: 17 | D26: 3188.904115 | F26: 17 | G26: 3 | H26: 4 | I26: 241.5556271 | J26: 1 | K26: 0.9804878976 | L26: 0.9804878976 | M26: 1.068019617e+12 | N26: 0 | O26: FALSE | P26: 0 | Q26: 2.780300632e-09 | R26: 2.780300632e-09 | S26: 337032951.1 | T26: 0 | U26: FALSE | V26: 0 | W26: 9.018938745e-06 | X26: 9.018938745e-06 | Y26: 106662.6622 | Z26: 0 | AA26: FALSE | AB26: 0 | AC26: 0.02600404149 | AD26: 0.02600404149 | AE26: 36.96950405 | AF26: 0 | AG26: TRUE | AH26: 0.9804878976 | AI26: 82.20496172 | AJ26: 0 | AK26: 0.01169462885 | AL26: 0.01169462885 | AM26: FALSE | AN26: 0 | AO26: 259954.914 | AP26: 0 | AQ26: 3.698166357e-06 | AR26: 3.698166357e-06 | AS26: FALSE | AT26: 0 | AU26: 822049617.2 | AV26: 0
B27: 1 | C27: 18 | D27: 3574.223399 | F27: 18 | G27: 6 | H27: 1 | I27: 272.647797 | J27: 1 | K27: 0.1095769515 | L27: 0.1095769515 | M27: 4.878056623e+11 | N27: 0 | O27: FALSE | P27: 0 | Q27: 7.602879439e-11 | R27: 7.602879439e-11 | S27: 153935919.7 | T27: 0 | U27: FALSE | V27: 0 | W27: 2.466276602e-07 | X27: 2.466276602e-07 | Y27: 48716.94279 | Z27: 0 | AA27: FALSE | AB27: 0 | AC27: 0.0007110942971 | AD27: 0.0007110942971 | AE27: 16.88539529 | AF27: 0 | AG27: TRUE | AH27: 0.1095769515 | AI27: 2.247938248 | AJ27: 0 | AK27: 0.005341387072 | AL27: 0.005341387072 | AM27: FALSE | AN27: 0 | AO27: 7108.604903 | AP27: 0 | AQ27: 1.689094901e-06 | AR27: 1.689094901e-06 | AS27: FALSE | AT27: 0 | AU27: 22479382.48 | AV27: 0
B28: 1 | C28: 19 | D28: 3981.560928 | F28: 19 | G28: 5 | H28: 3 | I28: 280.7756256 | J28: 1 | K28: 0.6261093461 | L28: 0.6261093461 | M28: 3.921976741e+12 | N28: 0 | O28: FALSE | P28: 0 | Q28: 3.087321609e-10 | R28: 3.087321609e-10 | S28: 1237650858 | T28: 0 | U28: FALSE | V28: 0 | W28: 1.001487543e-06 | X28: 1.001487543e-06 | Y28: 391686.1391 | Z28: 0 | AA28: FALSE | AB28: 0 | AC28: 0.002887559651 | AD28: 0.002887559651 | AE28: 135.7592433 | AF28: 0 | AG28: TRUE | AH28: 0.6261093461 | AI28: 9.12826303 | AJ28: 0 | AK28: 0.04294496247 | AL28: 0.04294496247 | AM28: FALSE | AN28: 0 | AO28: 28866.10225 | AP28: 0 | AQ28: 1.358038954e-05 | AR28: 1.358038954e-05 | AS28: FALSE | AT28: 0 | AU28: 91282630.3 | AV28: 0
B29: 1 | C29: 20 | D29: 4410.916702 | F29: 20 | G29: 1 | H29: 5 | I29: 282.495801 | J29: 1 | K29: 0.4407988537 | L29: 0.4407988537 | M29: 2.964396678e+12 | N29: 0 | O29: FALSE | P29: 0 | Q29: 2.024562127e-10 | R29: 2.024562127e-10 | S29: 935469110.4 | T29: 0 | U29: FALSE | V29: 0 | W29: 6.567419939e-07 | X29: 6.567419939e-07 | Y29: 296053.028 | Z29: 0 | AA29: FALSE | AB29: 0 | AC29: 0.001893564924 | AD29: 0.001893564924 | AE29: 102.6126049 | AF29: 0 | AG29: TRUE | AH29: 0.4407988537 | AI29: 5.986009218 | AJ29: 0 | AK29: 0.03245962751 | AL29: 0.03245962751 | AM29: FALSE | AN29: 0 | AO29: 18929.42322 | AP29: 0 | AQ29: 1.026463549e-05 | AR29: 1.026463549e-05 | AS29: FALSE | AT29: 0 | AU29: 59860092.18 | AV29: 0
B30: 2 | C30: 1 | D30: 40.08008625 | F30: 21 | G30: 4 | H30: 4 | I30: 292.4298138 | J30: 1 | K30: 0.94412128 | L30: 0.94412128 | M30: 9.489363451e+12 | N30: 0 | O30: FALSE | P30: 0 | Q30: 2.901382622e-10 | R30: 2.901382622e-10 | S30: 2994540660 | T30: 0 | U30: FALSE | V30: 0 | W30: 9.411713194e-07 | X30: 9.411713194e-07 | Y30: 947698.6679 | Z30: 0 | AA30: FALSE | AB30: 0 | AC30: 0.002713651654 | AD30: 0.002713651654 | AE30: 328.4743604 | AF30: 0 | AG30: TRUE | AH30: 0.94412128 | AI30: 8.578498476 | AJ30: 0 | AK30: 0.1039068776 | AL30: 0.1039068776 | AM30: FALSE | AN30: 0 | AO30: 27127.59409 | AP30: 0 | AQ30: 3.285823979e-05 | AR30: 3.285823979e-05 | AS30: FALSE | AT30: 0 | AU30: 85784984.76 | AV30: 0
B31: 2 | C31: 2 | D31: 73.10745345 | F31: 22 | G31: 2 | H31: 5 | I31: 304.2990239 | J31: 1 | K31: 0.785508868 | L31: 0.785508868 | M31: 1.25388568e+13 | N31: 0 | O31: FALSE | P31: 0 | Q31: 1.519955088e-10 | R31: 1.519955088e-10 | S31: 3956863567 | T31: 0 | U31: FALSE | V31: 0 | W31: 4.930539409e-07 | X31: 4.930539409e-07 | Y31: 1252250.264 | Z31: 0 | AA31: FALSE | AB31: 0 | AC31: 0.001421607963 | AD31: 0.001421607963 | AE31: 434.032587 | AF31: 0 | AG31: TRUE | AH31: 0.785508868 | AI31: 4.494040982 | AJ31: 0 | AK31: 0.1372982989 | AL31: 0.1372982989 | AM31: FALSE | AN31: 0 | AO31: 14211.4054 | AP31: 0 | AQ31: 4.341753432e-05 | AR31: 4.341753432e-05 | AS31: FALSE | AT31: 0 | AU31: 44940409.82 | AV31: 0
B32: 2 | C32: 3 | D32: 128.1530655 | F32: 23 | G32: 6 | H32: 2 | I32: 305.6751642 | J32: 1 | K32: 0.204912393 | L32: 0.204912393 | M32: 3.447138969e+12 | N32: 0 | O32: FALSE | P32: 0 | Q32: 3.762393121e-11 | R32: 3.762393121e-11 | S32: 1087807191 | T32: 0 | U32: FALSE | V32: 0 | W32: 1.220472085e-07 | X32: 1.220472085e-07 | Y32: 344264.294 | Z32: 0 | AA32: FALSE | AB32: 0 | AC32: 0.0003518951357 | AD32: 0.0003518951357 | AE32: 119.3227316 | AF32: 0 | AG32: TRUE | AH32: 0.204912393 | AI32: 1.112424242 | AJ32: 0 | AK32: 0.03774557154 | AL32: 0.03774557154 | AM32: FALSE | AN32: 0 | AO32: 3517.79433 | AP32: 0 | AQ32: 1.193619776e-05 | AR32: 1.193619776e-05 | AS32: FALSE | AT32: 0 | AU32: 11124242.42 | AV32: 0
B33: 2 | C33: 4 | D33: 205.2169223 | F33: 24 | G33: 3 | H33: 5 | I33: 340.6377287 | J33: 1 | K33: 0.9589874128 | L33: 0.9589874128 | M33: 5.682502158e+13 | N33: 0 | O33: FALSE | P33: 0 | Q33: 4.998880071e-11 | R33: 4.998880071e-11 | S33: 1.793216568e+10 | T33: 0 | U33: FALSE | V33: 0 | W33: 1.621572597e-07 | X33: 1.621572597e-07 | Y33: 5675090.593 | Z33: 0 | AA33: FALSE | AB33: 0 | AC33: 0.0004675432695 | AD33: 0.0004675432695 | AE33: 1966.998389 | AF33: 0 | AG33: TRUE | AH33: 0.9589874128 | AI33: 1.478015507 | AJ33: 0 | AK33: 0.6222240927 | AL33: 0.6222240927 | AM33: FALSE | AN33: 0 | AO33: 4673.895419 | AP33: 0 | AQ33: 0.0001967645348 | AR33: 0.0001967645348 | AS33: FALSE | AT33: 0 | AU33: 14780155.07 | AV33: 0
B34: 2 | C34: 5 | D34: 304.2990239 | F34: 25 | G34: 5 | H34: 4 | I34: 357.8394825 | J34: 1 | K34: 0.701947598 | L34: 0.701947598 | M34: 7.375502084e+13 | N34: 0 | O34: FALSE | P34: 0 | Q34: 2.063499213e-11 | R34: 2.063499213e-11 | S34: 2.327473386e+10 | T34: 0 | U34: FALSE | V34: 0 | W34: 6.693726855e-08 | X34: 6.693726855e-08 | Y34: 7365882.376 | Z34: 0 | AA34: FALSE | AB34: 0 | AC34: 0.0001929982626 | AD34: 0.0001929982626 | AE34: 2553.030393 | AF34: 0 | AG34: FALSE | AH34: 0 | AI34: 0.610113424 | AJ34: 0.610113424 | AK34: 0.8076046369 | AL34: 0 | AM34: TRUE | AN34: 0.701947598 | AO34: 1929.348051 | AP34: 0 | AQ34: 0.0002553870102 | AR34: 0.0002553870102 | AS34: FALSE | AT34: 0 | AU34: 6101134.24 | AV34: 0
B35: 2 | C35: 6 | D35: 425.3993703 | F35: 26 | G35: 6 | H35: 3 | I35: 360.7207762 | J35: 1 | K35: 0.273615757 | L35: 0.273615757 | M35: 3.155896858e+13 | N35: 0 | O35: FALSE | P35: 0 | Q35: 7.327332849e-12 | R35: 7.327332849e-12 | S35: 9959004635 | T35: 0 | U35: FALSE | V35: 0 | W35: 2.376892821e-08 | X35: 2.376892821e-08 | Y35: 3151780.689 | Z35: 0 | AA35: FALSE | AB35: 0 | AC35: 6.853225339e-05 | AD35: 6.853225339e-05 | AE35: 1092.413846 | AF35: 0 | AG35: FALSE | AH35: 0 | AI35: 0.2166467573 | AJ35: 0.2166467573 | AK35: 0.3455652113 | AL35: 0 | AM35: TRUE | AN35: 0.273615757 | AO35: 685.0972009 | AP35: 0 | AQ35: 0.0001092773148 | AR35: 0.0001092773148 | AS35: FALSE | AT35: 0 | AU35: 2166467.573 | AV35: 0
B36: 2 | C36: 7 | D36: 568.5179616 | F36: 27 | G36: 7 | H36: 1 | I36: 367.1284295 | J36: 1 | K36: 0.05547525145 | L36: 0.05547525145 | M36: 7.852159068e+12 | N36: 0 | O36: FALSE | P36: 0 | Q36: 1.210586937e-12 | R36: 1.210586937e-12 | S36: 2477891138 | T36: 0 | U36: FALSE | V36: 0 | W36: 3.926988794e-09 | X36: 3.926988794e-09 | Y36: 784191.7666 | Z36: 0 | AA36: FALSE | AB36: 0 | AC36: 1.132257158e-05 | AD36: 1.132257158e-05 | AE36: 271.802523 | AF36: 0 | AG36: FALSE | AH36: 0 | AI36: 0.0357933425 | AJ36: 0.0357933425 | AK36: 0.08597977467 | AL36: 0 | AM36: TRUE | AN36: 0.05547525145 | AO36: 113.1884874 | AP36: 0 | AQ36: 2.718919207e-05 | AR36: 2.718919207e-05 | AS36: FALSE | AT36: 0 | AU36: 357933.425 | AV36: 0
B37: 2 | C37: 8 | D37: 733.6547976 | F37: 28 | G37: 4 | H37: 5 | I37: 391.5119154 | J37: 1 | K37: 0.9234182552 | L37: 0.9234182552 | M37: 2.76050215e+14 | N37: 0 | O37: FALSE | P37: 0 | Q37: 9.541031625e-12 | R37: 9.541031625e-12 | S37: 8.711264958e+10 | T37: 0 | U37: FALSE | V37: 0 | W37: 3.094988319e-08 | X37: 3.094988319e-08 | Y37: 27569016.87 | Z37: 0 | AA37: FALSE | AB37: 0 | AC37: 8.923689021e-05 | AD37: 8.923689021e-05 | AE37: 9555.479489 | AF37: 0 | AG37: FALSE | AH37: 0 | AI37: 0.2820990401 | AJ37: 0.2820990401 | AK37: 3.022701792 | AL37: 0 | AM37: TRUE | AN37: 0.9234182552 | AO37: 892.0754925 | AP37: 0 | AQ37: 0.000955862235 | AR37: 0.000955862235 | AS37: FALSE | AT37: 0 | AU37: 2820990.401 | AV37: 0
B38: 2 | C38: 9 | D38: 920.8098784 | F38: 29 | G38: 7 | H38: 2 | I38: 400.1557967 | J38: 1 | K38: 0.103740489 | L38: 0.103740489 | M38: 3.997675134e+13 | N38: 0 | O38: FALSE | P38: 0 | Q38: 8.315255457e-13 | R38: 8.315255457e-13 | S38: 1.261538858e+10 | T38: 0 | U38: FALSE | V38: 0 | W38: 2.697362248e-09 | X38: 2.697362248e-09 | Y38: 3992461.052 | Z38: 0 | AA38: FALSE | AB38: 0 | AC38: 7.777225435e-06 | AD38: 7.777225435e-06 | AE38: 1383.795435 | AF38: 0 | AG38: FALSE | AH38: 0 | AI38: 0.02458565986 | AJ38: 0.02458565986 | AK38: 0.4377384669 | AL38: 0 | AM38: TRUE | AN38: 0.103740489 | AO38: 77.74668294 | AP38: 0 | AQ38: 0.0001384250575 | AR38: 0.0001384250575 | AS38: FALSE | AT38: 0 | AU38: 245856.5986 | AV38: 0
B39: 2 | C39: 10 | D39: 1129.983204 | F39: 30 | G39: 1 | H39: 6 | I39: 403.5961474 | J39: 1 | K39: 0.3736263529 | L39: 0.3736263529 | M39: 1.590463806e+14 | N39: 0 | O39: FALSE | P39: 0 | Q39: 2.711051229e-12 | R39: 2.711051229e-12 | S39: 5.018996859e+10 | T39: 0 | U39: FALSE | V39: 0 | W39: 8.79430256e-09 | X39: 8.79430256e-09 | Y39: 15883893.99 | Z39: 0 | AA39: FALSE | AB39: 0 | AC39: 2.535635457e-05 | AD39: 2.535635457e-05 | AE39: 5505.391212 | AF39: 0 | AG39: FALSE | AH39: 0 | AI39: 0.08015746927 | AJ39: 0.08015746927 | AK39: 1.741530177 | AL39: 0 | AM39: TRUE | AN39: 0.3736263529 | AO39: 253.4801744 | AP39: 0 | AQ39: 0.0005507201972 | AR39: 0.0005507201972 | AS39: FALSE | AT39: 0 | AU39: 801574.6927 | AV39: 0
B40: 2 | C40: 11 | D40: 1361.174775 | F40: 31 | G40: 2 | H40: 6 | I40: 425.3993703 | J40: 1 | K40: 0.6658066623 | L40: 0.6658066623 | M40: 5.225208897e+14 | N40: 0 | O40: FALSE | P40: 0 | Q40: 2.620469618e-12 | R40: 2.620469618e-12 | S40: 1.64890939e+11 | T40: 0 | U40: FALSE | V40: 0 | W40: 8.500467428e-09 | X40: 8.500467428e-09 | Y40: 52183937.7 | Z40: 0 | AA40: FALSE | AB40: 0 | AC40: 2.450914835e-05 | AD40: 2.450914835e-05 | AE40: 18087.06305 | AF40: 0 | AG40: FALSE | AH40: 0 | AI40: 0.07747924886 | AJ40: 0.07747924886 | AK40: 5.721512768 | AL40: 0 | AM40: TRUE | AN40: 0.6658066623 | AO40: 245.0108978 | AP40: 0 | AQ40: 0.001809301201 | AR40: 0.001809301201 | AS40: FALSE | AT40: 0 | AU40: 774792.4886 | AV40: 0
B41: 2 | C41: 12 | D41: 1614.38459 | F41: 32 | G41: 6 | H41: 4 | I41: 437.784633 | J41: 1 | K41: 0.3067577965 | L41: 0.3067577965 | M41: 3.360958025e+14 | N41: 0 | O41: FALSE | P41: 0 | Q41: 8.647979345e-13 | R41: 8.647979345e-13 | S41: 1.060611232e+11 | T41: 0 | U41: FALSE | V41: 0 | W41: 2.805293611e-09 | X41: 2.805293611e-09 | Y41: 33565744 | Z41: 0 | AA41: FALSE | AB41: 0 | AC41: 8.088420767e-06 | AD41: 8.088420767e-06 | AE41: 11633.95778 | AF41: 0 | AG41: FALSE | AH41: 0 | AI41: 0.02556942234 | AJ41: 0.02556942234 | AK41: 3.680190521 | AL41: 0 | AM41: TRUE | AN41: 0.3067577965 | AO41: 80.85761306 | AP41: 0 | AQ41: 0.001163778427 | AR41: 0.001163778427 | AS41: FALSE | AT41: 0 | AU41: 255694.2234 | AV41: 0
B42: 2 | C42: 13 | D42: 1889.61265 | F42: 33 | G42: 7 | H42: 3 | I42: 455.2014087 | J42: 1 | K42: 0.1385227706 | L42: 0.1385227706 | M42: 2.388810098e+14 | N42: 0 | O42: FALSE | P42: 0 | Q42: 2.481116894e-13 | R42: 2.481116894e-13 | S42: 7.538323308e+10 | T42: 0 | U42: FALSE | V42: 0 | W42: 8.048425061e-10 | X42: 8.048425061e-10 | Y42: 23856944.25 | Z42: 0 | AA42: FALSE | AB42: 0 | AC42: 2.320578786e-06 | AD42: 2.320578786e-06 | AE42: 8268.867278 | AF42: 0 | AG42: FALSE | AH42: 0 | AI42: 0.007335901626 | AJ42: 0.007335901626 | AK42: 2.615705467 | AL42: 0 | AM42: TRUE | AN42: 0.1385227706 | AO42: 23.19815783 | AP42: 0 | AQ42: 0.0008271586963 | AR42: 0.0008271586963 | AS42: FALSE | AT42: 0 | AU42: 73359.01626 | AV42: 0
B43: 2 | C43: 14 | D43: 2186.858955 | F43: 34 | G43: 5 | H43: 5 | I43: 456.9215841 | J43: 1 | K43: 0.6865550432 | L43: 0.6865550432 | M43: 1.237033099e+15 | N43: 0 | O43: FALSE | P43: 0 | Q43: 1.176944318e-12 | R43: 1.176944318e-12 | S43: 3.903682194e+11 | T43: 0 | U43: FALSE | V43: 0 | W43: 3.817856452e-09 | X43: 3.817856452e-09 | Y43: 123541966.4 | Z43: 0 | AA43: FALSE | AB43: 0 | AC43: 1.10079135e-05 | AD43: 1.10079135e-05 | AE43: 42819.90654 | AF43: 0 | AG43: FALSE | AH43: 0 | AI43: 0.03479863345 | AJ43: 0.03479863345 | AK43: 13.54529706 | AL43: 0 | AM43: TRUE | AN43: 0.6865550432 | AO43: 110.0429412 | AP43: 0 | AQ43: 0.00428339903 | AR43: 0.00428339903 | AS43: FALSE | AT43: 0 | AU43: 347986.3345 | AV43: 0
B44: 2 | C44: 15 | D44: 2506.123504 | F44: 35 | G44: 3 | H44: 6 | I44: 461.7380751 | J44: 1 | K44: 0.8128491408 | L44: 0.8128491408 | M44: 1.654490542e+15 | N44: 0 | O44: FALSE | P44: 0 | Q44: 1.233508443e-12 | R44: 1.233508443e-12 | S44: 5.22104483e+11 | T44: 0 | U44: FALSE | V44: 0 | W44: 4.001343223e-09 | X44: 4.001343223e-09 | Y44: 165233262.5 | Z44: 0 | AA44: FALSE | AB44: 0 | AC44: 1.153695553e-05 | AD44: 1.153695553e-05 | AE44: 57270.19787 | AF44: 0 | AG44: FALSE | AH44: 0 | AI44: 0.03647106115 | AJ44: 0.03647106115 | AK44: 18.11638337 | AL44: 0 | AM44: TRUE | AN44: 0.8128491408 | AO44: 115.3316219 | AP44: 0 | AQ44: 0.005728903442 | AR44: 0.005728903442 | AS44: FALSE | AT44: 0 | AU44: 364710.6115 | AV44: 0
B45: 2 | C45: 16 | D45: 2847.406299 | F45: 36 | G45: 8 | H45: 1 | I45: 476.1445439 | J45: 1 | K45: 0.2084345179 | L45: 0.2084345179 | M45: 606402697627423 | N45: 0 | O45: FALSE | P45: 0 | Q45: 2.212914696e-13 | R45: 2.212914696e-13 | S45: 1.913613641e+11 | T45: 0 | U45: FALSE | V45: 0 | W45: 7.178411522e-10 | X45: 7.178411522e-10 | Y45: 60561177.97 | Z45: 0 | AA45: FALSE | AB45: 0 | AC45: 2.069730334e-06 | AD45: 2.069730334e-06 | AE45: 20990.63223 | AF45: 0 | AG45: FALSE | AH45: 0 | AI45: 0.006542909992 | AJ45: 0.006542909992 | AK45: 6.64000396 | AL45: 0 | AM45: TRUE | AN45: 0.2084345179 | AO45: 20.6904981 | AP45: 0 | AQ45: 0.002099753619 | AR45: 0.002099753619 | AS45: FALSE | AT45: 0 | AU45: 65429.09992 | AV45: 0
B46: 2 | C46: 17 | D46: 3210.707338 | F46: 37 | G46: 8 | H46: 2 | I46: 509.1719111 | J46: 1 | K46: 0.3897791943 | L46: 0.3897791943 | M46: 2.473127184e+15 | N46: 0 | O46: FALSE | P46: 0 | Q46: 1.897480709e-13 | R46: 1.897480709e-13 | S46: 7.804401156e+11 | T46: 0 | U46: FALSE | V46: 0 | W46: 6.155184114e-10 | X46: 6.155184114e-10 | Y46: 246990153.7 | Z46: 0 | AA46: FALSE | AB46: 0 | AC46: 1.774706178e-06 | AD46: 1.774706178e-06 | AE46: 85607.30908 | AF46: 0 | AG46: FALSE | AH46: 0 | AI46: 0.005610268445 | AJ46: 0.005610268445 | AK46: 27.08031207 | AL46: 0 | AM46: TRUE | AN46: 0.3897791943 | AO46: 17.74122657 | AP46: 0 | AQ46: 0.008563546589 | AR46: 0.008563546589 | AS46: FALSE | AT46: 0 | AU46: 56102.68445 | AV46: 0
B47: 2 | C47: 18 | D47: 3596.026622 | F47: 38 | G47: 4 | H47: 6 | I47: 512.6122619 | J47: 1 | K47: 0.7827002997 | L47: 0.7827002997 | M47: 5370643678481988 | N47: 0 | O47: FALSE | P47: 0 | Q47: 3.523312576e-13 | R47: 3.523312576e-13 | S47: 1.694803972e+12 | T47: 0 | U47: FALSE | V47: 0 | W47: 1.142917422e-09 | X47: 1.142917422e-09 | Y47: 536363886.4 | Z47: 0 | AA47: FALSE | AB47: 0 | AC47: 3.295340271e-06 | AD47: 3.295340271e-06 | AE47: 185904.8562 | AF47: 0 | AG47: FALSE | AH47: 0 | AI47: 0.01041735459 | AJ47: 0.01041735459 | AK47: 58.80761321 | AL47: 0 | AM47: TRUE | AN47: 0.7827002997 | AO47: 32.94256768 | AP47: 0 | AQ47: 0.01859660015 | AR47: 0.01859660015 | AS47: FALSE | AT47: 0 | AU47: 104173.5459 | AV47: 0
B48: 2 | C48: 19 | D48: 4003.364151 | F48: 39 | G48: 7 | H48: 4 | I48: 532.2652655 | J48: 1 | K48: 0.1553015088 | L48: 0.1553015088 | M48: 1650355600745512 | N48: 0 | O48: FALSE | P48: 0 | Q48: 4.513987291e-14 | R48: 4.513987291e-14 | S48: 5.207996274e+11 | T48: 0 | U48: FALSE | V48: 0 | W48: 1.464279596e-10 | X48: 1.464279596e-10 | Y48: 164820307.8 | Z48: 0 | AA48: FALSE | AB48: 0 | AC48: 4.221914402e-07 | AD48: 4.221914402e-07 | AE48: 57127.06687 | AF48: 0 | AG48: FALSE | AH48: 0 | AI48: 0.001334647585 | AJ48: 0.001334647585 | AK48: 18.07110649 | AL48: 0 | AM48: TRUE | AN48: 0.1553015088 | AO48: 4.220526243 | AP48: 0 | AQ48: 0.005714585635 | AR48: 0.005714585635 | AS48: FALSE | AT48: 0 | AU48: 13346.47585 | AV48: 0
B49: 2 | C49: 20 | D49: 4432.719925 | F49: 40 | G49: 6 | H49: 5 | I49: 536.8667347 | J49: 1 | K49: 0.3000311033 | L49: 0.3000311033 | M49: 3523978186035326 | N49: 0 | O49: FALSE | P49: 0 | Q49: 7.890160902e-14 | R49: 7.890160902e-14 | S49: 1.112055199e+12 | T49: 0 | U49: FALSE | V49: 0 | W49: 2.559467025e-10 | X49: 2.559467025e-10 | Y49: 351938193.7 | Z49: 0 | AA49: FALSE | AB49: 0 | AC49: 7.379636184e-07 | AD49: 7.379636184e-07 | AE49: 121982.5215 | AF49: 0 | AG49: FALSE | AH49: 0 | AI49: 0.002332878565 | AJ49: 0.002332878565 | AK49: 38.58694759 | AL49: 0 | AM49: TRUE | AN49: 0.3000311033 | AO49: 7.37720977 | AP49: 0 | AQ49: 0.01220226423 | AR49: 0.01220226423 | AS49: FALSE | AT49: 0 | AU49: 23328.78565 | AV49: 0
B50: 3 | C50: 1 | D50: 76.41879105 | F50: 41 | G50: 1 | H50: 7 | I50: 546.7147387 | J50: 1 | K50: 0.257894339 | L50: 0.257894339 | M50: 3.741912517e+15 | N50: 0 | O50: FALSE | P50: 0 | Q50: 5.490052554e-14 | R50: 5.490052554e-14 | S50: 1.180828328e+12 | T50: 0 | U50: FALSE | V50: 0 | W50: 1.780902652e-10 | X50: 1.780902652e-10 | Y50: 373703202.1 | Z50: 0 | AA50: FALSE | AB50: 0 | AC50: 5.13482437e-07 | AD50: 5.13482437e-07 | AE50: 129526.3193 | AF50: 0 | AG50: FALSE | AH50: 0 | AI50: 0.001623240145 | AJ50: 0.001623240145 | AK50: 40.97329056 | AL50: 0 | AM50: TRUE | AN50: 0.257894339 | AO50: 5.133136047 | AP50: 0 | AQ50: 0.01295689214 | AR50: 0.01295689214 | AS50: FALSE | AT50: 0 | AU50: 16232.40145 | AV50: 0
B51: 3 | C51: 2 | D51: 109.4461583 | F51: 42 | G51: 8 | H51: 3 | I51: 564.2175231 | J51: 1 | K51: 0.5204650032 | L51: 0.5204650032 | M51: 1.089342797e+16 | N51: 0 | O51: FALSE | P51: 0 | Q51: 7.680774441e-14 | R51: 7.680774441e-14 | S51: 3.437618673e+12 | T51: 0 | U51: FALSE | V51: 0 | W51: 2.491544741e-10 | X51: 2.491544741e-10 | Y51: 1087921991 | Z51: 0 | AA51: FALSE | AB51: 0 | AC51: 7.183797857e-07 | AD51: 7.183797857e-07 | AE51: 377076.0605 | AF51: 0 | AG51: FALSE | AH51: 0 | AI51: 0.002270969411 | AJ51: 0.002270969411 | AK51: 119.2811397 | AL51: 0 | AM51: TRUE | AN51: 0.5204650032 | AO51: 7.181435835 | AP51: 0 | AQ51: 0.03772000833 | AR51: 0.03772000833 | AS51: FALSE | AT51: 0 | AU51: 22709.69411 | AV51: 0
B52: 3 | C52: 3 | D52: 164.4917703 | F52: 43 | G52: 2 | H52: 7 | I52: 568.5179616 | J52: 1 | K52: 0.4595708192 | L52: 0.4595708192 | M52: 1.050669386e+16 | N52: 0 | O52: FALSE | P52: 0 | Q52: 6.209052403e-14 | R52: 6.209052403e-14 | S52: 3.315577713e+12 | T52: 0 | U52: FALSE | V52: 0 | W52: 2.014136984e-10 | X52: 2.014136984e-10 | Y52: 1049299021 | Z52: 0 | AA52: FALSE | AB52: 0 | AC52: 5.807302075e-07 | AD52: 5.807302075e-07 | AE52: 363689.2573 | AF52: 0 | AG52: FALSE | AH52: 0 | AI52: 0.001835826346 | AJ52: 0.001835826346 | AK52: 115.0464685 | AL52: 0 | AM52: TRUE | AN52: 0.4595708192 | AO52: 5.805392643 | AP52: 0 | AQ52: 0.03638088772 | AR52: 0.03638088772 | AS52: FALSE | AT52: 0 | AU52: 18358.26346 | AV52: 0
B53: 3 | C53: 4 | D53: 241.5556271 | F53: 44 | G53: 5 | H53: 6 | I53: 578.0219305 | J53: 1 | K53: 0.5819322231 | L53: 0.5819322231 | M53: 1.613244122e+16 | N53: 0 | O53: FALSE | P53: 0 | Q53: 6.48382424e-14 | R53: 6.48382424e-14 | S53: 5.090884274e+12 | T53: 0 | U53: FALSE | V53: 0 | W53: 2.103269444e-10 | X53: 2.103269444e-10 | Y53: 1611140002 | Z53: 0 | AA53: FALSE | AB53: 0 | AC53: 6.064295084e-07 | AD53: 6.064295084e-07 | AE53: 558424.5284 | AF53: 0 | AG53: FALSE | AH53: 0 | AI53: 0.00191706795 | AJ53: 0.00191706795 | AK53: 176.6474225 | AL53: 0 | AM53: TRUE | AN53: 0.5819322231 | AO53: 6.062301152 | AP53: 0 | AQ53: 0.0558608198 | AR53: 0.0558608198 | AS53: FALSE | AT53: 0 | AU53: 19170.6795 | AV53: 0
B54: 3 | C54: 5 | D54: 340.6377287 | F54: 45 | G54: 9 | H54: 1 | I54: 599.6961402 | J54: 1 | K54: 0.3159575707 | L54: 0.3159575707 | M54: 1.343793544e+16 | N54: 0 | O54: FALSE | P54: 0 | Q54: 2.294623805e-14 | R54: 2.294623805e-14 | S54: 4.240584132e+12 | T54: 0 | U54: FALSE | V54: 0 | W54: 7.443465395e-11 | X54: 7.443465395e-11 | Y54: 1342040863 | Z54: 0 | AA54: FALSE | AB54: 0 | AC54: 2.14615254e-07 | AD54: 2.14615254e-07 | AE54: 465154.1985 | AF54: 0 | AG54: FALSE | AH54: 0 | AI54: 0.0006784498765 | AJ54: 0.0006784498765 | AK54: 147.1430535 | AL54: 0 | AM54: TRUE | AN54: 0.3159575707 | AO54: 2.145446888 | AP54: 0 | AQ54: 0.04653071908 | AR54: 0.04653071908 | AS54: FALSE | AT54: 0 | AU54: 6784.498765 | AV54: 0
B55: 3 | C55: 6 | D55: 461.7380751 | F55: 46 | G55: 3 | H55: 7 | I55: 604.8566664 | J55: 1 | K55: 0.5610663976 | L55: 0.5610663976 | M55: 2.636232489e+16 | N55: 0 | O55: FALSE | P55: 0 | Q55: 3.688343192e-14 | R55: 3.688343192e-14 | S55: 8.319109514e+12 | T55: 0 | U55: FALSE | V55: 0 | W55: 1.196451237e-10 | X55: 1.196451237e-10 | Y55: 2632794108 | Z55: 0 | AA55: FALSE | AB55: 0 | AC55: 3.449692752e-07 | AD55: 3.449692752e-07 | AE55: 912531.9998 | AF55: 0 | AG55: FALSE | AH55: 0 | AI55: 0.00109052995 | AJ55: 0.00109052995 | AK55: 288.6628677 | AL55: 0 | AM55: TRUE | AN55: 0.5610663976 | AO55: 3.448558498 | AP55: 0 | AQ55: 0.09128321377 | AR55: 0.09128321377 | AS55: FALSE | AT55: 0 | AU55: 10905.2995 | AV55: 0
B56: 3 | C56: 7 | D56: 604.8566664 | F56: 47 | G56: 7 | H56: 5 | I56: 631.3473671 | J56: 1 | K56: 0.1518960025 | L56: 0.1518960025 | M56: 1.174784485e+16 | N56: 0 | O56: FALSE | P56: 0 | Q56: 6.066259715e-15 | R56: 6.066259715e-15 | S56: 3707245407568 | T56: 0 | U56: FALSE | V56: 0 | W56: 1.967816867e-11 | X56: 1.967816867e-11 | Y56: 1173252239 | Z56: 0 | AA56: FALSE | AB56: 0 | AC56: 5.673748641e-08 | AD56: 5.673748641e-08 | AE56: 406651.7047 | AF56: 0 | AG56: FALSE | AH56: 0 | AI56: 0.0001793606928 | AJ56: 0.0001793606928 | AK56: 128.6368557 | AL56: 0 | AM56: TRUE | AN56: 0.1518960025 | AO56: 0.5671883121 | AP56: 0 | AQ56: 0.04067854552 | AR56: 0.04067854552 | AS56: FALSE | AT56: 0 | AU56: 1793.606928 | AV56: 0
B57: 3 | C57: 8 | D57: 769.9935024 | F57: 48 | G57: 9 | H57: 2 | I57: 632.7235074 | J57: 1 | K57: 0.5908507312 | L57: 0.5908507312 | M57: 4.686880121e+16 | N57: 0 | O57: FALSE | P57: 0 | Q57: 2.300690623e-14 | R57: 2.300690623e-14 | S57: 1.479029986e+13 | T57: 0 | U57: FALSE | V57: 0 | W57: 7.463145374e-11 | X57: 7.463145374e-11 | Y57: 4680767124 | Z57: 0 | AA57: FALSE | AB57: 0 | AC57: 2.151826811e-07 | AD57: 2.151826811e-07 | AE57: 1622363.774 | AF57: 0 | AG57: FALSE | AH57: 0 | AI57: 0.0006802436485 | AJ57: 0.0006802436485 | AK57: 513.205213 | AL57: 0 | AM57: TRUE | AN57: 0.5908507312 | AO57: 2.151119293 | AP57: 0 | AQ57: 0.162289738 | AR57: 0.162289738 | AS57: FALSE | AT57: 0 | AU57: 6802.436485 | AV57: 0
B58: 3 | C58: 9 | D58: 957.1485832 | F58: 49 | G58: 8 | H58: 4 | I58: 641.2813799 | J58: 1 | K58: 0.5835069563 | L58: 0.5835069563 | M58: 5.411158184e+16 | N58: 0 | O58: FALSE | P58: 0 | Q58: 1.943517069e-14 | R58: 1.943517069e-14 | S58: 1.707589058e+13 | T58: 0 | U58: FALSE | V58: 0 | W58: 6.304520162e-11 | X58: 6.304520162e-11 | Y58: 5404100528 | Z58: 0 | AA58: FALSE | AB58: 0 | AC58: 1.817763802e-07 | AD58: 1.817763802e-07 | AE58: 1873072.66 | AF58: 0 | AG58: FALSE | AH58: 0 | AI58: 0.000574638384 | AJ58: 0.000574638384 | AK58: 592.5124 | AL58: 0 | AM58: TRUE | AN58: 0.5835069563 | AO58: 1.817166124 | AP58: 0 | AQ58: 0.1873688726 | AR58: 0.1873688726 | AS58: FALSE | AT58: 0 | AU58: 5746.38384 | AV58: 0
B59: 3 | C59: 10 | D59: 1166.321909 | F59: 50 | G59: 4 | H59: 7 | I59: 655.7308531 | J59: 1 | K59: 0.540256261 | L59: 0.540256261 | M59: 6.491662128e+16 | N59: 0 | O59: FALSE | P59: 0 | Q59: 1.388769668e-14 | R59: 1.388769668e-14 | S59: 2.048561665e+13 | T59: 0 | U59: FALSE | V59: 0 | W59: 4.504990726e-11 | X59: 4.504990726e-11 | Y59: 6483195193 | Z59: 0 | AA59: FALSE | AB59: 0 | AC59: 1.29891076e-07 | AD59: 1.29891076e-07 | AE59: 2247089.151 | AF59: 0 | AG59: FALSE | AH59: 0 | AI59: 0.0004106165932 | AJ59: 0.0004106165932 | AK59: 710.8257006 | AL59: 0 | AM59: TRUE | AN59: 0.540256261 | AO59: 1.29848368 | AP59: 0 | AQ59: 0.2247828233 | AR59: 0.2247828233 | AS59: FALSE | AT59: 0 | AU59: 4106.165932 | AV59: 0
B60: 3 | C60: 11 | D60: 1397.513479 | F60: 51 | G60: 6 | H60: 6 | I60: 657.9670811 | J60: 1 | K60: 0.2543099328 | L60: 0.2543099328 | M60: 3.179143434e+16 | N60: 0 | O60: FALSE | P60: 0 | Q60: 6.28352051e-15 | R60: 6.28352051e-15 | S60: 1.003236342e+13 | T60: 0 | U60: FALSE | V60: 0 | W60: 2.038293483e-11 | X60: 2.038293483e-11 | Y60: 3174996946 | Z60: 0 | AA60: FALSE | AB60: 0 | AC60: 5.876951801e-08 | AD60: 5.876951801e-08 | AE60: 1100460.649 | AF60: 0 | AG60: FALSE | AH60: 0 | AI60: 0.0001857844281 | AJ60: 0.0001857844281 | AK60: 348.1106709 | AL60: 0 | AM60: TRUE | AN60: 0.2543099328 | AO60: 0.5875019467 | AP60: 0 | AQ60: 0.1100822598 | AR60: 0.1100822598 | AS60: FALSE | AT60: 0 | AU60: 1857.844281 | AV60: 0
B61: 3 | C61: 12 | D61: 1650.723295 | F61: 52 | G61: 9 | H61: 3 | I61: 687.7691195 | J61: 1 | K61: 0.7889521355 | L61: 0.7889521355 | M61: 1.650740201e+17 | N61: 0 | O61: FALSE | P61: 0 | Q61: 1.16468665e-14 | R61: 1.16468665e-14 | S61: 5.20920995e+13 | T61: 0 | U61: FALSE | V61: 0 | W61: 3.778094149e-11 | X61: 3.778094149e-11 | Y61: 1.648587176e+10 | Z61: 0 | AA61: FALSE | AB61: 0 | AC61: 1.089326802e-07 | AD61: 1.089326802e-07 | AE61: 5714037.981 | AF61: 0 | AG61: FALSE | AH61: 0 | AI61: 0.0003443621181 | AJ61: 0.0003443621181 | AK61: 1807.531779 | AL61: 0 | AM61: TRUE | AN61: 0.7889521355 | AO61: 1.088968633 | AP61: 0 | AQ61: 0.5715917366 | AR61: 0.5715917366 | AS61: FALSE | AT61: 0 | AU61: 3443.621181 | AV61: 0
B62: 3 | C62: 13 | D62: 1925.951355 | F62: 53 | G62: 1 | H62: 8 | I62: 711.8515747 | J62: 1 | K62: 0.1086442838 | L62: 0.1086442838 | M62: 3.391699576e+16 | N62: 0 | O62: FALSE | P62: 0 | Q62: 1.07493672e-15 | R62: 1.07493672e-15 | S62: 1.070312286e+13 | T62: 0 | U62: FALSE | V62: 0 | W62: 3.486956886e-12 | X62: 3.486956886e-12 | Y62: 3387275856 | Z62: 0 | AA62: FALSE | AB62: 0 | AC62: 1.005384049e-08 | AD62: 1.005384049e-08 | AE62: 1174036.968 | AF62: 0 | AG62: FALSE | AH62: 0 | AI62: 3.178258168e-05 | AJ62: 3.178258168e-05 | AK62: 371.3851984 | AL62: 0 | AM62: FALSE | AN62: 0 | AO62: 0.100505348 | AP62: 0.100505348 | AQ62: 0.1174423116 | AR62: 0 | AS62: TRUE | AT62: 0.1086442838 | AU62: 317.8258168 | AV62: 0
B63: 3 | C63: 14 | D63: 2223.19766 | F63: 54 | G63: 5 | H63: 7 | I63: 721.1405217 | J63: 1 | K63: 0.4016767684 | L63: 0.4016767684 | M63: 1.457978204e+17 | N63: 0 | O63: FALSE | P63: 0 | Q63: 3.418132632e-15 | R63: 3.418132632e-15 | S63: 4.600914524e+13 | T63: 0 | U63: FALSE | V63: 0 | W63: 1.108798397e-11 | X63: 1.108798397e-11 | Y63: 1.456076594e+10 | Z63: 0 | AA63: FALSE | AB63: 0 | AC63: 3.196965888e-08 | AD63: 3.196965888e-08 | AE63: 5046792.237 | AF63: 0 | AG63: FALSE | AH63: 0 | AI63: 0.0001010636975 | AJ63: 0.0001010636975 | AK63: 1596.460749 | AL63: 0 | AM63: FALSE | AN63: 0 | AO63: 0.319591473 | AP63: 0.319591473 | AQ63: 0.5048452161 | AR63: 0 | AS63: TRUE | AT63: 0.4016767684 | AU63: 1010.636975 | AV63: 0
B64: 3 | C64: 15 | D64: 2542.462209 | F64: 55 | G64: 2 | H64: 8 | I64: 733.6547976 | J64: 1 | K64: 0.1936054227 | L64: 0.1936054227 | M64: 8.583517456e+16 | N64: 0 | O64: FALSE | P64: 0 | Q64: 1.348827007e-15 | R64: 1.348827007e-15 | S64: 2.708684535e+13 | T64: 0 | U64: FALSE | V64: 0 | W64: 4.375421856e-12 | X64: 4.375421856e-12 | Y64: 8572322159 | Z64: 0 | AA64: FALSE | AB64: 0 | AC64: 1.261552547e-08 | AD64: 1.261552547e-08 | AE64: 2971184.97 | AF64: 0 | AG64: FALSE | AH64: 0 | AI64: 3.988067736e-05 | AJ64: 3.988067736e-05 | AK64: 939.8802169 | AL64: 0 | AM64: FALSE | AN64: 0 | AO64: 0.1261137751 | AP64: 0.1261137751 | AQ64: 0.2972162213 | AR64: 0 | AS64: TRUE | AT64: 0.1936054227 | AU64: 398.8067736 | AV64: 0
B65: 3 | C65: 16 | D65: 2883.745004 | F65: 56 | G65: 10 | H65: 1 | I65: 737.7832185 | J65: 1 | K65: 0.3546056796 | L65: 0.3546056796 | M65: 1.678139173e+17 | N65: 0 | O65: FALSE | P65: 0 | Q65: 2.314461242e-15 | R65: 2.314461242e-15 | S65: 5.295672372e+13 | T65: 0 | U65: FALSE | V65: 0 | W65: 7.507815498e-12 | X65: 7.507815498e-12 | Y65: 1.675950412e+10 | Z65: 0 | AA65: FALSE | AB65: 0 | AC65: 2.164706416e-08 | AD65: 2.164706416e-08 | AE65: 5808879.534 | AF65: 0 | AG65: FALSE | AH65: 0 | AI65: 6.843151983e-05 | AJ65: 6.843151983e-05 | AK65: 1837.533176 | AL65: 0 | AM65: FALSE | AN65: 0 | AO65: 0.2163994664 | AP65: 0.2163994664 | AQ65: 0.5810790114 | AR65: 0 | AS65: TRUE | AT65: 0.3546056796 | AU65: 684.3151983 | AV65: 0
B66: 3 | C66: 17 | D66: 3247.046043 | F66: 57 | G66: 8 | H66: 5 | I66: 740.3634816 | J66: 1 | K66: 0.5707116097 | L66: 0.5707116097 | M66: 2.812727517e+17 | N66: 0 | O66: FALSE | P66: 0 | Q66: 3.576780308e-15 | R66: 3.576780308e-15 | S66: 8.876071571e+13 | T66: 0 | U66: FALSE | V66: 0 | W66: 1.160261668e-11 | X66: 1.160261668e-11 | Y66: 2.809058937e+10 | Z66: 0 | AA66: FALSE | AB66: 0 | AC66: 3.345348429e-08 | AD66: 3.345348429e-08 | AE66: 9736257.622 | AF66: 0 | AG66: FALSE | AH66: 0 | AI66: 0.0001057544227 | AJ66: 0.0001057544227 | AK66: 3079.88766 | AL66: 0 | AM66: FALSE | AN66: 0 | AO66: 0.3344248484 | AP66: 0.3344248484 | AQ66: 0.9739459942 | AR66: 0 | AS66: TRUE | AT66: 0.5707116097 | AU66: 1057.544227 | AV66: 0
B67: 3 | C67: 18 | D67: 3632.365327 | F67: 58 | G67: 7 | H67: 6 | I67: 752.4477136 | J67: 1 | K67: 0.1287488589 | L67: 0.1287488589 | M67: 7.659597325e+16 | N67: 0 | O67: FALSE | P67: 0 | Q67: 6.684475745e-16 | R67: 6.684475745e-16 | S67: 2.417124789e+13 | T67: 0 | U67: FALSE | V67: 0 | W67: 2.16835822e-12 | X67: 2.16835822e-12 | Y67: 7649607077 | Z67: 0 | AA67: FALSE | AB67: 0 | AC67: 6.251963641e-09 | AD67: 6.251963641e-09 | AE67: 2651369.974 | AF67: 0 | AG67: FALSE | AH67: 0 | AI67: 1.976394446e-05 | AJ67: 1.976394446e-05 | AK67: 838.7125711 | AL67: 0 | AM67: FALSE | AN67: 0 | AO67: 0.06249908004 | AP67: 0.06249908004 | AQ67: 0.2652242027 | AR67: 0 | AS67: TRUE | AT67: 0.1287488589 | AU67: 197.6394446 | AV67: 0
B68: 3 | C68: 19 | D68: 4039.702856 | F68: 59 | G68: 9 | H68: 4 | I68: 764.8329763 | J68: 1 | K68: 0.8845149172 | L68: 0.8845149172 | M68: 6.36215999e+17 | N68: 0 | O68: FALSE | P68: 0 | Q68: 3.798326123e-15 | R68: 3.798326123e-15 | S68: 2.007694918e+14 | T68: 0 | U68: FALSE | V68: 0 | W68: 1.23212829e-11 | X68: 1.23212829e-11 | Y68: 6.353861962e+10 | Z68: 0 | AA68: FALSE | AB68: 0 | AC68: 3.552559351e-08 | AD68: 3.552559351e-08 | AE68: 22022619.79 | AF68: 0 | AG68: FALSE | AH68: 0 | AI68: 0.0001123048529 | AJ68: 0.0001123048529 | AK68: 6966.45442 | AL68: 0 | AM68: FALSE | AN68: 0 | AO68: 0.3551391275 | AP68: 0.3551391275 | AQ68: 2.202986318 | AR68: 0 | AS68: TRUE | AT68: 0.8845149172 | AU68: 1123.048529 | AV68: 0
B69: 3 | C69: 20 | D69: 4469.05863 | F69: 60 | G69: 3 | H69: 8 | I69: 769.9935024 | J69: 1 | K69: 0.2363629119 | L69: 0.2363629119 | M69: 1.838375236e+17 | N69: 0 | O69: FALSE | P69: 0 | Q69: 9.386658448e-16 | R69: 9.386658448e-16 | S69: 5.801326317e+13 | T69: 0 | U69: FALSE | V69: 0 | W69: 3.04491164e-12 | X69: 3.04491164e-12 | Y69: 1.835977483e+10 | Z69: 0 | AA69: FALSE | AB69: 0 | AC69: 8.7793044e-09 | AD69: 8.7793044e-09 | AE69: 6363536.742 | AF69: 0 | AG69: FALSE | AH69: 0 | AI69: 2.775346988e-05 | AJ69: 2.775346988e-05 | AK69: 2012.988876 | AL69: 0 | AM69: FALSE | AN69: 0 | AO69: 0.08776417778 | AP69: 0.08776417778 | AQ69: 0.6365629752 | AR69: 0 | AS69: TRUE | AT69: 0.2363629119 | AU69: 277.5346988 | AV69: 0
B70: 4 | C70: 1 | D70: 127.2929778 | F70: 61 | G70: 10 | H70: 2 | I70: 770.8105857 | J70: 1 | K70: 0.6631239272 | L70: 0.6631239272 | M70: 5.221615915e+17 | N70: 0 | O70: FALSE | P70: 0 | Q70: 2.60118348e-15 | R70: 2.60118348e-15 | S70: 1.647775559e+14 | T70: 0 | U70: FALSE | V70: 0 | W70: 8.43790567e-12 | X70: 8.43790567e-12 | Y70: 5.214805474e+10 | Z70: 0 | AA70: FALSE | AB70: 0 | AC70: 2.432876587e-08 | AD70: 2.432876587e-08 | AE70: 18074625.94 | AF70: 0 | AG70: FALSE | AH70: 0 | AI70: 7.690901693e-05 | AJ70: 7.690901693e-05 | AK70: 5717.578515 | AL70: 0 | AM70: FALSE | AN70: 0 | AO70: 0.2432076661 | AP70: 0.2432076661 | AQ70: 1.808057081 | AR70: 0 | AS70: TRUE | AT70: 0.6631239272 | AU70: 769.0901693 | AV70: 0
B71: 4 | C71: 2 | D71: 160.320345 | F71: 62 | G71: 6 | H71: 7 | I71: 801.0856723 | J71: 1 | K71: 0.1755365796 | L71: 0.1755365796 | M71: 2.163258412e+17 | N71: 0 | O71: FALSE | P71: 0 | Q71: 4.399601843e-16 | R71: 4.399601843e-16 | S71: 6.826554075e+13 | T71: 0 | U71: FALSE | V71: 0 | W71: 1.427174424e-12 | X71: 1.427174424e-12 | Y71: 2.160436921e+10 | Z71: 0 | AA71: FALSE | AB71: 0 | AC71: 4.114930146e-09 | AD71: 4.114930146e-09 | AE71: 7488120.01 | AF71: 0 | AG71: FALSE | AH71: 0 | AI71: 1.300827317e-05 | AJ71: 1.300827317e-05 | AK71: 2368.730297 | AL71: 0 | AM71: FALSE | AN71: 0 | AO71: 0.04113577163 | AP71: 0.04113577163 | AQ71: 0.7490582903 | AR71: 0 | AS71: TRUE | AT71: 0.1755365796 | AU71: 130.0827317 | AV71: 0
B72: 4 | C72: 3 | D72: 215.365957 | F72: 63 | G72: 4 | H72: 8 | I72: 820.8676891 | J72: 1 | K72: 0.227596134 | L72: 0.227596134 | M72: 3.724617791e+17 | N72: 0 | O72: FALSE | P72: 0 | Q72: 4.295706108e-16 | R72: 4.295706108e-16 | S72: 1.175370664e+14 | T72: 0 | U72: FALSE | V72: 0 | W72: 1.39347198e-12 | X72: 1.39347198e-12 | Y72: 3.719759853e+10 | Z72: 0 | AA72: FALSE | AB72: 0 | AC72: 4.017756878e-09 | AD72: 4.017756878e-09 | AE72: 12892766.23 | AF72: 0 | AG72: FALSE | AH72: 0 | AI72: 1.270108535e-05 | AJ72: 1.270108535e-05 | AK72: 4078.391633 | AL72: 0 | AM72: FALSE | AN72: 0 | AO72: 0.04016435845 | AP72: 0.04016435845 | AQ72: 1.289700675 | AR72: 0 | AS72: TRUE | AT72: 0.227596134 | AU72: 127.0108535 | AV72: 0
B73: 4 | C73: 4 | D73: 292.4298138 | F73: 64 | G73: 10 | H73: 3 | I73: 825.8561977 | J73: 1 | K73: 0.8854572074 | L73: 0.8854572074 | M73: 1.554810752e+18 | N73: 0 | O73: FALSE | P73: 0 | Q73: 1.557557658e-15 | R73: 1.557557658e-15 | S73: 4.906487185e+14 | T73: 0 | U73: FALSE | V73: 0 | W73: 5.052517325e-12 | X73: 5.052517325e-12 | Y73: 1.552782846e+11 | Z73: 0 | AA73: FALSE | AB73: 0 | AC73: 1.456777498e-08 | AD73: 1.456777498e-08 | AE73: 53819781.5 | AF73: 0 | AG73: FALSE | AH73: 0 | AI73: 4.605220249e-05 | AJ73: 4.605220249e-05 | AK73: 17024.90703 | AL73: 0 | AM73: FALSE | AN73: 0 | AO73: 0.1456298511 | AP73: 0.1456298511 | AQ73: 5.383748318 | AR73: 0 | AS73: TRUE | AT73: 0.8854572074 | AU73: 460.5220249 | AV73: 0
B74: 4 | C74: 5 | D74: =3.1416/2*SQRT($H$2/$I$2)*(B74^2/$C$2^2+C74^2/$D$2^2) -> 391.5119154 | F74: 65 | G74: 8 | H74: 6 | I74: 861.463828 | J74: 1 | K74: =ABS(SIN(G74*3.1416*$J$2/$C$2)*SIN(H74*3.1416*$K$2/$D$2))*(1/F74^$M$2)+(1-1/F74^$M$2) -> 0.4837419506 | L74: 0.4837419506 | M74: 1.387625913e+18 | N74: 0 | O74: FALSE | P74: 0 | Q74: 5.208847164e-16 | R74: 5.208847164e-16 | S74: 4.378905117e+14 | T74: 0 | U74: =AND($I74>44.548,$I74<89.095) -> FALSE | V74: 0 | W74: 1.689683229e-12 | X74: =IF($I74>89.095,W74,0) -> 1.689683229e-12 | Y74: 1.385816063e+11 | Z74: 0 | AA74: FALSE | AB74: 0 | AC74: 4.871814084e-09 | AD74: 4.871814084e-09 | AE74: 48032677.5 | AF74: 0 | AG74: FALSE | AH74: 0 | AI74: 1.540096336e-05 | AJ74: 1.540096336e-05 | AK74: 15194.26215 | AL74: 0 | AM74: FALSE | AN74: 0 | AO74: 0.04870212238 | AP74: 0.04870212238 | AQ74: 4.804847577 | AR74: 0 | AS74: TRUE | AT74: 0.4837419506 | AU74: 154.0096336 | AV74: 0
B75: 4 | C75: 6 | D75: 512.6122619 | F75: 66 | G75: 9 | H75: 5 | I75: 863.9150779 | J75: =IF(ABS(I75-I74)>0.0001,1,$L$2) -> 1 | K75: 0.8651189618 | L75: =$J75*$K75 -> 0.8651189618 | M75: =10^(LOG10($I75/22.27)/LOG10(2)*70/20)*$L75 -> 2.564968126e+18 | N75: =IF($I75<22.27,M75,0) -> 0 | O75: =AND($I75>22.27,$I75<44.45) -> FALSE | P75: =IF($O75=TRUE,$L75,0) -> 0 | Q75: =10^(LOG10(44.45/$I75)/LOG10(2)*70/20)*$L75 -> 9.01272672e-16 | R75: =IF($I75>44.45,Q75,0) -> 9.01272672e-16 | S75: =10^(LOG10($I75/44.548)/LOG10(2)*70/20)*$L75 -> 8.094221898e+14 | T75: =IF($I75<44.528,S75,0) -> 0 | U75: FALSE | V75: =IF($U75=TRUE,$L75,0) -> 0 | W75: =10^(LOG10(89.095/$I75)/LOG10(2)*70/20)*$L75 -> 2.923612982e-12 | X75: 2.923612982e-12 | Y75: =10^(LOG10($I75/89.09)/LOG10(2)*70/20)*$L75 -> 2.561622693e+11 | Z75: =IF($I75<89.09,Y75,0) -> 0 | AA75: =AND($I75>89.09,$I75<176.78) -> FALSE | AB75: =IF($AA75=TRUE,$L75,0) -> 0 | AC75: =10^(LOG10(176.78/$I75)/LOG10(2)*70/20)*$L75 -> 8.429567539e-09 | AD75: =IF($I75>176.78,AC75,0) -> 8.429567539e-09 | AE75: =10^(LOG10($I75/176.78)/LOG10(2)*70/20)*$L75 -> 88786383.72 | AF75: =IF($I75<176.78,AE75,0) -> 0 | AG75: =AND($I75>176.78,$I75<353.55) -> FALSE | AH75: =IF($AG75=TRUE,$L75,0) -> 0 | AI75: =10^(LOG10(353.55/$I75)/LOG10(2)*70/20)*$L75 -> 2.664786845e-05 | AJ75: =IF($I75>353.55,AI75,0) -> 2.664786845e-05 | AK75: =10^(LOG10($I75/353.55)/LOG10(2)*70/20)*$L75 -> 28085.9544 | AL75: =IF($I75<353.55,AK75,0) -> 0 | AM75: =AND($I75>353.55,$I75<707.1) -> FALSE | AN75: =IF($AM75=TRUE,$L75,0) -> 0 | AO75: =10^(LOG10(707.1/$I75)/LOG10(2)*70/20)*$L75 -> 0.08426795909 | AP75: =IF($I75>707.1,AO75,0) -> 0.08426795909 | AQ75: =10^(LOG10($I75/707.1)/LOG10(2)*70/20)*$L75 -> 8.881558616 | AR75: =IF($I75<707.1,AQ75,0) -> 0 | AS75: =AND($I75>707.1,$I75<1414.2) -> TRUE | AT75: =IF($AS75=TRUE,$L75,0) -> 0.8651189618 | AU75: =10^(LOG10(1414.2/$I75)/LOG10(2)*70/20)*$L75 -> 266.4786845 | AV75: =IF($I75>1414.2,AU75,0) -> 0
B76: 4 | C76: 7 | D76: 655.7308531 | F76: 67 | G76: 5 | H76: 8 | I76: 886.2773578 | J76: 1 | K76: 0.1692161409 | L76: 0.1692161409 | M76: 6.752872697e+17 | N76: 0 | O76: FALSE | P76: 0 | Q76: 1.309729241e-16 | R76: 1.309729241e-16 | S76: 2.130991395e+14 | T76: 0 | U76: FALSE | V76: 0 | W76: 4.248593717e-13 | X76: 4.248593717e-13 | Y76: 6.744065071e+10 | Z76: 0 | AA76: FALSE | AB76: 0 | AC76: 1.224984562e-09 | AD76: 1.224984562e-09 | AE76: 23375072.01 | AF76: 0 | AG76: FALSE | AH76: 0 | AI76: 3.872467634e-06 | AJ76: 3.872467634e-06 | AK76: 7394.278031 | AL76: 0 | AM76: FALSE | AN76: 0 | AO76: 0.01224581789 | AP76: 0.01224581789 | AQ76: 2.338276023 | AR76: 0 | AS76: TRUE | AT76: 0.1692161409 | AU76: 38.72467634 | AV76: 0
B77: 4 | C77: 8 | D77: 820.8676891 | F77: 68 | G77: 11 | H77: 1 | I77: 890.4057787 | J77: 1 | K77: 0.3159540226 | L77: 0.3159540226 | M77: 1.330874527e+18 | N77: 0 | O77: FALSE | P77: 0 | Q77: 2.31684606e-16 | R77: 2.31684606e-16 | S77: 4.19981583e+14 | T77: 0 | U77: FALSE | V77: 0 | W77: 7.515551541e-13 | X77: 7.515551541e-13 | Y77: 1.329138696e+11 | Z77: 0 | AA77: FALSE | AB77: 0 | AC77: 2.166936927e-09 | AD77: 2.166936927e-09 | AE77: 46068227.99 | AF77: 0 | AG77: FALSE | AH77: 0 | AI77: 6.850203158e-06 | AJ77: 6.850203158e-06 | AK77: 14572.84435 | AL77: 0 | AM77: FALSE | AN77: 0 | AO77: 0.02166224441 | AP77: 0.02166224441 | AQ77: 4.608338014 | AR77: 0 | AS77: TRUE | AT77: 0.3159540226 | AU77: 68.50203158 | AV77: 0
B78: 4 | C78: 9 | D78: 1008.02277 | F78: 69 | G78: 7 | H78: 7 | I78: 895.5663048 | J78: 1 | K78: 0.08886846876 | L78: 0.08886846876 | M78: 4.003514869e+17 | N78: 0 | O78: FALSE | P78: 0 | Q78: 6.093130246e-17 | R78: 6.093130246e-17 | S78: 1.263381693e+14 | T78: 0 | U78: FALSE | V78: 0 | W78: 1.976533323e-13 | X78: 1.976533323e-13 | Y78: 3.998293171e+10 | Z78: 0 | AA78: FALSE | AB78: 0 | AC78: 5.698880542e-10 | AD78: 5.698880542e-10 | AE78: 13858168.6 | AF78: 0 | AG78: FALSE | AH78: 0 | AI78: 1.80155172e-06 | AJ78: 1.80155172e-06 | AK78: 4383.779078 | AL78: 0 | AM78: FALSE | AN78: 0 | AO78: 0.005697006759 | AP78: 0.005697006759 | AQ78: 1.386272665 | AR78: 0 | AS78: TRUE | AT78: 0.08886846876 | AU78: 18.0155172 | AV78: 0
B79: 4 | C79: 10 | D79: 1217.196096 | F79: 70 | G79: 1 | H79: 9 | I79: 899.0066555 | J79: 1 | K79: 0.05472606429 | L79: 0.05472606429 | M79: 2.577795031e+17 | N79: 0 | O79: FALSE | P79: 0 | Q79: 3.588612483e-17 | R79: 3.588612483e-17 | S79: 8.134699523e+13 | T79: 0 | U79: FALSE | V79: 0 | W79: 1.164099874e-13 | X79: 1.164099874e-13 | Y79: 2.574432869e+10 | Z79: 0 | AA79: FALSE | AB79: 0 | AC79: 3.356415016e-10 | AD79: 3.356415016e-10 | AE79: 8923038.712 | AF79: 0 | AG79: FALSE | AH79: 0 | AI79: 1.061042638e-06 | AJ79: 1.061042638e-06 | AK79: 2822.640678 | AL79: 0 | AM79: FALSE | AN79: 0 | AO79: 0.003355311432 | AP79: 0.003355311432 | AQ79: 0.8925973559 | AR79: 0 | AS79: TRUE | AT79: 0.05472606429 | AU79: 10.61042638 | AV79: 0
B80: 4 | C80: 11 | D80: 1448.387666 | F80: 71 | G80: 10 | H80: 4 | I80: 902.9200545 | J80: 1 | K80: 0.9927092827 | L80: 0.9927092827 | M80: 4.918230247e+18 | N80: 0 | O80: FALSE | P80: 0 | Q80: 6.189019097e-16 | R80: 6.189019097e-16 | S80: 1.552036712e+15 | T80: 0 | U80: FALSE | V80: 0 | W80: 2.007638436e-12 | X80: 2.007638436e-12 | Y80: 4.911815506e+11 | Z80: 0 | AA80: FALSE | AB80: 0 | AC80: 5.788565003e-09 | AD80: 5.788565003e-09 | AE80: 170244563.1 | AF80: 0 | AG80: FALSE | AH80: 0 | AI80: 1.829903112e-05 | AJ80: 1.829903112e-05 | AK80: 53853.76491 | AL80: 0 | AM80: FALSE | AN80: 0 | AO80: 0.05786661731 | AP80: 0.05786661731 | AQ80: 17.03005577 | AR80: 0 | AS80: TRUE | AT80: 0.9927092827 | AU80: 182.9903112 | AV80: 0
B81: 4 | C81: 12 | D81: 1701.597481 | F81: 72 | G81: 2 | H81: 9 | I81: 920.8098784 | J81: 1 | K81: 0.09752250589 | L81: 0.09752250589 | M81: 6.069589482e+17 | N81: 0 | O81: FALSE | P81: 0 | Q81: 4.83990569e-17 | R81: 4.83990569e-17 | S81: 1.915368991e+14 | T81: 0 | U81: FALSE | V81: 0 | W81: 1.570003346e-13 | X81: 1.570003346e-13 | Y81: 6.061673048e+10 | Z81: 0 | AA81: FALSE | AB81: 0 | AC81: 4.526744587e-10 | AD81: 4.526744587e-10 | AE81: 21009886.84 | AF81: 0 | AG81: FALSE | AH81: 0 | AI81: 1.431011659e-06 | AJ81: 1.431011659e-06 | AK81: 6646.094807 | AL81: 0 | AM81: FALSE | AN81: 0 | AO81: 0.0045252562 | AP81: 0.0045252562 | AQ81: 2.101679714 | AR81: 0 | AS81: TRUE | AT81: 0.09752250589 | AU81: 14.31011659 | AV81: 0
B82: 4 | C82: 13 | D82: 1976.825541 | F82: 73 | G82: 11 | H82: 2 | I82: 923.4331459 | J82: 1 | K82: 0.5908440962 | L82: 0.5908440962 | M82: 3.800949424e+18 | N82: 0 | O82: FALSE | P82: 0 | Q82: 2.83687515e-16 | R82: 2.83687515e-16 | S82: 1.199458494e+15 | T82: 0 | U82: FALSE | V82: 0 | W82: 9.202459228e-13 | X82: 9.202459228e-13 | Y82: 3.795991928e+11 | Z82: 0 | AA82: FALSE | AB82: 0 | AC82: 2.653318071e-09 | AD82: 2.653318071e-09 | AE82: 131569882.2 | AF82: 0 | AG82: FALSE | AH82: 0 | AI82: 8.387769669e-06 | AJ82: 8.387769669e-06 | AK82: 41619.73443 | AL82: 0 | AM82: FALSE | AN82: 0 | AO82: 0.02652445664 | AP82: 0.02652445664 | AQ82: 13.16131564 | AR82: 0 | AS82: TRUE | AT82: 0.5908440962 | AU82: 83.87769669 | AV82: 0
B83: 4 | C83: 14 | D83: 2274.071846 | F83: 74 | G83: 3 | H83: 9 | I83: 957.1485832 | J83: 1 | K83: 0.1190602161 | L83: 0.1190602161 | M83: 1.162143327e+18 | N83: 0 | O83: FALSE | P83: 0 | Q83: 3.767559795e-17 | R83: 3.767559795e-17 | S83: 3.667353941e+14 | T83: 0 | U83: FALSE | V83: 0 | W83: 1.222148088e-13 | X83: 1.222148088e-13 | Y83: 1.160627568e+11 | Z83: 0 | AA83: FALSE | AB83: 0 | AC83: 3.523783727e-10 | AD83: 3.523783727e-10 | AE83: 40227596.71 | AF83: 0 | AG83: FALSE | AH83: 0 | AI83: 1.11395187e-06 | AJ83: 1.11395187e-06 | AK83: 12725.26709 | AL83: 0 | AM83: FALSE | AN83: 0 | AO83: 0.003522625112 | AP83: 0.003522625112 | AQ83: 4.024082784 | AR83: 0 | AS83: TRUE | AT83: 0.1190602161 | AU83: 11.1395187 | AV83: 0
B84: 4 | C84: 15 | D84: 2593.336396 | F84: 75 | G84: 6 | H84: 8 | I84: 966.2225083 | J84: 1 | K84: 0.07394906782 | L84: 0.07394906782 | M84: 8.055076996e+17 | N84: 0 | O84: FALSE | P84: 0 | Q84: 2.096921752e-17 | R84: 2.096921752e-17 | S84: 2.541925568e+14 | T84: 0 | U84: FALSE | V84: 0 | W84: 6.802145285e-14 | X84: 6.802145285e-14 | Y84: 8.044570932e+10 | Z84: 0 | AA84: FALSE | AB84: 0 | AC84: 1.961242594e-10 | AD84: 1.961242594e-10 | AE84: 27882652.8 | AF84: 0 | AG84: FALSE | AH84: 0 | AI84: 6.199954435e-07 | AJ84: 6.199954435e-07 | AK84: 8820.169065 | AL84: 0 | AM84: FALSE | AN84: 0 | AO84: 0.00196059774 | AP84: 0.00196059774 | AQ84: 2.789182359 | AR84: 0 | AS84: TRUE | AT84: 0.07394906782 | AU84: 6.199954435 | AV84: 0
B85: 4 | C85: 16 | D85: 2934.61919 | F85: 76 | G85: 11 | H85: 3 | I85: 978.4787579 | J85: 1 | K85: 0.7889432759 | L85: 0.7889432759 | M85: 9.950170375e+18 | N85: 0 | O85: FALSE | P85: 0 | Q85: 1.932179875e-16 | R85: 1.932179875e-16 | S85: 3139956638337297 | T85: 0 | U85: FALSE | V85: 0 | W85: 6.267743759e-13 | X85: 6.267743759e-13 | Y85: 9.937192582e+11 | Z85: 0 | AA85: FALSE | AB85: 0 | AC85: 1.80716017e-09 | AD85: 1.80716017e-09 | AE85: 344425194.3 | AF85: 0 | AG85: FALSE | AH85: 0 | AI85: 5.712863235e-06 | AJ85: 5.712863235e-06 | AK85: 108952.6332 | AL85: 0 | AM85: FALSE | AN85: 0 | AO85: 0.01806565978 | AP85: 0.01806565978 | AQ85: 34.4538478 | AR85: 0 | AS85: TRUE | AT85: 0.7889432759 | AU85: 57.12863235 | AV85: 0
B86: 4 | C86: 17 | D86: 3297.92023 | F86: 77 | G86: 9 | H86: 6 | I86: 985.0154243 | J86: 1 | K86: 0.733285125 | L86: 0.733285125 | M86: 9.992585188e+18 | N86: 0 | O86: FALSE | P86: 0 | Q86: 1.662089494e-16 | R86: 1.662089494e-16 | S86: 3.153341402e+15 | T86: 0 | U86: FALSE | V86: 0 | W86: 5.391605196e-13 | X86: 5.391605196e-13 | Y86: 9.979552075e+11 | Z86: 0 | AA86: FALSE | AB86: 0 | AC86: 1.554545709e-09 | AD86: 1.554545709e-09 | AE86: 345893383.2 | AF86: 0 | AG86: FALSE | AH86: 0 | AI86: 4.914288824e-06 | AJ86: 4.914288824e-06 | AK86: 109417.068 | AL86: 0 | AM86: FALSE | AN86: 0 | AO86: 0.01554034576 | AP86: 0.01554034576 | AQ86: 34.60071499 | AR86: 0 | AS86: TRUE | AT86: 0.733285125 | AU86: 49.14288824 | AV86: 0
B87: 4 | C87: 18 | D87: 3683.239514 | F87: 78 | G87: 10 | H87: 5 | I87: 1002.002156 | J87: 1 | K87: 0.9709408031 | L87: 0.9709408031 | M87: 1.614111786e+19 | N87: 0 | O87: FALSE | P87: 0 | Q87: 1.804007793e-16 | R87: 1.804007793e-16 | S87: 5093622345633726 | T87: 0 | U87: FALSE | V87: 0 | W87: 5.851969962e-13 | X87: 5.851969962e-13 | Y87: 1.612006535e+12 | Z87: 0 | AA87: FALSE | AB87: 0 | AC87: 1.687281331e-09 | AD87: 1.687281331e-09 | AE87: 558724870.4 | AF87: 0 | AG87: FALSE | AH87: 0 | AI87: 5.333897705e-06 | AJ87: 5.333897705e-06 | AK87: 176742.4303 | AL87: 0 | AM87: FALSE | AN87: 0 | AO87: 0.01686726555 | AP87: 0.01686726555 | AQ87: 55.89086388 | AR87: 0 | AS87: TRUE | AT87: 0.9709408031 | AU87: 53.33897705 | AV87: 0
B88: 4 | C88: 19 | D88: 4090.577043 | F88: 79 | G88: 8 | H88: 7 | I88: 1004.582419 | J88: 1 | K88: 0.3339012616 | L88: 0.3339012616 | M88: 5.719328396e+18 | N88: 0 | O88: FALSE | P88: 0 | Q88: 6.021124389e-17 | R88: 6.021124389e-17 | S88: 1804837755137960 | T88: 0 | U88: FALSE | V88: 0 | W88: 1.953175546e-13 | X88: 1.953175546e-13 | Y88: 5.711868799e+11 | Z88: 0 | AA88: FALSE | AB88: 0 | AC88: 5.631533749e-10 | AD88: 5.631533749e-10 | AE88: 197974579.3 | AF88: 0 | AG88: FALSE | AH88: 0 | AI88: 1.780261797e-06 | AJ88: 1.780261797e-06 | AK88: 62625.65016 | AL88: 0 | AM88: FALSE | AN88: 0 | AO88: 0.005629682109 | AP88: 0.005629682109 | AQ88: 19.80396944 | AR88: 0 | AS88: TRUE | AT88: 0.3339012616 | AU88: 17.80261797 | AV88: 0
B89: 4 | C89: 20 | D89: 4519.932816 | F89: 80 | G89: 4 | H89: 9 | I89: 1008.02277 | J89: 1 | K89: 0.1146442337 | L89: 0.1146442337 | M89: 2.043347468e+18 | N89: 0 | O89: FALSE | P89: 0 | Q89: 1.986775156e-17 | R89: 1.986775156e-17 | S89: 6.448153353e+14 | T89: 0 | U89: FALSE | V89: 0 | W89: 6.444843851e-14 | X89: 6.444843851e-14 | Y89: 2.040682374e+11 | Z89: 0 | AA89: FALSE | AB89: 0 | AC89: 1.85822292e-10 | AD89: 1.85822292e-10 | AE89: 70730482.21 | AF89: 0 | AG89: FALSE | AH89: 0 | AI89: 5.874284736e-07 | AJ89: 5.874284736e-07 | AK89: 22374.29901 | AL89: 0 | AM89: FALSE | AN89: 0 | AO89: 0.001857611939 | AP89: 0.001857611939 | AQ89: 7.075374593 | AR89: 0 | AS89: TRUE | AT89: 0.1146442337 | AU89: 5.874284736 | AV89: 0
B90: 5 | C90: 1 | D90: 192.7026464 | F90: 81 | G90: 11 | H90: 4 | I90: 1055.542615 | J90: 1 | K90: 0.8845049846 | L90: 0.8845049846 | M90: 2.693322643e+19 | N90: 0 | O90: FALSE | P90: 0 | Q90: 8.972194926e-17 | R90: 8.972194926e-17 | S90: 8499267845744831 | T90: 0 | U90: FALSE | V90: 0 | W90: 2.910464988e-13 | X90: 2.910464988e-13 | Y90: 2.689809801e+12 | Z90: 0 | AA90: FALSE | AB90: 0 | AC90: 8.391658313e-10 | AD90: 8.391658313e-10 | AE90: 932293759.5 | AF90: 0 | AG90: FALSE | AH90: 0 | AI90: 2.652802837e-06 | AJ90: 2.652802837e-06 | AK90: 294914.1402 | AL90: 0 | AM90: FALSE | AN90: 0 | AO90: 0.008388899148 | AP90: 0.008388899148 | AQ90: 93.26003971 | AR90: 0 | AS90: TRUE | AT90: 0.8845049846 | AU90: 26.52802837 | AV90: 0
B91: 5 | C91: 2 | D91: 225.7300136 | F91: 82 | G91: 12 | H91: 1 | I91: 1057.563821 | J91: 1 | K91: 0.2084281952 | L91: 0.2084281952 | M91: 6.489395267e+18 | N91: 0 | O91: FALSE | P91: 0 | Q91: 2.067736631e-17 | R91: 2.067736631e-17 | S91: 2.047846316e+15 | T91: 0 | U91: FALSE | V91: 0 | W91: 6.707472496e-14 | X91: 6.707472496e-14 | Y91: 6.480931288e+11 | Z91: 0 | AA91: FALSE | AB91: 0 | AC91: 1.933945867e-10 | AD91: 1.933945867e-10 | AE91: 224630447.6 | AF91: 0 | AG91: FALSE | AH91: 0 | AI91: 6.113662985e-07 | AJ91: 6.113662985e-07 | AK91: 71057.74832 | AL91: 0 | AM91: FALSE | AN91: 0 | AO91: 0.001933309988 | AP91: 0.001933309988 | AQ91: 22.47043301 | AR91: 0 | AS91: TRUE | AT91: 0.2084281952 | AU91: 6.113662985 | AV91: 0
B92: 5 | C92: 3 | D92: 280.7756256 | F92: 83 | G92: 7 | H92: 8 | I92: 1060.703141 | J92: 1 | K92: 0.03743801115 | L92: 0.03743801115 | M92: 1.206499897e+18 | N92: 0 | O92: FALSE | P92: 0 | Q92: 3.588267097e-18 | R92: 3.588267097e-18 | S92: 380732913870190 | T92: 0 | U92: FALSE | V92: 0 | W92: 1.163987835e-14 | X92: 1.163987835e-14 | Y92: 1.204926285e+11 | Z92: 0 | AA92: FALSE | AB92: 0 | AC92: 3.356091977e-11 | AD92: 3.356091977e-11 | AE92: 41762999.6 | AF92: 0 | AG92: FALSE | AH92: 0 | AI92: 1.060940518e-07 | AJ92: 1.060940518e-07 | AK92: 13210.96381 | AL92: 0 | AM92: FALSE | AN92: 0 | AO92: 0.0003354988499 | AP92: 0.0003354988499 | AQ92: 4.177673573 | AR92: 0 | AS92: TRUE | AT92: 0.03743801115 | AU92: 1.060940518 | AV92: 0
B93: 5 | C93: 4 | D93: 357.8394825 | F93: 84 | G93: 5 | H93: 9 | I93: 1073.432439 | J93: 1 | K93: 0.0852371895 | L93: 0.0852371895 | M93: 3.15558732e+18 | N93: 0 | O93: FALSE | P93: 0 | Q93: 7.111554684e-18 | R93: 7.111554684e-18 | S93: 9.958027831e+14 | T93: 0 | U93: FALSE | V93: 0 | W93: 2.306897151e-14 | X93: 2.306897151e-14 | Y93: 3.151471555e+11 | Z93: 0 | AA93: FALSE | AB93: 0 | AC93: 6.651408878e-11 | AD93: 6.651408878e-11 | AE93: 109230669.9 | AF93: 0 | AG93: FALSE | AH93: 0 | AI93: 2.102668589e-07 | AJ93: 2.102668589e-07 | AK93: 34553.13174 | AL93: 0 | AM93: FALSE | AN93: 0 | AO93: 0.0006649221904 | AP93: 0.0006649221904 | AQ93: 10.92665966 | AR93: 0 | AS93: TRUE | AT93: 0.0852371895 | AU93: 2.102668589 | AV93: 0
B94: 5 | C94: 5 | D94: 456.9215841 | F94: 85 | G94: 12 | H94: 2 | I94: 1090.591188 | J94: 1 | K94: 0.3897673707 | L94: 0.3897673707 | M94: 1.735134331e+19 | N94: 0 | O94: FALSE | P94: 0 | Q94: 2.704359163e-17 | R94: 2.704359163e-17 | S94: 5475530926067246 | T94: 0 | U94: FALSE | V94: 0 | W94: 8.772594358e-14 | X94: 8.772594358e-14 | Y94: 1.732871233e+12 | Z94: 0 | AA94: FALSE | AB94: 0 | AC94: 2.529376395e-10 | AD94: 2.529376395e-10 | AE94: 600616830.2 | AF94: 0 | AG94: FALSE | AH94: 0 | AI94: 7.995960542e-07 | AJ94: 7.995960542e-07 | AK94: 189994.1882 | AL94: 0 | AM94: FALSE | AN94: 0 | AO94: 0.002528544739 | AP94: 0.002528544739 | AQ94: 60.0814377 | AR94: 0 | AS94: TRUE | AT94: 0.3897673707 | AU94: 7.995960542 | AV94: 0
B95: 5 | C95: 6 | D95: 578.0219305 | F95: 86 | G95: 1 | H95: 10 | I95: 1108.179981 | J95: 1 | K95: 0.2109837689 | L95: 0.2109837689 | M95: 1.131261467e+19 | N95: 0 | O95: FALSE | P95: 0 | Q95: 1.215406658e-17 | R95: 1.215406658e-17 | S95: 3569900633115024 | T95: 0 | U95: FALSE | V95: 0 | W95: 3.942623353e-14 | X95: 3.942623353e-14 | Y95: 1.129785987e+12 | Z95: 0 | AA95: FALSE | AB95: 0 | AC95: 1.136765025e-10 | AD95: 1.136765025e-10 | AE95: 391586209.8 | AF95: 0 | AG95: FALSE | AH95: 0 | AI95: 3.593584688e-07 | AJ95: 3.593584688e-07 | AK95: 123871.161 | AL95: 0 | AM95: FALSE | AN95: 0 | AO95: 0.001136391258 | AP95: 0.001136391258 | AQ95: 39.17150052 | AR95: 0 | AS95: TRUE | AT95: 0.2109837689 | AU95: 3.593584688 | AV95: 0
B96: 5 | C96: 7 | D96: 721.1405217 | F96: 87 | G96: 10 | H96: 6 | I96: 1123.102503 | J96: 1 | K96: 0.8229809767 | L96: 0.8229809767 | M96: 5.155189376e+19 | N96: 0 | O96: FALSE | P96: 0 | Q96: 4.058088207e-17 | R96: 4.058088207e-17 | S96: 1.626813461e+16 | T96: 0 | U96: FALSE | V96: 0 | W96: 1.316391779e-13 | X96: 1.316391779e-13 | Y96: 5.148465573e+12 | Z96: 0 | AA96: FALSE | AB96: 0 | AC96: 3.795513797e-10 | AD96: 3.795513797e-10 | AE96: 1784469045 | AF96: 0 | AG96: FALSE | AH96: 0 | AI96: 1.19985221e-06 | AJ96: 1.19985221e-06 | AK96: 564484.2611 | AL96: 0 | AM96: FALSE | AN96: 0 | AO96: 0.003794265838 | AP96: 0.003794265838 | AQ96: 178.5055968 | AR96: 0 | AS96: TRUE | AT96: 0.8229809767 | AU96: 11.9985221 | AV96: 0
B97: 5 | C97: 8 | D97: 886.2773578 | F97: 88 | G97: 9 | H97: 7 | I97: 1128.134016 | J97: 1 | K97: 0.5061476021 | L97: 0.5061476021 | M97: 3.339665802e+19 | N97: 0 | O97: FALSE | P97: 0 | Q97: 2.369397202e-17 | R97: 2.369397202e-17 | S97: 1.053892085e+16 | T97: 0 | U97: FALSE | V97: 0 | W97: 7.686020705e-14 | X97: 7.686020705e-14 | Y97: 3.335309948e+12 | Z97: 0 | AA97: FALSE | AB97: 0 | AC97: 2.216087801e-10 | AD97: 2.216087801e-10 | AE97: 1156025474 | AF97: 0 | AG97: FALSE | AH97: 0 | AI97: 7.005580764e-07 | AJ97: 7.005580764e-07 | AK97: 365687.5908 | AL97: 0 | AM97: FALSE | AN97: 0 | AO97: 0.002215359155 | AP97: 0.002215359155 | AQ97: 115.6405699 | AR97: 0 | AS97: TRUE | AT97: 0.5061476021 | AU97: 7.005580764 | AV97: 0
B98: 5 | C98: 9 | D98: 1073.432439 | F98: 89 | G98: 2 | H98: 10 | I98: 1129.983204 | J98: 1 | K98: 0.3759756181 | L98: 0.3759756181 | M98: 2.528456832e+19 | N98: 0 | O98: FALSE | P98: 0 | Q98: 1.726832977e-17 | R98: 1.726832977e-17 | S98: 7979003892570803 | T98: 0 | U98: FALSE | V98: 0 | W98: 5.601624754e-14 | X98: 5.601624754e-14 | Y98: 2.525159021e+12 | Z98: 0 | AA98: FALSE | AB98: 0 | AC98: 1.615100032e-10 | AD98: 1.615100032e-10 | AE98: 875225451.3 | AF98: 0 | AG98: FALSE | AH98: 0 | AI98: 5.105715445e-07 | AJ98: 5.105715445e-07 | AK98: 276861.6209 | AL98: 0 | AM98: FALSE | AN98: 0 | AO98: 0.001614568989 | AP98: 0.001614568989 | AQ98: 87.55133188 | AR98: 0 | AS98: TRUE | AT98: 0.3759756181 | AU98: 5.105715445 | AV98: 0
B99: 5 | C99: 10 | D99: 1282.605764 | F99: 90 | G99: 12 | H99: 3 | I99: 1145.6368 | J99: 1 | K99: 0.5204492153 | L99: 0.5204492153 | M99: 4.107179283e+19 | N99: 0 | O99: FALSE | P99: 0 | Q99: 2.037040055e-17 | R99: 2.037040055e-17 | S99: 1.296094878e+16 | T99: 0 | U99: FALSE | V99: 0 | W99: 6.607896738e-14 | X99: 6.607896738e-14 | Y99: 4.101822377e+12 | Z99: 0 | AA99: FALSE | AB99: 0 | AC99: 1.905235481e-10 | AD99: 1.905235481e-10 | AE99: 1421700302 | AF99: 0 | AG99: FALSE | AH99: 0 | AI99: 6.022902625e-07 | AJ99: 6.022902625e-07 | AK99: 449728.9806 | AL99: 0 | AM99: FALSE | AN99: 0 | AO99: 0.001904609042 | AP99: 0.001904609042 | AQ99: 142.2167908 | AR99: 0 | AS99: TRUE | AT99: 0.5204492153 | AU99: 6.022902625 | AV99: 0
B100: 5 | C100: 11 | D100: 1513.797335 | F100: 91 | G100: 6 | H100: 9 | I100: 1153.377589 | J100: 1 | K100: 0.03724946493 | L100: 0.03724946493 | M100: 3.178984301e+18 | N100: 0 | O100: FALSE | P100: 0 | Q100: 1.348149973e-18 | R100: 1.348149973e-18 | S100: 1.003186125e+15 | T100: 0 | U100: FALSE | V100: 0 | W100: 4.373225647e-15 | X100: 4.373225647e-15 | Y100: 3.17483802e+11 | Z100: 0 | AA100: FALSE | AB100: 0 | AC100: 1.260919321e-11 | AD100: 1.260919321e-11 | AE100: 110040556.5 | AF100: 0 | AG100: FALSE | AH100: 0 | AI100: 3.986065955e-08 | AJ100: 3.986065955e-08 | AK100: 34809.32461 | AL100: 0 | AM100: FALSE | AN100: 0 | AO100: 0.0001260504732 | AP100: 0.0001260504732 | AQ100: 11.00767496 | AR100: 0 | AS100: TRUE | AT100: 0.03724946493 | AU100: 0.3986065955 | AV100: 0
B101: 5 | C101: 12 | D101: 1767.00715 | F101: 92 | G101: 11 | H101: 5 | I101: 1154.624716 | J101: 1 | K101: 0.865109247 | L101: 0.865109247 | M101: 7.476463418e+19 | N101: 0 | O101: FALSE | P101: 0 | Q101: 3.091948195e-17 | R101: 3.091948195e-17 | S101: 2.359333565e+16 | T101: 0 | U101: FALSE | V101: 0 | W101: 1.002988348e-13 | X101: 1.002988348e-13 | Y101: 7.466712028e+12 | Z101: 0 | AA101: FALSE | AB101: 0 | AC101: 2.891886878e-10 | AD101: 2.891886878e-10 | AE101: 2587978163 | AF101: 0 | AG101: FALSE | AH101: 0 | AI101: 9.141942424e-07 | AJ101: 9.141942424e-07 | AK101: 818659.7273 | AL101: 0 | AM101: FALSE | AN101: 0 | AO101: 0.00289093603 | AP101: 0.00289093603 | AQ101: 258.8829367 | AR101: 0 | AS101: TRUE | AT101: 0.865109247 | AU101: 9.141942424 | AV101: 0
B102: 5 | C102: 13 | D102: 2042.23521 | F102: 93 | G102: 3 | H102: 10 | I102: 1166.321909 | J102: 1 | K102: 0.4590093122 | L102: 0.4590093122 | M102: 4.460092033e+19 | N102: 0 | O102: FALSE | P102: 0 | Q102: 1.459102111e-17 | R102: 1.459102111e-17 | S102: 1.407462893e+16 | T102: 0 | U102: FALSE | V102: 0 | W102: 4.733140154e-14 | X102: 4.733140154e-14 | Y102: 4.454274831e+12 | Z102: 0 | AA102: FALSE | AB102: 0 | AC102: 1.364692415e-10 | AD102: 1.364692415e-10 | AE102: 1543861067 | AF102: 0 | AG102: FALSE | AH102: 0 | AI102: 4.314117394e-07 | AJ102: 4.314117394e-07 | AK102: 488372.3122 | AL102: 0 | AM102: FALSE | AN102: 0 | AO102: 0.001364243706 | AP102: 0.001364243706 | AQ102: 154.4368853 | AR102: 0 | AS102: TRUE | AT102: 0.4590093122 | AU102: 4.314117394 | AV102: 0
B103: 5 | C103: 14 | D103: 2339.481515 | F103: 94 | G103: 8 | H103: 8 | I103: 1169.719255 | J103: 1 | K103: 0.1406640547 | L103: 0.1406640547 | M103: 1.413814484e+19 | N103: 0 | O103: FALSE | P103: 0 | Q103: 4.322752305e-18 | R103: 4.322752305e-18 | S103: 4.461547899e+15 | T103: 0 | U103: FALSE | V103: 0 | W103: 1.402245419e-14 | X103: 1.402245419e-14 | Y103: 1.411970476e+12 | Z103: 0 | AA103: FALSE | AB103: 0 | AC103: 4.043053078e-11 | AD103: 4.043053078e-11 | AE103: 489391949.9 | AF103: 0 | AG103: FALSE | AH103: 0 | AI103: 1.278105265e-07 | AJ103: 1.278105265e-07 | AK103: 154810.2244 | AL103: 0 | AM103: FALSE | AN103: 0 | AO103: 0.0004041723728 | AP103: 0.0004041723728 | AQ103: 48.95529142 | AR103: 0 | AS103: TRUE | AT103: 0.1406640547 | AU103: 1.278105265 | AV103: 0
B104: 5 | C104: 15 | D104: 2658.746065 | F104: 95 | G104: 4 | H104: 10 | I104: 1217.196096 | J104: 1 | K104: 0.4419845063 | L104: 0.4419845063 | M104: 7.055274177e+19 | N104: 0 | O104: FALSE | P104: 0 | Q104: 8.552374474e-18 | R104: 8.552374474e-18 | S104: 2.226419664e+16 | T104: 0 | U104: FALSE | V104: 0 | W104: 2.774280616e-14 | X104: 2.774280616e-14 | Y104: 7.046072135e+12 | Z104: 0 | AA104: FALSE | AB104: 0 | AC104: 7.99900191e-11 | AD104: 7.99900191e-11 | AE104: 2442183488 | AF104: 0 | AG104: FALSE | AH104: 0 | AI104: 2.528674806e-07 | AJ104: 2.528674806e-07 | AK104: 772540.2387 | AL104: 0 | AM104: FALSE | AN104: 0 | AO104: 0.000799637185 | AP104: 0.000799637185 | AQ104: 244.2986738 | AR104: 0 | AS104: TRUE | AT104: 0.4419845063 | AU104: 2.528674806 | AV104: 0
B105: 5 | C105: 16 | D105: 3000.028859 | F105: 96 | G105: 12 | H105: 4 | I105: 1222.700657 | J105: 1 | K105: 0.5834892561 | L105: 0.5834892561 | M105: 9.815748686e+19 | N105: 0 | O105: FALSE | P105: 0 | Q105: 1.071343675e-17 | R105: 1.071343675e-17 | S105: 3.097537437e+16 | T105: 0 | U105: FALSE | V105: 0 | W105: 3.47530151e-14 | X105: 3.47530151e-14 | Y105: 9.802946216e+12 | Z105: 0 | AA105: FALSE | AB105: 0 | AC105: 1.002023489e-10 | AD105: 1.002023489e-10 | AE105: 3397721869 | AF105: 0 | AG105: FALSE | AH105: 0 | AI105: 3.167634637e-07 | AJ105: 3.167634637e-07 | AK105: 1074807.391 | AL105: 0 | AM105: FALSE | AN105: 0 | AO105: 0.001001694025 | AP105: 0.001001694025 | AQ105: 339.8839402 | AR105: 0 | AS105: TRUE | AT105: 0.5834892561 | AU105: 3.167634637 | AV105: 0
B106: 5 | C106: 17 | D106: 3363.329898 | F106: 97 | G106: 13 | H106: 1 | I106: 1239.257345 | J106: 1 | K106: 0.05546753242 | L106: 0.05546753242 | M106: 1.091051849e+19 | N106: 0 | O106: FALSE | P106: 0 | Q106: 8.710013249e-19 | R106: 8.710013249e-19 | S106: 3443011893654954 | T106: 0 | U106: FALSE | V106: 0 | W106: 2.825416614e-15 | X106: 2.825416614e-15 | Y106: 1.089628813e+12 | Z106: 0 | AA106: FALSE | AB106: 0 | AC106: 8.146440831e-12 | AD106: 8.146440831e-12 | AE106: 377667648.6 | AF106: 0 | AG106: FALSE | AH106: 0 | AI106: 2.575283757e-08 | AJ106: 2.575283757e-08 | AK106: 119468.2778 | AL106: 0 | AM106: FALSE | AN106: 0 | AO106: 8.143762293e-05 | AP106: 8.143762293e-05 | AQ106: 37.7791866 | AR106: 0 | AS106: TRUE | AT106: 0.05546753242 | AU106: 0.2575283757 | AV106: 0
B107: 5 | C107: 18 | D107: 3748.649182 | F107: 98 | G107: 7 | H107: 9 | I107: 1247.858222 | J107: 1 | K107: 0.01885819422 | L107: 0.01885819422 | M107: 4.020040369e+18 | N107: 0 | O107: FALSE | P107: 0 | Q107: 2.732475694e-19 | R107: 2.732475694e-19 | S107: 1268596613535969 | T107: 0 | U107: FALSE | V107: 0 | W107: 8.863800779e-16 | X107: 8.863800779e-16 | Y107: 4.014797117e+11 | Z107: 0 | AA107: FALSE | AB107: 0 | AC107: 2.555673674e-12 | AD107: 2.555673674e-12 | AE107: 139153716.2 | AF107: 0 | AG107: FALSE | AH107: 0 | AI107: 8.0790925e-09 | AJ107: 8.0790925e-09 | AK107: 44018.74212 | AL107: 0 | AM107: FALSE | AN107: 0 | AO107: 2.554833373e-05 | AP107: 2.554833373e-05 | AQ107: 13.91994848 | AR107: 0 | AS107: TRUE | AT107: 0.01885819422 | AU107: 0.080790925 | AV107: 0
B108: 5 | C108: 19 | D108: 4155.986711 | F108: 99 | G108: 10 | H108: 7 | I108: 1266.221094 | J108: 1 | K108: 0.5680598634 | L108: 0.5680598634 | M108: 1.435119239e+20 | N108: 0 | O108: FALSE | P108: 0 | Q108: 6.945231665e-18 | R108: 6.945231665e-18 | S108: 4.528778918e+16 | T108: 0 | U108: FALSE | V108: 0 | W108: 2.252944097e-14 | X108: 2.252944097e-14 | Y108: 1.433247444e+13 | Z108: 0 | AA108: FALSE | AB108: 0 | AC108: 6.495847618e-11 | AD108: 6.495847618e-11 | AE108: 4967665921 | AF108: 0 | AG108: FALSE | AH108: 0 | AI108: 2.053491973e-07 | AJ108: 2.053491973e-07 | AK108: 1571430.581 | AL108: 0 | AM108: FALSE | AN108: 0 | AO108: 0.0006493711793 | AP108: 0.0006493711793 | AQ108: 496.929982 | AR108: 0 | AS108: TRUE | AT108: 0.5680598634 | AU108: 2.053491973 | AV108: 0
B109: 5 | C109: 20 | D109: 4585.342485 | F109: 100 | G109: 13 | H109: 2 | I109: 1272.284712 | J109: 1 | K109: 0.1037260542 | L109: 0.1037260542 | M109: 2.770157769e+19 | N109: 0 | O109: FALSE | P109: 0 | Q109: 1.199658743e-18 | R109: 1.199658743e-18 | S109: 8741735014762354 | T109: 0 | U109: FALSE | V109: 0 | W109: 3.891539137e-15 | X109: 3.891539137e-15 | Y109: 2.766544712e+12 | Z109: 0 | AA109: FALSE | AB109: 0 | AC109: 1.122036062e-11 | AD109: 1.122036062e-11 | AE109: 958890242 | AF109: 0 | AG109: FALSE | AH109: 0 | AI109: 3.547022935e-08 | AJ109: 3.547022935e-08 | AK109: 303327.4527 | AL109: 0 | AM109: FALSE | AN109: 0 | AO109: 0.0001121667139 | AP109: 0.0001121667139 | AQ109: 95.92056274 | AR109: 0 | AS109: TRUE | AT109: 0.1037260542 | AU109: 0.3547022935 | AV109: 0
B110: 6 | C110: 1 | D110: 272.647797 | F110: 101 | G110: 11 | H110: 6 | I110: 1275.725063 | J110: 1 | K110: 0.7332768906 | L110: 0.7332768906 | M110: 2.020785664e+20 | N110: 0 | O110: FALSE | P110: 0 | Q110: 8.218683527e-18 | R110: 8.218683527e-18 | S110: 6.37695549e+16 | T110: 0 | U110: FALSE | V110: 0 | W110: 2.666035552e-14 | X110: 2.666035552e-14 | Y110: 2.018149997e+13 | Z110: 0 | AA110: FALSE | AB110: 0 | AC110: 7.686902091e-11 | AD110: 7.686902091e-11 | AE110: 6994950525 | AF110: 0 | AG110: FALSE | AH110: 0 | AI110: 2.430012629e-07 | AJ110: 2.430012629e-07 | AK110: 2212725.119 | AL110: 0 | AM110: FALSE | AN110: 0 | AO110: 0.0007684374649 | AP110: 0.0007684374649 | AQ110: 699.7251211 | AR110: 0 | AS110: TRUE | AT110: 0.7332768906 | AU110: 2.430012629 | AV110: 0
B111: 6 | C111: 2 | D111: 305.6751642 | F111: 102 | G111: 5 | H111: 10 | I111: 1282.605764 | J111: 1 | K111: 0.328612403 | L111: 0.328612403 | M111: 9.640453144e+19 | N111: 0 | O111: FALSE | P111: 0 | Q111: 3.459847587e-18 | R111: 3.459847587e-18 | S111: 3.042219751e+16 | T111: 0 | U111: FALSE | V111: 0 | W111: 1.122330193e-14 | X111: 1.122330193e-14 | Y111: 9.627879308e+12 | Z111: 0 | AA111: FALSE | AB111: 0 | AC111: 3.235981719e-11 | AD111: 3.235981719e-11 | AE111: 3337043308 | AF111: 0 | AG111: FALSE | AH111: 0 | AI111: 1.022970808e-07 | AJ111: 1.022970808e-07 | AK111: 1055612.835 | AL111: 0 | AM111: FALSE | AN111: 0 | AO111: 0.0003234917733 | AP111: 0.0003234917733 | AQ111: 333.8140884 | AR111: 0 | AS111: TRUE | AT111: 0.328612403 | AU111: 1.022970808 | AV111: 0
B112: 6 | C112: 3 | D112: 360.7207762 | F112: 103 | G112: 9 | H112: 8 | I112: 1293.270852 | J112: 1 | K112: 0.2132270291 | L112: 0.2132270291 | M112: 6.887617969e+19 | N112: 0 | O112: FALSE | P112: 0 | Q112: 2.038928398e-18 | R112: 2.038928398e-18 | S112: 2.173512709e+16 | T112: 0 | U112: FALSE | V112: 0 | W112: 6.614022279e-15 | X112: 6.614022279e-15 | Y112: 6.878634598e+12 | Z112: 0 | AA112: FALSE | AB112: 0 | AC112: 1.90700164e-11 | AD112: 1.90700164e-11 | AE112: 2384149284 | AF112: 0 | AG112: FALSE | AH112: 0 | AI112: 6.028485874e-08 | AJ112: 6.028485874e-08 | AK112: 754182.1758 | AL112: 0 | AM112: FALSE | AN112: 0 | AO112: 0.000190637462 | AP112: 0.000190637462 | AQ112: 238.4933446 | AR112: 0 | AS112: TRUE | AT112: 0.2132270291 | AU112: 0.6028485874 | AV112: 0
B113: 6 | C113: 4 | D113: 437.784633 | F113: 104 | G113: 12 | H113: 5 | I113: 1321.782758 | J113: 1 | K113: 0.5706942977 | L113: 0.5706942977 | M113: 2.375431612e+20 | N113: 0 | O113: FALSE | P113: 0 | Q113: 4.23497692e-18 | R113: 4.23497692e-18 | S113: 7.496105069e+16 | T113: 0 | U113: FALSE | V113: 0 | W113: 1.37377221e-14 | X113: 1.37377221e-14 | Y113: 2.372333388e+13 | Z113: 0 | AA113: FALSE | AB113: 0 | AC113: 3.960957109e-11 | AD113: 3.960957109e-11 | AE113: 8222557640 | AF113: 0 | AG113: FALSE | AH113: 0 | AI113: 1.252152776e-07 | AJ113: 1.252152776e-07 | AK113: 2601056.257 | AL113: 0 | AM113: FALSE | AN113: 0 | AO113: 0.0003959654752 | AP113: 0.0003959654752 | AQ113: 822.5262095 | AR113: 0 | AS113: TRUE | AT113: 0.5706942977 | AU113: 1.252152776 | AV113: 0
B114: 6 | C114: 5 | D114: 536.8667347 | F114: 105 | G114: 13 | H114: 3 | I114: 1327.330324 | J114: 1 | K114: 0.1385034961 | L114: 0.1385034961 | M114: 6.052684267e+19 | N114: 0 | O114: FALSE | P114: 0 | Q114: 9.789487706e-19 | R114: 9.789487706e-19 | S114: 1.910034243e+16 | T114: 0 | U114: FALSE | V114: 0 | W114: 3.175584286e-15 | X114: 3.175584286e-15 | Y114: 6.044789881e+12 | Z114: 0 | AA114: FALSE | AB114: 0 | AC114: 9.156069007e-12 | AD114: 9.156069007e-12 | AE114: 2095136943 | AF114: 0 | AG114: FALSE | AH114: 0 | AI114: 2.894451243e-08 | AJ114: 2.894451243e-08 | AK114: 662758.389 | AL114: 0 | AM114: FALSE | AN114: 0 | AO114: 9.153058505e-05 | AP114: 9.153058505e-05 | AQ114: 209.5826048 | AR114: 0 | AS114: TRUE | AT114: 0.1385034961 | AU114: 0.2894451243 | AV114: 0
B115: 6 | C115: 6 | D115: 657.9670811 | F115: 106 | G115: 1 | H115: 11 | I115: 1339.371552 | J115: 1 | K115: 0.3398203106 | L115: 0.3398203106 | M115: 1.649443144e+20 | N115: 0 | O115: FALSE | P115: 0 | Q115: 2.162458732e-18 | R115: 2.162458732e-18 | S115: 5.205116853e+16 | T115: 0 | U115: FALSE | V115: 0 | W115: 7.014738844e-15 | X115: 7.014738844e-15 | Y115: 1.647291811e+13 | Z115: 0 | AA115: FALSE | AB115: 0 | AC115: 2.022539071e-11 | AD115: 2.022539071e-11 | AE115: 5709548219 | AF115: 0 | AG115: FALSE | AH115: 0 | AI115: 6.393727182e-08 | AJ115: 6.393727182e-08 | AK115: 1806111.525 | AL115: 0 | AM115: FALSE | AN115: 0 | AO115: 0.0002021874063 | AP115: 0.0002021874063 | AQ115: 571.1426127 | AR115: 0 | AS115: TRUE | AT115: 0.3398203106 | AU115: 0.6393727182 | AV115: 0
B116: 6 | C116: 7 | D116: 801.0856723 | F116: 107 | G116: 8 | H116: 9 | I116: 1356.874336 | J116: 1 | K116: 0.07085499423 | L116: 0.07085499423 | M116: 3.999600188e+19 | N116: 0 | O116: FALSE | P116: 0 | Q116: 3.8771345e-19 | R116: 3.8771345e-19 | S116: 1.262146344e+16 | T116: 0 | U116: FALSE | V116: 0 | W116: 1.257692717e-15 | X116: 1.257692717e-15 | Y116: 3.994383595e+12 | Z116: 0 | AA116: FALSE | AB116: 0 | AC116: 3.626268514e-12 | AD116: 3.626268514e-12 | AE116: 1384461793 | AF116: 0 | AG116: FALSE | AH116: 0 | AI116: 1.146349749e-08 | AJ116: 1.146349749e-08 | AK116: 437949.257 | AL116: 0 | AM116: FALSE | AN116: 0 | AO116: 3.625076202e-05 | AP116: 3.625076202e-05 | AQ116: 138.4917152 | AR116: 0 | AS116: TRUE | AT116: 0.07085499423 | AU116: 0.1146349749 | AV116: 0
B117: 6 | C117: 8 | D117: 966.2225083 | F117: 108 | G117: 2 | H117: 11 | I117: 1361.174775 | J117: 1 | K117: 0.6055638876 | L117: 0.6055638876 | M117: 3.546372093e+20 | N117: 0 | O117: FALSE | P117: 0 | Q117: 3.193906141e-18 | R117: 3.193906141e-18 | S117: 1.119122002e+17 | T117: 0 | U117: FALSE | V117: 0 | W117: 1.036062198e-14 | X117: 1.036062198e-14 | Y117: 3.541746636e+13 | Z117: 0 | AA117: FALSE | AB117: 0 | AC117: 2.98724774e-11 | AD117: 2.98724774e-11 | AE117: 1.227576867e+10 | AF117: 0 | AG117: FALSE | AH117: 0 | AI117: 9.443400796e-08 | AJ117: 9.443400796e-08 | AK117: 3883215.697 | AL117: 0 | AM117: FALSE | AN117: 0 | AO117: 0.0002986265537 | AP117: 0.0002986265537 | AQ117: 1227.980625 | AR117: 0 | AS117: TRUE | AT117: 0.6055638876 | AU117: 0.9443400796 | AV117: 0
B118: 6 | C118: 9 | D118: 1153.377589 | F118: 109 | G118: 6 | H118: 10 | I118: 1362.550915 | J118: 1 | K118: 0.1436067549 | L118: 0.1436067549 | M118: 8.509451572e+19 | N118: 0 | O118: FALSE | P118: 0 | Q118: 7.485738974e-19 | R118: 7.485738974e-19 | S118: 2.685311703e+16 | T118: 0 | U118: FALSE | V118: 0 | W118: 2.428277737e-15 | X118: 2.428277737e-15 | Y118: 8.498352878e+12 | Z118: 0 | AA118: FALSE | AB118: 0 | AC118: 7.001381959e-12 | AD118: 7.001381959e-12 | AE118: 2945547061 | AF118: 0 | AG118: FALSE | AH118: 0 | AI118: 2.213303406e-08 | AJ118: 2.213303406e-08 | AK118: 931770.1316 | AL118: 0 | AM118: FALSE | AN118: 0 | AO118: 6.999079915e-05 | AP118: 6.999079915e-05 | AQ118: 294.6515872 | AR118: 0 | AS118: TRUE | AT118: 0.1436067549 | AU118: 0.2213303406 | AV118: 0
B119: 6 | C119: 10 | D119: 1362.550915 | F119: 110 | G119: 3 | H119: 11 | I119: 1397.513479 | J119: 1 | K119: 0.7393018329 | L119: 0.7393018329 | M119: 5.881399598e+20 | N119: 0 | O119: FALSE | P119: 0 | Q119: 2.870446068e-18 | R119: 2.870446068e-18 | S119: 1.855982261e+17 | T119: 0 | U119: FALSE | V119: 0 | W119: 9.311358981e-15 | X119: 9.311358981e-15 | Y119: 5.873728616e+13 | Z119: 0 | AA119: FALSE | AB119: 0 | AC119: 2.684716818e-11 | AD119: 2.684716818e-11 | AE119: 2.035846747e+10 | AF119: 0 | AG119: FALSE | AH119: 0 | AI119: 8.487028577e-08 | AJ119: 8.487028577e-08 | AK119: 6440030.161 | AL119: 0 | AM119: FALSE | AN119: 0 | AO119: 0.0002683834087 | AP119: 0.0002683834087 | AQ119: 2036.516351 | AR119: 0 | AS119: TRUE | AT119: 0.7393018329 | AU119: 0.8487028577 | AV119: 0
B120: 6 | C120: 11 | D120: 1593.742485 | F120: 111 | G120: 13 | H120: 4 | I120: 1404.394181 | J120: 1 | K120: 0.1552798996 | L120: 0.1552798996 | M120: 1.30789893e+20 | N120: 0 | O120: FALSE | P120: 0 | Q120: 5.69433236e-19 | R120: 5.69433236e-19 | S120: 4.12731217e+16 | T120: 0 | U120: FALSE | V120: 0 | W120: 1.847168402e-15 | X120: 1.847168402e-15 | Y120: 1.306193066e+13 | Z120: 0 | AA120: FALSE | AB120: 0 | AC120: 5.325886461e-12 | AD120: 5.325886461e-12 | AE120: 4527292761 | AF120: 0 | AG120: FALSE | AH120: 0 | AI120: 1.683639417e-08 | AJ120: 1.683639417e-08 | AK120: 1432126.557 | AL120: 0 | AM120: FALSE | AN120: 0 | AO120: 5.324135317e-05 | AP120: 5.324135317e-05 | AQ120: 452.8781818 | AR120: 0 | AS120: TRUE | AT120: 0.1552798996 | AU120: 0.1683639417 | AV120: 0
B121: 6 | C121: 12 | D121: 1846.952301 | F121: 112 | G121: 11 | H121: 7 | I121: 1418.843654 | J121: 1 | K121: 0.5061419183 | L121: 0.5061419183 | M121: 4.801956275e+20 | N121: 0 | O121: FALSE | P121: 0 | Q121: 1.647831974e-18 | R121: 1.647831974e-18 | S121: 1.515344352e+17 | T121: 0 | U121: FALSE | V121: 0 | W121: 5.345355631e-15 | X121: 5.345355631e-15 | Y121: 4.795693187e+13 | Z121: 0 | AA121: FALSE | AB121: 0 | AC121: 1.541210707e-11 | AD121: 1.541210707e-11 | AE121: 1.66219739e+10 | AF121: 0 | AG121: FALSE | AH121: 0 | AI121: 4.872133711e-08 | AJ121: 4.872133711e-08 | AK121: 5258058.515 | AL121: 0 | AM121: FALSE | AN121: 0 | AO121: 0.0001540703959 | AP121: 0.0001540703959 | AQ121: 1662.744098 | AR121: 0 | AS121: FALSE | AT121: 0 | AU121: 0.4872133711 | AV121: 0.4872133711
B122: 6 | C122: 13 | D122: 2122.180361 | F122: 113 | G122: 10 | H122: 8 | I122: 1431.35793 | J122: 1 | K122: 0.23930908 | L122: 0.23930908 | M122: 2.51446778e+20 | N122: 0 | O122: FALSE | P122: 0 | Q122: 7.034914e-19 | R122: 7.034914e-19 | S122: 7.934858902e+16 | T122: 0 | U122: FALSE | V122: 0 | W122: 2.282035896e-15 | X122: 2.282035896e-15 | Y122: 2.511188214e+13 | Z122: 0 | AA122: FALSE | AB122: 0 | AC122: 6.57972715e-12 | AD122: 6.57972715e-12 | AE122: 8703831402 | AF122: 0 | AG122: FALSE | AH122: 0 | AI122: 2.080008289e-08 | AJ122: 2.080008289e-08 | AK122: 2753298.44 | AL122: 0 | AM122: FALSE | AN122: 0 | AO122: 6.577563745e-05 | AP122: 6.577563745e-05 | AQ122: 870.669415 | AR122: 0 | AS122: FALSE | AT122: 0 | AU122: 0.2080008289 | AV122: 0.2080008289
B123: 6 | C123: 14 | D123: 2419.426665 | F123: 114 | G123: 14 | H123: 1 | I123: 1435.486351 | J123: 1 | K123: 0.1095843842 | L123: 0.1095843842 | M123: 1.190634677e+20 | N123: 0 | O123: FALSE | P123: 0 | Q123: 3.115339124e-19 | R123: 3.115339124e-19 | S123: 3.757263561e+16 | T123: 0 | U123: FALSE | V123: 0 | W123: 1.010576065e-15 | X123: 1.010576065e-15 | Y123: 1.189081758e+13 | Z123: 0 | AA123: FALSE | AB123: 0 | AC123: 2.913764321e-12 | AD123: 2.913764321e-12 | AE123: 4121382493 | AF123: 0 | AG123: FALSE | AH123: 0 | AI123: 9.211102225e-09 | AJ123: 9.211102225e-09 | AK123: 1303724.241 | AL123: 0 | AM123: FALSE | AN123: 0 | AO123: 2.912806279e-05 | AP123: 2.912806279e-05 | AQ123: 412.2738044 | AR123: 0 | AS123: FALSE | AT123: 0 | AU123: 0.09211102225 | AV123: 0.09211102225
B124: 6 | C124: 15 | D124: 2738.691215 | F124: 115 | G124: 12 | H124: 6 | I124: 1442.883105 | J124: 1 | K124: 0.4837272767 | L124: 0.4837272767 | M124: 5.579332891e+20 | N124: 0 | O124: FALSE | P124: 0 | Q124: 1.295404477e-18 | R124: 1.295404477e-18 | S124: 1.760659636e+17 | T124: 0 | U124: FALSE | V124: 0 | W124: 4.202126018e-15 | X124: 4.202126018e-15 | Y124: 5.572055888e+13 | Z124: 0 | AA124: FALSE | AB124: 0 | AC124: 1.211586667e-11 | AD124: 1.211586667e-11 | AE124: 1.931286342e+10 | AF124: 0 | AG124: FALSE | AH124: 0 | AI124: 3.8301137e-08 | AJ124: 3.8301137e-08 | AK124: 6109272.376 | AL124: 0 | AM124: FALSE | AN124: 0 | AO124: 0.0001211188299 | AP124: 0.0001211188299 | AQ124: 1931.921555 | AR124: 0 | AS124: FALSE | AT124: 0 | AU124: 0.38301137 | AV124: 0.38301137
B125: 6 | C125: 16 | D125: 3079.97401 | F125: 116 | G125: 4 | H125: 11 | I125: 1448.387666 | J125: 1 | K125: 0.7118808855 | L125: 0.7118808855 | M125: 8.582539888e+20 | N125: 0 | O125: FALSE | P125: 0 | Q125: 1.823834164e-18 | R125: 1.823834164e-18 | S125: 2.708376046e+17 | T125: 0 | U125: FALSE | V125: 0 | W125: 5.916284166e-15 | X125: 5.916284166e-15 | Y125: 8.571345867e+13 | Z125: 0 | AA125: FALSE | AB125: 0 | AC125: 1.705824857e-11 | AD125: 1.705824857e-11 | AE125: 2.970846586e+10 | AF125: 0 | AG125: FALSE | AH125: 0 | AI125: 5.392518202e-08 | AJ125: 5.392518202e-08 | AK125: 9397731.75 | AL125: 0 | AM125: FALSE | AN125: 0 | AO125: 0.0001705263984 | AP125: 0.0001705263984 | AQ125: 2971.823717 | AR125: 0 | AS125: FALSE | AT125: 0 | AU125: 0.5392518202 | AV125: 0.5392518202
B126: 6 | C126: 17 | D126: 3443.275049 | F126: 117 | G126: 7 | H126: 10 | I126: 1457.031547 | J126: 1 | K126: 0.07270343563 | L126: 0.07270343563 | M126: 9.393091353e+19 | N126: 0 | O126: FALSE | P126: 0 | Q126: 1.738152331e-19 | R126: 1.738152331e-19 | S126: 2.964160254e+16 | T126: 0 | U126: FALSE | V126: 0 | W126: 5.638343288e-16 | X126: 5.638343288e-16 | Y126: 9.380840147e+12 | Z126: 0 | AA126: FALSE | AB126: 0 | AC126: 1.625686979e-12 | AD126: 1.625686979e-12 | AE126: 3251419013 | AF126: 0 | AG126: FALSE | AH126: 0 | AI126: 5.139183303e-09 | AJ126: 5.139183303e-09 | AK126: 1028527.149 | AL126: 0 | AM126: FALSE | AN126: 0 | AO126: 1.625152455e-05 | AP126: 1.625152455e-05 | AQ126: 325.2488427 | AR126: 0 | AS126: FALSE | AT126: 0 | AU126: 0.05139183303 | AV126: 0.05139183303
B127: 6 | C127: 18 | D127: 3828.594333 | F127: 118 | G127: 14 | H127: 2 | I127: 1468.513718 | J127: 1 | K127: 0.2049262925 | L127: 0.2049262925 | M127: 2.900597661e+20 | N127: 0 | O127: FALSE | P127: 0 | Q127: 4.471923717e-19 | R127: 4.471923717e-19 | S127: 9.153361738e+16 | T127: 0 | U127: FALSE | V127: 0 | W127: 1.450634712e-15 | X127: 1.450634712e-15 | Y127: 2.896814474e+13 | Z127: 0 | AA127: FALSE | AB127: 0 | AC127: 4.182572508e-12 | AD127: 4.182572508e-12 | AE127: 1.004042016e+10 | AF127: 0 | AG127: FALSE | AH127: 0 | AI127: 1.322210676e-08 | AJ127: 1.322210676e-08 | AK127: 3176103.937 | AL127: 0 | AM127: FALSE | AN127: 0 | AO127: 4.181197284e-05 | AP127: 4.181197284e-05 | AQ127: 1004.372253 | AR127: 0 | AS127: FALSE | AT127: 0 | AU127: 0.1322210676 | AV127: 0.1322210676
B128: 6 | C128: 19 | D128: 4235.931862 | F128: 119 | G128: 9 | H128: 9 | I128: 1480.425932 | J128: 1 | K128: 0.1074062592 | L128: 0.1074062592 | M128: 1.669990095e+20 | N128: 0 | O128: FALSE | P128: 0 | Q128: 2.133692348e-19 | R128: 2.133692348e-19 | S128: 5.26995648e+16 | T128: 0 | U128: FALSE | V128: 0 | W128: 6.921424382e-16 | X128: 6.921424382e-16 | Y128: 1.667811963e+13 | Z128: 0 | AA128: FALSE | AB128: 0 | AC128: 1.995633986e-12 | AD128: 1.995633986e-12 | AE128: 5780671498 | AF128: 0 | AG128: FALSE | AH128: 0 | AI128: 6.308673808e-09 | AJ128: 6.308673808e-09 | AK128: 1828610.078 | AL128: 0 | AM128: FALSE | AN128: 0 | AO128: 1.994977825e-05 | AP128: 1.994977825e-05 | AQ128: 578.2572799 | AR128: 0 | AS128: FALSE | AT128: 0 | AU128: 0.06308673808 | AV128: 0.06308673808
B129: 6 | C129: 20 | D129: 4665.287636 | F129: 120 | G129: 13 | H129: 5 | I129: 1503.476282 | J129: 1 | K129: 0.1518748671 | L129: 0.1518748671 | M129: 2.826080345e+20 | N129: 0 | O129: FALSE | P129: 0 | Q129: 2.521005718e-19 | R129: 2.521005718e-19 | S129: 8.91820884e+16 | T129: 0 | U129: FALSE | V129: 0 | W129: 8.177819291e-16 | X129: 8.177819291e-16 | Y129: 2.822394349e+13 | Z129: 0 | AA129: FALSE | AB129: 0 | AC129: 2.357886645e-12 | AD129: 2.357886645e-12 | AE129: 9782478442 | AF129: 0 | AG129: FALSE | AH129: 0 | AI129: 7.453840643e-09 | AJ129: 7.453840643e-09 | AK129: 3094508.774 | AL129: 0 | AM129: FALSE | AN129: 0 | AO129: 2.357111375e-05 | AP129: 2.357111375e-05 | AQ129: 978.5695964 | AR129: 0 | AS129: FALSE | AT129: 0 | AU129: 0.07453840643 | AV129: 0.07453840643
B130: 7 | C130: 1 | D130: 367.1284295 | F130: 121 | G130: 5 | H130: 11 | I130: 1513.797335 | J130: 1 | K130: 0.5292784817 | L130: 0.5292784817 | M130: 1.066418574e+21 | N130: 0 | O130: FALSE | P130: 0 | Q130: 8.113855854e-19 | R130: 8.113855854e-19 | S130: 3.36527713e+17 | T130: 0 | U130: FALSE | V130: 0 | W130: 2.632030799e-15 | X130: 2.632030799e-15 | Y130: 1.065027667e+14 | Z130: 0 | AA130: FALSE | AB130: 0 | AC130: 7.588857185e-12 | AD130: 7.588857185e-12 | AE130: 3.691408395e+10 | AF130: 0 | AG130: FALSE | AH130: 0 | AI130: 2.399018301e-08 | AJ130: 2.399018301e-08 | AK130: 11677097.71 | AL130: 0 | AM130: FALSE | AN130: 0 | AO130: 7.58636198e-05 | AP130: 7.58636198e-05 | AQ130: 3692.622524 | AR130: 0 | AS130: FALSE | AT130: 0 | AU130: 0.2399018301 | AV130: 0.2399018301
B131: 7 | C131: 2 | D131: 400.1557967 | F131: 122 | G131: 14 | H131: 3 | I131: 1523.55933 | J131: 1 | K131: 0.2736343166 | L131: 0.2736343166 | M131: 5.941165626e+20 | N131: 0 | O131: FALSE | P131: 0 | Q131: 3.89274519e-19 | R131: 3.89274519e-19 | S131: 1.874842514e+17 | T131: 0 | U131: FALSE | V131: 0 | W131: 1.262756625e-15 | X131: 1.262756625e-15 | Y131: 5.933416691e+13 | Z131: 0 | AA131: FALSE | AB131: 0 | AC131: 3.64086913e-12 | AD131: 3.64086913e-12 | AE131: 2.05653476e+10 | AF131: 0 | AG131: FALSE | AH131: 0 | AI131: 1.150965351e-08 | AJ131: 1.150965351e-08 | AK131: 6505472.92 | AL131: 0 | AM131: FALSE | AN131: 0 | AO131: 3.639672017e-05 | AP131: 3.639672017e-05 | AQ131: 2057.211168 | AR131: 0 | AS131: FALSE | AT131: 0 | AU131: 0.1150965351 | AV131: 0.1150965351
B132: 7 | C132: 3 | D132: 455.2014087 | F132: 123 | G132: 8 | H132: 10 | I132: 1566.047662 | J132: 1 | K132: 0.2731651531 | L132: 0.2731651531 | M132: 8.166104452e+20 | N132: 0 | O132: FALSE | P132: 0 | Q132: 2.822423479e-19 | R132: 2.822423479e-19 | S132: 2.576962295e+17 | T132: 0 | U132: FALSE | V132: 0 | W132: 9.155579861e-16 | X132: 9.155579861e-16 | Y132: 8.155453578e+13 | Z132: 0 | AA132: FALSE | AB132: 0 | AC132: 2.639801481e-12 | AD132: 2.639801481e-12 | AE132: 2.82669744e+10 | AF132: 0 | AG132: FALSE | AH132: 0 | AI132: 8.345040511e-09 | AJ132: 8.345040511e-09 | AK132: 8941742.197 | AL132: 0 | AM132: FALSE | AN132: 0 | AO132: 2.638933518e-05 | AP132: 2.638933518e-05 | AQ132: 2827.627159 | AR132: 0 | AS132: FALSE | AT132: 0 | AU132: 0.08345040511 | AV132: 0.08345040511
B133: 7 | C133: 4 | D133: 532.2652655 | F133: 124 | G133: 11 | H133: 8 | I133: 1583.98049 | J133: 1 | K133: 0.2132246347 | L133: 0.2132246347 | M133: 7.276450343e+20 | N133: 0 | O133: FALSE | P133: 0 | Q133: 1.929930641e-19 | R133: 1.929930641e-19 | S133: 2.296215813e+17 | T133: 0 | U133: FALSE | V133: 0 | W133: 6.260447532e-16 | X133: 6.260447532e-16 | Y133: 7.266959826e+13 | Z133: 0 | AA133: FALSE | AB133: 0 | AC133: 1.80505647e-12 | AD133: 1.80505647e-12 | AE133: 2.518743628e+10 | AF133: 0 | AG133: FALSE | AH133: 0 | AI133: 5.706212939e-09 | AJ133: 5.706212939e-09 | AK133: 7967586.437 | AL133: 0 | AM133: FALSE | AN133: 0 | AO133: 1.80446297e-05 | AP133: 1.80446297e-05 | AQ133: 2519.57206 | AR133: 0 | AS133: FALSE | AT133: 0 | AU133: 0.05706212939 | AV133: 0.05706212939
B134: 7 | C134: 5 | D134: 631.3473671 | F134: 125 | G134: 12 | H134: 7 | I134: 1586.001696 | J134: 1 | K134: 0.333891133 | L134: 0.333891133 | M134: 1.156448228e+21 | N134: 0 | O134: FALSE | P134: 0 | Q134: 2.977625601e-19 | R134: 2.977625601e-19 | S134: 3.649382025e+17 | T134: 0 | U134: FALSE | V134: 0 | W134: 9.659035641e-16 | X134: 9.659035641e-16 | Y134: 1.154939898e+14 | Z134: 0 | AA134: FALSE | AB134: 0 | AC134: 2.784961409e-12 | AD134: 2.784961409e-12 | AE134: 4.003046086e+10 | AF134: 0 | AG134: FALSE | AH134: 0 | AI134: 8.803925579e-09 | AJ134: 8.803925579e-09 | AK134: 12662906.75 | AL134: 0 | AM134: FALSE | AN134: 0 | AO134: 2.784045718e-05 | AP134: 2.784045718e-05 | AQ134: 4004.362714 | AR134: 0 | AS134: FALSE | AT134: 0 | AU134: 0.08803925579 | AV134: 0.08803925579
B135: 7 | C135: 6 | D135: 752.4477136 | F135: 126 | G135: 1 | H135: 12 | I135: 1592.581367 | J135: 1 | K135: 0.4244910469 | L135: 0.4244910469 | M135: 1.542746385e+21 | N135: 0 | O135: FALSE | P135: 0 | Q135: 3.607688611e-19 | R135: 3.607688611e-19 | S135: 4.868415886e+17 | T135: 0 | U135: FALSE | V135: 0 | W135: 1.170287926e-15 | X135: 1.170287926e-15 | Y135: 1.540734214e+14 | Z135: 0 | AA135: FALSE | AB135: 0 | AC135: 3.374256843e-12 | AD135: 3.374256843e-12 | AE135: 5.340217336e+10 | AF135: 0 | AG135: FALSE | AH135: 0 | AI135: 1.066682864e-08 | AJ135: 1.066682864e-08 | AK135: 16892804.31 | AL135: 0 | AM135: FALSE | AN135: 0 | AO135: 3.373147392e-05 | AP135: 3.373147392e-05 | AQ135: 5341.973769 | AR135: 0 | AS135: FALSE | AT135: 0 | AU135: 0.1066682864 | AV135: 0.1066682864
B136: 7 | C136: 7 | D136: 895.5663048 | F136: 127 | G136: 6 | H136: 11 | I136: 1593.742485 | J136: 1 | K136: 0.2312997455 | L136: 0.2312997455 | M136: 8.477762657e+20 | N136: 0 | O136: FALSE | P136: 0 | Q136: 1.94919626e-19 | R136: 1.94919626e-19 | S136: 2.675311691e+17 | T136: 0 | U136: FALSE | V136: 0 | W136: 6.32294273e-16 | X136: 6.32294273e-16 | Y136: 8.466705294e+13 | Z136: 0 | AA136: FALSE | AB136: 0 | AC136: 1.823075527e-12 | AD136: 1.823075527e-12 | AE136: 2.934577942e+10 | AF136: 0 | AG136: FALSE | AH136: 0 | AI136: 5.763175466e-09 | AJ136: 5.763175466e-09 | AK136: 9283002.505 | AL136: 0 | AM136: FALSE | AN136: 0 | AO136: 1.822476103e-05 | AP136: 1.822476103e-05 | AQ136: 2935.543144 | AR136: 0 | AS136: FALSE | AT136: 0 | AU136: 0.05763175466 | AV136: 0.05763175466
B137: 7 | C137: 8 | D137: 1060.703141 | F137: 128 | G137: 14 | H137: 4 | I137: 1600.623187 | J137: 1 | K137: 0.3067786042 | L137: 0.3067786042 | M137: 1.182181817e+21 | N137: 0 | O137: FALSE | P137: 0 | Q137: 2.458965143e-19 | R137: 2.458965143e-19 | S137: 3.730589029e+17 | T137: 0 | U137: FALSE | V137: 0 | W137: 7.976567621e-16 | X137: 7.976567621e-16 | Y137: 1.180639923e+14 | Z137: 0 | AA137: FALSE | AB137: 0 | AC137: 2.299860341e-12 | AD137: 2.299860341e-12 | AE137: 4.092122915e+10 | AF137: 0 | AG137: FALSE | AH137: 0 | AI137: 7.270405692e-09 | AJ137: 7.270405692e-09 | AK137: 12944685.07 | AL137: 0 | AM137: FALSE | AN137: 0 | AO137: 2.29910415e-05 | AP137: 2.29910415e-05 | AQ137: 4093.468841 | AR137: 0 | AS137: FALSE | AT137: 0 | AU137: 0.07270405692 | AV137: 0.07270405692
B138: 7 | C138: 9 | D138: =3.1416/2*SQRT($H$2/$I$2)*(B138^2/$C$2^2+C138^2/$D$2^2) -> 1247.858222 | F138: 129 | G138: 2 | H138: 12 | I138: 1614.38459 | J138: 1 | K138: =ABS(SIN(G138*3.1416*$J$2/$C$2)*SIN(H138*3.1416*$K$2/$D$2))*(1/F138^$M$2)+(1-1/F138^$M$2) -> 0.7564481597 | L138: 0.7564481597 | M138: 3.220071095e+21 | N138: 0 | O138: FALSE | P138: 0 | Q138: 5.488825123e-19 | R138: 5.488825123e-19 | S138: 1.016151807e+18 | T138: 0 | U138: =AND($I138>44.548,$I138<89.095) -> FALSE | V138: 0 | W138: 1.780504489e-15 | X138: =IF($I138>89.095,W138,0) -> 1.780504489e-15 | Y138: 3.215871225e+14 | Z138: 0 | AA138: FALSE | AB138: 0 | AC138: 5.133676358e-12 | AD138: 5.133676358e-12 | AE138: 1.114627761e+11 | AF138: 0 | AG138: FALSE | AH138: 0 | AI138: 1.622877231e-08 | AJ138: 1.622877231e-08 | AK138: 35259217.85 | AL138: 0 | AM138: FALSE | AN138: 0 | AO138: 5.131988413e-05 | AP138: 5.131988413e-05 | AQ138: 11149.94369 | AR138: 0 | AS138: FALSE | AT138: 0 | AU138: 0.1622877231 | AV138: 0.1622877231
B139: 7 | C139: 10 | D139: 1457.031547 | F139: 130 | G139: 10 | H139: 9 | I139: 1618.513011 | J139: =IF(ABS(I139-I138)>0.0001,1,$L$2) -> 1 | K139: 0.1205442536 | L139: =$J139*$K139 -> 0.1205442536 | M139: =10^(LOG10($I139/22.27)/LOG10(2)*70/20)*$L139 -> 5.286023544e+20 | N139: =IF($I139<22.27,M139,0) -> 0 | O139: =AND($I139>22.27,$I139<44.45) -> FALSE | P139: =IF($O139=TRUE,$L139,0) -> 0 | Q139: =10^(LOG10(44.45/$I139)/LOG10(2)*70/20)*$L139 -> 8.490835839e-20 | R139: =IF($I139>44.45,Q139,0) -> 8.490835839e-20 | S139: =10^(LOG10($I139/44.548)/LOG10(2)*70/20)*$L139 -> 1.668100554e+17 | T139: =IF($I139<44.528,S139,0) -> 0 | U139: FALSE | V139: =IF($U139=TRUE,$L139,0) -> 0 | W139: =10^(LOG10(89.095/$I139)/LOG10(2)*70/20)*$L139 -> 2.754318272e-16 | X139: 2.754318272e-16 | Y139: =10^(LOG10($I139/89.09)/LOG10(2)*70/20)*$L139 -> 5.279129098e+13 | Z139: =IF($I139<89.09,Y139,0) -> 0 | AA139: =AND($I139>89.09,$I139<176.78) -> FALSE | AB139: =IF($AA139=TRUE,$L139,0) -> 0 | AC139: =10^(LOG10(176.78/$I139)/LOG10(2)*70/20)*$L139 -> 7.941445069e-13 | AD139: =IF($I139>176.78,AC139,0) -> 7.941445069e-13 | AE139: =10^(LOG10($I139/176.78)/LOG10(2)*70/20)*$L139 -> 1.829757298e+10 | AF139: =IF($I139<176.78,AE139,0) -> 0 | AG139: =AND($I139>176.78,$I139<353.55) -> FALSE | AH139: =IF($AG139=TRUE,$L139,0) -> 0 | AI139: =10^(LOG10(353.55/$I139)/LOG10(2)*70/20)*$L139 -> 2.51047972e-09 | AJ139: =IF($I139>353.55,AI139,0) -> 2.51047972e-09 | AK139: =10^(LOG10($I139/353.55)/LOG10(2)*70/20)*$L139 -> 5788103.747 | AL139: =IF($I139<353.55,AK139,0) -> 0 | AM139: =AND($I139>353.55,$I139<707.1) -> FALSE | AN139: =IF($AM139=TRUE,$L139,0) -> 0 | AO139: =10^(LOG10(707.1/$I139)/LOG10(2)*70/20)*$L139 -> 7.938833933e-06 | AP139: =IF($I139>707.1,AO139,0) -> 7.938833933e-06 | AQ139: =10^(LOG10($I139/707.1)/LOG10(2)*70/20)*$L139 -> 1830.359118 | AR139: =IF($I139<707.1,AQ139,0) -> 0 | AS139: =AND($I139>707.1,$I139<1414.2) -> FALSE | AT139: =IF($AS139=TRUE,$L139,0) -> 0 | AU139: =10^(LOG10(1414.2/$I139)/LOG10(2)*70/20)*$L139 -> 0.0251047972 | AV139: =IF($I139>1414.2,AU139,0) -> 0.0251047972
B140: 7 | C140: 11 | D140: 1688.223118 | F140: 131 | G140: 13 | H140: 6 | I140: 1624.576629 | J140: 1 | K140: 0.1287309444 | L140: 0.1287309444 | M140: 5.895863886e+20 | N140: 0 | O140: FALSE | P140: 0 | Q140: 8.681704007e-20 | R140: 8.681704007e-20 | S140: 1.860546729e+17 | T140: 0 | U140: FALSE | V140: 0 | W140: 2.816233458e-16 | X140: 2.816233458e-16 | Y140: 5.888174038e+13 | Z140: 0 | AA140: FALSE | AB140: 0 | AC140: 8.119963309e-13 | AD140: 8.119963309e-13 | AE140: 2.040853561e+10 | AF140: 0 | AG140: FALSE | AH140: 0 | AI140: 2.566913582e-09 | AJ140: 2.566913582e-09 | AK140: 6455868.304 | AL140: 0 | AM140: FALSE | AN140: 0 | AO140: 8.117293477e-06 | AP140: 8.117293477e-06 | AQ140: 2041.524811 | AR140: 0 | AS140: FALSE | AT140: 0 | AU140: 0.02566913582 | AV140: 0.02566913582
B141: 7 | C141: 12 | D141: 1941.432933 | F141: 132 | G141: 15 | H141: 1 | I141: 1646.250839 | J141: 1 | K141: 0.2507482253 | L141: 0.2507482253 | M141: 1.339749775e+21 | N141: 0 | O141: FALSE | P141: 0 | Q141: 1.449567878e-19 | R141: 1.449567878e-19 | S141: 4.227823283e+17 | T141: 0 | U141: FALSE | V141: 0 | W141: 4.702212324e-16 | X141: 4.702212324e-16 | Y141: 1.338002368e+14 | Z141: 0 | AA141: FALSE | AB141: 0 | AC141: 1.355775084e-12 | AD141: 1.355775084e-12 | AE141: 4.637544474e+10 | AF141: 0 | AG141: FALSE | AH141: 0 | AI141: 4.285927591e-09 | AJ141: 4.285927591e-09 | AK141: 14670026.77 | AL141: 0 | AM141: FALSE | AN141: 0 | AO141: 1.355329307e-05 | AP141: 1.355329307e-05 | AQ141: 4639.069793 | AR141: 0 | AS141: FALSE | AT141: 0 | AU141: 0.04285927591 | AV141: 0.04285927591
B142: 7 | C142: 13 | D142: 2216.660993 | F142: 133 | G142: 3 | H142: 12 | I142: 1650.723295 | J142: 1 | K142: 0.9235086873 | L142: 0.9235086873 | M142: 5.092444067e+21 | N142: 0 | O142: FALSE | P142: 0 | Q142: 5.172996873e-19 | R142: 5.172996873e-19 | S142: 1.607013041e+18 | T142: 0 | U142: FALSE | V142: 0 | W142: 1.678053855e-15 | X142: 1.678053855e-15 | Y142: 5.085802102e+14 | Z142: 0 | AA142: FALSE | AB142: 0 | AC142: 4.838283449e-12 | AD142: 4.838283449e-12 | AE142: 1.762749753e+11 | AF142: 0 | AG142: FALSE | AH142: 0 | AI142: 1.529496505e-08 | AJ142: 1.529496505e-08 | AK142: 55761375.9 | AL142: 0 | AM142: FALSE | AN142: 0 | AO142: 4.836692629e-05 | AP142: 4.836692629e-05 | AQ142: 17633.29533 | AR142: 0 | AS142: FALSE | AT142: 0 | AU142: 0.1529496505 | AV142: 0.1529496505
B143: 7 | C143: 14 | D143: 2513.907298 | F143: 134 | G143: 15 | H143: 2 | I143: 1679.278206 | J143: 1 | K143: 0.4689071763 | L143: 0.4689071763 | M143: 3.156258058e+21 | N143: 0 | O143: FALSE | P143: 0 | Q143: 2.151729964e-19 | R143: 2.151729964e-19 | S143: 9.960144469e+17 | T143: 0 | U143: FALSE | V143: 0 | W143: 6.979936096e-16 | X143: 6.979936096e-16 | Y143: 3.152141419e+14 | Z143: 0 | AA143: FALSE | AB143: 0 | AC143: 2.012504497e-12 | AD143: 2.012504497e-12 | AE143: 1.092538875e+11 | AF143: 0 | AG143: FALSE | AH143: 0 | AI143: 6.362005506e-09 | AJ143: 6.362005506e-09 | AK143: 34560476.21 | AL143: 0 | AM143: FALSE | AN143: 0 | AO143: 2.011842789e-05 | AP143: 2.011842789e-05 | AQ143: 10928.98218 | AR143: 0 | AS143: FALSE | AT143: 0 | AU143: 0.06362005506 | AV143: 0.06362005506
B144: 7 | C144: 15 | D144: 2833.171848 | F144: 135 | G144: 7 | H144: 11 | I144: 1688.223118 | J144: 1 | K144: 0.1170995485 | L144: 0.1170995485 | M144: 8.38428397e+20 | N144: 0 | O144: FALSE | P144: 0 | Q144: 5.051623503e-20 | R144: 5.051623503e-20 | S144: 2.645812797e+17 | T144: 0 | U144: FALSE | V144: 0 | W144: 1.63868189e-16 | X144: 1.63868189e-16 | Y144: 8.373348529e+13 | Z144: 0 | AA144: FALSE | AB144: 0 | AC144: 4.724763418e-13 | AD144: 4.724763418e-13 | AE144: 2.90222029e+10 | AF144: 0 | AG144: FALSE | AH144: 0 | AI144: 1.493610122e-09 | AJ144: 1.493610122e-09 | AK144: 9180644.971 | AL144: 0 | AM144: FALSE | AN144: 0 | AO144: 4.723209922e-06 | AP144: 4.723209922e-06 | AQ144: 2903.17485 | AR144: 0 | AS144: FALSE | AT144: 0 | AU144: 0.01493610122 | AV144: 0.01493610122
B145: 7 | C145: 16 | D145: 3174.454642 | F145: 136 | G145: 9 | H145: 10 | I145: 1689.599258 | J145: 1 | K145: 0.4140801583 | L145: 0.4140801583 | M145: 2.993019204e+21 | N145: 0 | O145: FALSE | P145: 0 | Q145: 1.769480786e-19 | R145: 1.769480786e-19 | S145: 9.445014673e+17 | T145: 0 | U145: FALSE | V145: 0 | W145: 5.739968776e-16 | X145: 5.739968776e-16 | Y145: 2.989115474e+14 | Z145: 0 | AA145: FALSE | AB145: 0 | AC145: 1.654988358e-12 | AD145: 1.654988358e-12 | AE145: 1.036033738e+11 | AF145: 0 | AG145: FALSE | AH145: 0 | AI145: 5.231811933e-09 | AJ145: 5.231811933e-09 | AK145: 32773039.18 | AL145: 0 | AM145: FALSE | AN145: 0 | AO145: 1.6544442e-05 | AP145: 1.6544442e-05 | AQ145: 10363.74497 | AR145: 0 | AS145: FALSE | AT145: 0 | AU145: 0.05231811933 | AV145: 0.05231811933
B146: 7 | C146: 17 | D146: 3537.755681 | F146: 137 | G146: 14 | H146: 5 | I146: 1699.705288 | J146: 1 | K146: 0.3000514547 | L146: 0.3000514547 | M146: 2.32451908e+21 | N146: 0 | O146: FALSE | P146: 0 | Q146: 1.196313135e-19 | R146: 1.196313135e-19 | S146: 7.335441346e+17 | T146: 0 | U146: FALSE | V146: 0 | W146: 3.880686413e-16 | X146: 3.880686413e-16 | Y146: 2.32148726e+14 | Z146: 0 | AA146: FALSE | AB146: 0 | AC146: 1.118906928e-12 | AD146: 1.118906928e-12 | AE146: 8.046323888e+10 | AF146: 0 | AG146: FALSE | AH146: 0 | AI146: 3.537130997e-09 | AJ146: 3.537130997e-09 | AK146: 25453079.21 | AL146: 0 | AM146: FALSE | AN146: 0 | AO146: 1.118539033e-05 | AP146: 1.118539033e-05 | AQ146: 8048.970377 | AR146: 0 | AS146: FALSE | AT146: 0 | AU146: 0.03537130997 | AV146: 0.03537130997
B147: 7 | C147: 18 | D147: 3923.074965 | F147: 138 | G147: 4 | H147: 12 | I147: 1701.597481 | J147: 1 | K147: 0.8892554473 | L147: 0.8892554473 | M147: 6.978820937e+21 | N147: 0 | O147: FALSE | P147: 0 | Q147: 3.499915236e-19 | R147: 3.499915236e-19 | S147: 2.202293459e+18 | T147: 0 | U147: FALSE | V147: 0 | W147: 1.135327625e-15 | X147: 1.135327625e-15 | Y147: 696971861112664 | Z147: 0 | AA147: FALSE | AB147: 0 | AC147: 3.273456833e-12 | AD147: 3.273456833e-12 | AE147: 2.415719195e+11 | AF147: 0 | AG147: FALSE | AH147: 0 | AI147: 1.034817583e-08 | AJ147: 1.034817583e-08 | AK147: 76416874.19 | AL147: 0 | AM147: FALSE | AN147: 0 | AO147: 3.272380525e-05 | AP147: 3.272380525e-05 | AQ147: 24165.13741 | AR147: 0 | AS147: FALSE | AT147: 0 | AU147: 0.1034817583 | AV147: 0.1034817583
B148: 7 | C148: 19 | D148: 4330.412494 | F148: 139 | G148: 15 | H148: 3 | I148: 1734.323818 | J148: 1 | K148: 0.626123145 | L148: 0.626123145 | M148: 6.132075422e+21 | N148: 0 | O148: FALSE | P148: 0 | Q148: 1.974688248e-19 | R148: 1.974688248e-19 | S148: 1.935087562e+18 | T148: 0 | U148: FALSE | V148: 0 | W148: 6.40563547e-16 | X148: 6.40563547e-16 | Y148: 6.124077488e+14 | Z148: 0 | AA148: FALSE | AB148: 0 | AC148: 1.846918083e-12 | AD148: 1.846918083e-12 | AE148: 2.122618195e+11 | AF148: 0 | AG148: FALSE | AH148: 0 | AI148: 5.838547455e-09 | AJ148: 5.838547455e-09 | AK148: 67145158.23 | AL148: 0 | AM148: FALSE | AN148: 0 | AO148: 1.846310819e-05 | AP148: 1.846310819e-05 | AQ148: 21233.16339 | AR148: 0 | AS148: FALSE | AT148: 0 | AU148: 0.05838547455 | AV148: 0.05838547455
B149: 7 | C149: 20 | D149: 4759.768268 | F149: 140 | G149: 12 | H149: 8 | I149: 1751.138532 | J149: 1 | K149: 0.1406597878 | L149: 0.1406597878 | M149: 1.541123479e+21 | N149: 0 | O149: FALSE | P149: 0 | Q149: 3.965418169e-20 | R149: 3.965418169e-20 | S149: 4.863294514e+17 | T149: 0 | U149: FALSE | V149: 0 | W149: 1.286330807e-16 | X149: 1.286330807e-16 | Y149: 1.539113425e+14 | Z149: 0 | AA149: FALSE | AB149: 0 | AC149: 3.708839879e-13 | AD149: 3.708839879e-13 | AE149: 5.334599648e+10 | AF149: 0 | AG149: FALSE | AH149: 0 | AI149: 1.172452522e-09 | AJ149: 1.172452522e-09 | AK149: 16875033.78 | AL149: 0 | AM149: FALSE | AN149: 0 | AO149: 3.707620418e-06 | AP149: 3.707620418e-06 | AQ149: 5336.354233 | AR149: 0 | AS149: FALSE | AT149: 0 | AU149: 0.01172452522 | AV149: 0.01172452522
B150: 8 | C150: 1 | D150: 476.1445439 | F150: 141 | G150: 5 | H150: 12 | I150: 1767.00715 | J150: 1 | K150: 0.6611552334 | L150: 0.6611552334 | M150: 8.044929122e+21 | N150: 0 | O150: FALSE | P150: 0 | Q150: 1.678306092e-19 | R150: 1.678306092e-19 | S150: 2.538723223e+18 | T150: 0 | U150: FALSE | V150: 0 | W150: 5.44420976e-16 | X150: 5.44420976e-16 | Y150: 803443629485167 | Z150: 0 | AA150: FALSE | AB150: 0 | AC150: 1.569713028e-12 | AD150: 1.569713028e-12 | AE150: 2.784752594e+11 | AF150: 0 | AG150: FALSE | AH150: 0 | AI150: 4.962236329e-09 | AJ150: 4.962236329e-09 | AK150: 88090573.21 | AL150: 0 | AM150: FALSE | AN150: 0 | AO150: 1.569196909e-05 | AP150: 1.569196909e-05 | AQ150: 27856.68517 | AR150: 0 | AS150: FALSE | AT150: 0 | AU150: 0.04962236329 | AV150: 0.04962236329
B151: 8 | C151: 2 | D151: 509.1719111 | F151: 142 | G151: 13 | H151: 7 | I151: 1767.69522 | J151: 1 | K151: 0.08885610329 | L151: 0.08885610329 | M151: 1.086105231e+21 | N151: 0 | O151: FALSE | P151: 0 | Q151: 2.245376305e-20 | R151: 2.245376305e-20 | S151: 3.427401945e+17 | T151: 0 | U151: FALSE | V151: 0 | W151: 7.283712818e-17 | X151: 7.283712818e-17 | Y151: 1.084688647e+14 | Z151: 0 | AA151: FALSE | AB151: 0 | AC151: 2.100091548e-13 | AD151: 2.100091548e-13 | AE151: 3.759553767e+10 | AF151: 0 | AG151: FALSE | AH151: 0 | AI151: 6.638889012e-10 | AJ151: 6.638889012e-10 | AK151: 11892663.18 | AL151: 0 | AM151: FALSE | AN151: 0 | AO151: 2.099401041e-06 | AP151: 2.099401041e-06 | AQ151: 3760.790309 | AR151: 0 | AS151: FALSE | AT151: 0 | AU151: 0.006638889012 | AV151: 0.006638889012
B152: 8 | C152: 3 | D152: 564.2175231 | F152: 143 | G152: 11 | H152: 9 | I152: 1771.135571 | J152: 1 | K152: 0.107405053 | L152: 0.107405053 | M152: 1.342849026e+21 | N152: 0 | O152: FALSE | P152: 0 | Q152: 2.653436827e-20 | R152: 2.653436827e-20 | S152: 4.237603533e+17 | T152: 0 | U152: FALSE | V152: 0 | W152: 8.60740883e-17 | X152: 8.60740883e-17 | Y152: 1.341097577e+14 | Z152: 0 | AA152: FALSE | AB152: 0 | AC152: 2.481748936e-13 | AD152: 2.481748936e-13 | AE152: 4.648272535e+10 | AF152: 0 | AG152: FALSE | AH152: 0 | AI152: 7.845398814e-10 | AJ152: 7.845398814e-10 | AK152: 14703963.04 | AL152: 0 | AM152: FALSE | AN152: 0 | AO152: 2.48093294e-06 | AP152: 2.48093294e-06 | AQ152: 4649.801383 | AR152: 0 | AS152: FALSE | AT152: 0 | AU152: 0.007845398814 | AV152: 0.007845398814
B153: 8 | C153: 4 | D153: 641.2813799 | F153: 144 | G153: 8 | H153: 11 | I153: 1797.239232 | J153: 1 | K153: 0.4399725517 | L153: 0.4399725517 | M153: 6.520867932e+21 | N153: 0 | O153: FALSE | P153: 0 | Q153: 9.169217517e-20 | R153: 9.169217517e-20 | S153: 2.057778086e+18 | T153: 0 | U153: FALSE | V153: 0 | W153: 2.97437659e-16 | X153: 2.97437659e-16 | Y153: 651236290413603 | Z153: 0 | AA153: FALSE | AB153: 0 | AC153: 8.575932761e-13 | AD153: 8.575932761e-13 | AE153: 2.257198741e+11 | AF153: 0 | AG153: FALSE | AH153: 0 | AI153: 2.711056374e-09 | AJ153: 2.711056374e-09 | AK153: 71402368.52 | AL153: 0 | AM153: FALSE | AN153: 0 | AO153: 8.573113006e-06 | AP153: 8.573113006e-06 | AQ153: 22579.41149 | AR153: 0 | AS153: FALSE | AT153: 0 | AU153: 0.02711056374 | AV153: 0.02711056374
B154: 8 | C154: 5 | D154: 740.3634816 | F154: 145 | G154: 15 | H154: 4 | I154: 1811.387675 | J154: 1 | K154: 0.7019630684 | L154: 0.7019630684 | M154: 1.139696424e+22 | N154: 0 | O154: FALSE | P154: 0 | Q154: 1.335444534e-19 | R154: 1.335444534e-19 | S154: 3.596518671e+18 | T154: 0 | U154: FALSE | V154: 0 | W154: 4.33201083e-16 | X154: 4.33201083e-16 | Y154: 1.138209943e+15 | Z154: 0 | AA154: FALSE | AB154: 0 | AC154: 1.249035974e-12 | AD154: 1.249035974e-12 | AE154: 3.945059708e+11 | AF154: 0 | AG154: FALSE | AH154: 0 | AI154: 3.948499868e-09 | AJ154: 3.948499868e-09 | AK154: 124794774.2 | AL154: 0 | AM154: FALSE | AN154: 0 | AO154: 1.248625292e-05 | AP154: 1.248625292e-05 | AQ154: 39463.57265 | AR154: 0 | AS154: FALSE | AT154: 0 | AU154: 0.03948499868 | AV154: 0.03948499868
B155: 8 | C155: 6 | D155: 861.463828 | F155: 146 | G155: 14 | H155: 6 | I155: 1820.805635 | J155: 1 | K155: 0.2543271829 | L155: 0.2543271829 | M155: 4.38584458e+21 | N155: 0 | O155: FALSE | P155: 0 | Q155: 4.555319441e-20 | R155: 4.555319441e-20 | S155: 1.384032764e+18 | T155: 0 | U155: FALSE | V155: 0 | W155: 1.477687216e-16 | X155: 1.477687216e-16 | Y155: 4.380124218e+14 | Z155: 0 | AA155: FALSE | AB155: 0 | AC155: 4.260572198e-13 | AD155: 4.260572198e-13 | AE155: 1.518160307e+11 | AF155: 0 | AG155: FALSE | AH155: 0 | AI155: 1.346868234e-09 | AJ155: 1.346868234e-09 | AK155: 48024234.54 | AL155: 0 | AM155: FALSE | AN155: 0 | AO155: 4.259171328e-06 | AP155: 4.259171328e-06 | AQ155: 15186.5964 | AR155: 0 | AS155: FALSE | AT155: 0 | AU155: 0.01346868234 | AV155: 0.01346868234
B156: 8 | C156: 7 | D156: 1004.582419 | F156: 147 | G156: 10 | H156: 10 | I156: 1827.686336 | J156: 1 | K156: 0.4647306777 | L156: 0.4647306777 | M156: 8.373505318e+21 | N156: 0 | O156: FALSE | P156: 0 | Q156: 7.966762981e-20 | R156: 7.966762981e-20 | S156: 2.642411398e+18 | T156: 0 | U156: FALSE | V156: 0 | W156: 2.584315757e-16 | X156: 2.584315757e-16 | Y156: 836258393572581 | Z156: 0 | AA156: FALSE | AB156: 0 | AC156: 7.451281805e-13 | AD156: 7.451281805e-13 | AE156: 2.898489259e+11 | AF156: 0 | AG156: FALSE | AH156: 0 | AI156: 2.35552745e-09 | AJ156: 2.35552745e-09 | AK156: 91688425.35 | AL156: 0 | AM156: FALSE | AN156: 0 | AO156: 7.448831834e-06 | AP156: 7.448831834e-06 | AQ156: 28994.42592 | AR156: 0 | AS156: FALSE | AT156: 0 | AU156: 0.0235552745 | AV156: 0.0235552745
B157: 8 | C157: 8 | D157: 1169.719255 | F157: 148 | G157: 6 | H157: 12 | I157: 1846.952301 | J157: 1 | K157: 0.2889311441 | L157: 0.2889311441 | M157: 5.880966357e+21 | N157: 0 | O157: FALSE | P157: 0 | Q157: 4.384565202e-20 | R157: 4.384565202e-20 | S157: 1.855845544e+18 | T157: 0 | U157: FALSE | V157: 0 | W157: 1.42229673e-16 | X157: 1.42229673e-16 | Y157: 5.873295939e+14 | Z157: 0 | AA157: FALSE | AB157: 0 | AC157: 4.100866436e-13 | AD157: 4.100866436e-13 | AE157: 2.035696781e+11 | AF157: 0 | AG157: FALSE | AH157: 0 | AI157: 1.296381443e-09 | AJ157: 1.296381443e-09 | AK157: 64395557.69 | AL157: 0 | AM157: FALSE | AN157: 0 | AO157: 4.099518077e-06 | AP157: 4.099518077e-06 | AQ157: 20363.66335 | AR157: 0 | AS157: FALSE | AT157: 0 | AU157: 0.01296381443 | AV157: 0.01296381443
B158: 8 | C158: 9 | D158: 1356.874336 | F158: 149 | G158: 1 | H158: 13 | I158: 1867.809427 | J158: 1 | K158: 0.4539914816 | L158: 0.4539914816 | M158: 1.052941733e+22 | N158: 0 | O158: FALSE | P158: 0 | Q158: 6.046131414e-20 | R158: 6.046131414e-20 | S158: 3.322748514e+18 | T158: 0 | U158: FALSE | V158: 0 | W158: 1.961287504e-16 | X158: 1.961287504e-16 | Y158: 1.051568403e+15 | Z158: 0 | AA158: FALSE | AB158: 0 | AC158: 5.654922721e-13 | AD158: 5.654922721e-13 | AE158: 3.644758302e+11 | AF158: 0 | AG158: FALSE | AH158: 0 | AI158: 1.787655607e-09 | AJ158: 1.787655607e-09 | AK158: 115295286.5 | AL158: 0 | AM158: FALSE | AN158: 0 | AO158: 5.653063391e-06 | AP158: 5.653063391e-06 | AQ158: 36459.57087 | AR158: 0 | AS158: FALSE | AT158: 0 | AU158: 0.01787655607 | AV158: 0.01787655607
B159: 8 | C159: 10 | D159: 1566.047662 | F159: 150 | G159: 16 | H159: 1 | I159: 1871.550808 | J159: 1 | K159: 0.3372519743 | L159: 0.3372519743 | M159: 8.005997736e+21 | N159: 0 | O159: FALSE | P159: 0 | Q159: 4.388135725e-20 | R159: 4.388135725e-20 | S159: 2.526437718e+18 | T159: 0 | U159: FALSE | V159: 0 | W159: 1.423454962e-16 | X159: 1.423454962e-16 | Y159: 7.995555686e+14 | Z159: 0 | AA159: FALSE | AB159: 0 | AC159: 4.104205931e-13 | AD159: 4.104205931e-13 | AE159: 2.771276492e+11 | AF159: 0 | AG159: FALSE | AH159: 0 | AI159: 1.297437137e-09 | AJ159: 1.297437137e-09 | AK159: 87664281.31 | AL159: 0 | AM159: FALSE | AN159: 0 | AO159: 4.102856474e-06 | AP159: 4.102856474e-06 | AQ159: 27721.87984 | AR159: 0 | AS159: FALSE | AT159: 0 | AU159: 0.01297437137 | AV159: 0.01297437137
B160: 8 | C160: 11 | D160: 1797.239232 | F160: 151 | G160: 2 | H160: 13 | I160: 1889.61265 | J160: 1 | K160: 0.8090182898 | L160: 0.8090182898 | M160: 2.147417056e+22 | N160: 0 | O160: FALSE | P160: 0 | Q160: 9.414273149e-20 | R160: 9.414273149e-20 | S160: 6.776563805e+18 | T160: 0 | U160: FALSE | V160: 0 | W160: 3.053869494e-16 | X160: 3.053869494e-16 | Y160: 2.144616227e+15 | Z160: 0 | AA160: FALSE | AB160: 0 | AC160: 8.80513232e-13 | AD160: 8.80513232e-13 | AE160: 7.433285149e+11 | AF160: 0 | AG160: FALSE | AH160: 0 | AI160: 2.783511808e-09 | AJ160: 2.783511808e-09 | AK160: 235138428.9 | AL160: 0 | AM160: FALSE | AN160: 0 | AO160: 8.802237206e-06 | AP160: 8.802237206e-06 | AQ160: 74357.30007 | AR160: 0 | AS160: FALSE | AT160: 0 | AU160: 0.02783511808 | AV160: 0.02783511808
B161: 8 | C161: 12 | D161: 2050.449047 | F161: 152 | G161: 16 | H161: 2 | I161: 1904.578176 | J161: 1 | K161: 0.6306719449 | L161: 0.6306719449 | M161: 1.83482646e+22 | N161: 0 | O161: FALSE | P161: 0 | Q161: 6.695739407e-20 | R161: 6.695739407e-20 | S161: 5.790127513e+18 | T161: 0 | U161: FALSE | V161: 0 | W161: 2.172012007e-16 | X161: 2.172012007e-16 | Y161: 1.832433336e+15 | Z161: 0 | AA161: FALSE | AB161: 0 | AC161: 6.262498499e-13 | AD161: 6.262498499e-13 | AE161: 6.351252655e+11 | AF161: 0 | AG161: FALSE | AH161: 0 | AI161: 1.979724765e-09 | AJ161: 1.979724765e-09 | AK161: 200910302.8 | AL161: 0 | AM161: FALSE | AN161: 0 | AO161: 6.260439398e-06 | AP161: 6.260439398e-06 | AQ161: 63533.41624 | AR161: 0 | AS161: FALSE | AT161: 0 | AU161: 0.01979724765 | AV161: 0.01979724765
B162: 8 | C162: 13 | D162: 2325.677107 | F162: 153 | G162: 15 | H162: 5 | I162: 1910.469776 | J162: 1 | K162: 0.6865701743 | L162: 0.6865701743 | M162: 2.07048536e+22 | N162: 0 | O162: FALSE | P162: 0 | Q162: 7.032086679e-20 | R162: 7.032086679e-20 | S162: 6.533791892e+18 | T162: 0 | U162: FALSE | V162: 0 | W162: 2.281118749e-16 | X162: 2.281118749e-16 | Y162: 2.067784871e+15 | Z162: 0 | AA162: FALSE | AB162: 0 | AC162: 6.577082768e-13 | AD162: 6.577082768e-13 | AE162: 7.166986048e+11 | AF162: 0 | AG162: FALSE | AH162: 0 | AI162: 2.079172337e-09 | AJ162: 2.079172337e-09 | AK162: 226714542.1 | AL162: 0 | AM162: FALSE | AN162: 0 | AO162: 6.574920233e-06 | AP162: 6.574920233e-06 | AQ162: 71693.43317 | AR162: 0 | AS162: FALSE | AT162: 0 | AU162: 0.02079172337 | AV162: 0.02079172337
B163: 8 | C163: 14 | D163: 2622.923412 | F163: 154 | G163: 9 | H163: 11 | I163: 1920.790829 | J163: 1 | K163: 0.6669368394 | L163: 0.6669368394 | M163: 2.141299364e+22 | N163: 0 | O163: FALSE | P163: 0 | Q163: 6.416209551e-20 | R163: 6.416209551e-20 | S163: 6.757258318e+18 | T163: 0 | U163: FALSE | V163: 0 | W163: 2.081336106e-16 | X163: 2.081336106e-16 | Y163: 2.138506514e+15 | Z163: 0 | AA163: FALSE | AB163: 0 | AC163: 6.001055334e-13 | AD163: 6.001055334e-13 | AE163: 7.412108755e+11 | AF163: 0 | AG163: FALSE | AH163: 0 | AI163: 1.897076361e-09 | AJ163: 1.897076361e-09 | AK163: 234468552.2 | AL163: 0 | AM163: FALSE | AN163: 0 | AO163: 5.999082196e-06 | AP163: 5.999082196e-06 | AQ163: 74145.46647 | AR163: 0 | AS163: FALSE | AT163: 0 | AU163: 0.01897076361 | AV163: 0.01897076361
B164: 8 | C164: 15 | D164: 2942.187962 | F164: 155 | G164: 3 | H164: 13 | I164: 1925.951355 | J164: 1 | K164: 0.9876888577 | L164: 0.9876888577 | M164: 3.27160445e+22 | N164: 0 | O164: FALSE | P164: 0 | Q164: 9.210135761e-20 | R164: 9.210135761e-20 | S164: 1.032414092e+19 | T164: 0 | U164: FALSE | V164: 0 | W164: 2.987649943e-16 | X164: 2.987649943e-16 | Y164: 3.267337367e+15 | Z164: 0 | AA164: FALSE | AB164: 0 | AC164: 8.614203431e-13 | AD164: 8.614203431e-13 | AE164: 1.132466034e+12 | AF164: 0 | AG164: FALSE | AH164: 0 | AI164: 2.723154643e-09 | AJ164: 2.723154643e-09 | AK164: 358234991.2 | AL164: 0 | AM164: FALSE | AN164: 0 | AO164: 8.611371094e-06 | AP164: 8.611371094e-06 | AQ164: 113283.851 | AR164: 0 | AS164: FALSE | AT164: 0 | AU164: 0.02723154643 | AV164: 0.02723154643
B165: 8 | C165: 16 | D165: 3283.470756 | F165: 156 | G165: 13 | H165: 8 | I165: 1932.832056 | J165: 1 | K165: 0.0374328019 | L165: 0.0374328019 | M165: 1.29241072e+21 | N165: 0 | O165: FALSE | P165: 0 | Q165: 3.348810967e-21 | R165: 3.348810967e-21 | S165: 4.078436315e+17 | T165: 0 | U165: FALSE | V165: 0 | W165: 1.086311337e-17 | X165: 1.086311337e-17 | Y165: 1.290725057e+14 | Z165: 0 | AA165: FALSE | AB165: 0 | AC165: 3.132129609e-14 | AD165: 3.132129609e-14 | AE165: 4.473680315e+10 | AF165: 0 | AG165: FALSE | AH165: 0 | AI165: 9.901406854e-11 | AJ165: 9.901406854e-11 | AK165: 14151672.37 | AL165: 0 | AM165: FALSE | AN165: 0 | AO165: 3.13109977e-07 | AP165: 3.13109977e-07 | AQ165: 4475.151738 | AR165: 0 | AS165: FALSE | AT165: 0 | AU165: 0.0009901406854 | AV165: 0.0009901406854
B166: 8 | C166: 17 | D166: 3646.771796 | F166: 157 | G166: 12 | H166: 9 | I166: 1938.293613 | J166: 1 | K166: 0.07085284491 | L166: 0.07085284491 | M166: 2.527862504e+21 | N166: 0 | O166: FALSE | P166: 0 | Q166: 6.134054794e-21 | R166: 6.134054794e-21 | S166: 7.97712838e+17 | T166: 0 | U166: FALSE | V166: 0 | W166: 1.989808721e-17 | X166: 1.989808721e-17 | Y166: 2.524565467e+14 | Z166: 0 | AA166: FALSE | AB166: 0 | AC166: 5.737157109e-14 | AD166: 5.737157109e-14 | AE166: 8.750197243e+10 | AF166: 0 | AG166: FALSE | AH166: 0 | AI166: 1.813651854e-10 | AJ166: 1.813651854e-10 | AK166: 27679654.3 | AL166: 0 | AM166: FALSE | AN166: 0 | AO166: 5.73527074e-07 | AP166: 5.73527074e-07 | AQ166: 8753.075242 | AR166: 0 | AS166: FALSE | AT166: 0 | AU166: 0.001813651854 | AV166: 0.001813651854
B167: 8 | C167: 18 | D167: 4032.09108 | F167: 158 | G167: 7 | H167: 12 | I167: 1941.432933 | J167: 1 | K167: 0.1462764537 | L167: 0.1462764537 | M167: 5.317924641e+21 | N167: 0 | O167: FALSE | P167: 0 | Q167: 1.242776922e-20 | R167: 1.242776922e-20 | S167: 1.678167524e+18 | T167: 0 | U167: FALSE | V167: 0 | W167: 4.03140898e-17 | X167: 4.03140898e-17 | Y167: 5.310988587e+14 | Z167: 0 | AA167: FALSE | AB167: 0 | AC167: 1.162364324e-13 | AD167: 1.162364324e-13 | AE167: 1.840799864e+11 | AF167: 0 | AG167: FALSE | AH167: 0 | AI167: 3.674510164e-10 | AJ167: 3.674510164e-10 | AK167: 58230348.93 | AL167: 0 | AM167: FALSE | AN167: 0 | AO167: 1.16198214e-06 | AP167: 1.16198214e-06 | AQ167: 18414.05316 | AR167: 0 | AS167: FALSE | AT167: 0 | AU167: 0.003674510164 | AV167: 0.003674510164
B168: 8 | C168: 19 | D168: 4439.428609 | F168: 159 | G168: 16 | H168: 3 | I168: 1959.623788 | J168: 1 | K168: 0.8421246712 | L168: 0.8421246712 | M168: 3.41221262e+22 | N168: 0 | O168: FALSE | P168: 0 | Q168: 6.419529663e-20 | R168: 6.419529663e-20 | S168: 1.076785549e+19 | T168: 0 | U168: FALSE | V168: 0 | W168: 2.082413108e-16 | X168: 2.082413108e-16 | Y168: 3.407762145e+15 | Z168: 0 | AA168: FALSE | AB168: 0 | AC168: 6.004160621e-13 | AD168: 6.004160621e-13 | AE168: 1.181137559e+12 | AF168: 0 | AG168: FALSE | AH168: 0 | AI168: 1.898058016e-09 | AJ168: 1.898058016e-09 | AK168: 373631341 | AL168: 0 | AM168: FALSE | AN168: 0 | AO168: 6.002186462e-06 | AP168: 6.002186462e-06 | AQ168: 118152.6043 | AR168: 0 | AS168: FALSE | AT168: 0 | AU168: 0.01898058016 | AV168: 0.01898058016
B169: 8 | C169: 20 | D169: 4868.784382 | F169: 160 | G169: 14 | H169: 7 | I169: 1963.924226 | J169: 1 | K169: 0.1755484864 | L169: 0.1755484864 | M169: 7.296687313e+21 | N169: 0 | O169: FALSE | P169: 0 | Q169: 1.304532659e-20 | R169: 1.304532659e-20 | S169: 2.302601956e+18 | T169: 0 | U169: FALSE | V169: 0 | W169: 4.231736671e-17 | X169: 4.231736671e-17 | Y169: 7.287170401e+14 | Z169: 0 | AA169: FALSE | AB169: 0 | AC169: 1.22012422e-13 | AD169: 1.22012422e-13 | AE169: 2.525748656e+11 | AF169: 0 | AG169: FALSE | AH169: 0 | AI169: 3.857102935e-10 | AJ169: 3.857102935e-10 | AK169: 79897455.67 | AL169: 0 | AM169: FALSE | AN169: 0 | AO169: 1.219723044e-06 | AP169: 1.219723044e-06 | AQ169: 25265.79392 | AR169: 0 | AS169: FALSE | AT169: 0 | AU169: 0.003857102935 | AV169: 0.003857102935
B170: 9 | C170: 1 | D170: 599.6961402 | F170: 161 | G170: 4 | H170: 13 | I170: 1976.825541 | J170: 1 | K170: 0.9510551541 | L170: 0.9510551541 | M170: 4.265759441e+22 | N170: 0 | O170: FALSE | P170: 0 | Q170: 6.549400667e-20 | R170: 6.549400667e-20 | S170: 1.346137721e+19 | T170: 0 | U170: FALSE | V170: 0 | W170: 2.124541596e-16 | X170: 2.124541596e-16 | Y170: 4260195702715409 | Z170: 0 | AA170: FALSE | AB170: 0 | AC170: 6.125628456e-13 | AD170: 6.125628456e-13 | AE170: 1.476592831e+12 | AF170: 0 | AG170: FALSE | AH170: 0 | AI170: 1.936456888e-09 | AJ170: 1.936456888e-09 | AK170: 467093231.8 | AL170: 0 | AM170: FALSE | AN170: 0 | AO170: 6.123614358e-06 | AP170: 6.123614358e-06 | AQ170: 147707.8492 | AR170: 0 | AS170: FALSE | AT170: 0 | AU170: 0.01936456888 | AV170: 0.01936456888
B171: 9 | C171: 2 | D171: 632.7235074 | F171: 162 | G171: 11 | H171: 10 | I171: 1980.308897 | J171: 1 | K171: 0.4140755083 | L171: 0.4140755083 | M171: 1.895657846e+22 | N171: 0 | O171: FALSE | P171: 0 | Q171: 2.793737826e-20 | R171: 2.793737826e-20 | S171: 5.982091977e+18 | T171: 0 | U171: FALSE | V171: 0 | W171: 9.062527279e-17 | X171: 9.062527279e-17 | Y171: 1.89318538e+15 | Z171: 0 | AA171: FALSE | AB171: 0 | AC171: 2.612971903e-13 | AD171: 2.612971903e-13 | AE171: 6.561820524e+11 | AF171: 0 | AG171: FALSE | AH171: 0 | AI171: 8.260225832e-10 | AJ171: 8.260225832e-10 | AK171: 207571233.6 | AL171: 0 | AM171: FALSE | AN171: 0 | AO171: 2.612112762e-06 | AP171: 2.612112762e-06 | AQ171: 65639.7875 | AR171: 0 | AS171: FALSE | AT171: 0 | AU171: 0.008260225832 | AV171: 0.008260225832
B172: 9 | C172: 3 | D172: 687.7691195 | F172: 163 | G172: 15 | H172: 6 | I172: 2031.570123 | J172: 1 | K172: 0.5819450484 | L172: 0.5819450484 | M172: 3.585966729e+22 | N172: 0 | O172: FALSE | P172: 0 | Q172: 2.917052275e-20 | R172: 2.917052275e-20 | S172: 1.131616808e+19 | T172: 0 | U172: FALSE | V172: 0 | W172: 9.462543541e-17 | X172: 9.462543541e-17 | Y172: 3581289629571932 | Z172: 0 | AA172: FALSE | AB172: 0 | AC172: 2.728307418e-13 | AD172: 2.728307418e-13 | AE172: 1.241282552e+12 | AF172: 0 | AG172: FALSE | AH172: 0 | AI172: 8.624828835e-10 | AJ172: 8.624828835e-10 | AK172: 392657113.4 | AL172: 0 | AM172: FALSE | AN172: 0 | AO172: 2.727410355e-06 | AP172: 2.727410355e-06 | AQ172: 124169.0818 | AR172: 0 | AS172: FALSE | AT172: 0 | AU172: 0.008624828835 | AV172: 0.008624828835
B173: 9 | C173: 4 | D173: 764.8329763 | F173: 164 | G173: 16 | H173: 4 | I173: 2036.687644 | J173: 1 | K173: 0.9441280407 | L173: 0.9441280407 | M173: 5.990439604e+22 | N173: 0 | O173: FALSE | P173: 0 | Q173: 4.596101512e-20 | R173: 4.596101512e-20 | S173: 1.890391812e+19 | T173: 0 | U173: FALSE | V173: 0 | W173: 1.490916397e-16 | X173: 1.490916397e-16 | Y173: 5982626402996631 | Z173: 0 | AA173: FALSE | AB173: 0 | AC173: 4.298715507e-13 | AD173: 4.298715507e-13 | AE173: 2.07359095e+12 | AF173: 0 | AG173: FALSE | AH173: 0 | AI173: 1.358926241e-09 | AJ173: 1.358926241e-09 | AK173: 655942706.9 | AL173: 0 | AM173: FALSE | AN173: 0 | AO173: 4.297302095e-06 | AP173: 4.297302095e-06 | AQ173: 207427.2968 | AR173: 0 | AS173: FALSE | AT173: 0 | AU173: 0.01358926241 | AV173: 0.01358926241
B174: 9 | C174: 5 | D174: 863.9150779 | F174: 165 | G174: 5 | H174: 13 | I174: 2042.23521 | J174: 1 | K174: 0.7071028851 | L174: 0.7071028851 | M174: 4.630687169e+22 | N174: 0 | O174: FALSE | P174: 0 | Q174: 3.335080254e-20 | R174: 3.335080254e-20 | S174: 1.461297281e+19 | T174: 0 | U174: FALSE | V174: 0 | W174: 1.08185727e-16 | X174: 1.08185727e-16 | Y174: 4624647463337233 | Z174: 0 | AA174: FALSE | AB174: 0 | AC174: 3.119287328e-13 | AD174: 3.119287328e-13 | AE174: 1.602912581e+12 | AF174: 0 | AG174: FALSE | AH174: 0 | AI174: 9.860809346e-10 | AJ174: 9.860809346e-10 | AK174: 507052182.6 | AL174: 0 | AM174: FALSE | AN174: 0 | AO174: 3.118261711e-06 | AP174: 3.118261711e-06 | AQ174: 160343.979 | AR174: 0 | AS174: FALSE | AT174: 0 | AU174: 0.009860809346 | AV174: 0.009860809346
B175: 9 | C175: 6 | D175: 985.0154243 | F175: 166 | G175: 8 | H175: 12 | I175: 2050.449047 | J175: 1 | K175: 0.5495975468 | L175: 0.5495975468 | M175: 3.771165785e+22 | N175: 0 | O175: FALSE | P175: 0 | Q175: 2.474004352e-20 | R175: 2.474004352e-20 | S175: 1.190059727e+19 | T175: 0 | U175: FALSE | V175: 0 | W175: 8.025352889e-17 | X175: 8.025352889e-17 | Y175: 3766247135229778 | Z175: 0 | AA175: FALSE | AB175: 0 | AC175: 2.313926454e-13 | AD175: 2.313926454e-13 | AE175: 1.305389214e+12 | AF175: 0 | AG175: FALSE | AH175: 0 | AI175: 7.314872023e-10 | AJ175: 7.314872023e-10 | AK175: 412936087.6 | AL175: 0 | AM175: FALSE | AN175: 0 | AO175: 2.313165638e-06 | AP175: 2.313165638e-06 | AQ175: 130581.8565 | AR175: 0 | AS175: FALSE | AT175: 0 | AU175: 0.007314872023 | AV175: 0.007314872023
B176: 9 | C176: 7 | D176: 1128.134016 | F176: 167 | G176: 10 | H176: 11 | I176: 2058.877907 | J176: 1 | K176: 0.7485169312 | L176: 0.7485169312 | M176: 5.386998037e+22 | N176: 0 | O176: FALSE | P176: 0 | Q176: 3.212498642e-20 | R176: 3.212498642e-20 | S176: 1.699964886e+19 | T176: 0 | U176: FALSE | V176: 0 | W176: 1.042093367e-16 | X176: 1.042093367e-16 | Y176: 5379971891307028 | Z176: 0 | AA176: FALSE | AB176: 0 | AC176: 3.004637233e-13 | AD176: 3.004637233e-13 | AE176: 1.864709623e+12 | AF176: 0 | AG176: FALSE | AH176: 0 | AI176: 9.498373121e-10 | AJ176: 9.498373121e-10 | AK176: 589866905.9 | AL176: 0 | AM176: FALSE | AN176: 0 | AO176: 3.003649313e-06 | AP176: 3.003649313e-06 | AQ176: 186532.2939 | AR176: 0 | AS176: FALSE | AT176: 0 | AU176: 0.009498373121 | AV176: 0.009498373121
B177: 9 | C177: 8 | D177: 1293.270852 | F177: 168 | G177: 17 | H177: 1 | I177: 2111.38626 | J177: 1 | K177: 0.350238856 | L177: 0.350238856 | M177: 3.378099186e+22 | N177: 0 | O177: FALSE | P177: 0 | Q177: 1.121612311e-20 | R177: 1.121612311e-20 | S177: 1.066020436e+19 | T177: 0 | U177: FALSE | V177: 0 | W177: 3.638366519e-17 | X177: 3.638366519e-17 | Y177: 3.373693204e+15 | Z177: 0 | AA177: FALSE | AB177: 0 | AC177: 1.049039544e-13 | AD177: 1.049039544e-13 | AE177: 1.169329192e+12 | AF177: 0 | AG177: FALSE | AH177: 0 | AI177: 3.316263574e-10 | AJ177: 3.316263574e-10 | AK177: 369895979.4 | AL177: 0 | AM177: FALSE | AN177: 0 | AO177: 1.048694622e-06 | AP177: 1.048694622e-06 | AQ177: 116971.3792 | AR177: 0 | AS177: FALSE | AT177: 0 | AU177: 0.003316263574 | AV177: 0.003316263574
B178: 9 | C178: 9 | D178: 1480.425932 | F178: 169 | G178: 13 | H178: 9 | I178: 2119.987137 | J178: 1 | K178: 0.01885557023 | L178: 0.01885557023 | M178: 1.906668409e+21 | N178: 0 | O178: FALSE | P178: 0 | Q178: 5.759578261e-22 | R178: 5.759578261e-22 | S178: 6.016837806e+17 | T178: 0 | U178: FALSE | V178: 0 | W178: 1.868333335e-18 | X178: 1.868333335e-18 | Y178: 1.904181583e+14 | Z178: 0 | AA178: FALSE | AB178: 0 | AC178: 5.386910694e-15 | AD178: 5.386910694e-15 | AE178: 6.599933594e+10 | AF178: 0 | AG178: FALSE | AH178: 0 | AI178: 1.702930629e-11 | AJ178: 1.702930629e-11 | AK178: 20877687.12 | AL178: 0 | AM178: FALSE | AN178: 0 | AO178: 5.385139485e-08 | AP178: 5.385139485e-08 | AQ178: 6602.104356 | AR178: 0 | AS178: FALSE | AT178: 0 | AU178: 0.0001702930629 | AV178: 0.0001702930629
B179: 9 | C179: 10 | D179: 1689.599258 | F179: 170 | G179: 6 | H179: 13 | I179: 2122.180361 | J179: 1 | K179: 0.3090107062 | L179: 0.3090107062 | M179: 3.162497532e+22 | N179: 0 | O179: FALSE | P179: 0 | Q179: 9.326170931e-21 | R179: 9.326170931e-21 | S179: 9.97983426e+18 | T179: 0 | U179: FALSE | V179: 0 | W179: 3.025290265e-17 | X179: 3.025290265e-17 | Y179: 3.158372755e+15 | Z179: 0 | AA179: FALSE | AB179: 0 | AC179: 8.722730666e-14 | AD179: 8.722730666e-14 | AE179: 1.094698669e+12 | AF179: 0 | AG179: FALSE | AH179: 0 | AI179: 2.757462684e-10 | AJ179: 2.757462684e-10 | AK179: 346287973.7 | AL179: 0 | AM179: FALSE | AN179: 0 | AO179: 8.719862645e-07 | AP179: 8.719862645e-07 | AQ179: 109505.8723 | AR179: 0 | AS179: FALSE | AT179: 0 | AU179: 0.002757462684 | AV179: 0.002757462684
B180: 9 | C180: 11 | D180: 1920.790829 | F180: 171 | G180: 14 | H180: 8 | I180: 2129.061062 | J180: 1 | K180: 0.07395408387 | L180: 0.07395408387 | M180: 7.858940808e+21 | N180: 0 | O180: FALSE | P180: 0 | Q180: 2.149546371e-21 | R180: 2.149546371e-21 | S180: 2.480031239e+18 | T180: 0 | U180: FALSE | V180: 0 | W180: 6.972852802e-18 | X180: 6.972852802e-18 | Y180: 7.848690561e+14 | Z180: 0 | AA180: FALSE | AB180: 0 | AC180: 2.010462192e-14 | AD180: 2.010462192e-14 | AE180: 2.72037273e+11 | AF180: 0 | AG180: FALSE | AH180: 0 | AI180: 6.355549293e-11 | AJ180: 6.355549293e-11 | AK180: 86054033.55 | AL180: 0 | AM180: FALSE | AN180: 0 | AO180: 2.009801155e-07 | AP180: 2.009801155e-07 | AQ180: 27212.67479 | AR180: 0 | AS180: FALSE | AT180: 0 | AU180: 0.0006355549293 | AV180: 0.0006355549293
B181: 9 | C181: 12 | D181: 2174.000644 | F181: 172 | G181: 16 | H181: 5 | I181: 2135.769746 | J181: 1 | K181: 0.9234248677 | L181: 0.9234248677 | M181: 1.017862699e+23 | N181: 0 | O181: FALSE | P181: 0 | Q181: 2.587619681e-20 | R181: 2.587619681e-20 | S181: 3.212050264e+19 | T181: 0 | U181: FALSE | V181: 0 | W181: 8.393906448e-17 | X181: 8.393906448e-17 | Y181: 1.016535122e+16 | Z181: 0 | AA181: FALSE | AB181: 0 | AC181: 2.42019042e-13 | AD181: 2.42019042e-13 | AE181: 3.52333221e+12 | AF181: 0 | AG181: FALSE | AH181: 0 | AI181: 7.650797701e-10 | AJ181: 7.650797701e-10 | AK181: 1114541933 | AL181: 0 | AM181: FALSE | AN181: 0 | AO181: 2.419394665e-06 | AP181: 2.419394665e-06 | AQ181: 352449.1057 | AR181: 0 | AS181: FALSE | AT181: 0 | AU181: 0.007650797701 | AV181: 0.007650797701
B182: 9 | C182: 13 | D182: 2449.228704 | F182: 173 | G182: 17 | H182: 2 | I182: 2144.413627 | J182: 1 | K182: 0.6549578278 | L182: 0.6549578278 | M182: 7.566512899e+22 | N182: 0 | O182: FALSE | P182: 0 | Q182: 1.751126058e-20 | R182: 1.751126058e-20 | S182: 2.387750311e+19 | T182: 0 | U182: FALSE | V182: 0 | W182: 5.680428392e-17 | X182: 5.680428392e-17 | Y182: 7556644059773536 | Z182: 0 | AA182: FALSE | AB182: 0 | AC182: 1.637821253e-13 | AD182: 1.637821253e-13 | AE182: 2.619148796e+12 | AF182: 0 | AG182: FALSE | AH182: 0 | AI182: 5.177542632e-10 | AJ182: 5.177542632e-10 | AK182: 828519988.6 | AL182: 0 | AM182: FALSE | AN182: 0 | AO182: 1.63728274e-06 | AP182: 1.63728274e-06 | AQ182: 262001.0251 | AR182: 0 | AS182: FALSE | AT182: 0 | AU182: 0.005177542632 | AV182: 0.005177542632
B183: 9 | C183: 14 | D183: 2746.475009 | F183: 174 | G183: 12 | H183: 10 | I183: 2147.466939 | J183: 1 | K183: 0.2731568669 | L183: 0.2731568669 | M183: 3.208330169e+22 | N183: 0 | O183: FALSE | P183: 0 | Q183: 7.183427345e-21 | R183: 7.183427345e-21 | S183: 1.012446745e+19 | T183: 0 | U183: FALSE | V183: 0 | W183: 2.330211721e-17 | X183: 2.330211721e-17 | Y183: 3.204145614e+15 | Z183: 0 | AA183: FALSE | AB183: 0 | AC183: 6.718631092e-14 | AD183: 6.718631092e-14 | AE183: 1.110563639e+12 | AF183: 0 | AG183: FALSE | AH183: 0 | AI183: 2.12391913e-10 | AJ183: 2.12391913e-10 | AK183: 351306567.6 | AL183: 0 | AM183: FALSE | AN183: 0 | AO183: 6.716422016e-07 | AP183: 6.716422016e-07 | AQ183: 111092.8911 | AR183: 0 | AS183: FALSE | AT183: 0 | AU183: 0.00212391913 | AV183: 0.00212391913
B184: 9 | C184: 15 | D184: 3065.739558 | F184: 175 | G184: 1 | H184: 14 | I184: 2165.055732 | J184: 1 | K184: 0.4244874988 | L184: 0.4244874988 | M184: 5.48176842e+22 | N184: 0 | O184: FALSE | P184: 0 | Q184: 1.015302927e-20 | R184: 1.015302927e-20 | S184: 1.729871398e+19 | T184: 0 | U184: FALSE | V184: 0 | W184: 3.293512507e-17 | X184: 3.293512507e-17 | Y184: 5474618667557287 | Z184: 0 | AA184: FALSE | AB184: 0 | AC184: 9.496087989e-14 | AD184: 9.496087989e-14 | AE184: 1.897514396e+12 | AF184: 0 | AG184: FALSE | AH184: 0 | AI184: 3.001939333e-10 | AJ184: 3.001939333e-10 | AK184: 600244097.8 | AL184: 0 | AM184: FALSE | AN184: 0 | AO184: 9.492965689e-07 | AP184: 9.492965689e-07 | AQ184: 189813.8501 | AR184: 0 | AS184: FALSE | AT184: 0 | AU184: 0.003001939333 | AV184: 0.003001939333
B185: 9 | C185: 16 | D185: 3407.022353 | F185: 176 | G185: 9 | H185: 12 | I185: 2174.000644 | J185: 1 | K185: 0.8331129962 | L185: 0.8331129962 | M185: 1.128699692e+23 | N185: 0 | O185: FALSE | P185: 0 | Q185: 1.899397777e-20 | R185: 1.899397777e-20 | S185: 3.561816489e+19 | T185: 0 | U185: FALSE | V185: 0 | W185: 6.161402836e-17 | X185: 6.161402836e-17 | Y185: 1.127227554e+16 | Z185: 0 | AA185: FALSE | AB185: 0 | AC185: 1.776499204e-13 | AD185: 1.776499204e-13 | AE185: 3.906994515e+12 | AF185: 0 | AG185: FALSE | AH185: 0 | AI185: 5.615936626e-10 | AJ185: 5.615936626e-10 | AK185: 1235906512 | AL185: 0 | AM185: FALSE | AN185: 0 | AO185: 1.775915093e-06 | AP185: 1.775915093e-06 | AQ185: 390827.9551 | AR185: 0 | AS185: FALSE | AT185: 0 | AU185: 0.005615936626 | AV185: 0.005615936626
B186: 9 | C186: 17 | D186: 3770.323392 | F186: 177 | G186: 15 | H186: 7 | I186: 2174.688714 | J186: 1 | K186: 0.401685621 | L186: 0.401685621 | M186: 5.462087753e+22 | N186: 0 | O186: FALSE | P186: 0 | Q186: 9.124317973e-21 | R186: 9.124317973e-21 | S186: 1.723660807e+19 | T186: 0 | U186: FALSE | V186: 0 | W186: 2.959811753e-17 | X186: 2.959811753e-17 | Y186: 5454963669863773 | Z186: 0 | AA186: FALSE | AB186: 0 | AC186: 8.533938395e-14 | AD186: 8.533938395e-14 | AE186: 1.890701932e+12 | AF186: 0 | AG186: FALSE | AH186: 0 | AI186: 2.697780956e-10 | AJ186: 2.697780956e-10 | AK186: 598089099.1 | AL186: 0 | AM186: FALSE | AN186: 0 | AO186: 8.531132448e-07 | AP186: 8.531132448e-07 | AQ186: 189132.3797 | AR186: 0 | AS186: FALSE | AT186: 0 | AU186: 0.002697780956 | AV186: 0.002697780956
B187: 9 | C187: 18 | D187: 4155.642676 | F187: 178 | G187: 2 | H187: 14 | I187: 2186.858955 | J187: 1 | K187: 0.756441837 | L187: 0.756441837 | M187: 1.097557701e+23 | N187: 0 | O187: FALSE | P187: 0 | Q187: 1.610312756e-20 | R187: 1.610312756e-20 | S187: 3.46354229e+19 | T187: 0 | U187: FALSE | V187: 0 | W187: 5.223648099e-17 | X187: 5.223648099e-17 | Y187: 1.09612618e+16 | Z187: 0 | AA187: FALSE | AB187: 0 | AC187: 1.506119131e-13 | AD187: 1.506119131e-13 | AE187: 3.799196497e+12 | AF187: 0 | AG187: FALSE | AH187: 0 | AI187: 4.761200892e-10 | AJ187: 4.761200892e-10 | AK187: 1201806573 | AL187: 0 | AM187: FALSE | AN187: 0 | AO187: 1.505623922e-06 | AP187: 1.505623922e-06 | AQ187: 380044.6078 | AR187: 0 | AS187: FALSE | AT187: 0 | AU187: 0.004761200892 | AV187: 0.004761200892
B188: 9 | C188: 19 | D188: 4562.980205 | F188: 179 | G188: 17 | H188: 3 | I188: 2199.459239 | J188: 1 | K188: 0.8745531649 | L188: 0.8745531649 | M188: 1.356589512e+23 | N188: 0 | O188: FALSE | P188: 0 | Q188: 1.741447915e-20 | R188: 1.741447915e-20 | S188: 4.280964126e+19 | T188: 0 | U188: FALSE | V188: 0 | W188: 5.64903374e-17 | X188: 5.64903374e-17 | Y188: 1.354820141e+16 | Z188: 0 | AA188: FALSE | AB188: 0 | AC188: 1.628769325e-13 | AD188: 1.628769325e-13 | AE188: 4.695835231e+12 | AF188: 0 | AG188: FALSE | AH188: 0 | AI188: 5.148927334e-10 | AJ188: 5.148927334e-10 | AK188: 1485441896 | AL188: 0 | AM188: FALSE | AN188: 0 | AO188: 1.628233788e-06 | AP188: 1.628233788e-06 | AQ188: 469737.9723 | AR188: 0 | AS188: FALSE | AT188: 0 | AU188: 0.005148927334 | AV188: 0.005148927334
B189: 9 | C189: 20 | D189: 4992.335979 | F189: 180 | G189: 11 | H189: 11 | I189: 2211.500467 | J189: 1 | K189: 0.66692935 | L189: 0.66692935 | M189: 1.102327025e+23 | N189: 0 | O189: FALSE | P189: 0 | Q189: 1.246337662e-20 | R189: 1.246337662e-20 | S189: 3.478592758e+19 | T189: 0 | U189: FALSE | V189: 0 | W189: 4.042959562e-17 | X189: 4.042959562e-17 | Y189: 1.100889284e+16 | Z189: 0 | AA189: FALSE | AB189: 0 | AC189: 1.165694669e-13 | AD189: 1.165694669e-13 | AE189: 3.815705516e+12 | AF189: 0 | AG189: FALSE | AH189: 0 | AI189: 3.685038178e-10 | AJ189: 3.685038178e-10 | AK189: 1207028900 | AL189: 0 | AM189: FALSE | AN189: 0 | AO189: 1.165311391e-06 | AP189: 1.165311391e-06 | AQ189: 381696.0527 | AR189: 0 | AS189: FALSE | AT189: 0 | AU189: 0.003685038178 | AV189: 0.003685038178
B190: 10 | C190: 1 | D190: 737.7832185 | F190: 181 | G190: 7 | H190: 13 | I190: 2216.660993 | J190: 1 | K190: 0.1564420838 | L190: 0.1564420838 | M190: 2.656766083e+22 | N190: 0 | O190: FALSE | P190: 0 | Q190: 2.845380684e-21 | R190: 2.845380684e-21 | S190: 8.383906994e+18 | T190: 0 | U190: FALSE | V190: 0 | W190: 9.23005009e-18 | X190: 9.23005009e-18 | Y190: 2.653300921e+15 | Z190: 0 | AA190: FALSE | AB190: 0 | AC190: 2.661273264e-14 | AD190: 2.661273264e-14 | AE190: 9.196397045e+11 | AF190: 0 | AG190: FALSE | AH190: 0 | AI190: 8.412917925e-11 | AJ190: 8.412917925e-11 | AK190: 290911260.5 | AL190: 0 | AM190: FALSE | AN190: 0 | AO190: 2.660398241e-07 | AP190: 2.660398241e-07 | AQ190: 91994.21802 | AR190: 0 | AS190: FALSE | AT190: 0 | AU190: 0.0008412917925 | AV190: 0.0008412917925
B191: 10 | C191: 2 | D191: 770.8105857 | F191: 182 | G191: 3 | H191: 14 | I191: 2223.19766 | J191: 1 | K191: 0.9235009683 | L191: 0.9235009683 | M191: 1.622950742e+23 | N191: 0 | O191: FALSE | P191: 0 | Q191: 1.623139642e-20 | R191: 1.623139642e-20 | S191: 5.121515275e+19 | T191: 0 | U191: FALSE | V191: 0 | W191: 5.265256871e-17 | X191: 5.265256871e-17 | Y191: 1.620833962e+16 | Z191: 0 | AA191: FALSE | AB191: 0 | AC191: 1.518116067e-13 | AD191: 1.518116067e-13 | AE191: 5.617844756e+12 | AF191: 0 | AG191: FALSE | AH191: 0 | AI191: 4.799126058e-10 | AJ191: 4.799126058e-10 | AK191: 1777102806 | AL191: 0 | AM191: FALSE | AN191: 0 | AO191: 1.517616912e-06 | AP191: 1.517616912e-06 | AQ191: 561969.2503 | AR191: 0 | AS191: FALSE | AT191: 0 | AU191: 0.004799126058 | AV191: 0.004799126058
B192: 10 | C192: 3 | D192: 825.8561977 | F192: 183 | G192: 16 | H192: 6 | I192: 2256.870092 | J192: 1 | K192: 0.7827059045 | L192: 0.7827059045 | M192: 1.638217814e+23 | N192: 0 | O192: FALSE | P192: 0 | Q192: 1.155080067e-20 | R192: 1.155080067e-20 | S192: 5.169693286e+19 | T192: 0 | U192: FALSE | V192: 0 | W192: 3.746931626e-17 | X192: 3.746931626e-17 | Y192: 1.636081121e+16 | Z192: 0 | AA192: FALSE | AB192: 0 | AC192: 1.080341803e-13 | AD192: 1.080341803e-13 | AE192: 5.670691731e+12 | AF192: 0 | AG192: FALSE | AH192: 0 | AI192: 3.415217461e-10 | AJ192: 3.415217461e-10 | AK192: 1793819983 | AL192: 0 | AM192: FALSE | AN192: 0 | AO192: 1.079986588e-06 | AP192: 1.079986588e-06 | AQ192: 567255.6859 | AR192: 0 | AS192: FALSE | AT192: 0 | AU192: 0.003415217461 | AV192: 0.003415217461
B193: 10 | C193: 4 | D193: 902.9200545 | F193: 184 | G193: 4 | H193: 14 | I193: 2274.071846 | J193: 1 | K193: 0.8892480146 | L193: 0.8892480146 | M193: 2.032996062e+23 | N193: 0 | O193: FALSE | P193: 0 | Q193: 1.201422564e-20 | R193: 1.201422564e-20 | S193: 6.415487614e+19 | T193: 0 | U193: FALSE | V193: 0 | W193: 3.897260746e-17 | X193: 3.897260746e-17 | Y193: 2.030344469e+16 | Z193: 0 | AA193: FALSE | AB193: 0 | AC193: 1.123685757e-13 | AD193: 1.123685757e-13 | AE193: 7.037216822e+12 | AF193: 0 | AG193: FALSE | AH193: 0 | AI193: 3.552238012e-10 | AJ193: 3.552238012e-10 | AK193: 2226095292 | AL193: 0 | AM193: FALSE | AN193: 0 | AO193: 1.123316291e-06 | AP193: 1.123316291e-06 | AQ193: 703953.141 | AR193: 0 | AS193: FALSE | AT193: 0 | AU193: 0.003552238012 | AV193: 0.003552238012
B194: 10 | C194: 5 | D194: 1002.002156 | F194: 185 | G194: 17 | H194: 4 | I194: 2276.523096 | J194: 1 | K194: 0.9804844749 | L194: 0.9804844749 | M194: 2.269834896e+23 | N194: 0 | O194: FALSE | P194: 0 | Q194: 1.308198623e-20 | R194: 1.308198623e-20 | S194: 7.162875489e+19 | T194: 0 | U194: FALSE | V194: 0 | W194: 4.243628588e-17 | X194: 4.243628588e-17 | Y194: 2.266874399e+16 | Z194: 0 | AA194: FALSE | AB194: 0 | AC194: 1.223552981e-13 | AD194: 1.223552981e-13 | AE194: 7.857034558e+12 | AF194: 0 | AG194: FALSE | AH194: 0 | AI194: 3.867942065e-10 | AJ194: 3.867942065e-10 | AK194: 2485429691 | AL194: 0 | AM194: FALSE | AN194: 0 | AO194: 1.223150678e-06 | AP194: 1.223150678e-06 | AQ194: 785961.8789 | AR194: 0 | AS194: FALSE | AT194: 0 | AU194: 0.003867942065 | AV194: 0.003867942065
B195: 10 | C195: 6 | D195: 1123.102503 | F195: 186 | G195: 10 | H195: 12 | I195: 2312.087722 | J195: 1 | K195: 0.9350198496 | L195: 0.9350198496 | M195: 2.592080686e+23 | N195: 0 | O195: FALSE | P195: 0 | Q195: 1.041788738e-20 | R195: 1.041788738e-20 | S195: 8.179780496e+19 | T195: 0 | U195: FALSE | V195: 0 | W195: 3.379429084e-17 | X195: 3.379429084e-17 | Y195: 2.588699891e+16 | Z195: 0 | AA195: FALSE | AB195: 0 | AC195: 9.743808733e-14 | AD195: 9.743808733e-14 | AE195: 8.972488512e+12 | AF195: 0 | AG195: FALSE | AH195: 0 | AI195: 3.080249753e-10 | AJ195: 3.080249753e-10 | AK195: 2838283221 | AL195: 0 | AM195: FALSE | AN195: 0 | AO195: 9.740604983e-07 | AP195: 9.740604983e-07 | AQ195: 897543.9623 | AR195: 0 | AS195: FALSE | AT195: 0 | AU195: 0.003080249753 | AV195: 0.003080249753
B196: 10 | C196: 7 | D196: 1266.221094 | F196: 187 | G196: 14 | H196: 9 | I196: 2316.216143 | J196: 1 | K196: 0.0372519916 | L196: 0.0372519916 | M196: 1.054351244e+22 | N196: 0 | O196: FALSE | P196: 0 | Q196: 4.065371058e-22 | R196: 4.065371058e-22 | S196: 3.327196484e+18 | T196: 0 | U196: FALSE | V196: 0 | W196: 1.318754243e-18 | X196: 1.318754243e-18 | Y196: 1.052976077e+15 | Z196: 0 | AA196: FALSE | AB196: 0 | AC196: 3.802325419e-15 | AD196: 3.802325419e-15 | AE196: 3.649637328e+11 | AF196: 0 | AG196: FALSE | AH196: 0 | AI196: 1.202005525e-11 | AJ196: 1.202005525e-11 | AK196: 115449625.6 | AL196: 0 | AM196: FALSE | AN196: 0 | AO196: 3.80107522e-08 | AP196: 3.80107522e-08 | AQ196: 36508.37718 | AR196: 0 | AS196: FALSE | AT196: 0 | AU196: 0.0001202005525 | AV196: 0.0001202005525
B197: 10 | C197: 8 | D197: 1431.35793 | F197: 188 | G197: 8 | H197: 13 | I197: 2325.677107 | J197: 1 | K197: 0.5877923843 | L197: 0.5877923843 | M197: 1.744387635e+23 | N197: 0 | O197: FALSE | P197: 0 | Q197: 6.11774574e-21 | R197: 6.11774574e-21 | S197: 5.504731406e+19 | T197: 0 | U197: FALSE | V197: 0 | W197: 1.984518273e-17 | X197: 1.984518273e-17 | Y197: 1.742112468e+16 | Z197: 0 | AA197: FALSE | AB197: 0 | AC197: 5.721903316e-14 | AD197: 5.721903316e-14 | AE197: 6.03819862e+12 | AF197: 0 | AG197: FALSE | AH197: 0 | AI197: 1.808829767e-10 | AJ197: 1.808829767e-10 | AK197: 1910074090 | AL197: 0 | AM197: FALSE | AN197: 0 | AO197: 5.720021962e-07 | AP197: 5.720021962e-07 | AQ197: 604018.4624 | AR197: 0 | AS197: FALSE | AT197: 0 | AU197: 0.001808829767 | AV197: 0.001808829767
B198: 10 | C198: 9 | D198: 1618.513011 | F198: 189 | G198: 13 | H198: 10 | I198: 2329.160463 | J198: 1 | K198: 0.07269331941 | L198: 0.07269331941 | M198: 2.195183511e+22 | N198: 0 | O198: FALSE | P198: 0 | Q198: 7.435405915e-22 | R198: 7.435405915e-22 | S198: 6.927299511e+18 | T198: 0 | U198: FALSE | V198: 0 | W198: 2.411950338e-18 | X198: 2.411950338e-18 | Y198: 2.19232038e+15 | Z198: 0 | AA198: FALSE | AB198: 0 | AC198: 6.954305649e-15 | AD198: 6.954305649e-15 | AE198: 7.598628754e+11 | AF198: 0 | AG198: FALSE | AH198: 0 | AI198: 2.198421464e-11 | AJ198: 2.198421464e-11 | AK198: 240368772.5 | AL198: 0 | AM198: FALSE | AN198: 0 | AO198: 6.952019084e-08 | AP198: 6.952019084e-08 | AQ198: 76011.27994 | AR198: 0 | AS198: FALSE | AT198: 0 | AU198: 0.0002198421464 | AV198: 0.0002198421464
B199: 10 | C199: 10 | D199: 1827.686336 | F199: 190 | G199: 5 | H199: 14 | I199: 2339.481515 | J199: 1 | K199: 0.6611497072 | L199: 0.6611497072 | M199: 2.101850991e+23 | N199: 0 | O199: FALSE | P199: 0 | Q199: 6.423684602e-21 | R199: 6.423684602e-21 | S199: 6.632771825e+19 | T199: 0 | U199: FALSE | V199: 0 | W199: 2.083760917e-17 | X199: 2.083760917e-17 | Y199: 2.099109592e+16 | Z199: 0 | AA199: FALSE | AB199: 0 | AC199: 6.008046719e-14 | AD199: 6.008046719e-14 | AE199: 7.275558193e+12 | AF199: 0 | AG199: FALSE | AH199: 0 | AI199: 1.899286504e-10 | AJ199: 1.899286504e-10 | AK199: 2301490240 | AL199: 0 | AM199: FALSE | AN199: 0 | AO199: 6.006071282e-07 | AP199: 6.006071282e-07 | AQ199: 727795.1173 | AR199: 0 | AS199: FALSE | AT199: 0 | AU199: 0.001899286504 | AV199: 0.001899286504
B200: 10 | C200: 11 | D200: 2058.877907 | F200: 191 | G200: 15 | H200: 8 | I200: 2339.82555 | J200: 1 | K200: 0.1692198703 | L200: 0.1692198703 | M200: 5.388848414e+22 | N200: 0 | O200: FALSE | P200: 0 | Q200: 1.641320001e-21 | R200: 1.641320001e-21 | S200: 1.700548806e+19 | T200: 0 | U200: FALSE | V200: 0 | W200: 5.324231625e-18 | X200: 5.324231625e-18 | Y200: 5381819854754112 | Z200: 0 | AA200: FALSE | AB200: 0 | AC200: 1.535120084e-14 | AD200: 1.535120084e-14 | AE200: 1.865350131e+12 | AF200: 0 | AG200: FALSE | AH200: 0 | AI200: 4.852879804e-11 | AJ200: 4.852879804e-11 | AK200: 590069518.9 | AL200: 0 | AM200: FALSE | AN200: 0 | AO200: 1.534615339e-07 | AP200: 1.534615339e-07 | AQ200: 186596.3658 | AR200: 0 | AS200: FALSE | AT200: 0 | AU200: 0.0004852879804 | AV200: 0.0004852879804
B201: 10 | C201: 12 | D201: 2312.087722 | F201: 192 | G201: 18 | H201: 1 | I201: 2365.757194 | J201: 1 | K201: 0.2868778867 | L201: 0.2868778867 | M201: 1.03847328e+23 | N201: 0 | O201: FALSE | P201: 0 | Q201: 2.447852994e-21 | R201: 2.447852994e-21 | S201: 3.27709069e+19 | T201: 0 | U201: FALSE | V201: 0 | W201: 7.940521236e-18 | X201: 7.940521236e-18 | Y201: 1.037118822e+16 | Z201: 0 | AA201: FALSE | AB201: 0 | AC201: 2.289467192e-14 | AD201: 2.289467192e-14 | AE201: 3.594675747e+12 | AF201: 0 | AG201: FALSE | AH201: 0 | AI201: 7.237550478e-11 | AJ201: 7.237550478e-11 | AK201: 1137110161 | AL201: 0 | AM201: FALSE | AN201: 0 | AO201: 2.288714419e-07 | AP201: 2.288714419e-07 | AQ201: 359585.806 | AR201: 0 | AS201: FALSE | AT201: 0 | AU201: 0.0007237550478 | AV201: 0.0007237550478
... 208 more rows

Sheet 計算表s-2 (hidden)
B1: ヤング率 | C1: 辺長ｘ | D1: 辺長ｙ | E1: 板厚 | F1: ポアソン比 | G1: 密度 | H1: 曲げ剛性 | I1: 面密度 | J1: 加振点ｘ | K1: 加振点ｙ | L1: 縮退重み | M1: 周波数重み
B2: =床衝撃音計算シート!D7 -> 29000000000 | C2: =床衝撃音計算シート!D9 -> 8 | D2: =床衝撃音計算シート!F9 -> 6.5 | E2: =(床衝撃音計算シート!L9)/1000 -> 0.244 | F2: =床衝撃音計算シート!L7 -> 0.16 | G2: =床衝撃音計算シート!G7 -> 1684 | H2: =B2*E2^3/12/(1-F2^2) -> 36028730.16 | I2: =G2*E2 -> 410.896 | J2: =床衝撃音計算シート!D21 -> 2.4 | K2: =床衝撃音計算シート!F21 -> 1.5 | L2: 1 | M2: 0
B4: 周波数 | C4: 31.5Hz | D4: 63Hz | E4: 125Hz | F4: 250Hz | G4: 500Hz | H4: 1000Hz | I4: (2000Hz) | J4: (4000Hz)
B5: モード数１ | C5: =M8 -> 0.839490046 | D5: =S8 -> 2.268390371 | E5: =Y8 -> 3.642231655 | F5: =AE8 -> 7.130775102 | G5: =AK8 -> 16.76736504 | H5: =AQ8 -> 30.78531217 | I5: =H6*I7/H7 -> 52.05681577 | J5: =H6*J7/H7 -> 105.4548538
B6: モード数２ | C6: =C5*($D$7^2+$C$7^2)/2/$D$7^2 -> 0.6968423233 | D6: =D5*($D$7^2+$C$7^2)/2/$D$7^2 -> 1.882941226 | E6: 3.023336823 | F6: 5.919100426 | G6: 13.91822294 | H6: 25.55421421 | I6: 43.21122403 | J6: 87.53576733
C7: =MIN(C2,D2) -> 6.5 | D7: =MAX(C2,D2) -> 8 | H7: =0.354*SQRT(I2/H2)*C2*D2*1000-0.139*SQRT(SQRT(I2/H2*1000^2))*(C2+D2) -> 58.46145598 | I7: =0.354*SQRT(I2/H2)*C2*D2*2000-0.139*SQRT(SQRT(I2/H2*2000^2))*(C2+D2) -> 119.0925778 | J7: =0.354*SQRT(I2/H2)*C2*D2*4000-0.139*SQRT(SQRT(I2/H2*4000^2))*(C2+D2) -> 241.2535265
M8: =M9+O9+Q9 -> 0.839490046 | S8: =S9+U9+W9 -> 2.268390371 | Y8: =Y9+AA9+AC9 -> 3.642231655 | AE8: =AE9+AG9+AI9 -> 7.130775102 | AK8: =AK9+AM9+AO9 -> 16.76736504 | AQ8: =AQ9+AS9+AU9 -> 30.78531217
B9: m | C9: n | D9: fi | F9: No. | G9: m | H9: n | I9: fi | J9: 縮退ﾁｪｯｸ | K9: 周波数重み | L9: 重み | M9: =SUM(N10:N409) -> 0.05392154569 | O9: =SUM(P10:P409) -> 0.6306674288 | Q9: =SUM(R10:R409) -> 0.1549010715 | S9: =SUM(T10:T409) -> 0.1845770781 | U9: =SUM(V10:V409) -> 1.952153639 | W9: =SUM(X10:X409) -> 0.1316596541 | Y9: =SUM(Z10:Z409) -> 0.1305673044 | AA9: =SUM(AB10:AB409) -> 2.982860842 | AC9: =SUM(AD10:AD409) -> 0.5288035087 | AE9: =SUM(AF10:AF409) -> 0.3275219044 | AG9: =SUM(AH10:AH409) -> 5.533194323 | AI9: =SUM(AJ10:AJ409) -> 1.270058875 | AK9: =SUM(AL10:AL409) -> 0.4054908158 | AM9: =SUM(AN10:AN409) -> 13.90187361 | AO9: =SUM(AP10:AP409) -> 2.460000613 | AQ9: =SUM(AR10:AR409) -> 1.72766185 | AS9: =SUM(AT10:AT409) -> 23.36278616 | AU9: =SUM(AV10:AV409) -> 5.694864163
B10: 1 | C10: 1 | D10: =3.1416/2*SQRT($H$2/$I$2)*(B10^2/$C$2^2+C10^2/$D$2^2) -> 18.27686336 | F10: 1 | G10: 1 | H10: 1 | I10: 18.27686336 | J10: =1 -> 1 | K10: =ABS(SIN(G10*3.1416*$J$2/$C$2)*SIN(H10*3.1416*$K$2/$D$2))*(1/F10^$M$2)+(1-1/F10^$M$2) -> 0.5364793855 | L10: =$J10*$K10 -> 0.5364793855 | M10: =10^(LOG10($I10/22.27)/LOG10(2)*70/20)*$L10 -> 0.05392154569 | N10: =IF($I10<22.27,M10,0) -> 0.05392154569 | O10: =AND($I10>22.27,$I10<44.45) -> FALSE | P10: =IF($O10=TRUE,$L10,0) -> 0 | Q10: =10^(LOG10(44.45/$I10)/LOG10(2)*70/20)*$L10 -> 16486.56798 | R10: =IF($I10>44.45,Q10,0) -> 0 | S10: =10^(LOG10($I10/44.548)/LOG10(2)*70/20)*$L10 -> 1.701592123e-05 | T10: =IF($I10<44.528,S10,0) -> 1.701592123e-05 | U10: =AND($I10>44.548,$I10<89.095) -> FALSE | V10: =IF($U10=TRUE,$L10,0) -> 0 | W10: =10^(LOG10(89.095/$I10)/LOG10(2)*70/20)*$L10 -> 53480312.52 | X10: =IF($I10>89.095,W10,0) -> 0 | Y10: =10^(LOG10($I10/89.09)/LOG10(2)*70/20)*$L10 -> 5.385121698e-09 | Z10: =IF($I10<89.09,Y10,0) -> 5.385121698e-09 | AA10: =AND($I10>89.09,$I10<176.78) -> FALSE | AB10: =IF($AA10=TRUE,$L10,0) -> 0 | AC10: =10^(LOG10(176.78/$I10)/LOG10(2)*70/20)*$L10 -> 1.541982161e+11 | AD10: =IF($I10>176.78,AC10,0) -> 0 | AE10: =10^(LOG10($I10/176.78)/LOG10(2)*70/20)*$L10 -> 1.866494557e-12 | AF10: =IF($I10<176.78,AE10,0) -> 1.866494557e-12 | AG10: =AND($I10>176.78,$I10<353.55) -> FALSE | AH10: =IF($AG10=TRUE,$L10,0) -> 0 | AI10: =10^(LOG10(353.55/$I10)/LOG10(2)*70/20)*$L10 -> 4.874572461e+14 | AJ10: =IF($I10>353.55,AI10,0) -> 0 | AK10: =10^(LOG10($I10/353.55)/LOG10(2)*70/20)*$L10 -> 5.904315371e-16 | AL10: =IF($I10<353.55,AK10,0) -> 5.904315371e-16 | AM10: =AND($I10>353.55,$I10<707.1) -> FALSE | AN10: =IF($AM10=TRUE,$L10,0) -> 0 | AO10: =10^(LOG10(707.1/$I10)/LOG10(2)*70/20)*$L10 -> 1.54147516e+18 | AP10: =IF($I10>707.1,AO10,0) -> 0 | AQ10: =10^(LOG10($I10/707.1)/LOG10(2)*70/20)*$L10 -> 1.86710846e-19 | AR10: =IF($I10<707.1,AQ10,0) -> 1.86710846e-19 | AS10: =AND($I10>707.1,$I10<1414.2) -> FALSE | AT10: =IF($AS10=TRUE,$L10,0) -> 0 | AU10: =10^(LOG10(1414.2/$I10)/LOG10(2)*70/20)*$L10 -> 4.874572461e+21 | AV10: =IF($I10>1414.2,AU10,0) -> 0
B11: 1 | C11: 2 | D11: 51.30423057 | F11: 2 | G11: 2 | H11: 1 | I11: 40.08008625 | J11: =IF(ABS(I11-I10)>0.0001,1,$L$2) -> 1 | K11: 0.6306674288 | L11: 0.6306674288 | M11: 584.8501346 | N11: 0 | O11: TRUE | P11: 0.6306674288 | Q11: 2.100596916 | R11: 0 | S11: 0.1845600621 | T11: 0.1845600621 | U11: FALSE | V11: 0 | W11: 6814.067044 | X11: 0 | Y11: 5.840873272e-05 | Z11: 5.840873272e-05 | AA11: FALSE | AB11: 0 | AC11: 19646799.6 | AD11: 0 | AE11: 2.024459016e-08 | AF11: 2.024459016e-08 | AG11: FALSE | AH11: 0 | AI11: 6.210820766e+10 | AJ11: 0 | AK11: 6.404007148e-12 | AL11: 6.404007148e-12 | AM11: FALSE | AN11: 0 | AO11: 1.964033976e+14 | AP11: 0 | AQ11: 2.025124874e-15 | AR11: 2.025124874e-15 | AS11: FALSE | AT11: 0 | AU11: 6.210820766e+17 | AV11: 0
B12: 1 | C12: 3 | D12: 106.3498426 | F12: 3 | G12: 1 | H12: 2 | I12: 51.30423057 | J12: 1 | K12: 0.8031199662 | L12: 0.8031199662 | M12: 13143.08315 | N12: 0 | O12: FALSE | P12: 0 | Q12: 0.1515828623 | R12: 0.1515828623 | S12: 4.147538147 | T12: 0 | U12: TRUE | V12: 0.8031199662 | W12: 491.7153686 | X12: 0 | Y12: 0.001312594091 | Z12: 0.001312594091 | AA12: FALSE | AB12: 0 | AC12: 1417748.497 | AD12: 0 | AE12: 4.549478851e-07 | AF12: 4.549478851e-07 | AG12: FALSE | AH12: 0 | AI12: 4481840291 | AJ12: 0 | AK12: 1.439144722e-10 | AL12: 1.439144722e-10 | AM12: FALSE | AN12: 0 | AO12: 1.417282343e+13 | AP12: 0 | AQ12: 4.550975205e-14 | AR12: 4.550975205e-14 | AS12: FALSE | AT12: 0 | AU12: 4.481840291e+16 | AV12: 0
B13: 1 | C13: 4 | D13: 183.4136994 | F13: 4 | G13: 2 | H13: 2 | I13: 73.10745345 | J13: 1 | K13: 0.94412128 | L13: 0.94412128 | M13: 948936.3451 | N13: 0 | O13: FALSE | P13: 0 | Q13: 0.002901382622 | R13: 0.002901382622 | S13: 299.454066 | T13: 0 | U13: TRUE | V13: 0.94412128 | W13: 9.411713194 | X13: 0 | Y13: 0.09476986679 | Z13: 0.09476986679 | AA13: FALSE | AB13: 0 | AC13: 27136.51654 | AD13: 0 | AE13: 3.284743604e-05 | AF13: 3.284743604e-05 | AG13: FALSE | AH13: 0 | AI13: 85784984.76 | AJ13: 0 | AK13: 1.039068776e-08 | AL13: 1.039068776e-08 | AM13: FALSE | AN13: 0 | AO13: 2.712759409e+11 | AP13: 0 | AQ13: 3.285823979e-12 | AR13: 3.285823979e-12 | AS13: FALSE | AT13: 0 | AU13: 857849847606872 | AV13: 0
B14: 1 | C14: 5 | D14: 282.495801 | F14: 5 | G14: 3 | H14: 1 | I14: 76.41879105 | J14: 1 | K14: 0.204912393 | L14: 0.204912393 | M14: 344713.8969 | N14: 0 | O14: FALSE | P14: 0 | Q14: 0.0003762393121 | R14: 0.0003762393121 | S14: 108.7807191 | T14: 0 | U14: TRUE | V14: 0.204912393 | W14: 1.220472085 | X14: 0 | Y14: 0.0344264294 | Z14: 0.0344264294 | AA14: FALSE | AB14: 0 | AC14: 3518.951357 | AD14: 0 | AE14: 1.193227316e-05 | AF14: 1.193227316e-05 | AG14: FALSE | AH14: 0 | AI14: 11124242.42 | AJ14: 0 | AK14: 3.774557154e-09 | AL14: 3.774557154e-09 | AM14: FALSE | AN14: 0 | AO14: 3.51779433e+10 | AP14: 0 | AQ14: 1.193619776e-12 | AR14: 1.193619776e-12 | AS14: FALSE | AT14: 0 | AU14: 1.112424242e+14 | AV14: 0
B15: 1 | C15: 6 | D15: 403.5961474 | F15: 6 | G15: 1 | H15: 3 | I15: 106.3498426 | J15: 1 | K15: 0.6658066623 | L15: 0.6658066623 | M15: 52252088.97 | N15: 0 | O15: FALSE | P15: 0 | Q15: 2.620469618e-05 | R15: 2.620469618e-05 | S15: 16489.0939 | T15: 0 | U15: FALSE | V15: 0 | W15: 0.08500467428 | X15: 0.08500467428 | Y15: 5.21839377 | Z15: 0 | AA15: TRUE | AB15: 0.6658066623 | AC15: 245.0914835 | AD15: 0 | AE15: 0.001808706305 | AF15: 0.001808706305 | AG15: FALSE | AH15: 0 | AI15: 774792.4886 | AJ15: 0 | AK15: 5.721512768e-07 | AL15: 5.721512768e-07 | AM15: FALSE | AN15: 0 | AO15: 2450108978 | AP15: 0 | AQ15: 1.809301201e-10 | AR15: 1.809301201e-10 | AS15: FALSE | AT15: 0 | AU15: 7.747924886e+12 | AV15: 0
B16: 1 | C16: 7 | D16: 546.7147387 | F16: 7 | G16: 3 | H16: 2 | I16: 109.4461583 | J16: 1 | K16: 0.3067577965 | L16: 0.3067577965 | M16: 33609580.25 | N16: 0 | O16: FALSE | P16: 0 | Q16: 8.647979345e-06 | R16: 8.647979345e-06 | S16: 10606.11232 | T16: 0 | U16: FALSE | V16: 0 | W16: 0.02805293611 | X16: 0.02805293611 | Y16: 3.3565744 | Z16: 0 | AA16: TRUE | AB16: 0.3067577965 | AC16: 80.88420767 | AD16: 0 | AE16: 0.001163395778 | AF16: 0.001163395778 | AG16: FALSE | AH16: 0 | AI16: 255694.2234 | AJ16: 0 | AK16: 3.680190521e-07 | AL16: 3.680190521e-07 | AM16: FALSE | AN16: 0 | AO16: 808576130.6 | AP16: 0 | AQ16: 1.163778427e-10 | AR16: 1.163778427e-10 | AS16: FALSE | AT16: 0 | AU16: 2.556942234e+12 | AV16: 0
B17: 1 | C17: 8 | D17: 711.8515747 | F17: 8 | G17: 4 | H17: 1 | I17: 127.2929778 | J17: 1 | K17: 0.3897791943 | L17: 0.3897791943 | M17: 247312718.4 | N17: 0 | O17: FALSE | P17: 0 | Q17: 1.897480709e-06 | R17: 1.897480709e-06 | S17: 78044.01156 | T17: 0 | U17: FALSE | V17: 0 | W17: 0.006155184114 | X17: 0.006155184114 | Y17: 24.69901537 | Z17: 0 | AA17: TRUE | AB17: 0.3897791943 | AC17: 17.74706178 | AD17: 0 | AE17: 0.008560730908 | AF17: 0.008560730908 | AG17: FALSE | AH17: 0 | AI17: 56102.68445 | AJ17: 0 | AK17: 2.708031207e-06 | AL17: 2.708031207e-06 | AM17: FALSE | AN17: 0 | AO17: 177412265.7 | AP17: 0 | AQ17: 8.563546589e-10 | AR17: 8.563546589e-10 | AS17: FALSE | AT17: 0 | AU17: 5.610268445e+11 | AV17: 0
B18: 1 | C18: 9 | D18: 899.0066555 | F18: 9 | G18: 2 | H18: 3 | I18: 128.1530655 | J18: 1 | K18: 0.7827002997 | L18: 0.7827002997 | M18: 537064367.8 | N18: 0 | O18: FALSE | P18: 0 | Q18: 3.523312576e-06 | R18: 3.523312576e-06 | S18: 169480.3972 | T18: 0 | U18: FALSE | V18: 0 | W18: 0.01142917422 | X18: 0.01142917422 | Y18: 53.63638864 | Z18: 0 | AA18: TRUE | AB18: 0.7827002997 | AC18: 32.95340271 | AD18: 0 | AE18: 0.01859048562 | AF18: 0.01859048562 | AG18: FALSE | AH18: 0 | AI18: 104173.5459 | AJ18: 0 | AK18: 5.880761321e-06 | AL18: 5.880761321e-06 | AM18: FALSE | AN18: 0 | AO18: 329425676.8 | AP18: 0 | AQ18: 1.859660015e-09 | AR18: 1.859660015e-09 | AS18: FALSE | AT18: 0 | AU18: 1.041735459e+12 | AV18: 0
B19: 1 | C19: 10 | D19: 1108.179981 | F19: 10 | G19: 4 | H19: 2 | I19: 160.320345 | J19: 1 | K19: 0.5835069563 | L19: 0.5835069563 | M19: 5411158184 | N19: 0 | O19: FALSE | P19: 0 | Q19: 1.943517069e-07 | R19: 1.943517069e-07 | S19: 1707589.058 | T19: 0 | U19: FALSE | V19: 0 | W19: 0.0006304520162 | X19: 0.0006304520162 | Y19: 540.4100528 | Z19: 0 | AA19: TRUE | AB19: 0.5835069563 | AC19: 1.817763802 | AD19: 0 | AE19: 0.187307266 | AF19: 0.187307266 | AG19: FALSE | AH19: 0 | AI19: 5746.38384 | AJ19: 0 | AK19: 5.925124e-05 | AL19: 5.925124e-05 | AM19: FALSE | AN19: 0 | AO19: 18171661.24 | AP19: 0 | AQ19: 1.873688726e-08 | AR19: 1.873688726e-08 | AS19: FALSE | AT19: 0 | AU19: 5.74638384e+10 | AV19: 0
B20: 1 | C20: 11 | D20: 1339.371552 | F20: 11 | G20: 3 | H20: 3 | I20: 164.4917703 | J20: 1 | K20: 0.2543099328 | L20: 0.2543099328 | M20: 3179143434 | N20: 0 | O20: FALSE | P20: 0 | Q20: 6.28352051e-08 | R20: 6.28352051e-08 | S20: 1003236.342 | T20: 0 | U20: FALSE | V20: 0 | W20: 0.0002038293483 | X20: 0.0002038293483 | Y20: 317.4996946 | Z20: 0 | AA20: TRUE | AB20: 0.2543099328 | AC20: 0.5876951801 | AD20: 0 | AE20: 0.1100460649 | AF20: 0.1100460649 | AG20: FALSE | AH20: 0 | AI20: 1857.844281 | AJ20: 0 | AK20: 3.481106709e-05 | AL20: 3.481106709e-05 | AM20: FALSE | AN20: 0 | AO20: 5875019.467 | AP20: 0 | AQ20: 1.100822598e-08 | AR20: 1.100822598e-08 | AS20: FALSE | AT20: 0 | AU20: 1.857844281e+10 | AV20: 0
B21: 1 | C21: 12 | D21: 1592.581367 | F21: 12 | G21: 1 | H21: 4 | I21: 183.4136994 | J21: 1 | K21: 0.1936054227 | L21: 0.1936054227 | M21: 8583517456 | N21: 0 | O21: FALSE | P21: 0 | Q21: 1.348827007e-08 | R21: 1.348827007e-08 | S21: 2708684.535 | T21: 0 | U21: FALSE | V21: 0 | W21: 4.375421856e-05 | X21: 4.375421856e-05 | Y21: 857.2322159 | Z21: 0 | AA21: FALSE | AB21: 0 | AC21: 0.1261552547 | AD21: 0.1261552547 | AE21: 0.297118497 | AF21: 0 | AG21: TRUE | AH21: 0.1936054227 | AI21: 398.8067736 | AJ21: 0 | AK21: 9.398802169e-05 | AL21: 9.398802169e-05 | AM21: FALSE | AN21: 0 | AO21: 1261137.751 | AP21: 0 | AQ21: 2.972162213e-08 | AR21: 2.972162213e-08 | AS21: FALSE | AT21: 0 | AU21: 3988067736 | AV21: 0
B22: 1 | C22: 13 | D22: 1867.809427 | F22: 13 | G22: 5 | H22: 1 | I22: 192.7026464 | J22: 1 | K22: 0.6631239272 | L22: 0.6631239272 | M22: 5.221615915e+10 | N22: 0 | O22: FALSE | P22: 0 | Q22: 2.60118348e-08 | R22: 2.60118348e-08 | S22: 16477755.59 | T22: 0 | U22: FALSE | V22: 0 | W22: 8.43790567e-05 | X22: 8.43790567e-05 | Y22: 5214.805474 | Z22: 0 | AA22: FALSE | AB22: 0 | AC22: 0.2432876587 | AD22: 0.2432876587 | AE22: 1.807462594 | AF22: 0 | AG22: TRUE | AH22: 0.6631239272 | AI22: 769.0901693 | AJ22: 0 | AK22: 0.0005717578515 | AL22: 0.0005717578515 | AM22: FALSE | AN22: 0 | AO22: 2432076.661 | AP22: 0 | AQ22: 1.808057081e-07 | AR22: 1.808057081e-07 | AS22: FALSE | AT22: 0 | AU22: 7690901693 | AV22: 0
B23: 1 | C23: 14 | D23: 2165.055732 | F23: 14 | G23: 2 | H23: 4 | I23: 205.2169223 | J23: 1 | K23: 0.227596134 | L23: 0.227596134 | M23: 3.724617791e+10 | N23: 0 | O23: FALSE | P23: 0 | Q23: 4.295706108e-09 | R23: 4.295706108e-09 | S23: 11753706.64 | T23: 0 | U23: FALSE | V23: 0 | W23: 1.39347198e-05 | X23: 1.39347198e-05 | Y23: 3719.759853 | Z23: 0 | AA23: FALSE | AB23: 0 | AC23: 0.04017756878 | AD23: 0.04017756878 | AE23: 1.289276623 | AF23: 0 | AG23: TRUE | AH23: 0.227596134 | AI23: 127.0108535 | AJ23: 0 | AK23: 0.0004078391633 | AL23: 0.0004078391633 | AM23: FALSE | AN23: 0 | AO23: 401643.5845 | AP23: 0 | AQ23: 1.289700675e-07 | AR23: 1.289700675e-07 | AS23: FALSE | AT23: 0 | AU23: 1270108535 | AV23: 0
B24: 1 | C24: 15 | D24: 2484.320281 | F24: 15 | G24: 4 | H24: 3 | I24: 215.365957 | J24: 1 | K24: 0.4837419506 | L24: 0.4837419506 | M24: 1.387625913e+11 | N24: 0 | O24: FALSE | P24: 0 | Q24: 5.208847164e-09 | R24: 5.208847164e-09 | S24: 43789051.17 | T24: 0 | U24: FALSE | V24: 0 | W24: 1.689683229e-05 | X24: 1.689683229e-05 | Y24: 13858.16063 | Z24: 0 | AA24: FALSE | AB24: 0 | AC24: 0.04871814084 | AD24: 0.04871814084 | AE24: 4.80326775 | AF24: 0 | AG24: TRUE | AH24: 0.4837419506 | AI24: 154.0096336 | AJ24: 0 | AK24: 0.001519426215 | AL24: 0.001519426215 | AM24: FALSE | AN24: 0 | AO24: 487021.2238 | AP24: 0 | AQ24: 4.804847577e-07 | AR24: 4.804847577e-07 | AS24: FALSE | AT24: 0 | AU24: 1540096336 | AV24: 0
B25: 1 | C25: 16 | D25: 2825.603076 | F25: 16 | G25: 5 | H25: 2 | I25: 225.7300136 | J25: 1 | K25: 0.9927092827 | L25: 0.9927092827 | M25: 4.918230247e+11 | N25: 0 | O25: FALSE | P25: 0 | Q25: 6.189019097e-09 | R25: 6.189019097e-09 | S25: 155203671.2 | T25: 0 | U25: FALSE | V25: 0 | W25: 2.007638436e-05 | X25: 2.007638436e-05 | Y25: 49118.15506 | Z25: 0 | AA25: FALSE | AB25: 0 | AC25: 0.05788565003 | AD25: 0.05788565003 | AE25: 17.02445631 | AF25: 0 | AG25: TRUE | AH25: 0.9927092827 | AI25: 182.9903112 | AJ25: 0 | AK25: 0.005385376491 | AL25: 0.005385376491 | AM25: FALSE | AN25: 0 | AO25: 578666.1731 | AP25: 0 | AQ25: 1.703005577e-06 | AR25: 1.703005577e-06 | AS25: FALSE | AT25: 0 | AU25: 1829903112 | AV25: 0
B26: 1 | C26: 17 | D26: 3188.904115 | F26: 17 | G26: 3 | H26: 4 | I26: 241.5556271 | J26: 1 | K26: 0.07394906782 | L26: 0.07394906782 | M26: 8.055076996e+10 | N26: 0 | O26: FALSE | P26: 0 | Q26: 2.096921752e-10 | R26: 2.096921752e-10 | S26: 25419255.68 | T26: 0 | U26: FALSE | V26: 0 | W26: 6.802145285e-07 | X26: 6.802145285e-07 | Y26: 8044.570932 | Z26: 0 | AA26: FALSE | AB26: 0 | AC26: 0.001961242594 | AD26: 0.001961242594 | AE26: 2.78826528 | AF26: 0 | AG26: TRUE | AH26: 0.07394906782 | AI26: 6.199954435 | AJ26: 0 | AK26: 0.0008820169065 | AL26: 0.0008820169065 | AM26: FALSE | AN26: 0 | AO26: 19605.9774 | AP26: 0 | AQ26: 2.789182359e-07 | AR26: 2.789182359e-07 | AS26: FALSE | AT26: 0 | AU26: 61999544.35 | AV26: 0
B27: 1 | C27: 18 | D27: 3574.223399 | F27: 18 | G27: 6 | H27: 1 | I27: 272.647797 | J27: 1 | K27: 0.3897673707 | L27: 0.3897673707 | M27: 1.735134331e+12 | N27: 0 | O27: FALSE | P27: 0 | Q27: 2.704359163e-10 | R27: 2.704359163e-10 | S27: 547553092.6 | T27: 0 | U27: FALSE | V27: 0 | W27: 8.772594358e-07 | X27: 8.772594358e-07 | Y27: 173287.1233 | Z27: 0 | AA27: FALSE | AB27: 0 | AC27: 0.002529376395 | AD27: 0.002529376395 | AE27: 60.06168302 | AF27: 0 | AG27: TRUE | AH27: 0.3897673707 | AI27: 7.995960542 | AJ27: 0 | AK27: 0.01899941882 | AL27: 0.01899941882 | AM27: FALSE | AN27: 0 | AO27: 25285.44739 | AP27: 0 | AQ27: 6.00814377e-06 | AR27: 6.00814377e-06 | AS27: FALSE | AT27: 0 | AU27: 79959605.42 | AV27: 0
B28: 1 | C28: 19 | D28: 3981.560928 | F28: 19 | G28: 5 | H28: 3 | I28: 280.7756256 | J28: 1 | K28: 0.8229809767 | L28: 0.8229809767 | M28: 5.155189376e+12 | N28: 0 | O28: FALSE | P28: 0 | Q28: 4.058088207e-10 | R28: 4.058088207e-10 | S28: 1626813461 | T28: 0 | U28: FALSE | V28: 0 | W28: 1.316391779e-06 | X28: 1.316391779e-06 | Y28: 514846.5573 | Z28: 0 | AA28: FALSE | AB28: 0 | AC28: 0.003795513797 | AD28: 0.003795513797 | AE28: 178.4469045 | AF28: 0 | AG28: TRUE | AH28: 0.8229809767 | AI28: 11.9985221 | AJ28: 0 | AK28: 0.05644842611 | AL28: 0.05644842611 | AM28: FALSE | AN28: 0 | AO28: 37942.65838 | AP28: 0 | AQ28: 1.785055968e-05 | AR28: 1.785055968e-05 | AS28: FALSE | AT28: 0 | AU28: 119985221 | AV28: 0
B29: 1 | C29: 20 | D29: 4410.916702 | F29: 20 | G29: 1 | H29: 5 | I29: 282.495801 | J29: 1 | K29: 0.3759756181 | L29: 0.3759756181 | M29: 2.528456832e+12 | N29: 0 | O29: FALSE | P29: 0 | Q29: 1.726832977e-10 | R29: 1.726832977e-10 | S29: 797900389.3 | T29: 0 | U29: FALSE | V29: 0 | W29: 5.601624754e-07 | X29: 5.601624754e-07 | Y29: 252515.9021 | Z29: 0 | AA29: FALSE | AB29: 0 | AC29: 0.001615100032 | AD29: 0.001615100032 | AE29: 87.52254513 | AF29: 0 | AG29: TRUE | AH29: 0.3759756181 | AI29: 5.105715445 | AJ29: 0 | AK29: 0.02768616209 | AL29: 0.02768616209 | AM29: FALSE | AN29: 0 | AO29: 16145.68989 | AP29: 0 | AQ29: 8.755133188e-06 | AR29: 8.755133188e-06 | AS29: FALSE | AT29: 0 | AU29: 51057154.45 | AV29: 0
B30: 2 | C30: 1 | D30: 40.08008625 | F30: 21 | G30: 4 | H30: 4 | I30: 292.4298138 | J30: 1 | K30: 0.1406640547 | L30: 0.1406640547 | M30: 1.413814484e+12 | N30: 0 | O30: FALSE | P30: 0 | Q30: 4.322752305e-11 | R30: 4.322752305e-11 | S30: 446154789.9 | T30: 0 | U30: FALSE | V30: 0 | W30: 1.402245419e-07 | X30: 1.402245419e-07 | Y30: 141197.0476 | Z30: 0 | AA30: FALSE | AB30: 0 | AC30: 0.0004043053078 | AD30: 0.0004043053078 | AE30: 48.93919499 | AF30: 0 | AG30: TRUE | AH30: 0.1406640547 | AI30: 1.278105265 | AJ30: 0 | AK30: 0.01548102244 | AL30: 0.01548102244 | AM30: FALSE | AN30: 0 | AO30: 4041.723728 | AP30: 0 | AQ30: 4.895529142e-06 | AR30: 4.895529142e-06 | AS30: FALSE | AT30: 0 | AU30: 12781052.65 | AV30: 0
B31: 2 | C31: 2 | D31: 73.10745345 | F31: 22 | G31: 2 | H31: 5 | I31: 304.2990239 | J31: 1 | K31: 0.4419845063 | L31: 0.4419845063 | M31: 7.055274177e+12 | N31: 0 | O31: FALSE | P31: 0 | Q31: 8.552374474e-11 | R31: 8.552374474e-11 | S31: 2226419664 | T31: 0 | U31: FALSE | V31: 0 | W31: 2.774280616e-07 | X31: 2.774280616e-07 | Y31: 704607.2135 | Z31: 0 | AA31: FALSE | AB31: 0 | AC31: 0.000799900191 | AD31: 0.000799900191 | AE31: 244.2183488 | AF31: 0 | AG31: TRUE | AH31: 0.4419845063 | AI31: 2.528674806 | AJ31: 0 | AK31: 0.07725402387 | AL31: 0.07725402387 | AM31: FALSE | AN31: 0 | AO31: 7996.37185 | AP31: 0 | AQ31: 2.442986738e-05 | AR31: 2.442986738e-05 | AS31: FALSE | AT31: 0 | AU31: 25286748.06 | AV31: 0
B32: 2 | C32: 3 | D32: 128.1530655 | F32: 23 | G32: 6 | H32: 2 | I32: 305.6751642 | J32: 1 | K32: 0.5834892561 | L32: 0.5834892561 | M32: 9.815748686e+12 | N32: 0 | O32: FALSE | P32: 0 | Q32: 1.071343675e-10 | R32: 1.071343675e-10 | S32: 3097537437 | T32: 0 | U32: FALSE | V32: 0 | W32: 3.47530151e-07 | X32: 3.47530151e-07 | Y32: 980294.6216 | Z32: 0 | AA32: FALSE | AB32: 0 | AC32: 0.001002023489 | AD32: 0.001002023489 | AE32: 339.7721869 | AF32: 0 | AG32: TRUE | AH32: 0.5834892561 | AI32: 3.167634637 | AJ32: 0 | AK32: 0.1074807391 | AL32: 0.1074807391 | AM32: FALSE | AN32: 0 | AO32: 10016.94025 | AP32: 0 | AQ32: 3.398839402e-05 | AR32: 3.398839402e-05 | AS32: FALSE | AT32: 0 | AU32: 31676346.37 | AV32: 0
B33: 2 | C33: 4 | D33: 205.2169223 | F33: 24 | G33: 3 | H33: 5 | I33: 340.6377287 | J33: 1 | K33: 0.1436067549 | L33: 0.1436067549 | M33: 8.509451572e+12 | N33: 0 | O33: FALSE | P33: 0 | Q33: 7.485738974e-12 | R33: 7.485738974e-12 | S33: 2685311703 | T33: 0 | U33: FALSE | V33: 0 | W33: 2.428277737e-08 | X33: 2.428277737e-08 | Y33: 849835.2878 | Z33: 0 | AA33: FALSE | AB33: 0 | AC33: 7.001381959e-05 | AD33: 7.001381959e-05 | AE33: 294.5547061 | AF33: 0 | AG33: TRUE | AH33: 0.1436067549 | AI33: 0.2213303406 | AJ33: 0 | AK33: 0.09317701316 | AL33: 0.09317701316 | AM33: FALSE | AN33: 0 | AO33: 699.9079915 | AP33: 0 | AQ33: 2.946515872e-05 | AR33: 2.946515872e-05 | AS33: FALSE | AT33: 0 | AU33: 2213303.406 | AV33: 0
B34: 2 | C34: 5 | D34: 304.2990239 | F34: 25 | G34: 5 | H34: 4 | I34: 357.8394825 | J34: 1 | K34: 0.23930908 | L34: 0.23930908 | M34: 2.51446778e+13 | N34: 0 | O34: FALSE | P34: 0 | Q34: 7.034914e-12 | R34: 7.034914e-12 | S34: 7934858902 | T34: 0 | U34: FALSE | V34: 0 | W34: 2.282035896e-08 | X34: 2.282035896e-08 | Y34: 2511188.214 | Z34: 0 | AA34: FALSE | AB34: 0 | AC34: 6.57972715e-05 | AD34: 6.57972715e-05 | AE34: 870.3831402 | AF34: 0 | AG34: FALSE | AH34: 0 | AI34: 0.2080008289 | AJ34: 0.2080008289 | AK34: 0.275329844 | AL34: 0 | AM34: TRUE | AN34: 0.23930908 | AO34: 657.7563745 | AP34: 0 | AQ34: 8.70669415e-05 | AR34: 8.70669415e-05 | AS34: FALSE | AT34: 0 | AU34: 2080008.289 | AV34: 0
B35: 2 | C35: 6 | D35: 425.3993703 | F35: 26 | G35: 6 | H35: 3 | I35: 360.7207762 | J35: 1 | K35: 0.4837272767 | L35: 0.4837272767 | M35: 5.579332891e+13 | N35: 0 | O35: FALSE | P35: 0 | Q35: 1.295404477e-11 | R35: 1.295404477e-11 | S35: 1.760659636e+10 | T35: 0 | U35: FALSE | V35: 0 | W35: 4.202126018e-08 | X35: 4.202126018e-08 | Y35: 5572055.888 | Z35: 0 | AA35: FALSE | AB35: 0 | AC35: 0.0001211586667 | AD35: 0.0001211586667 | AE35: 1931.286342 | AF35: 0 | AG35: FALSE | AH35: 0 | AI35: 0.38301137 | AJ35: 0.38301137 | AK35: 0.6109272376 | AL35: 0 | AM35: TRUE | AN35: 0.4837272767 | AO35: 1211.188299 | AP35: 0 | AQ35: 0.0001931921555 | AR35: 0.0001931921555 | AS35: FALSE | AT35: 0 | AU35: 3830113.7 | AV35: 0
B36: 2 | C36: 7 | D36: 568.5179616 | F36: 27 | G36: 7 | H36: 1 | I36: 367.1284295 | J36: 1 | K36: 0.2049262925 | L36: 0.2049262925 | M36: 2.900597661e+13 | N36: 0 | O36: FALSE | P36: 0 | Q36: 4.471923717e-12 | R36: 4.471923717e-12 | S36: 9153361738 | T36: 0 | U36: FALSE | V36: 0 | W36: 1.450634712e-08 | X36: 1.450634712e-08 | Y36: 2896814.474 | Z36: 0 | AA36: FALSE | AB36: 0 | AC36: 4.182572508e-05 | AD36: 4.182572508e-05 | AE36: 1004.042016 | AF36: 0 | AG36: FALSE | AH36: 0 | AI36: 0.1322210676 | AJ36: 0.1322210676 | AK36: 0.3176103937 | AL36: 0 | AM36: TRUE | AN36: 0.2049262925 | AO36: 418.1197284 | AP36: 0 | AQ36: 0.0001004372253 | AR36: 0.0001004372253 | AS36: FALSE | AT36: 0 | AU36: 1322210.676 | AV36: 0
B37: 2 | C37: 8 | D37: 733.6547976 | F37: 28 | G37: 4 | H37: 5 | I37: 391.5119154 | J37: 1 | K37: 0.2731651531 | L37: 0.2731651531 | M37: 8.166104452e+13 | N37: 0 | O37: FALSE | P37: 0 | Q37: 2.822423479e-12 | R37: 2.822423479e-12 | S37: 2.576962295e+10 | T37: 0 | U37: FALSE | V37: 0 | W37: 9.155579861e-09 | X37: 9.155579861e-09 | Y37: 8155453.578 | Z37: 0 | AA37: FALSE | AB37: 0 | AC37: 2.639801481e-05 | AD37: 2.639801481e-05 | AE37: 2826.69744 | AF37: 0 | AG37: FALSE | AH37: 0 | AI37: 0.08345040511 | AJ37: 0.08345040511 | AK37: 0.8941742197 | AL37: 0 | AM37: TRUE | AN37: 0.2731651531 | AO37: 263.8933518 | AP37: 0 | AQ37: 0.0002827627159 | AR37: 0.0002827627159 | AS37: FALSE | AT37: 0 | AU37: 834504.0511 | AV37: 0
B38: 2 | C38: 9 | D38: 920.8098784 | F38: 29 | G38: 7 | H38: 2 | I38: 400.1557967 | J38: 1 | K38: 0.3067786042 | L38: 0.3067786042 | M38: 1.182181817e+14 | N38: 0 | O38: FALSE | P38: 0 | Q38: 2.458965143e-12 | R38: 2.458965143e-12 | S38: 3.730589029e+10 | T38: 0 | U38: FALSE | V38: 0 | W38: 7.976567621e-09 | X38: 7.976567621e-09 | Y38: 11806399.23 | Z38: 0 | AA38: FALSE | AB38: 0 | AC38: 2.299860341e-05 | AD38: 2.299860341e-05 | AE38: 4092.122915 | AF38: 0 | AG38: FALSE | AH38: 0 | AI38: 0.07270405692 | AJ38: 0.07270405692 | AK38: 1.294468507 | AL38: 0 | AM38: TRUE | AN38: 0.3067786042 | AO38: 229.910415 | AP38: 0 | AQ38: 0.0004093468841 | AR38: 0.0004093468841 | AS38: FALSE | AT38: 0 | AU38: 727040.5692 | AV38: 0
B39: 2 | C39: 10 | D39: 1129.983204 | F39: 30 | G39: 1 | H39: 6 | I39: 403.5961474 | J39: 1 | K39: 0.7564481597 | L39: 0.7564481597 | M39: 3.220071095e+14 | N39: 0 | O39: FALSE | P39: 0 | Q39: 5.488825123e-12 | R39: 5.488825123e-12 | S39: 1.016151807e+11 | T39: 0 | U39: FALSE | V39: 0 | W39: 1.780504489e-08 | X39: 1.780504489e-08 | Y39: 32158712.25 | Z39: 0 | AA39: FALSE | AB39: 0 | AC39: 5.133676358e-05 | AD39: 5.133676358e-05 | AE39: 11146.27761 | AF39: 0 | AG39: FALSE | AH39: 0 | AI39: 0.1622877231 | AJ39: 0.1622877231 | AK39: 3.525921785 | AL39: 0 | AM39: TRUE | AN39: 0.7564481597 | AO39: 513.1988413 | AP39: 0 | AQ39: 0.001114994369 | AR39: 0.001114994369 | AS39: FALSE | AT39: 0 | AU39: 1622877.231 | AV39: 0
B40: 2 | C40: 11 | D40: 1361.174775 | F40: 31 | G40: 2 | H40: 6 | I40: 425.3993703 | J40: 1 | K40: 0.8892554473 | L40: 0.8892554473 | M40: 6.978820937e+14 | N40: 0 | O40: FALSE | P40: 0 | Q40: 3.499915236e-12 | R40: 3.499915236e-12 | S40: 2.202293459e+11 | T40: 0 | U40: FALSE | V40: 0 | W40: 1.135327625e-08 | X40: 1.135327625e-08 | Y40: 69697186.11 | Z40: 0 | AA40: FALSE | AB40: 0 | AC40: 3.273456833e-05 | AD40: 3.273456833e-05 | AE40: 24157.19195 | AF40: 0 | AG40: FALSE | AH40: 0 | AI40: 0.1034817583 | AJ40: 0.1034817583 | AK40: 7.641687419 | AL40: 0 | AM40: TRUE | AN40: 0.8892554473 | AO40: 327.2380525 | AP40: 0 | AQ40: 0.002416513741 | AR40: 0.002416513741 | AS40: FALSE | AT40: 0 | AU40: 1034817.583 | AV40: 0
B41: 2 | C41: 12 | D41: 1614.38459 | F41: 32 | G41: 6 | H41: 4 | I41: 437.784633 | J41: 1 | K41: 0.1406597878 | L41: 0.1406597878 | M41: 1.541123479e+14 | N41: 0 | O41: FALSE | P41: 0 | Q41: 3.965418169e-13 | R41: 3.965418169e-13 | S41: 4.863294514e+10 | T41: 0 | U41: FALSE | V41: 0 | W41: 1.286330807e-09 | X41: 1.286330807e-09 | Y41: 15391134.25 | Z41: 0 | AA41: FALSE | AB41: 0 | AC41: 3.708839879e-06 | AD41: 3.708839879e-06 | AE41: 5334.599648 | AF41: 0 | AG41: FALSE | AH41: 0 | AI41: 0.01172452522 | AJ41: 0.01172452522 | AK41: 1.687503378 | AL41: 0 | AM41: TRUE | AN41: 0.1406597878 | AO41: 37.07620418 | AP41: 0 | AQ41: 0.0005336354233 | AR41: 0.0005336354233 | AS41: FALSE | AT41: 0 | AU41: 117245.2522 | AV41: 0
B42: 2 | C42: 13 | D42: 1889.61265 | F42: 33 | G42: 7 | H42: 3 | I42: 455.2014087 | J42: 1 | K42: 0.2543271829 | L42: 0.2543271829 | M42: 4.38584458e+14 | N42: 0 | O42: FALSE | P42: 0 | Q42: 4.555319441e-13 | R42: 4.555319441e-13 | S42: 1.384032764e+11 | T42: 0 | U42: FALSE | V42: 0 | W42: 1.477687216e-09 | X42: 1.477687216e-09 | Y42: 43801242.18 | Z42: 0 | AA42: FALSE | AB42: 0 | AC42: 4.260572198e-06 | AD42: 4.260572198e-06 | AE42: 15181.60307 | AF42: 0 | AG42: FALSE | AH42: 0 | AI42: 0.01346868234 | AJ42: 0.01346868234 | AK42: 4.802423454 | AL42: 0 | AM42: TRUE | AN42: 0.2543271829 | AO42: 42.59171328 | AP42: 0 | AQ42: 0.00151865964 | AR42: 0.00151865964 | AS42: FALSE | AT42: 0 | AU42: 134686.8234 | AV42: 0
B43: 2 | C43: 14 | D43: 2186.858955 | F43: 34 | G43: 5 | H43: 5 | I43: 456.9215841 | J43: 1 | K43: 0.4647306777 | L43: 0.4647306777 | M43: 8.373505318e+14 | N43: 0 | O43: FALSE | P43: 0 | Q43: 7.966762981e-13 | R43: 7.966762981e-13 | S43: 2.642411398e+11 | T43: 0 | U43: FALSE | V43: 0 | W43: 2.584315757e-09 | X43: 2.584315757e-09 | Y43: 83625839.36 | Z43: 0 | AA43: FALSE | AB43: 0 | AC43: 7.451281805e-06 | AD43: 7.451281805e-06 | AE43: 28984.89259 | AF43: 0 | AG43: FALSE | AH43: 0 | AI43: 0.0235552745 | AJ43: 0.0235552745 | AK43: 9.168842535 | AL43: 0 | AM43: TRUE | AN43: 0.4647306777 | AO43: 74.48831834 | AP43: 0 | AQ43: 0.002899442592 | AR43: 0.002899442592 | AS43: FALSE | AT43: 0 | AU43: 235552.745 | AV43: 0
B44: 2 | C44: 15 | D44: 2506.123504 | F44: 35 | G44: 3 | H44: 6 | I44: 461.7380751 | J44: 1 | K44: 0.2889311441 | L44: 0.2889311441 | M44: 5.880966357e+14 | N44: 0 | O44: FALSE | P44: 0 | Q44: 4.384565202e-13 | R44: 4.384565202e-13 | S44: 1.855845544e+11 | T44: 0 | U44: FALSE | V44: 0 | W44: 1.42229673e-09 | X44: 1.42229673e-09 | Y44: 58732959.39 | Z44: 0 | AA44: FALSE | AB44: 0 | AC44: 4.100866436e-06 | AD44: 4.100866436e-06 | AE44: 20356.96781 | AF44: 0 | AG44: FALSE | AH44: 0 | AI44: 0.01296381443 | AJ44: 0.01296381443 | AK44: 6.439555769 | AL44: 0 | AM44: TRUE | AN44: 0.2889311441 | AO44: 40.99518077 | AP44: 0 | AQ44: 0.002036366335 | AR44: 0.002036366335 | AS44: FALSE | AT44: 0 | AU44: 129638.1443 | AV44: 0
B45: 2 | C45: 16 | D45: 2847.406299 | F45: 36 | G45: 8 | H45: 1 | I45: 476.1445439 | J45: 1 | K45: 0.6306719449 | L45: 0.6306719449 | M45: 1.83482646e+15 | N45: 0 | O45: FALSE | P45: 0 | Q45: 6.695739407e-13 | R45: 6.695739407e-13 | S45: 5.790127513e+11 | T45: 0 | U45: FALSE | V45: 0 | W45: 2.172012007e-09 | X45: 2.172012007e-09 | Y45: 183243333.6 | Z45: 0 | AA45: FALSE | AB45: 0 | AC45: 6.262498499e-06 | AD45: 6.262498499e-06 | AE45: 63512.52655 | AF45: 0 | AG45: FALSE | AH45: 0 | AI45: 0.01979724765 | AJ45: 0.01979724765 | AK45: 20.09103028 | AL45: 0 | AM45: TRUE | AN45: 0.6306719449 | AO45: 62.60439398 | AP45: 0 | AQ45: 0.006353341624 | AR45: 0.006353341624 | AS45: FALSE | AT45: 0 | AU45: 197972.4765 | AV45: 0
B46: 2 | C46: 17 | D46: 3210.707338 | F46: 37 | G46: 8 | H46: 2 | I46: 509.1719111 | J46: 1 | K46: 0.9441280407 | L46: 0.9441280407 | M46: 5990439604187422 | N46: 0 | O46: FALSE | P46: 0 | Q46: 4.596101512e-13 | R46: 4.596101512e-13 | S46: 1.890391812e+12 | T46: 0 | U46: FALSE | V46: 0 | W46: 1.490916397e-09 | X46: 1.490916397e-09 | Y46: 598262640.3 | Z46: 0 | AA46: FALSE | AB46: 0 | AC46: 4.298715507e-06 | AD46: 4.298715507e-06 | AE46: 207359.095 | AF46: 0 | AG46: FALSE | AH46: 0 | AI46: 0.01358926241 | AJ46: 0.01358926241 | AK46: 65.59427069 | AL46: 0 | AM46: TRUE | AN46: 0.9441280407 | AO46: 42.97302095 | AP46: 0 | AQ46: 0.02074272968 | AR46: 0.02074272968 | AS46: FALSE | AT46: 0 | AU46: 135892.6241 | AV46: 0
B47: 2 | C47: 18 | D47: 3596.026622 | F47: 38 | G47: 4 | H47: 6 | I47: 512.6122619 | J47: 1 | K47: 0.5495975468 | L47: 0.5495975468 | M47: 3.771165785e+15 | N47: 0 | O47: FALSE | P47: 0 | Q47: 2.474004352e-13 | R47: 2.474004352e-13 | S47: 1.190059727e+12 | T47: 0 | U47: FALSE | V47: 0 | W47: 8.025352889e-10 | X47: 8.025352889e-10 | Y47: 376624713.5 | Z47: 0 | AA47: FALSE | AB47: 0 | AC47: 2.313926454e-06 | AD47: 2.313926454e-06 | AE47: 130538.9214 | AF47: 0 | AG47: FALSE | AH47: 0 | AI47: 0.007314872023 | AJ47: 0.007314872023 | AK47: 41.29360876 | AL47: 0 | AM47: TRUE | AN47: 0.5495975468 | AO47: 23.13165638 | AP47: 0 | AQ47: 0.01305818565 | AR47: 0.01305818565 | AS47: FALSE | AT47: 0 | AU47: 73148.72023 | AV47: 0
B48: 2 | C48: 19 | D48: 4003.364151 | F48: 39 | G48: 7 | H48: 4 | I48: 532.2652655 | J48: 1 | K48: 0.07395408387 | L48: 0.07395408387 | M48: 7.858940808e+14 | N48: 0 | O48: FALSE | P48: 0 | Q48: 2.149546371e-14 | R48: 2.149546371e-14 | S48: 2.480031239e+11 | T48: 0 | U48: FALSE | V48: 0 | W48: 6.972852802e-11 | X48: 6.972852802e-11 | Y48: 78486905.61 | Z48: 0 | AA48: FALSE | AB48: 0 | AC48: 2.010462192e-07 | AD48: 2.010462192e-07 | AE48: 27203.7273 | AF48: 0 | AG48: FALSE | AH48: 0 | AI48: 0.0006355549293 | AJ48: 0.0006355549293 | AK48: 8.605403355 | AL48: 0 | AM48: TRUE | AN48: 0.07395408387 | AO48: 2.009801155 | AP48: 0 | AQ48: 0.002721267479 | AR48: 0.002721267479 | AS48: FALSE | AT48: 0 | AU48: 6355.549293 | AV48: 0
B49: 2 | C49: 20 | D49: 4432.719925 | F49: 40 | G49: 6 | H49: 5 | I49: 536.8667347 | J49: 1 | K49: 0.2731568669 | L49: 0.2731568669 | M49: 3.208330169e+15 | N49: 0 | O49: FALSE | P49: 0 | Q49: 7.183427345e-14 | R49: 7.183427345e-14 | S49: 1.012446745e+12 | T49: 0 | U49: FALSE | V49: 0 | W49: 2.330211721e-10 | X49: 2.330211721e-10 | Y49: 320414561.4 | Z49: 0 | AA49: FALSE | AB49: 0 | AC49: 6.718631092e-07 | AD49: 6.718631092e-07 | AE49: 111056.3639 | AF49: 0 | AG49: FALSE | AH49: 0 | AI49: 0.00212391913 | AJ49: 0.00212391913 | AK49: 35.13065676 | AL49: 0 | AM49: TRUE | AN49: 0.2731568669 | AO49: 6.716422016 | AP49: 0 | AQ49: 0.01110928911 | AR49: 0.01110928911 | AS49: FALSE | AT49: 0 | AU49: 21239.1913 | AV49: 0
B50: 3 | C50: 1 | D50: 76.41879105 | F50: 41 | G50: 1 | H50: 7 | I50: 546.7147387 | J50: 1 | K50: 0.756441837 | L50: 0.756441837 | M50: 1.097557701e+16 | N50: 0 | O50: FALSE | P50: 0 | Q50: 1.610312756e-13 | R50: 1.610312756e-13 | S50: 3.46354229e+12 | T50: 0 | U50: FALSE | V50: 0 | W50: 5.223648099e-10 | X50: 5.223648099e-10 | Y50: 1096126180 | Z50: 0 | AA50: FALSE | AB50: 0 | AC50: 1.506119131e-06 | AD50: 1.506119131e-06 | AE50: 379919.6497 | AF50: 0 | AG50: FALSE | AH50: 0 | AI50: 0.004761200892 | AJ50: 0.004761200892 | AK50: 120.1806573 | AL50: 0 | AM50: TRUE | AN50: 0.756441837 | AO50: 15.05623922 | AP50: 0 | AQ50: 0.03800446078 | AR50: 0.03800446078 | AS50: FALSE | AT50: 0 | AU50: 47612.00892 | AV50: 0
B51: 3 | C51: 2 | D51: 109.4461583 | F51: 42 | G51: 8 | H51: 3 | I51: 564.2175231 | J51: 1 | K51: 0.7827059045 | L51: 0.7827059045 | M51: 1.638217814e+16 | N51: 0 | O51: FALSE | P51: 0 | Q51: 1.155080067e-13 | R51: 1.155080067e-13 | S51: 5.169693286e+12 | T51: 0 | U51: FALSE | V51: 0 | W51: 3.746931626e-10 | X51: 3.746931626e-10 | Y51: 1636081121 | Z51: 0 | AA51: FALSE | AB51: 0 | AC51: 1.080341803e-06 | AD51: 1.080341803e-06 | AE51: 567069.1731 | AF51: 0 | AG51: FALSE | AH51: 0 | AI51: 0.003415217461 | AJ51: 0.003415217461 | AK51: 179.3819983 | AL51: 0 | AM51: TRUE | AN51: 0.7827059045 | AO51: 10.79986588 | AP51: 0 | AQ51: 0.05672556859 | AR51: 0.05672556859 | AS51: FALSE | AT51: 0 | AU51: 34152.17461 | AV51: 0
B52: 3 | C52: 3 | D52: 164.4917703 | F52: 43 | G52: 2 | H52: 7 | I52: 568.5179616 | J52: 1 | K52: 0.8892480146 | L52: 0.8892480146 | M52: 2.032996062e+16 | N52: 0 | O52: FALSE | P52: 0 | Q52: 1.201422564e-13 | R52: 1.201422564e-13 | S52: 6.415487614e+12 | T52: 0 | U52: FALSE | V52: 0 | W52: 3.897260746e-10 | X52: 3.897260746e-10 | Y52: 2030344469 | Z52: 0 | AA52: FALSE | AB52: 0 | AC52: 1.123685757e-06 | AD52: 1.123685757e-06 | AE52: 703721.6822 | AF52: 0 | AG52: FALSE | AH52: 0 | AI52: 0.003552238012 | AJ52: 0.003552238012 | AK52: 222.6095292 | AL52: 0 | AM52: TRUE | AN52: 0.8892480146 | AO52: 11.23316291 | AP52: 0 | AQ52: 0.0703953141 | AR52: 0.0703953141 | AS52: FALSE | AT52: 0 | AU52: 35522.38012 | AV52: 0
B53: 3 | C53: 4 | D53: 241.5556271 | F53: 44 | G53: 5 | H53: 6 | I53: 578.0219305 | J53: 1 | K53: 0.9350198496 | L53: 0.9350198496 | M53: 2.592080686e+16 | N53: 0 | O53: FALSE | P53: 0 | Q53: 1.041788738e-13 | R53: 1.041788738e-13 | S53: 8.179780496e+12 | T53: 0 | U53: FALSE | V53: 0 | W53: 3.379429084e-10 | X53: 3.379429084e-10 | Y53: 2588699891 | Z53: 0 | AA53: FALSE | AB53: 0 | AC53: 9.743808733e-07 | AD53: 9.743808733e-07 | AE53: 897248.8512 | AF53: 0 | AG53: FALSE | AH53: 0 | AI53: 0.003080249753 | AJ53: 0.003080249753 | AK53: 283.8283221 | AL53: 0 | AM53: TRUE | AN53: 0.9350198496 | AO53: 9.740604983 | AP53: 0 | AQ53: 0.08975439623 | AR53: 0.08975439623 | AS53: FALSE | AT53: 0 | AU53: 30802.49753 | AV53: 0
B54: 3 | C54: 5 | D54: 340.6377287 | F54: 45 | G54: 9 | H54: 1 | I54: 599.6961402 | J54: 1 | K54: 0.5364707951 | L54: 0.5364707951 | M54: 2.281654431e+16 | N54: 0 | O54: FALSE | P54: 0 | Q54: 3.896088499e-14 | R54: 3.896088499e-14 | S54: 7.200174175e+12 | T54: 0 | U54: FALSE | V54: 0 | W54: 1.263841151e-10 | X54: 1.263841151e-10 | Y54: 2278678519 | Z54: 0 | AA54: FALSE | AB54: 0 | AC54: 3.643996113e-07 | AD54: 3.643996113e-07 | AE54: 789794.7885 | AF54: 0 | AG54: FALSE | AH54: 0 | AI54: 0.001151953865 | AJ54: 0.001151953865 | AK54: 249.8371877 | AL54: 0 | AM54: TRUE | AN54: 0.5364707951 | AO54: 3.642797973 | AP54: 0 | AQ54: 0.07900545573 | AR54: 0.07900545573 | AS54: FALSE | AT54: 0 | AU54: 11519.53865 | AV54: 0
B55: 3 | C55: 6 | D55: 461.7380751 | F55: 46 | G55: 3 | H55: 7 | I55: 604.8566664 | J55: 1 | K55: 0.2889287291 | L55: 0.2889287291 | M55: 1.357563571e+16 | N55: 0 | O55: FALSE | P55: 0 | Q55: 1.899362206e-14 | R55: 1.899362206e-14 | S55: 4.284037948e+12 | T55: 0 | U55: FALSE | V55: 0 | W55: 6.161287449e-11 | X55: 6.161287449e-11 | Y55: 1355792930 | Z55: 0 | AA55: FALSE | AB55: 0 | AC55: 1.776465935e-07 | AD55: 1.776465935e-07 | AE55: 469920.694 | AF55: 0 | AG55: FALSE | AH55: 0 | AI55: 0.0005615831455 | AJ55: 0.0005615831455 | AK55: 148.6508474 | AL55: 0 | AM55: TRUE | AN55: 0.2889287291 | AO55: 1.775881835 | AP55: 0 | AQ55: 0.0470075254 | AR55: 0.0470075254 | AS55: FALSE | AT55: 0 | AU55: 5615.831455 | AV55: 0
B56: 3 | C56: 7 | D56: 604.8566664 | F56: 47 | G56: 7 | H56: 5 | I56: 631.3473671 | J56: 1 | K56: 0.1436164959 | L56: 0.1436164959 | M56: 1.110749647e+16 | N56: 0 | O56: FALSE | P56: 0 | Q56: 5.735601658e-15 | R56: 5.735601658e-15 | S56: 3.505171869e+12 | T56: 0 | U56: FALSE | V56: 0 | W56: 1.860555633e-11 | X56: 1.860555633e-11 | Y56: 1109300921 | Z56: 0 | AA56: FALSE | AB56: 0 | AC56: 5.364485472e-08 | AD56: 5.364485472e-08 | AE56: 384486.0426 | AF56: 0 | AG56: FALSE | AH56: 0 | AI56: 0.0001695841483 | AJ56: 0.0001695841483 | AK56: 121.6251525 | AL56: 0 | AM56: TRUE | AN56: 0.1436164959 | AO56: 0.5362721637 | AP56: 0 | AQ56: 0.03846125027 | AR56: 0.03846125027 | AS56: FALSE | AT56: 0 | AU56: 1695.841483 | AV56: 0
B57: 3 | C57: 8 | D57: 769.9935024 | F57: 48 | G57: 9 | H57: 2 | I57: 632.7235074 | J57: 1 | K57: 0.8031071062 | L57: 0.8031071062 | M57: 6.370588259e+16 | N57: 0 | O57: FALSE | P57: 0 | Q57: 3.127187445e-14 | R57: 3.127187445e-14 | S57: 2.010354611e+13 | T57: 0 | U57: FALSE | V57: 0 | W57: 1.014419509e-10 | X57: 1.014419509e-10 | Y57: 6362279238 | Z57: 0 | AA57: FALSE | AB57: 0 | AC57: 2.924846009e-07 | AD57: 2.924846009e-07 | AE57: 2205179.425 | AF57: 0 | AG57: FALSE | AH57: 0 | AI57: 0.0009246134078 | AJ57: 0.0009246134078 | AK57: 697.5683227 | AL57: 0 | AM57: TRUE | AN57: 0.8031071062 | AO57: 2.923884324 | AP57: 0 | AQ57: 0.2205904723 | AR57: 0.2205904723 | AS57: FALSE | AT57: 0 | AU57: 9246.134078 | AV57: 0
B58: 3 | C58: 9 | D58: 957.1485832 | F58: 49 | G58: 8 | H58: 4 | I58: 641.2813799 | J58: 1 | K58: 0.2275977638 | L58: 0.2275977638 | M58: 2.110630369e+16 | N58: 0 | O58: FALSE | P58: 0 | Q58: 7.580717486e-15 | R58: 7.580717486e-15 | S58: 6.660476743e+12 | T58: 0 | U58: FALSE | V58: 0 | W58: 2.459087549e-11 | X58: 2.459087549e-11 | Y58: 2107877519 | Z58: 0 | AA58: FALSE | AB58: 0 | AC58: 7.090214985e-08 | AD58: 7.090214985e-08 | AE58: 730594.8013 | AF58: 0 | AG58: FALSE | AH58: 0 | AI58: 0.0002241385639 | AJ58: 0.0002241385639 | AK58: 231.1103506 | AL58: 0 | AM58: TRUE | AN58: 0.2275977638 | AO58: 0.7087883733 | AP58: 0 | AQ58: 0.07308350988 | AR58: 0.07308350988 | AS58: FALSE | AT58: 0 | AU58: 2241.385639 | AV58: 0
B59: 3 | C59: 10 | D59: 1166.321909 | F59: 50 | G59: 4 | H59: 7 | I59: 655.7308531 | J59: 1 | K59: 0.5495929531 | L59: 0.5495929531 | M59: 6.603850833e+16 | N59: 0 | O59: FALSE | P59: 0 | Q59: 1.412770342e-14 | R59: 1.412770342e-14 | S59: 2.083964845e+13 | T59: 0 | U59: FALSE | V59: 0 | W59: 4.582845837e-11 | X59: 4.582845837e-11 | Y59: 6595237573 | Z59: 0 | AA59: FALSE | AB59: 0 | AC59: 1.321358495e-07 | AD59: 1.321358495e-07 | AE59: 2285923.276 | AF59: 0 | AG59: FALSE | AH59: 0 | AI59: 0.0004177128565 | AJ59: 0.0004177128565 | AK59: 723.1101685 | AL59: 0 | AM59: TRUE | AN59: 0.5495929531 | AO59: 1.320924035 | AP59: 0 | AQ59: 0.2286675132 | AR59: 0.2286675132 | AS59: FALSE | AT59: 0 | AU59: 4177.128565 | AV59: 0
B60: 3 | C60: 11 | D60: 1397.513479 | F60: 51 | G60: 6 | H60: 6 | I60: 657.9670811 | J60: 1 | K60: 0.5495808753 | L60: 0.5495808753 | M60: 6.87034286e+16 | N60: 0 | O60: FALSE | P60: 0 | Q60: 1.357911059e-14 | R60: 1.357911059e-14 | S60: 2.168061235e+13 | T60: 0 | U60: FALSE | V60: 0 | W60: 4.404889357e-11 | X60: 4.404889357e-11 | Y60: 6861382020 | Z60: 0 | AA60: FALSE | AB60: 0 | AC60: 1.270048825e-07 | AD60: 1.270048825e-07 | AE60: 2378169.504 | AF60: 0 | AG60: FALSE | AH60: 0 | AI60: 0.0004014926492 | AJ60: 0.0004014926492 | AK60: 752.2905814 | AL60: 0 | AM60: TRUE | AN60: 0.5495808753 | AO60: 1.269631235 | AP60: 0 | AQ60: 0.2378951699 | AR60: 0.2378951699 | AS60: FALSE | AT60: 0 | AU60: 4014.926492 | AV60: 0
B61: 3 | C61: 12 | D61: 1650.723295 | F61: 52 | G61: 9 | H61: 3 | I61: 687.7691195 | J61: 1 | K61: 0.665796001 | L61: 0.665796001 | M61: 1.393058178e+17 | N61: 0 | O61: FALSE | P61: 0 | Q61: 9.828780214e-15 | R61: 9.828780214e-15 | S61: 4.396047614e+13 | T61: 0 | U61: FALSE | V61: 0 | W61: 3.188330271e-11 | X61: 3.188330271e-11 | Y61: 1.391241242e+10 | Z61: 0 | AA61: FALSE | AB61: 0 | AC61: 9.192819134e-08 | AD61: 9.192819134e-08 | AE61: 4822071.538 | AF61: 0 | AG61: FALSE | AH61: 0 | AI61: 0.0002906068833 | AJ61: 0.0002906068833 | AK61: 1525.374451 | AL61: 0 | AM61: TRUE | AN61: 0.665796001 | AO61: 0.9189796548 | AP61: 0 | AQ61: 0.482365755 | AR61: 0.482365755 | AS61: FALSE | AT61: 0 | AU61: 2906.068833 | AV61: 0
B62: 3 | C62: 13 | D62: 1925.951355 | F62: 53 | G62: 1 | H62: 8 | I62: 711.8515747 | J62: 1 | K62: 0.3759598303 | L62: 0.3759598303 | M62: 1.173686044e+17 | N62: 0 | O62: FALSE | P62: 0 | Q62: 3.719781775e-15 | R62: 3.719781775e-15 | S62: 3.703779079e+13 | T62: 0 | U62: FALSE | V62: 0 | W62: 1.206649511e-11 | X62: 1.206649511e-11 | Y62: 1.172155231e+10 | Z62: 0 | AA62: FALSE | AB62: 0 | AC62: 3.479097134e-08 | AD62: 3.479097134e-08 | AE62: 4062714.794 | AF62: 0 | AG62: FALSE | AH62: 0 | AI62: 0.0001099825375 | AJ62: 0.0001099825375 | AK62: 1285.165784 | AL62: 0 | AM62: FALSE | AN62: 0 | AO62: 0.3477953212 | AP62: 0.3477953212 | AQ62: 0.4064051048 | AR62: 0 | AS62: TRUE | AT62: 0.3759598303 | AU62: 1099.825375 | AV62: 0
B63: 3 | C63: 14 | D63: 2223.19766 | F63: 54 | G63: 5 | H63: 7 | I63: 721.1405217 | J63: 1 | K63: 0.9350120344 | L63: 0.9350120344 | M63: 3.393841202e+17 | N63: 0 | O63: FALSE | P63: 0 | Q63: 7.956634283e-15 | R63: 7.956634283e-15 | S63: 1.070988115e+14 | T63: 0 | U63: FALSE | V63: 0 | W63: 2.581030137e-11 | X63: 2.581030137e-11 | Y63: 3.389414688e+10 | Z63: 0 | AA63: FALSE | AB63: 0 | AC63: 7.441808473e-08 | AD63: 7.441808473e-08 | AE63: 11747782.92 | AF63: 0 | AG63: FALSE | AH63: 0 | AI63: 0.0002352532705 | AJ63: 0.0002352532705 | AK63: 3716.197027 | AL63: 0 | AM63: FALSE | AN63: 0 | AO63: 0.7439361617 | AP63: 0.7439361617 | AQ63: 1.175164684 | AR63: 0 | AS63: TRUE | AT63: 0.9350120344 | AU63: 2352.532705 | AV63: 0
B64: 3 | C64: 15 | D64: 2542.462209 | F64: 55 | G64: 2 | H64: 8 | I64: 733.6547976 | J64: 1 | K64: 0.4419659467 | L64: 0.4419659467 | M64: 1.959460828e+17 | N64: 0 | O64: FALSE | P64: 0 | Q64: 3.079126591e-15 | R64: 3.079126591e-15 | S64: 6.183433854e+13 | T64: 0 | U64: FALSE | V64: 0 | W64: 9.988291838e-12 | X64: 9.988291838e-12 | Y64: 1.956905146e+10 | Z64: 0 | AA64: FALSE | AB64: 0 | AC64: 2.879894882e-08 | AD64: 2.879894882e-08 | AE64: 6782674.577 | AF64: 0 | AG64: FALSE | AH64: 0 | AI64: 9.104032873e-05 | AJ64: 9.104032873e-05 | AK64: 2145.575491 | AL64: 0 | AM64: FALSE | AN64: 0 | AO64: 0.2878947977 | AP64: 0.2878947977 | AQ64: 0.6784905444 | AR64: 0 | AS64: TRUE | AT64: 0.4419659467 | AU64: 910.4032873 | AV64: 0
B65: 3 | C65: 16 | D65: 2883.745004 | F65: 56 | G65: 10 | H65: 1 | I65: 737.7832185 | J65: 1 | K65: 1.461474116e-05 | L65: 1.461474116e-05 | M65: 6.91629352e+12 | N65: 0 | O65: FALSE | P65: 0 | Q65: 9.538835368e-20 | R65: 9.538835368e-20 | S65: 2182561799 | T65: 0 | U65: FALSE | V65: 0 | W65: 3.094275881e-16 | X65: 3.094275881e-16 | Y65: 690727.2747 | Z65: 0 | AA65: FALSE | AB65: 0 | AC65: 8.92163487e-13 | AD65: 8.92163487e-13 | AE65: 239.4075327 | AF65: 0 | AG65: FALSE | AH65: 0 | AI65: 2.820341035e-09 | AJ65: 2.820341035e-09 | AK65: 0.07573220987 | AL65: 0 | AM65: FALSE | AN65: 0 | AO65: 8.91870145e-06 | AP65: 8.91870145e-06 | AQ65: 2.394862754e-05 | AR65: 0 | AS65: TRUE | AT65: 1.461474116e-05 | AU65: 0.02820341035 | AV65: 0
B66: 3 | C66: 17 | D66: 3247.046043 | F66: 57 | G66: 8 | H66: 5 | I66: 740.3634816 | J66: 1 | K66: 0.4419876713 | L66: 0.4419876713 | M66: 2.178317147e+17 | N66: 0 | O66: FALSE | P66: 0 | Q66: 2.770037918e-15 | R66: 2.770037918e-15 | S66: 6.874074642e+13 | T66: 0 | U66: FALSE | V66: 0 | W66: 8.985647817e-12 | X66: 8.985647817e-12 | Y66: 2.175476015e+10 | Z66: 0 | AA66: FALSE | AB66: 0 | AC66: 2.590805473e-08 | AD66: 2.590805473e-08 | AE66: 7540245.827 | AF66: 0 | AG66: FALSE | AH66: 0 | AI66: 8.190152474e-05 | AJ66: 8.190152474e-05 | AK66: 2385.21935 | AL66: 0 | AM66: FALSE | AN66: 0 | AO66: 0.258995362 | AP66: 0.258995362 | AQ66: 0.7542725865 | AR66: 0 | AS66: TRUE | AT66: 0.4419876713 | AU66: 819.0152474 | AV66: 0
B67: 3 | C67: 18 | D67: 3632.365327 | F67: 58 | G67: 7 | H67: 6 | I67: 752.4477136 | J67: 1 | K67: 0.2889507426 | L67: 0.2889507426 | M67: 1.719041515e+17 | N67: 0 | O67: FALSE | P67: 0 | Q67: 1.500195222e-15 | R67: 1.500195222e-15 | S67: 5.424747127e+13 | T67: 0 | U67: FALSE | V67: 0 | W67: 4.866440938e-12 | X67: 4.866440938e-12 | Y67: 1.716799406e+10 | Z67: 0 | AA67: FALSE | AB67: 0 | AC67: 1.403126639e-08 | AD67: 1.403126639e-08 | AE67: 5950463.011 | AF67: 0 | AG67: FALSE | AH67: 0 | AI67: 4.43561712e-05 | AJ67: 4.43561712e-05 | AK67: 1882.320529 | AL67: 0 | AM67: FALSE | AN67: 0 | AO67: 0.1402665293 | AP67: 0.1402665293 | AQ67: 0.5952420158 | AR67: 0 | AS67: TRUE | AT67: 0.2889507426 | AU67: 443.561712 | AV67: 0
B68: 3 | C68: 19 | D68: 4039.702856 | F68: 59 | G68: 9 | H68: 4 | I68: 764.8329763 | J68: 1 | K68: 0.1936023225 | L68: 0.1936023225 | M68: 1.392547402e+17 | N68: 0 | O68: FALSE | P68: 0 | Q68: 8.313763225e-16 | R68: 8.313763225e-16 | S68: 4.394435769e+13 | T68: 0 | U68: FALSE | V68: 0 | W68: 2.696878187e-12 | X68: 2.696878187e-12 | Y68: 1.390731133e+10 | Z68: 0 | AA68: FALSE | AB68: 0 | AC68: 7.775829756e-09 | AD68: 7.775829756e-09 | AE68: 4820303.488 | AF68: 0 | AG68: FALSE | AH68: 0 | AI68: 2.458124779e-05 | AJ68: 2.458124779e-05 | AK68: 1524.81516 | AL68: 0 | AM68: FALSE | AN68: 0 | AO68: 0.07773273074 | AP68: 0.07773273074 | AQ68: 0.4821888918 | AR68: 0 | AS68: TRUE | AT68: 0.1936023225 | AU68: 245.8124779 | AV68: 0
B69: 3 | C69: 20 | D69: 4469.05863 | F69: 60 | G69: 3 | H69: 8 | I69: 769.9935024 | J69: 1 | K69: 0.1436007246 | L69: 0.1436007246 | M69: 1.116892722e+17 | N69: 0 | O69: FALSE | P69: 0 | Q69: 5.702802289e-16 | R69: 5.702802289e-16 | S69: 3.524557454e+13 | T69: 0 | U69: FALSE | V69: 0 | W69: 1.849915938e-12 | X69: 1.849915938e-12 | Y69: 1.115435983e+10 | Z69: 0 | AA69: FALSE | AB69: 0 | AC69: 5.333808352e-09 | AD69: 5.333808352e-09 | AE69: 3866124.681 | AF69: 0 | AG69: FALSE | AH69: 0 | AI69: 1.686143716e-05 | AJ69: 1.686143716e-05 | AK69: 1222.978084 | AL69: 0 | AM69: FALSE | AN69: 0 | AO69: 0.05332054604 | AP69: 0.05332054604 | AQ69: 0.3867396275 | AR69: 0 | AS69: TRUE | AT69: 0.1436007246 | AU69: 168.6143716 | AV69: 0
B70: 4 | C70: 1 | D70: 127.2929778 | F70: 61 | G70: 10 | H70: 2 | I70: 770.8105857 | J70: 1 | K70: 2.187854882e-05 | L70: 2.187854882e-05 | M70: 1.722775699e+13 | N70: 0 | O70: FALSE | P70: 0 | Q70: 8.582124309e-20 | R70: 8.582124309e-20 | S70: 5436531023 | T70: 0 | U70: FALSE | V70: 0 | W70: 2.783931081e-16 | X70: 2.783931081e-16 | Y70: 1720528.72 | Z70: 0 | AA70: FALSE | AB70: 0 | AC70: 8.026826813e-13 | AD70: 8.026826813e-13 | AE70: 596.3388891 | AF70: 0 | AG70: FALSE | AH70: 0 | AI70: 2.53747092e-09 | AJ70: 2.53747092e-09 | AK70: 0.1886409396 | AL70: 0 | AM70: FALSE | AN70: 0 | AO70: 8.024187604e-06 | AP70: 8.024187604e-06 | AQ70: 5.96535029e-05 | AR70: 0 | AS70: TRUE | AT70: 2.187854882e-05 | AU70: 0.0253747092 | AV70: 0
B71: 4 | C71: 2 | D71: 160.320345 | F71: 62 | G71: 6 | H71: 7 | I71: 801.0856723 | J71: 1 | K71: 0.5495762817 | L71: 0.5495762817 | M71: 6.772807796e+17 | N71: 0 | O71: FALSE | P71: 0 | Q71: 1.377443281e-15 | R71: 1.377443281e-15 | S71: 2.137282277e+14 | T71: 0 | U71: FALSE | V71: 0 | W71: 4.468249382e-12 | X71: 4.468249382e-12 | Y71: 6.763974168e+10 | Z71: 0 | AA71: FALSE | AB71: 0 | AC71: 1.288317235e-08 | AD71: 1.288317235e-08 | AE71: 23444077.37 | AF71: 0 | AG71: FALSE | AH71: 0 | AI71: 4.072677282e-05 | AJ71: 4.072677282e-05 | AK71: 7416.106617 | AL71: 0 | AM71: FALSE | AN71: 0 | AO71: 0.1287893639 | AP71: 0.1287893639 | AQ71: 2.345178828 | AR71: 0 | AS71: TRUE | AT71: 0.5495762817 | AU71: 407.2677282 | AV71: 0
B72: 4 | C72: 3 | D72: 215.365957 | F72: 63 | G72: 4 | H72: 8 | I72: 820.8676891 | J72: 1 | K72: 0.2731536825 | L72: 0.2731536825 | M72: 4.470168485e+17 | N72: 0 | O72: FALSE | P72: 0 | Q72: 5.155570623e-16 | R72: 5.155570623e-16 | S72: 1.4106427e+14 | T72: 0 | U72: FALSE | V72: 0 | W72: 1.672401002e-12 | X72: 1.672401002e-12 | Y72: 4.46433814e+10 | Z72: 0 | AA72: FALSE | AB72: 0 | AC72: 4.821984746e-09 | AD72: 4.821984746e-09 | AE72: 15473490.31 | AF72: 0 | AG72: FALSE | AH72: 0 | AI72: 1.524344097e-05 | AJ72: 1.524344097e-05 | AK72: 4894.756662 | AL72: 0 | AM72: FALSE | AN72: 0 | AO72: 0.04820399285 | AP72: 0.04820399285 | AQ72: 1.547857964 | AR72: 0 | AS72: TRUE | AT72: 0.2731536825 | AU72: 152.4344097 | AV72: 0
B73: 4 | C73: 4 | D73: 292.4298138 | F73: 64 | G73: 10 | H73: 3 | I73: 825.8561977 | J73: 1 | K73: 1.813786754e-05 | L73: 1.813786754e-05 | M73: 3.18490281e+13 | N73: 0 | O73: FALSE | P73: 0 | Q73: 3.190529622e-20 | R73: 3.190529622e-20 | S73: 1.005053817e+10 | T73: 0 | U73: FALSE | V73: 0 | W73: 1.034966899e-16 | X73: 1.034966899e-16 | Y73: 3180748.81 | Z73: 0 | AA73: FALSE | AB73: 0 | AC73: 2.984089696e-13 | AD73: 2.984089696e-13 | AE73: 1102.454257 | AF73: 0 | AG73: FALSE | AH73: 0 | AI73: 9.433417467e-10 | AJ73: 9.433417467e-10 | AK73: 0.3487413125 | AL73: 0 | AM73: FALSE | AN73: 0 | AO73: 2.983108532e-06 | AP73: 2.983108532e-06 | AQ73: 0.0001102816862 | AR73: 0 | AS73: TRUE | AT73: 1.813786754e-05 | AU73: 0.009433417467 | AV73: 0
B74: 4 | C74: 5 | D74: =3.1416/2*SQRT($H$2/$I$2)*(B74^2/$C$2^2+C74^2/$D$2^2) -> 391.5119154 | F74: 65 | G74: 8 | H74: 6 | I74: 861.463828 | J74: 1 | K74: =ABS(SIN(G74*3.1416*$J$2/$C$2)*SIN(H74*3.1416*$K$2/$D$2))*(1/F74^$M$2)+(1-1/F74^$M$2) -> 0.8892618151 | L74: =$J74*$K74 -> 0.8892618151 | M74: =10^(LOG10($I74/22.27)/LOG10(2)*70/20)*$L74 -> 2.550869811e+18 | N74: =IF($I74<22.27,M74,0) -> 0 | O74: =AND($I74>22.27,$I74<44.45) -> FALSE | P74: =IF($O74=TRUE,$L74,0) -> 0 | Q74: =10^(LOG10(44.45/$I74)/LOG10(2)*70/20)*$L74 -> 9.575412838e-16 | R74: =IF($I74>44.45,Q74,0) -> 9.575412838e-16 | S74: =10^(LOG10($I74/44.548)/LOG10(2)*70/20)*$L74 -> 8.049732111e+14 | T74: =IF($I74<44.528,S74,0) -> 0 | U74: =AND($I74>44.548,$I74<89.095) -> FALSE | V74: =IF($U74=TRUE,$L74,0) -> 0 | W74: =10^(LOG10(89.095/$I74)/LOG10(2)*70/20)*$L74 -> 3.106141143e-12 | X74: =IF($I74>89.095,W74,0) -> 3.106141143e-12 | Y74: =10^(LOG10($I74/89.09)/LOG10(2)*70/20)*$L74 -> 2.547542767e+11 | Z74: =IF($I74<89.09,Y74,0) -> 0 | AA74: =AND($I74>89.09,$I74<176.78) -> FALSE | AB74: =IF($AA74=TRUE,$L74,0) -> 0 | AC74: =10^(LOG10(176.78/$I74)/LOG10(2)*70/20)*$L74 -> 8.955845632e-09 | AD74: =IF($I74>176.78,AC74,0) -> 8.955845632e-09 | AE74: =10^(LOG10($I74/176.78)/LOG10(2)*70/20)*$L74 -> 88298370.5 | AF74: =IF($I74<176.78,AE74,0) -> 0 | AG74: =AND($I74>176.78,$I74<353.55) -> FALSE | AH74: =IF($AG74=TRUE,$L74,0) -> 0 | AI74: =10^(LOG10(353.55/$I74)/LOG10(2)*70/20)*$L74 -> 2.831155871e-05 | AJ74: =IF($I74>353.55,AI74,0) -> 2.831155871e-05 | AK74: =10^(LOG10($I74/353.55)/LOG10(2)*70/20)*$L74 -> 27931.58031 | AL74: =IF($I74<353.55,AK74,0) -> 0 | AM74: =AND($I74>353.55,$I74<707.1) -> FALSE | AN74: =IF($AM74=TRUE,$L74,0) -> 0 | AO74: =10^(LOG10(707.1/$I74)/LOG10(2)*70/20)*$L74 -> 0.08952900963 | AP74: =IF($I74>707.1,AO74,0) -> 0.08952900963 | AQ74: =10^(LOG10($I74/707.1)/LOG10(2)*70/20)*$L74 -> 8.832741243 | AR74: =IF($I74<707.1,AQ74,0) -> 0 | AS74: =AND($I74>707.1,$I74<1414.2) -> TRUE | AT74: =IF($AS74=TRUE,$L74,0) -> 0.8892618151 | AU74: =10^(LOG10(1414.2/$I74)/LOG10(2)*70/20)*$L74 -> 283.1155871 | AV74: =IF($I74>1414.2,AU74,0) -> 0
B75: 4 | C75: 6 | D75: 512.6122619 | F75: 66 | G75: 9 | H75: 5 | I75: 863.9150779 | J75: =IF(ABS(I75-I74)>0.0001,1,$L$2) -> 1 | K75: 0.3759695977 | L75: 0.3759695977 | M75: 1.114702228e+18 | N75: 0 | O75: FALSE | P75: 0 | Q75: 3.916815362e-16 | R75: 3.916815362e-16 | S75: 351764495430880 | T75: 0 | U75: FALSE | V75: 0 | W75: 1.27056468e-12 | X75: 1.27056468e-12 | Y75: 1.113248346e+11 | Z75: 0 | AA75: FALSE | AB75: 0 | AC75: 3.663381866e-09 | AD75: 3.663381866e-09 | AE75: 38585422.87 | AF75: 0 | AG75: FALSE | AH75: 0 | AI75: 1.158082163e-05 | AJ75: 1.158082163e-05 | AK75: 12205.79532 | AL75: 0 | AM75: FALSE | AN75: 0 | AO75: 0.03662177352 | AP75: 0.03662177352 | AQ75: 3.859811387 | AR75: 0 | AS75: TRUE | AT75: 0.3759695977 | AU75: 115.8082163 | AV75: 0
B76: 4 | C76: 7 | D76: 655.7308531 | F76: 67 | G76: 5 | H76: 8 | I76: 886.2773578 | J76: 1 | K76: 0.4647111629 | L76: 0.4647111629 | M76: 1.854512995e+18 | N76: 0 | O76: FALSE | P76: 0 | Q76: 3.596854267e-16 | R76: 3.596854267e-16 | S76: 5.852251943e+14 | T76: 0 | U76: FALSE | V76: 0 | W76: 1.166773403e-12 | X76: 1.166773403e-12 | Y76: 1.852094194e+11 | Z76: 0 | AA76: FALSE | AB76: 0 | AC76: 3.364123524e-09 | AD76: 3.364123524e-09 | AE76: 64193976.05 | AF76: 0 | AG76: FALSE | AH76: 0 | AI76: 1.063479481e-05 | AJ76: 1.063479481e-05 | AK76: 20306.59442 | AL76: 0 | AM76: FALSE | AN76: 0 | AO76: 0.03363017405 | AP76: 0.03363017405 | AQ76: 6.421508987 | AR76: 0 | AS76: TRUE | AT76: 0.4647111629 | AU76: 106.3479481 | AV76: 0
B77: 4 | C77: 8 | D77: 820.8676891 | F77: 68 | G77: 11 | H77: 1 | I77: 890.4057787 | J77: 1 | K77: 0.5364879757 | L77: 0.5364879757 | M77: 2.259816713e+18 | N77: 0 | O77: FALSE | P77: 0 | Q77: 3.933990277e-16 | R77: 3.933990277e-16 | S77: 7.131261296e+14 | T77: 0 | U77: FALSE | V77: 0 | W77: 1.276136002e-12 | X77: 1.276136002e-12 | Y77: 2.256869283e+11 | Z77: 0 | AA77: FALSE | AB77: 0 | AC77: 3.679445496e-09 | AD77: 3.679445496e-09 | AE77: 78223566.13 | AF77: 0 | AG77: FALSE | AH77: 0 | AI77: 1.163160258e-05 | AJ77: 1.163160258e-05 | AK77: 24744.59955 | AL77: 0 | AM77: FALSE | AN77: 0 | AO77: 0.036782357 | AP77: 0.036782357 | AQ77: 7.824929438 | AR77: 0 | AS77: TRUE | AT77: 0.5364879757 | AU77: 116.3160258 | AV77: 0
B78: 4 | C78: 9 | D78: 1008.02277 | F78: 69 | G78: 7 | H78: 7 | I78: 895.5663048 | J78: 1 | K78: 0.2889483274 | L78: 0.2889483274 | M78: 1.301709078e+18 | N78: 0 | O78: FALSE | P78: 0 | Q78: 1.981129886e-16 | R78: 1.981129886e-16 | S78: 4.107778969e+14 | T78: 0 | U78: FALSE | V78: 0 | W78: 6.426531318e-13 | X78: 6.426531318e-13 | Y78: 1.300011287e+11 | Z78: 0 | AA78: FALSE | AB78: 0 | AC78: 1.852942921e-09 | AD78: 1.852942921e-09 | AE78: 45058665.85 | AF78: 0 | AG78: FALSE | AH78: 0 | AI78: 5.857593403e-06 | AJ78: 5.857593403e-06 | AK78: 14253.48777 | AL78: 0 | AM78: FALSE | AN78: 0 | AO78: 0.01852333676 | AP78: 0.01852333676 | AQ78: 4.507348595 | AR78: 0 | AS78: TRUE | AT78: 0.2889483274 | AU78: 58.57593403 | AV78: 0
B79: 4 | C79: 10 | D79: 1217.196096 | F79: 70 | G79: 1 | H79: 9 | I79: 899.0066555 | J79: 1 | K79: 0.1936227347 | L79: 0.1936227347 | M79: 9.120329224e+17 | N79: 0 | O79: FALSE | P79: 0 | Q79: 1.269663682e-16 | R79: 1.269663682e-16 | S79: 2.87808522e+14 | T79: 0 | U79: FALSE | V79: 0 | W79: 4.118626181e-13 | X79: 4.118626181e-13 | Y79: 9.108433775e+10 | Z79: 0 | AA79: FALSE | AB79: 0 | AC79: 1.187511404e-09 | AD79: 1.187511404e-09 | AE79: 31570023.89 | AF79: 0 | AG79: FALSE | AH79: 0 | AI79: 3.754006065e-06 | AJ79: 3.754006065e-06 | AK79: 9986.601708 | AL79: 0 | AM79: FALSE | AN79: 0 | AO79: 0.01187120952 | AP79: 0.01187120952 | AQ79: 3.158040748 | AR79: 0 | AS79: TRUE | AT79: 0.1936227347 | AU79: 37.54006065 | AV79: 0
B80: 4 | C80: 11 | D80: 1448.387666 | F80: 71 | G80: 10 | H80: 4 | I80: 902.9200545 | J80: 1 | K80: 5.274188004e-06 | L80: 5.274188004e-06 | M80: 2.613017872e+13 | N80: 0 | O80: FALSE | P80: 0 | Q80: 3.288178205e-21 | R80: 3.288178205e-21 | S80: 8245851581 | T80: 0 | U80: FALSE | V80: 0 | W80: 1.066642847e-17 | X80: 1.066642847e-17 | Y80: 2609609.769 | Z80: 0 | AA80: FALSE | AB80: 0 | AC80: 3.075420028e-14 | AD80: 3.075420028e-14 | AE80: 904.496259 | AF80: 0 | AG80: FALSE | AH80: 0 | AI80: 9.722134375e-11 | AJ80: 9.722134375e-11 | AK80: 0.2861209075 | AL80: 0 | AM80: FALSE | AN80: 0 | AO80: 3.074408834e-07 | AP80: 3.074408834e-07 | AQ80: 9.047937538e-05 | AR80: 0 | AS80: TRUE | AT80: 5.274188004e-06 | AU80: 0.0009722134375 | AV80: 0
B81: 4 | C81: 12 | D81: 1701.597481 | F81: 72 | G81: 2 | H81: 9 | I81: 920.8098784 | J81: 1 | K81: 0.2276164854 | L81: 0.2276164854 | M81: 1.416635692e+18 | N81: 0 | O81: FALSE | P81: 0 | Q81: 1.12962881e-16 | R81: 1.12962881e-16 | S81: 4.470450733e+14 | T81: 0 | U81: FALSE | V81: 0 | W81: 3.664371013e-13 | X81: 3.664371013e-13 | Y81: 1.414788004e+11 | Z81: 0 | AA81: FALSE | AB81: 0 | AC81: 1.056537344e-09 | AD81: 1.056537344e-09 | AE81: 49036851.13 | AF81: 0 | AG81: FALSE | AH81: 0 | AI81: 3.339965903e-06 | AJ81: 3.339965903e-06 | AK81: 15511.91418 | AL81: 0 | AM81: FALSE | AN81: 0 | AO81: 0.01056189956 | AP81: 0.01056189956 | AQ81: 4.905297968 | AR81: 0 | AS81: TRUE | AT81: 0.2276164854 | AU81: 33.39965903 | AV81: 0
B82: 4 | C82: 13 | D82: 1976.825541 | F82: 73 | G82: 11 | H82: 2 | I82: 923.4331459 | J82: 1 | K82: 0.8031328259 | L82: 0.8031328259 | M82: 5.166620555e+18 | N82: 0 | O82: FALSE | P82: 0 | Q82: 3.85615693e-16 | R82: 3.85615693e-16 | S82: 1.630420777e+15 | T82: 0 | U82: FALSE | V82: 0 | W82: 1.250887862e-12 | X82: 1.250887862e-12 | Y82: 5.159881843e+11 | Z82: 0 | AA82: FALSE | AB82: 0 | AC82: 3.606648275e-09 | AD82: 3.606648275e-09 | AE82: 178842594.8 | AF82: 0 | AG82: FALSE | AH82: 0 | AI82: 1.140147325e-05 | AJ82: 1.140147325e-05 | AK82: 56573.59553 | AL82: 0 | AM82: FALSE | AN82: 0 | AO82: 0.03605462415 | AP82: 0.03605462415 | AQ82: 17.89014173 | AR82: 0 | AS82: TRUE | AT82: 0.8031328259 | AU82: 114.0147325 | AV82: 0
B83: 4 | C83: 14 | D83: 2274.071846 | F83: 74 | G83: 3 | H83: 9 | I83: 957.1485832 | J83: 1 | K83: 0.07395568028 | L83: 0.07395568028 | M83: 7.218792565e+17 | N83: 0 | O83: FALSE | P83: 0 | Q83: 2.340264924e-17 | R83: 2.340264924e-17 | S83: 2.278020856e+14 | T83: 0 | U83: FALSE | V83: 0 | W83: 7.591519331e-14 | X83: 7.591519331e-14 | Y83: 7.20937725e+10 | Z83: 0 | AA83: FALSE | AB83: 0 | AC83: 2.188840497e-10 | AD83: 2.188840497e-10 | AE83: 24987853.86 | AF83: 0 | AG83: FALSE | AH83: 0 | AI83: 6.919445553e-07 | AJ83: 6.919445553e-07 | AK83: 7904.452175 | AL83: 0 | AM83: FALSE | AN83: 0 | AO83: 0.002188120809 | AP83: 0.002188120809 | AQ83: 2.499607253 | AR83: 0 | AS83: TRUE | AT83: 0.07395568028 | AU83: 6.919445553 | AV83: 0
B84: 4 | C84: 15 | D84: 2593.336396 | F84: 75 | G84: 6 | H84: 8 | I84: 966.2225083 | J84: 1 | K84: 0.2731453966 | L84: 0.2731453966 | M84: 2.975300792e+18 | N84: 0 | O84: FALSE | P84: 0 | Q84: 7.745392071e-17 | R84: 7.745392071e-17 | S84: 9.389101011e+14 | T84: 0 | U84: FALSE | V84: 0 | W84: 2.512505872e-13 | X84: 2.512505872e-13 | Y84: 2.971420171e+11 | Z84: 0 | AA84: FALSE | AB84: 0 | AC84: 7.244234471e-10 | AD84: 7.244234471e-10 | AE84: 102990050.9 | AF84: 0 | AG84: FALSE | AH84: 0 | AI84: 2.290074862e-06 | AJ84: 2.290074862e-06 | AK84: 32579.02565 | AL84: 0 | AM84: FALSE | AN84: 0 | AO84: 0.007241852577 | AP84: 0.007241852577 | AQ84: 10.3023925 | AR84: 0 | AS84: TRUE | AT84: 0.2731453966 | AU84: 22.90074862 | AV84: 0
B85: 4 | C85: 16 | D85: 2934.61919 | F85: 76 | G85: 11 | H85: 3 | I85: 978.4787579 | J85: 1 | K85: 0.6658173233 | L85: 0.6658173233 | M85: 8.397303086e+18 | N85: 0 | O85: FALSE | P85: 0 | Q85: 1.630635397e-16 | R85: 1.630635397e-16 | S85: 2.649921215e+15 | T85: 0 | U85: FALSE | V85: 0 | W85: 5.28957214e-13 | X85: 5.28957214e-13 | Y85: 8.386350665e+11 | Z85: 0 | AA85: FALSE | AB85: 0 | AC85: 1.525126817e-09 | AD85: 1.525126817e-09 | AE85: 290672685.8 | AF85: 0 | AG85: FALSE | AH85: 0 | AI85: 4.821288708e-06 | AJ85: 4.821288708e-06 | AK85: 91949.00676 | AL85: 0 | AM85: FALSE | AN85: 0 | AO85: 0.01524625357 | AP85: 0.01524625357 | AQ85: 29.076829 | AR85: 0 | AS85: TRUE | AT85: 0.6658173233 | AU85: 48.21288708 | AV85: 0
B86: 4 | C86: 17 | D86: 3297.92023 | F86: 77 | G86: 9 | H86: 6 | I86: 985.0154243 | J86: 1 | K86: 0.756436047 | L86: 0.756436047 | M86: 1.030806624e+19 | N86: 0 | O86: FALSE | P86: 0 | Q86: 1.714564177e-16 | R86: 1.714564177e-16 | S86: 3252897165550922 | T86: 0 | U86: FALSE | V86: 0 | W86: 5.561826338e-13 | X86: 5.561826338e-13 | Y86: 1.029462165e+12 | Z86: 0 | AA86: FALSE | AB86: 0 | AC86: 1.603625071e-09 | AD86: 1.603625071e-09 | AE86: 356813761.2 | AF86: 0 | AG86: FALSE | AH86: 0 | AI86: 5.069440365e-06 | AJ86: 5.069440365e-06 | AK86: 112871.5306 | AL86: 0 | AM86: FALSE | AN86: 0 | AO86: 0.01603097802 | AP86: 0.01603097802 | AQ86: 35.69311197 | AR86: 0 | AS86: TRUE | AT86: 0.756436047 | AU86: 50.69440365 | AV86: 0
B87: 4 | C87: 18 | D87: 3683.239514 | F87: 78 | G87: 10 | H87: 5 | I87: 1002.002156 | J87: 1 | K87: 1.024230658e-05 | L87: 1.024230658e-05 | M87: 1.702701927e+14 | N87: 0 | O87: FALSE | P87: 0 | Q87: 1.903020332e-21 | R87: 1.903020332e-21 | S87: 5.373184597e+10 | T87: 0 | U87: FALSE | V87: 0 | W87: 6.173153942e-18 | X87: 6.173153942e-18 | Y87: 17004811.3 | Z87: 0 | AA87: FALSE | AB87: 0 | AC87: 1.779887366e-14 | AD87: 1.779887366e-14 | AE87: 5893.903521 | AF87: 0 | AG87: FALSE | AH87: 0 | AI87: 5.626647412e-11 | AJ87: 5.626647412e-11 | AK87: 1.864428965 | AL87: 0 | AM87: FALSE | AN87: 0 | AO87: 1.779302141e-07 | AP87: 1.779302141e-07 | AQ87: 0.0005895842065 | AR87: 0 | AS87: TRUE | AT87: 1.024230658e-05 | AU87: 0.0005626647412 | AV87: 0
B88: 4 | C88: 19 | D88: 4090.577043 | F88: 79 | G88: 8 | H88: 7 | I88: 1004.582419 | J88: 1 | K88: 0.8892543823 | L88: 0.8892543823 | M88: 1.523186171e+19 | N88: 0 | O88: FALSE | P88: 0 | Q88: 1.603561252e-16 | R88: 1.603561252e-16 | S88: 4806690084541550 | T88: 0 | U88: FALSE | V88: 0 | W88: 5.201747083e-13 | X88: 5.201747083e-13 | Y88: 1.521199512e+12 | Z88: 0 | AA88: FALSE | AB88: 0 | AC88: 1.499804476e-09 | AD88: 1.499804476e-09 | AE88: 527250964.5 | AF88: 0 | AG88: FALSE | AH88: 0 | AI88: 4.741238763e-06 | AJ88: 4.741238763e-06 | AK88: 166786.2337 | AL88: 0 | AM88: FALSE | AN88: 0 | AO88: 0.01499311342 | AP88: 0.01499311342 | AQ88: 52.74243809 | AR88: 0 | AS88: TRUE | AT88: 0.8892543823 | AU88: 47.41238763 | AV88: 0
B89: 4 | C89: 20 | D89: 4519.932816 | F89: 80 | G89: 4 | H89: 9 | I89: 1008.02277 | J89: 1 | K89: 0.1406766328 | L89: 0.1406766328 | M89: 2.507332747e+18 | N89: 0 | O89: FALSE | P89: 0 | Q89: 2.437914495e-17 | R89: 2.437914495e-17 | S89: 7.912343013e+14 | T89: 0 | U89: FALSE | V89: 0 | W89: 7.908282019e-14 | X89: 7.908282019e-14 | Y89: 2.504062487e+11 | Z89: 0 | AA89: FALSE | AB89: 0 | AC89: 2.280171753e-10 | AD89: 2.280171753e-10 | AE89: 86791334.83 | AF89: 0 | AG89: FALSE | AH89: 0 | AI89: 7.208165384e-07 | AJ89: 7.208165384e-07 | AK89: 27454.85704 | AL89: 0 | AM89: FALSE | AN89: 0 | AO89: 0.002279422036 | AP89: 0.002279422036 | AQ89: 8.681988108 | AR89: 0 | AS89: TRUE | AT89: 0.1406766328 | AU89: 7.208165384 | AV89: 0
B90: 5 | C90: 1 | D90: 192.7026464 | F90: 81 | G90: 11 | H90: 4 | I90: 1055.542615 | J90: 1 | K90: 0.1936085227 | L90: 0.1936085227 | M90: 5.895390385e+18 | N90: 0 | O90: FALSE | P90: 0 | Q90: 1.963915903e-17 | R90: 1.963915903e-17 | S90: 1860397307346837 | T90: 0 | U90: FALSE | V90: 0 | W90: 6.370691364e-14 | X90: 6.370691364e-14 | Y90: 5.887701154e+11 | Z90: 0 | AA90: FALSE | AB90: 0 | AC90: 1.836842751e-10 | AD90: 1.836842751e-10 | AE90: 204068965.9 | AF90: 0 | AG90: FALSE | AH90: 0 | AI90: 5.806696935e-07 | AJ90: 5.806696935e-07 | AK90: 64553.49828 | AL90: 0 | AM90: FALSE | AN90: 0 | AO90: 0.0018362388 | AP90: 0.0018362388 | AQ90: 20.41360855 | AR90: 0 | AS90: TRUE | AT90: 0.1936085227 | AU90: 5.806696935 | AV90: 0
B91: 5 | C91: 2 | D91: 225.7300136 | F91: 82 | G91: 12 | H91: 1 | I91: 1057.563821 | J91: 1 | K91: 0.6306629124 | L91: 0.6306629124 | M91: 1.963563957e+19 | N91: 0 | O91: FALSE | P91: 0 | Q91: 6.256566222e-17 | R91: 6.256566222e-17 | S91: 6196382021760992 | T91: 0 | U91: FALSE | V91: 0 | W91: 2.029549857e-13 | X91: 2.029549857e-13 | Y91: 1.961002923e+12 | Z91: 0 | AA91: FALSE | AB91: 0 | AC91: 5.851741562e-10 | AD91: 5.851741562e-10 | AE91: 679687756.1 | AF91: 0 | AG91: FALSE | AH91: 0 | AI91: 1.849874725e-06 | AJ91: 1.849874725e-06 | AK91: 215006.8346 | AL91: 0 | AM91: FALSE | AN91: 0 | AO91: 0.005849817517 | AP91: 0.005849817517 | AQ91: 67.99113099 | AR91: 0 | AS91: TRUE | AT91: 0.6306629124 | AU91: 18.49874725 | AV91: 0
B92: 5 | C92: 3 | D92: 280.7756256 | F92: 83 | G92: 7 | H92: 8 | I92: 1060.703141 | J92: 1 | K92: 0.1436104652 | L92: 0.1436104652 | M92: 4.628077351e+18 | N92: 0 | O92: FALSE | P92: 0 | Q92: 1.376442528e-17 | R92: 1.376442528e-17 | S92: 1.460473706e+15 | T92: 0 | U92: FALSE | V92: 0 | W92: 4.465003065e-14 | X92: 4.465003065e-14 | Y92: 4.62204105e+11 | Z92: 0 | AA92: FALSE | AB92: 0 | AC92: 1.287381235e-10 | AD92: 1.287381235e-10 | AE92: 160200919.2 | AF92: 0 | AG92: FALSE | AH92: 0 | AI92: 4.069718361e-07 | AJ92: 4.069718361e-07 | AK92: 50676.64121 | AL92: 0 | AM92: FALSE | AN92: 0 | AO92: 0.001286957946 | AP92: 0.001286957946 | AQ92: 16.02536104 | AR92: 0 | AS92: TRUE | AT92: 0.1436104652 | AU92: 4.069718361 | AV92: 0
B93: 5 | C93: 4 | D93: 357.8394825 | F93: 84 | G93: 5 | H93: 9 | I93: 1073.432439 | J93: 1 | K93: 0.2393304788 | L93: 0.2393304788 | M93: 8.860313538e+18 | N93: 0 | O93: FALSE | P93: 0 | Q93: 1.996794823e-17 | R93: 1.996794823e-17 | S93: 2.796032557e+15 | T93: 0 | U93: FALSE | V93: 0 | W93: 6.477346367e-14 | X93: 6.477346367e-14 | Y93: 8.848757222e+11 | Z93: 0 | AA93: FALSE | AB93: 0 | AC93: 1.867594275e-10 | AD93: 1.867594275e-10 | AE93: 306699794.7 | AF93: 0 | AG93: FALSE | AH93: 0 | AI93: 5.903909819e-07 | AJ93: 5.903909819e-07 | AK93: 97018.8906 | AL93: 0 | AM93: FALSE | AN93: 0 | AO93: 0.001866980213 | AP93: 0.001866980213 | AQ93: 30.68006704 | AR93: 0 | AS93: TRUE | AT93: 0.2393304788 | AU93: 5.903909819 | AV93: 0
B94: 5 | C94: 5 | D94: 456.9215841 | F94: 85 | G94: 12 | H94: 2 | I94: 1090.591188 | J94: 1 | K94: 0.9441145188 | L94: 0.9441145188 | M94: 4.202931382e+19 | N94: 0 | O94: FALSE | P94: 0 | Q94: 6.550637489e-17 | R94: 6.550637489e-17 | S94: 1.326311188e+16 | T94: 0 | U94: FALSE | V94: 0 | W94: 2.124942806e-13 | X94: 2.124942806e-13 | Y94: 4.197449589e+12 | Z94: 0 | AA94: FALSE | AB94: 0 | AC94: 6.126785251e-10 | AD94: 6.126785251e-10 | AE94: 1454844895 | AF94: 0 | AG94: FALSE | AH94: 0 | AI94: 1.936822579e-06 | AJ94: 1.936822579e-06 | AK94: 460213.6687 | AL94: 0 | AM94: FALSE | AN94: 0 | AO94: 0.006124770773 | AP94: 0.006124770773 | AQ94: 145.5323404 | AR94: 0 | AS94: TRUE | AT94: 0.9441145188 | AU94: 19.36822579 | AV94: 0
B95: 5 | C95: 6 | D95: 578.0219305 | F95: 86 | G95: 1 | H95: 10 | I95: 1108.179981 | J95: 1 | K95: 0.6658167909 | L95: 0.6658167909 | M95: 3.570003908e+19 | N95: 0 | O95: FALSE | P95: 0 | Q95: 3.835546994e-17 | R95: 3.835546994e-17 | S95: 1.12657945e+16 | T95: 0 | U95: FALSE | V95: 0 | W95: 1.244202263e-13 | X95: 1.244202263e-13 | Y95: 3.565347629e+12 | Z95: 0 | AA95: FALSE | AB95: 0 | AC95: 3.587371884e-10 | AD95: 3.587371884e-10 | AE95: 1235757020 | AF95: 0 | AG95: FALSE | AH95: 0 | AI95: 1.134053599e-06 | AJ95: 1.134053599e-06 | AK95: 390909.2123 | AL95: 0 | AM95: FALSE | AN95: 0 | AO95: 0.003586192362 | AP95: 0.003586192362 | AQ95: 123.6163469 | AR95: 0 | AS95: TRUE | AT95: 0.6658167909 | AU95: 11.34053599 | AV95: 0
B96: 5 | C96: 7 | D96: 721.1405217 | F96: 87 | G96: 10 | H96: 6 | I96: 1123.102503 | J96: 1 | K96: 2.06071181e-05 | L96: 2.06071181e-05 | M96: 1290839026657014 | N96: 0 | O96: FALSE | P96: 0 | Q96: 1.016129234e-21 | R96: 1.016129234e-21 | S96: 4.073476552e+11 | T96: 0 | U96: FALSE | V96: 0 | W96: 3.296192941e-18 | X96: 3.296192941e-18 | Y96: 128915541.3 | Z96: 0 | AA96: FALSE | AB96: 0 | AC96: 9.503816405e-15 | AD96: 9.503816405e-15 | AE96: 44682.39897 | AF96: 0 | AG96: FALSE | AH96: 0 | AI96: 3.004382469e-11 | AJ96: 3.004382469e-11 | AK96: 14.1344626 | AL96: 0 | AM96: FALSE | AN96: 0 | AO96: 9.500691564e-08 | AP96: 9.500691564e-08 | AQ96: 0.004469709531 | AR96: 0 | AS96: TRUE | AT96: 2.06071181e-05 | AU96: 0.0003004382469 | AV96: 0
B97: 5 | C97: 8 | D97: 886.2773578 | F97: 88 | G97: 9 | H97: 7 | I97: 1128.134016 | J97: 1 | K97: 0.7564297244 | L97: 0.7564297244 | M97: 4.991078634e+19 | N97: 0 | O97: FALSE | P97: 0 | Q97: 3.541027291e-17 | R97: 3.541027291e-17 | S97: 1.575025341e+16 | T97: 0 | U97: FALSE | V97: 0 | W97: 1.148663848e-13 | X97: 1.148663848e-13 | Y97: 4.984568878e+12 | Z97: 0 | AA97: FALSE | AB97: 0 | AC97: 3.311908774e-10 | AD97: 3.311908774e-10 | AE97: 1727662104 | AF97: 0 | AG97: FALSE | AH97: 0 | AI97: 1.046973157e-06 | AJ97: 1.046973157e-06 | AK97: 546514.4206 | AL97: 0 | AM97: FALSE | AN97: 0 | AO97: 0.003310819824 | AP97: 0.003310819824 | AQ97: 172.8230343 | AR97: 0 | AS97: TRUE | AT97: 0.7564297244 | AU97: 10.46973157 | AV97: 0
B98: 5 | C98: 9 | D98: 1073.432439 | F98: 89 | G98: 2 | H98: 10 | I98: 1129.983204 | J98: 1 | K98: 0.7827122065 | L98: 0.7827122065 | M98: 5.263782892e+19 | N98: 0 | O98: FALSE | P98: 0 | Q98: 3.594949207e-17 | R98: 3.594949207e-17 | S98: 1.661082113e+16 | T98: 0 | U98: FALSE | V98: 0 | W98: 1.166155426e-13 | X98: 1.166155426e-13 | Y98: 5.256917454e+12 | Z98: 0 | AA98: FALSE | AB98: 0 | AC98: 3.362341728e-10 | AD98: 3.362341728e-10 | AE98: 1822058695 | AF98: 0 | AG98: FALSE | AH98: 0 | AI98: 1.062916213e-06 | AJ98: 1.062916213e-06 | AK98: 576375.0621 | AL98: 0 | AM98: FALSE | AN98: 0 | AO98: 0.003361236195 | AP98: 0.003361236195 | AQ98: 182.2657983 | AR98: 0 | AS98: TRUE | AT98: 0.7827122065 | AU98: 10.62916213 | AV98: 0
B99: 5 | C99: 10 | D99: 1282.605764 | F99: 90 | G99: 12 | H99: 3 | I99: 1145.6368 | J99: 1 | K99: 0.7826946945 | L99: 0.7826946945 | M99: 6.176716843e+19 | N99: 0 | O99: FALSE | P99: 0 | Q99: 3.063469781e-17 | R99: 3.063469781e-17 | S99: 1.949174971e+16 | T99: 0 | U99: FALSE | V99: 0 | W99: 9.937503154e-14 | X99: 9.937503154e-14 | Y99: 6.168660684e+12 | Z99: 0 | AA99: FALSE | AB99: 0 | AC99: 2.86525113e-10 | AD99: 2.86525113e-10 | AE99: 2138070825 | AF99: 0 | AG99: FALSE | AH99: 0 | AI99: 9.057740489e-07 | AJ99: 9.057740489e-07 | AK99: 676339.7402 | AL99: 0 | AM99: FALSE | AN99: 0 | AO99: 0.00286430904 | AP99: 0.00286430904 | AQ99: 213.8774051 | AR99: 0 | AS99: TRUE | AT99: 0.7826946945 | AU99: 9.057740489 | AV99: 0
B100: 5 | C100: 11 | D100: 1513.797335 | F100: 91 | G100: 6 | H100: 9 | I100: 1153.377589 | J100: 1 | K100: 0.1406723655 | L100: 0.1406723655 | M100: 1.200541383e+19 | N100: 0 | O100: FALSE | P100: 0 | Q100: 5.091279731e-18 | R100: 5.091279731e-18 | S100: 3.788525968e+15 | T100: 0 | U100: FALSE | V100: 0 | W100: 1.651545862e-14 | X100: 1.651545862e-14 | Y100: 1.198975543e+12 | Z100: 0 | AA100: FALSE | AB100: 0 | AC100: 4.76185373e-11 | AD100: 4.76185373e-11 | AE100: 415567456.1 | AF100: 0 | AG100: FALSE | AH100: 0 | AI100: 1.505335252e-07 | AJ100: 1.505335252e-07 | AK100: 131457.1912 | AL100: 0 | AM100: FALSE | AN100: 0 | AO100: 0.000476028804 | AP100: 0.000476028804 | AQ100: 41.57041391 | AR100: 0 | AS100: TRUE | AT100: 0.1406723655 | AU100: 1.505335252 | AV100: 0
B101: 5 | C101: 12 | D101: 1767.00715 | F101: 92 | G101: 11 | H101: 5 | I101: 1154.624716 | J101: 1 | K101: 0.3759816383 | L101: 0.3759816383 | M101: 3.249315592e+19 | N101: 0 | O101: FALSE | P101: 0 | Q101: 1.343779126e-17 | R101: 1.343779126e-17 | S101: 1.025380438e+16 | T101: 0 | U101: FALSE | V101: 0 | W101: 4.359047178e-14 | X101: 4.359047178e-14 | Y101: 3.245077579e+12 | Z101: 0 | AA101: FALSE | AB101: 0 | AC101: 1.256831285e-10 | AD101: 1.256831285e-10 | AE101: 1124750745 | AF101: 0 | AG101: FALSE | AH101: 0 | AI101: 3.9731427e-07 | AJ101: 3.9731427e-07 | AK101: 355794.4 | AL101: 0 | AM101: FALSE | AN101: 0 | AO101: 0.00125641804 | AP101: 0.00125641804 | AQ101: 112.5120683 | AR101: 0 | AS101: TRUE | AT101: 0.3759816383 | AU101: 3.9731427 | AV101: 0
B102: 5 | C102: 13 | D102: 2042.23521 | F102: 93 | G102: 3 | H102: 10 | I102: 1166.321909 | J102: 1 | K102: 0.2543138015 | L102: 0.2543138015 | M102: 2.471110999e+19 | N102: 0 | O102: FALSE | P102: 0 | Q102: 8.084145457e-18 | R102: 8.084145457e-18 | S102: 7798038718226068 | T102: 0 | U102: FALSE | V102: 0 | W102: 2.622393127e-14 | X102: 2.622393127e-14 | Y102: 2.467887982e+12 | Z102: 0 | AA102: FALSE | AB102: 0 | AC102: 7.561069169e-11 | AD102: 7.561069169e-11 | AE102: 855375188.2 | AF102: 0 | AG102: FALSE | AH102: 0 | AI102: 2.390233848e-07 | AJ102: 2.390233848e-07 | AK102: 270582.352 | AL102: 0 | AM102: FALSE | AN102: 0 | AO102: 0.00075585831 | AP102: 0.00075585831 | AQ102: 85.56565268 | AR102: 0 | AS102: TRUE | AT102: 0.2543138015 | AU102: 2.390233848 | AV102: 0
B103: 5 | C103: 14 | D103: 2339.481515 | F103: 94 | G103: 8 | H103: 8 | I103: 1169.719255 | J103: 1 | K103: 0.4419691115 | L103: 0.4419691115 | M103: 4.442231758e+19 | N103: 0 | O103: FALSE | P103: 0 | Q103: 1.358216923e-17 | R103: 1.358216923e-17 | S103: 1.40182676e+16 | T103: 0 | U103: FALSE | V103: 0 | W103: 4.405881539e-14 | X103: 4.405881539e-14 | Y103: 4.436437851e+12 | Z103: 0 | AA103: FALSE | AB103: 0 | AC103: 1.270334898e-10 | AD103: 1.270334898e-10 | AE103: 1537678732 | AF103: 0 | AG103: FALSE | AH103: 0 | AI103: 4.015830837e-07 | AJ103: 4.015830837e-07 | AK103: 486416.6433 | AL103: 0 | AM103: FALSE | AN103: 0 | AO103: 0.001269917214 | AP103: 0.001269917214 | AQ103: 153.8184485 | AR103: 0 | AS103: TRUE | AT103: 0.4419691115 | AU103: 4.015830837 | AV103: 0
B104: 5 | C104: 15 | D104: 2658.746065 | F104: 95 | G104: 4 | H104: 10 | I104: 1217.196096 | J104: 1 | K104: 0.4837493095 | L104: 0.4837493095 | M104: 7.721953965e+19 | N104: 0 | O104: FALSE | P104: 0 | Q104: 9.360520984e-18 | R104: 9.360520984e-18 | S104: 2.436802557e+16 | T104: 0 | U104: FALSE | V104: 0 | W104: 3.036432982e-14 | X104: 3.036432982e-14 | Y104: 7.711882387e+12 | Z104: 0 | AA104: FALSE | AB104: 0 | AC104: 8.754858134e-11 | AD104: 8.754858134e-11 | AE104: 2672954728 | AF104: 0 | AG104: FALSE | AH104: 0 | AI104: 2.767618941e-07 | AJ104: 2.767618941e-07 | AK104: 845540.5147 | AL104: 0 | AM104: FALSE | AN104: 0 | AO104: 0.000875197955 | AP104: 0.000875197955 | AQ104: 267.3833881 | AR104: 0 | AS104: TRUE | AT104: 0.4837493095 | AU104: 2.767618941 | AV104: 0
